Workbook

Sheet DASHBOARD
B2: ="GLOBAL CLIMATESCOPE INDEX " & int_Year+1 -> GLOBAL CLIMATESCOPE INDEX 2016
B3: INSTRUCTIONS
B4: Climatescope is a comprehensive index and report assessing the environment for low-carbon investment in 64 countries and regions in Africa, Asia, the Middle East, Latin America and the Caribbean, developed by the
B5: UK Department for International Development, the US Agency for International Development and Bloomberg New Energy Finance.
B6: Tab content
B7: ="Climatescope scores countries on a 0 to "&dbl_ScoreMax&" scale and is composed of four parameters (see list below) - each of which has a unique weight to the overall final score." -> Climatescope scores countries on a 0 to 5 scale and is composed of four parameters (see list below) - each of which has a unique weight to the overall final score.
B8: ="The maximum attainable score is "& dbl_ScoreMax& " given the total weight of all parameters and/or categories do not exceed 100%." -> The maximum attainable score is 5 given the total weight of all parameters and/or categories do not exceed 100%.
B9: 1) Enabling Framework (40%)
B10: 2) Clean Energy Investment & Climate Financing (30%)
B11: 3) Low-Carbon Business & Clean Energy Value Chains (15%)
B12: 4) Greenhouse Gas Management Activities (15%)
B13: Instructions
B14: The Climatescope tool allows users to fine tune the methodology for parameter weights to fit their preferences. To customise parameter weighting scenarios...
B15: 1) Choose between global and regional results, Indian states and off-grid focus countries in the drop-down menu (Cell E21).
B16: 2) Choose pre-selected scenarios to analyse countries’ performance under a specific parameter. Country rankings will automatically reshuffle to reflect the results of your personalised Climatescope index.
B17: 3) To assign custom weights, choose the option 'Custom' in the drop-down menu and type in your own weighting assumptions. Click on 'Calculate Scores' to see the changes in the results.
B19: FOR QUESTIONS OR FEEDBACK PLEASE EMAIL CLIMATESCOPE@BLOOMBERG.NET
B21: REGION | E21: Global | O21: SCORE RANGES
B22: PARAMETER WEIGHTING SCENARIO | E22: Defaults | O22: 4.01 to 5.00
B23: I. Enabling Framework | E23: 0.4 | O23: 3.01 to 4.00
B24: II. Clean Energy Investment & Climate Financing | E24: 0.3 | O24: 2.01 to 3.01
B25: III. Low Carbon Value Chain | E25: 0.15 | O25: 1.01 to 2.00
B26: IV. Greenhouse Gas Management Activities | E26: 0.15 | O26: 0.00 to 1.00
E27: =dbl_DBWeightP1+dbl_DBWeightP2+dbl_DBWeightP3+dbl_DBWeightP4 -> 1
B32: RANK | C32: REGION | D32: COUNTRY | E32: SCORE
B33: =IF(E33="", "", IFERROR(RANK(E33, $E$33:$E$96), "")) -> 1 | C33: =IFERROR(INDEX(IND!$K$10:$K$89, MATCH(D33, IND!$L$10:$L$89, 0), 1), "") -> Asia | D33: China | E33: 2.525113539
B34: 2 | C34: =IFERROR(INDEX(IND!$K$10:$K$89, MATCH(D34, IND!$L$10:$L$89, 0), 1), "") -> LAC | D34: Chile | E34: 2.357710456
B35: 3 | C35: =IFERROR(INDEX(IND!$K$10:$K$89, MATCH(D35, IND!$L$10:$L$89, 0), 1), "") -> LAC | D35: Brazil | E35: 2.29481602
B36: 4 | C36: =IFERROR(INDEX(IND!$K$10:$K$89, MATCH(D36, IND!$L$10:$L$89, 0), 1), "") -> LAC | D36: Uruguay | E36: 2.286485677
B37: 5 | C37: =IFERROR(INDEX(IND!$K$10:$K$89, MATCH(D37, IND!$L$10:$L$89, 0), 1), "") -> Africa | D37: South Africa | E37: 2.210095427
B38: 6 | C38: =IFERROR(INDEX(IND!$K$10:$K$89, MATCH(D38, IND!$L$10:$L$89, 0), 1), "") -> Asia | D38: India | E38: 2.167023399
B39: 7 | C39: =IFERROR(INDEX(IND!$K$10:$K$89, MATCH(D39, IND!$L$10:$L$89, 0), 1), "") -> Africa | D39: Uganda | E39: 2.046459874
B40: 8 | C40: =IFERROR(INDEX(IND!$K$10:$K$89, MATCH(D40, IND!$L$10:$L$89, 0), 1), "") -> LAC | D40: Honduras | E40: 2.029822931
B41: 9 | C41: =IFERROR(INDEX(IND!$K$10:$K$89, MATCH(D41, IND!$L$10:$L$89, 0), 1), "") -> LAC | D41: Mexico | E41: 2.021898761
B42: 10 | C42: =IFERROR(INDEX(IND!$K$10:$K$89, MATCH(D42, IND!$L$10:$L$89, 0), 1), "") -> Africa | D42: Kenya | E42: 2.011235734
B43: 11 | C43: =IFERROR(INDEX(IND!$K$10:$K$89, MATCH(D43, IND!$L$10:$L$89, 0), 1), "") -> Middle East | D43: Jordan | E43: 1.870293249
B44: 12 | C44: =IFERROR(INDEX(IND!$K$10:$K$89, MATCH(D44, IND!$L$10:$L$89, 0), 1), "") -> Asia | D44: Pakistan | E44: 1.866767674
B45: 13 | C45: =IFERROR(INDEX(IND!$K$10:$K$89, MATCH(D45, IND!$L$10:$L$89, 0), 1), "") -> Africa | D45: Rwanda | E45: 1.725134815
B46: 14 | C46: =IFERROR(INDEX(IND!$K$10:$K$89, MATCH(D46, IND!$L$10:$L$89, 0), 1), "") -> Asia | D46: Indonesia | E46: 1.691922496
B47: 15 | C47: =IFERROR(INDEX(IND!$K$10:$K$89, MATCH(D47, IND!$L$10:$L$89, 0), 1), "") -> LAC | D47: Panama | E47: 1.61646821
B48: 16 | C48: =IFERROR(INDEX(IND!$K$10:$K$89, MATCH(D48, IND!$L$10:$L$89, 0), 1), "") -> LAC | D48: Peru | E48: 1.604310693
B49: 17 | C49: =IFERROR(INDEX(IND!$K$10:$K$89, MATCH(D49, IND!$L$10:$L$89, 0), 1), "") -> Asia | D49: Vietnam | E49: 1.556810376
B50: 18 | C50: =IFERROR(INDEX(IND!$K$10:$K$89, MATCH(D50, IND!$L$10:$L$89, 0), 1), "") -> Asia | D50: Nepal | E50: 1.544656204
B51: 19 | C51: =IFERROR(INDEX(IND!$K$10:$K$89, MATCH(D51, IND!$L$10:$L$89, 0), 1), "") -> Africa | D51: Tanzania | E51: 1.527260181
B52: 20 | C52: =IFERROR(INDEX(IND!$K$10:$K$89, MATCH(D52, IND!$L$10:$L$89, 0), 1), "") -> LAC | D52: Costa Rica | E52: 1.506737955
B53: 21 | C53: =IFERROR(INDEX(IND!$K$10:$K$89, MATCH(D53, IND!$L$10:$L$89, 0), 1), "") -> LAC | D53: Guatemala | E53: 1.494887587
B54: 22 | C54: =IFERROR(INDEX(IND!$K$10:$K$89, MATCH(D54, IND!$L$10:$L$89, 0), 1), "") -> LAC | D54: Colombia | E54: 1.447753845
B55: 23 | C55: =IFERROR(INDEX(IND!$K$10:$K$89, MATCH(D55, IND!$L$10:$L$89, 0), 1), "") -> LAC | D55: Nicaragua | E55: 1.442642889
B56: 24 | C56: =IFERROR(INDEX(IND!$K$10:$K$89, MATCH(D56, IND!$L$10:$L$89, 0), 1), "") -> LAC | D56: Jamaica | E56: 1.407306409
B57: 25 | C57: =IFERROR(INDEX(IND!$K$10:$K$89, MATCH(D57, IND!$L$10:$L$89, 0), 1), "") -> Asia | D57: Bangladesh | E57: 1.400281843
B58: 26 | C58: =IFERROR(INDEX(IND!$K$10:$K$89, MATCH(D58, IND!$L$10:$L$89, 0), 1), "") -> LAC | D58: Argentina | E58: 1.39359608
B59: 27 | C59: =IFERROR(INDEX(IND!$K$10:$K$89, MATCH(D59, IND!$L$10:$L$89, 0), 1), "") -> Asia | D59: Sri Lanka | E59: 1.37948371
B60: 28 | C60: =IFERROR(INDEX(IND!$K$10:$K$89, MATCH(D60, IND!$L$10:$L$89, 0), 1), "") -> Africa | D60: Sierra Leone | E60: 1.351260491
B61: 29 | C61: =IFERROR(INDEX(IND!$K$10:$K$89, MATCH(D61, IND!$L$10:$L$89, 0), 1), "") -> Africa | D61: Ghana | E61: 1.342848397
B62: 30 | C62: =IFERROR(INDEX(IND!$K$10:$K$89, MATCH(D62, IND!$L$10:$L$89, 0), 1), "") -> Africa | D62: Nigeria | E62: 1.336867433
B63: 31 | C63: =IFERROR(INDEX(IND!$K$10:$K$89, MATCH(D63, IND!$L$10:$L$89, 0), 1), "") -> Africa | D63: Liberia | E63: 1.329116788
B64: 32 | C64: =IFERROR(INDEX(IND!$K$10:$K$89, MATCH(D64, IND!$L$10:$L$89, 0), 1), "") -> Africa | D64: Ethiopia | E64: 1.292056354
B65: =IF(E65="", "", IFERROR(RANK(E65, $E$33:$E$96), "")) -> 33 | C65: =IFERROR(INDEX(IND!$K$10:$K$89, MATCH(D65, IND!$L$10:$L$89, 0), 1), "") -> LAC | D65: El Salvador | E65: 1.264797174
B66: 34 | C66: =IFERROR(INDEX(IND!$K$10:$K$89, MATCH(D66, IND!$L$10:$L$89, 0), 1), "") -> LAC | D66: Dominican Republic | E66: 1.203429651
B67: 35 | C67: =IFERROR(INDEX(IND!$K$10:$K$89, MATCH(D67, IND!$L$10:$L$89, 0), 1), "") -> LAC | D67: Ecuador | E67: 1.19275427
B68: 36 | C68: =IFERROR(INDEX(IND!$K$10:$K$89, MATCH(D68, IND!$L$10:$L$89, 0), 1), "") -> Africa | D68: Cameroon | E68: 1.133201657
B69: 37 | C69: =IFERROR(INDEX(IND!$K$10:$K$89, MATCH(D69, IND!$L$10:$L$89, 0), 1), "") -> LAC | D69: Belize | E69: 1.131422366
B70: 38 | C70: =IFERROR(INDEX(IND!$K$10:$K$89, MATCH(D70, IND!$L$10:$L$89, 0), 1), "") -> Africa | D70: Senegal | E70: 1.086459978
B71: 39 | C71: =IFERROR(INDEX(IND!$K$10:$K$89, MATCH(D71, IND!$L$10:$L$89, 0), 1), "") -> Africa | D71: Zambia | E71: 1.067987566
B72: 40 | C72: =IFERROR(INDEX(IND!$K$10:$K$89, MATCH(D72, IND!$L$10:$L$89, 0), 1), "") -> Middle East | D72: Lebanon | E72: 1.020671464
B73: 41 | C73: =IFERROR(INDEX(IND!$K$10:$K$89, MATCH(D73, IND!$L$10:$L$89, 0), 1), "") -> Africa | D73: Zimbabwe | E73: 1.01213682
B74: 42 | C74: =IFERROR(INDEX(IND!$K$10:$K$89, MATCH(D74, IND!$L$10:$L$89, 0), 1), "") -> Middle East | D74: Egypt | E74: 0.9671871316
B75: 43 | C75: =IFERROR(INDEX(IND!$K$10:$K$89, MATCH(D75, IND!$L$10:$L$89, 0), 1), "") -> LAC | D75: Barbados | E75: 0.9403728352
B76: 44 | C76: =IFERROR(INDEX(IND!$K$10:$K$89, MATCH(D76, IND!$L$10:$L$89, 0), 1), "") -> Asia | D76: Myanmar | E76: 0.9001689847
B77: 45 | C77: =IFERROR(INDEX(IND!$K$10:$K$89, MATCH(D77, IND!$L$10:$L$89, 0), 1), "") -> LAC | D77: Bolivia | E77: 0.8898369593
B78: 46 | C78: =IFERROR(INDEX(IND!$K$10:$K$89, MATCH(D78, IND!$L$10:$L$89, 0), 1), "") -> Africa | D78: Malawi | E78: 0.8827983182
B79: 47 | C79: =IFERROR(INDEX(IND!$K$10:$K$89, MATCH(D79, IND!$L$10:$L$89, 0), 1), "") -> Africa | D79: Botswana | E79: 0.8360723632
B80: 48 | C80: =IFERROR(INDEX(IND!$K$10:$K$89, MATCH(D80, IND!$L$10:$L$89, 0), 1), "") -> Africa | D80: Mozambique | E80: 0.7989506006
B81: 49 | C81: =IFERROR(INDEX(IND!$K$10:$K$89, MATCH(D81, IND!$L$10:$L$89, 0), 1), "") -> LAC | D81: Haiti | E81: 0.782943325
B82: 50 | C82: =IFERROR(INDEX(IND!$K$10:$K$89, MATCH(D82, IND!$L$10:$L$89, 0), 1), "") -> LAC | D82: Bahamas | E82: 0.7467041541
B83: 51 | C83: =IFERROR(INDEX(IND!$K$10:$K$89, MATCH(D83, IND!$L$10:$L$89, 0), 1), "") -> Africa | D83: Congo (Dem. Rep.) | E83: 0.7385390393
B84: 52 | C84: =IFERROR(INDEX(IND!$K$10:$K$89, MATCH(D84, IND!$L$10:$L$89, 0), 1), "") -> Africa | D84: Cote d'Ivoire | E84: 0.707910177
B85: 53 | C85: =IFERROR(INDEX(IND!$K$10:$K$89, MATCH(D85, IND!$L$10:$L$89, 0), 1), "") -> Asia | D85: Tajikistan | E85: 0.6693427947
B86: 54 | C86: =IFERROR(INDEX(IND!$K$10:$K$89, MATCH(D86, IND!$L$10:$L$89, 0), 1), "") -> LAC | D86: Guyana | E86: 0.6650284554
B87: 55 | C87: =IFERROR(INDEX(IND!$K$10:$K$89, MATCH(D87, IND!$L$10:$L$89, 0), 1), "") -> LAC | D87: Trinidad & Tobago | E87: 0.6343779525
B88: 56 | C88: =IFERROR(INDEX(IND!$K$10:$K$89, MATCH(D88, IND!$L$10:$L$89, 0), 1), "") -> LAC | D88: Paraguay | E88: 0.6180550101
B89: 57 | C89: =IFERROR(INDEX(IND!$K$10:$K$89, MATCH(D89, IND!$L$10:$L$89, 0), 1), "") -> LAC | D89: Venezuela | E89: 0.5578058056
B90: =IF(E90="", "", IFERROR(RANK(E90, $E$33:$E$96), "")) -> 58 | C90: =IFERROR(INDEX(IND!$K$10:$K$89, MATCH(D90, IND!$L$10:$L$89, 0), 1), "") -> LAC | D90: Suriname | E90: 0.5539387376
C91: =IFERROR(INDEX(IND!$K$10:$K$89, MATCH(D91, IND!$L$10:$L$89, 0), 1), "") -> 
C92: =IFERROR(INDEX(IND!$K$10:$K$89, MATCH(D92, IND!$L$10:$L$89, 0), 1), "") -> 
C93: =IFERROR(INDEX(IND!$K$10:$K$89, MATCH(D93, IND!$L$10:$L$89, 0), 1), "") -> 
C94: =IFERROR(INDEX(IND!$K$10:$K$89, MATCH(D94, IND!$L$10:$L$89, 0), 1), "") -> 
C95: =IFERROR(INDEX(IND!$K$10:$K$89, MATCH(D95, IND!$L$10:$L$89, 0), 1), "") -> 
C96: =IFERROR(INDEX(IND!$K$10:$K$89, MATCH(D96, IND!$L$10:$L$89, 0), 1), "") -> 

Sheet COUNTRY (hidden)
B2: COUNTRY PROFILE
B3: INSTRUCTIONS
B4: Climatescope is a comprehensive index and report assessing the environment for low-carbon investment in 64 countries and regions in Africa, Asia, the Middle-East, Latin America and the Caribbean, developed by the
B5: UK Department for International Development, the US Agency for International Development and Bloomberg New Energy Finance.
B6: Tab content
B7: 1) Column B: Parameters (4)
B8: 2) Column C: Parameter weights
B9: 3) Column D: Categories (12)
B10: 4) Column E: Category weights
B11: 5) Column G: Indicators (50)
B12: 6) Column H: Grid status (on or off-grid)
B13: 7) Column I: Indicator weight (as a percentage of category weight)
B14: 8) Column J: Indicator net weight (as a percentage of the overall Climatescope score)
B15: 9) Column K: The underlying data which is used to derive the indicator scores
B16: 10) Column M: Aggregate scored data per indicator
B17: 11) Column N: Country’s relative performance per indicator (e.g. a full bar means the country has achieved the highest score possible for that indicator)
B18: Instructions
B19: 1) Select country of choice in the drop-down menu (Cell C24).
B20: 2) Scroll down to row 80 to visualize additional information, under 'Further Indicator Details'. Here you can see charts and tables which provide a more details on the related indicators.
B21: 3) Expand the indicator additional information by clicking on the '+' (plus sign) on the left.
B22: FOR QUESTIONS OR FEEDBACK PLEASE EMAIL CLIMATESCOPE@BLOOMBERG.NET
B23: INDICATOR ANALYSIS
B24: Country | C24: China
B25: Region | C25: =INDEX(IND!$K$10:$K$89, MATCH(str_Country, IND!$L$10:$L$89, 0), 1) -> Asia
B26: Score | C26: =SUM($M$29:$M$78) -> 2.525113539
B27: Indicators | C27: =COUNTIF(K29:K78, "<>0") -> 44 | R27: Grid type… | S27: =IF(ISNUMBER(MATCH(str_Country, list_RegionOnGrid, 0)), "On-Grid", "Off-Grid") -> On-Grid
B28: PARAMETER | C28: P-WEIGHT | D28: CATEGORY | E28: C-WEIGHT | F28: ID. | G28: INDICATOR | H28: GRID | I28: I-WEIGHT | J28: NET WEIGHT | K28: DATA | L28: UNITS | M28: SCORE | N28: % of MAX | O28: DETAILS | P28: INDICATOR ID. | Q28: UNIT TYPE | R28: OFF-GRID I-WEIGHT | S28: ON-GRID I-WEIGHT
B29: Enabling Framework | C29: 0.4 | D29: Policy & Regulation | E29: 0.4 | F29: 1.01 | G29: Clean energy policies | H29: Both | I29: =IF($S$27="Off-Grid", R29, S29) -> 0.6 | J29: =IF(I29="", "", C29*E29*I29) -> 0.096 | K29: =IFERROR(INDEX(IND!$P$10:$P$3209, MATCH($F29&" > "&$C$24, IND!$Y$10:$Y$3209, 0), 1)*IF(Q29="Percentage (Source Calculated)", 100, 1), 0) -> 6 | L29: =IF(K29=1, "Policy Type", "Policy Types") -> Policy Types | M29: =IF(J29="", "", IFERROR(J29*dbl_ScoreMax*MAX(0, IFERROR(INDEX(IND!$S$10:$S$3209, MATCH($F29&" > "&$C$24, IND!$Y$10:$Y$3209, 0), 1), 0))/100, 0)) -> 0.21504 | N29: =IF(M29="", "", IFERROR(M29/(J29*dbl_ScoreMax), 0)) -> 0.448 | O29: =HYPERLINK(MID(CELL("FileName", str_Hyperlink101), FIND("[", CELL("FileName", str_Hyperlink101)), 255) & "!str_Hyperlink101", "LINK") -> LINK | P29: 1 | Q29: Decimal | R29: 0.4 | S29: 0.6
B30: Enabling Framework | C30: =C29 -> 0.4 | D30: Policy & Regulation | E30: =E29 -> 0.4 | F30: 1.02 | G30: Power sector structure | H30: Both | I30: =IF($S$27="Off-Grid", R30, S30) -> 0.3 | J30: =IF(I30="", "", C30*E30*I30) -> 0.048 | K30: =IFERROR(INDEX(IND!$P$10:$P$3209, MATCH($F30&" > "&$C$24, IND!$Y$10:$Y$3209, 0), 1)*IF(Q30="Percentage (Source Calculated)", 100, 1), 0) -> 6.960395712 | L30: =IF(K30=1, "Question", "Questions") -> Questions | M30: =IF(J30="", "", IFERROR(J30*dbl_ScoreMax*MAX(0, IFERROR(INDEX(IND!$S$10:$S$3209, MATCH($F30&" > "&$C$24, IND!$Y$10:$Y$3209, 0), 1), 0))/100, 0)) -> 0.1452604323 | N30: =IF(M30="", "", IFERROR(M30/(J30*dbl_ScoreMax), 0)) -> 0.6052518011 | O30: =HYPERLINK(MID(CELL("FileName", str_Hyperlink102), FIND("[", CELL("FileName", str_Hyperlink102)), 255) & "!str_Hyperlink102", "LINK") -> LINK | P30: =P29+1 -> 2 | Q30: Decimal | R30: 0.25 | S30: 0.3
B31: Enabling Framework | C31: 0.4 | D31: Policy & Regulation | E31: =E30 -> 0.4 | F31: 1.03 | G31: Distributed energy framework | H31: Off-grid | I31: 0 | J31: 0 | K31: =IFERROR(INDEX(IND!$P$10:$P$3209, MATCH($F31&" > "&$C$24, IND!$Y$10:$Y$3209, 0), 1)*IF(Q31="Percentage (Source Calculated)", 100, 1), 0) -> 0 | L31: =IF(K31=1, "Question", "Questions") -> Questions | M31: =IF(J31="", "", IFERROR(J31*dbl_ScoreMax*MAX(0, IFERROR(INDEX(IND!$S$10:$S$3209, MATCH($F31&" > "&$C$24, IND!$Y$10:$Y$3209, 0), 1), 0))/100, 0)) -> 0 | N31: 0 | O31: =HYPERLINK(MID(CELL("FileName", str_Hyperlink103), FIND("[", CELL("FileName", str_Hyperlink103)), 255) & "!str_Hyperlink103", "LINK") -> LINK | P31: 3 | Q31: Decimal | R31: 0.15 | S31: 0
B32: Enabling Framework | C32: 0.4 | D32: Policy & Regulation | E32: =E31 -> 0.4 | F32: 1.04 | G32: Clean energy rural electrification | H32: Both | I32: 0.05 | J32: 0.008 | K32: =IFERROR(INDEX(IND!$P$10:$P$3209, MATCH($F32&" > "&$C$24, IND!$Y$10:$Y$3209, 0), 1)*IF(Q32="Percentage (Source Calculated)", 100, 1), 0) -> 1 | L32: =IF(K32=1, "Program", "Programs") -> Program | M32: =IF(J32="", "", IFERROR(J32*dbl_ScoreMax*MAX(0, IFERROR(INDEX(IND!$S$10:$S$3209, MATCH($F32&" > "&$C$24, IND!$Y$10:$Y$3209, 0), 1), 0))/100, 0)) -> 0.04 | N32: 1 | P32: 4 | Q32: Decimal | R32: 0.05 | S32: 0.05
B33: Enabling Framework | C33: 0.4 | D33: Policy & Regulation | E33: =E32 -> 0.4 | F33: 1.05 | G33: Energy access policies | H33: Off-grid | I33: 0 | J33: 0 | K33: =IFERROR(INDEX(IND!$P$10:$P$3209, MATCH($F33&" > "&$C$24, IND!$Y$10:$Y$3209, 0), 1)*IF(Q33="Percentage (Source Calculated)", 100, 1), 0) -> 1 | L33: =IF(K33=1, "Policy", "Policies") -> Policy | M33: =IF(J33="", "", IFERROR(J33*dbl_ScoreMax*MAX(0, IFERROR(INDEX(IND!$S$10:$S$3209, MATCH($F33&" > "&$C$24, IND!$Y$10:$Y$3209, 0), 1), 0))/100, 0)) -> 0 | N33: 0 | O33: =HYPERLINK(MID(CELL("FileName", str_Hyperlink105), FIND("[", CELL("FileName", str_Hyperlink105)), 255) & "!str_Hyperlink105", "LINK") -> LINK | P33: 5 | Q33: Decimal | R33: 0.1 | S33: 0
B34: Enabling Framework | C34: 0.4 | D34: Policy & Regulation | E34: =E33 -> 0.4 | F34: 1.06 | G34: Barriers | H34: Both | I34: 0.05 | J34: 0.008 | K34: =IFERROR(INDEX(IND!$P$10:$P$3209, MATCH($F34&" > "&$C$24, IND!$Y$10:$Y$3209, 0), 1)*IF(Q34="Percentage (Source Calculated)", 100, 1), 0) -> 0.9267 | L34: =IF(K33=1, "Barrier", "Barriers") -> Barrier | M34: =IF(J34="", "", IFERROR(J34*dbl_ScoreMax*MAX(0, IFERROR(INDEX(IND!$S$10:$S$3209, MATCH($F34&" > "&$C$24, IND!$Y$10:$Y$3209, 0), 1), 0))/100, 0)) -> 0.009267 | N34: 0.231675 | O34: =HYPERLINK(MID(CELL("FileName", str_Hyperlink106), FIND("[", CELL("FileName", str_Hyperlink106)), 255) & "!str_Hyperlink106", "LINK") -> LINK | P34: 6 | Q34: Decimal | R34: 0.05 | S34: 0.05
B35: Enabling Framework | C35: 0.4 | D35: Clean Energy Penetration | E35: 0.4 | F35: 1.07 | G35: Clean energy installed capacity | H35: Both | I35: 0.2 | J35: 0.032 | K35: =IFERROR(INDEX(IND!$P$10:$P$3209, MATCH($F35&" > "&$C$24, IND!$Y$10:$Y$3209, 0), 1)*IF(Q35="Percentage (Source Calculated)", 100, 1), 0) -> 256581.8 | L35: MW | M35: =IF(J35="", "", IFERROR(J35*dbl_ScoreMax*MAX(0, IFERROR(INDEX(IND!$S$10:$S$3209, MATCH($F35&" > "&$C$24, IND!$Y$10:$Y$3209, 0), 1), 0))/100, 0)) -> 0.04940558546 | N35: 0.3087849091 | O35: =HYPERLINK(MID(CELL("FileName", str_Hyperlink107), FIND("[", CELL("FileName", str_Hyperlink107)), 255) & "!str_Hyperlink107", "LINK") -> LINK | P35: 7 | Q35: Decimal | R35: 0.2 | S35: 0.2
B36: Enabling Framework | C36: 0.4 | D36: Clean Energy Penetration | E36: =E35 -> 0.4 | F36: 1.08 | G36: Growth rate of installed capacity | H36: Both | I36: 0.2 | J36: 0.032 | K36: =IFERROR(INDEX(IND!$P$10:$P$3209, MATCH($F36&" > "&$C$24, IND!$Y$10:$Y$3209, 0), 1)*IF(Q36="Percentage (Source Calculated)", 100, 1), 0) -> 27.99778507 | L36: % | M36: =IF(J36="", "", IFERROR(J36*dbl_ScoreMax*MAX(0, IFERROR(INDEX(IND!$S$10:$S$3209, MATCH($F36&" > "&$C$24, IND!$Y$10:$Y$3209, 0), 1), 0))/100, 0)) -> 0.02986430408 | N36: 0.1866519005 | P36: 8 | Q36: Percentage (Source Calculated) | R36: 0.2 | S36: 0.2
B37: Enabling Framework | C37: 0.4 | D37: Clean Energy Penetration | E37: =E36 -> 0.4 | F37: 1.09 | G37: Clean energy electricity generation | H37: Both | I37: 0.2 | J37: 0.032 | K37: =IFERROR(INDEX(IND!$P$10:$P$3209, MATCH($F37&" > "&$C$24, IND!$Y$10:$Y$3209, 0), 1)*IF(Q37="Percentage (Source Calculated)", 100, 1), 0) -> 531072 | L37: GWh | M37: =IF(J37="", "", IFERROR(J37*dbl_ScoreMax*MAX(0, IFERROR(INDEX(IND!$S$10:$S$3209, MATCH($F37&" > "&$C$24, IND!$Y$10:$Y$3209, 0), 1), 0))/100, 0)) -> 0.01578535484 | N37: 0.09865846772 | O37: =HYPERLINK(MID(CELL("FileName", str_Hyperlink109), FIND("[", CELL("FileName", str_Hyperlink109)), 255) & "!str_Hyperlink109", "LINK") -> LINK | P37: 9 | Q37: Decimal | R37: 0.2 | S37: 0.2
B38: Enabling Framework | C38: 0.4 | D38: Clean Energy Penetration | E38: =E37 -> 0.4 | F38: 1.1 | G38: Growth rate of electricity generation | H38: Both | I38: 0.2 | J38: 0.032 | K38: =IFERROR(INDEX(IND!$P$10:$P$3209, MATCH($F38&" > "&$C$24, IND!$Y$10:$Y$3209, 0), 1)*IF(Q38="Percentage (Source Calculated)", 100, 1), 0) -> -1.522029372 | L38: % | M38: =IF(J38="", "", IFERROR(J38*dbl_ScoreMax*MAX(0, IFERROR(INDEX(IND!$S$10:$S$3209, MATCH($F38&" > "&$C$24, IND!$Y$10:$Y$3209, 0), 1), 0))/100, 0)) -> 0 | N38: 0 | P38: 10 | Q38: Percentage (Source Calculated) | R38: 0.2 | S38: 0.2
B39: Enabling Framework | C39: 0.4 | D39: Clean Energy Penetration | E39: =E38 -> 0.4 | F39: 1.11 | G39: Biofuels production capacity | H39: Both | I39: 0.1 | J39: 0.016 | K39: =IFERROR(INDEX(IND!$P$10:$P$3209, MATCH($F39&" > "&$C$24, IND!$Y$10:$Y$3209, 0), 1)*IF(Q39="Percentage (Source Calculated)", 100, 1), 0) -> 3.73794 | L39: =IF(K39=1, "Billion Litre", "Billion Litres") -> Billion Litres | M39: =IF(J39="", "", IFERROR(J39*dbl_ScoreMax*MAX(0, IFERROR(INDEX(IND!$S$10:$S$3209, MATCH($F39&" > "&$C$24, IND!$Y$10:$Y$3209, 0), 1), 0))/100, 0)) -> 0.006109718028 | N39: 0.07637147535 | P39: 11 | Q39: Decimal | R39: 0.1 | S39: 0.1
B40: Enabling Framework | C40: 0.4 | D40: Clean Energy Penetration | E40: =E39 -> 0.4 | F40: 1.12 | G40: Growth rate biofuels production capacity | H40: Both | I40: 0.1 | J40: 0.016 | K40: =IFERROR(INDEX(IND!$P$10:$P$3209, MATCH($F40&" > "&$C$24, IND!$Y$10:$Y$3209, 0), 1)*IF(Q40="Percentage (Source Calculated)", 100, 1), 0) -> -1.112698413 | L40: % | M40: =IF(J40="", "", IFERROR(J40*dbl_ScoreMax*MAX(0, IFERROR(INDEX(IND!$S$10:$S$3209, MATCH($F40&" > "&$C$24, IND!$Y$10:$Y$3209, 0), 1), 0))/100, 0)) -> 0 | N40: 0 | P40: 12 | Q40: Percentage (Source Calculated) | R40: 0.1 | S40: 0.1
B41: Enabling Framework | C41: 0.4 | D41: Price Attractiveness | E41: 0.1 | F41: 1.13 | G41: Average electricity spot prices | H41: Both | I41: 0.5 | J41: 0.02 | K41: =IFERROR(INDEX(IND!$P$10:$P$3209, MATCH($F41&" > "&$C$24, IND!$Y$10:$Y$3209, 0), 1)*IF(Q41="Percentage (Source Calculated)", 100, 1), 0) -> 60 | L41: USD/MWh | M41: =IF(J41="", "", IFERROR(J41*dbl_ScoreMax*MAX(0, IFERROR(INDEX(IND!$S$10:$S$3209, MATCH($F41&" > "&$C$24, IND!$Y$10:$Y$3209, 0), 1), 0))/100, 0)) -> 0.02806886228 | N41: 0.2806886228 | P41: 13 | Q41: Decimal | R41: =IF(K41=0,0,((1-SUM($R$43:$R$47))/COUNTIF($K$41:$K$42,"<>0"))) -> 0.3 | S41: =IF(K41=0, 0, 1/COUNTIF($K$41:$K$42, "<>0")) -> 0.5
B42: Enabling Framework | C42: 0.4 | D42: Price Attractiveness | E42: =E41 -> 0.1 | F42: 1.14 | G42: Average retail electricity prices | H42: Both | I42: 0.5 | J42: 0.02 | K42: =IFERROR(INDEX(IND!$P$10:$P$3209, MATCH($F42&" > "&$C$24, IND!$Y$10:$Y$3209, 0), 1)*IF(Q42="Percentage (Source Calculated)", 100, 1), 0) -> 99 | L42: USD/MWh | M42: =IF(J42="", "", IFERROR(J42*dbl_ScoreMax*MAX(0, IFERROR(INDEX(IND!$S$10:$S$3209, MATCH($F42&" > "&$C$24, IND!$Y$10:$Y$3209, 0), 1), 0))/100, 0)) -> 0.01903846154 | N42: 0.1903846154 | P42: 14 | Q42: Decimal | R42: =IF(K42=0,0,((1-SUM($R$43:$R$47))/COUNTIF($K$41:$K$42,"<>0"))) -> 0.3 | S42: =IF(K42=0, 0, 1/COUNTIF($K$41:$K$42, "<>0")) -> 0.5
B43: Enabling Framework | C43: 0.4 | D43: Price Attractiveness | E43: =E42 -> 0.1 | F43: 1.15 | G43: Average residential electricity prices | H43: Both | I43: 0 | J43: 0 | K43: =IFERROR(INDEX(IND!$P$10:$P$3209, MATCH($F43&" > "&$C$24, IND!$Y$10:$Y$3209, 0), 1)*IF(Q43="Percentage (Source Calculated)", 100, 1), 0) -> 88 | L43: USD/MWh | M43: =IF(J43="", "", IFERROR(J43*dbl_ScoreMax*MAX(0, IFERROR(INDEX(IND!$S$10:$S$3209, MATCH($F43&" > "&$C$24, IND!$Y$10:$Y$3209, 0), 1), 0))/100, 0)) -> 0 | N43: =IF(M43="", "", IFERROR(M43/(J43*dbl_ScoreMax), 0)) -> 0 | P43: 15 | Q43: Decimal | R43: 0 | S43: 0
B44: Enabling Framework | C44: 0.4 | D44: Price Attractiveness | E44: =E43 -> 0.1 | F44: 1.16 | G44: Average commercial electricity prices | H44: Both | I44: 0 | J44: 0 | K44: =IFERROR(INDEX(IND!$P$10:$P$3209, MATCH($F44&" > "&$C$24, IND!$Y$10:$Y$3209, 0), 1)*IF(Q44="Percentage (Source Calculated)", 100, 1), 0) -> 122 | L44: USD/MWh | M44: =IF(J44="", "", IFERROR(J44*dbl_ScoreMax*MAX(0, IFERROR(INDEX(IND!$S$10:$S$3209, MATCH($F44&" > "&$C$24, IND!$Y$10:$Y$3209, 0), 1), 0))/100, 0)) -> 0 | N44: =IF(M44="", "", IFERROR(M44/(J44*dbl_ScoreMax), 0)) -> 0 | P44: 16 | Q44: Decimal | R44: 0 | S44: 0
B45: Enabling Framework | C45: 0.4 | D45: Price Attractiveness | E45: 0.1 | F45: 1.17 | G45: Average industrial electricity prices | H45: Both | I45: 0 | J45: 0 | K45: =IFERROR(INDEX(IND!$P$10:$P$3209, MATCH($F45&" > "&$C$24, IND!$Y$10:$Y$3209, 0), 1)*IF(Q45="Percentage (Source Calculated)", 100, 1), 0) -> 101 | L45: USD/MWh | M45: =IF(J45="", "", IFERROR(J45*dbl_ScoreMax*MAX(0, IFERROR(INDEX(IND!$S$10:$S$3209, MATCH($F45&" > "&$C$24, IND!$Y$10:$Y$3209, 0), 1), 0))/100, 0)) -> 0 | N45: =IF(M45="", "", IFERROR(M45/(J45*dbl_ScoreMax), 0)) -> 0 | P45: 17 | Q45: Decimal | R45: 0 | S45: 0
B46: Enabling Framework | C46: 0.4 | D46: Price Attractiveness | E46: 0.1 | F46: 1.18 | G46: Average kerosene prices | H46: Off-grid | I46: 0 | J46: 0 | K46: =IFERROR(INDEX(IND!$P$10:$P$3209, MATCH($F46&" > "&$C$24, IND!$Y$10:$Y$3209, 0), 1)*IF(Q46="Percentage (Source Calculated)", 100, 1), 0) -> 0 | L46: USD/Litre | M46: =IF(J46="", "", IFERROR(J46*dbl_ScoreMax*MAX(0, IFERROR(INDEX(IND!$S$10:$S$3209, MATCH($F46&" > "&$C$24, IND!$Y$10:$Y$3209, 0), 1), 0))/100, 0)) -> 0 | N46: =IF(M46="", "", IFERROR(M46/(J46*dbl_ScoreMax), 0)) -> 0 | P46: 18 | Q46: Decimal | R46: 0.2 | S46: 0
B47: Enabling Framework | C47: 0.4 | D47: Price Attractiveness | E47: 0.1 | F47: 1.19 | G47: Average diesel prices | H47: Off-grid | I47: 0 | J47: 0 | K47: =IFERROR(INDEX(IND!$P$10:$P$3209, MATCH($F47&" > "&$C$24, IND!$Y$10:$Y$3209, 0), 1)*IF(Q47="Percentage (Source Calculated)", 100, 1), 0) -> 0 | L47: USD/Litre | M47: =IF(J47="", "", IFERROR(J47*dbl_ScoreMax*MAX(0, IFERROR(INDEX(IND!$S$10:$S$3209, MATCH($F47&" > "&$C$24, IND!$Y$10:$Y$3209, 0), 1), 0))/100, 0)) -> 0 | N47: =IF(M47="", "", IFERROR(M47/(J47*dbl_ScoreMax), 0)) -> 0 | P47: 19 | Q47: Decimal | R47: 0.2 | S47: 0
B48: Enabling Framework | C48: 0.4 | D48: Market Size Expectations | E48: 0.1 | F48: 1.2 | G48: Growth rate of power demand | H48: Both | I48: 0.5 | J48: 0.02 | K48: =IFERROR(INDEX(IND!$P$10:$P$3209, MATCH($F48&" > "&$C$24, IND!$Y$10:$Y$3209, 0), 1)*IF(Q48="Percentage (Source Calculated)", 100, 1), 0) -> 0.05518694578 | L48: % | M48: =IF(J48="", "", IFERROR(J48*dbl_ScoreMax*MAX(0, IFERROR(INDEX(IND!$S$10:$S$3209, MATCH($F48&" > "&$C$24, IND!$Y$10:$Y$3209, 0), 1), 0))/100, 0)) -> 0.0001107056768 | N48: 0.001107056768 | P48: 20 | Q48: Percentage (Source Calculated) | R48: 0.3 | S48: 0.5
B49: Enabling Framework | C49: 0.4 | D49: Market Size Expectations | E49: 0.1 | F49: 1.21 | G49: Electrification rate | H49: Both | I49: 0.5 | J49: 0.02 | K49: =IFERROR(INDEX(IND!$P$10:$P$3209, MATCH($F49&" > "&$C$24, IND!$Y$10:$Y$3209, 0), 1)*IF(Q49="Percentage (Source Calculated)", 100, 1), 0) -> 100 | L49: % | M49: =IF(J49="", "", IFERROR(J49*dbl_ScoreMax*MAX(0, IFERROR(INDEX(IND!$S$10:$S$3209, MATCH($F49&" > "&$C$24, IND!$Y$10:$Y$3209, 0), 1), 0))/100, 0)) -> 0.1 | N49: 1 | P49: 21 | Q49: Percentage (Source Hardcoded) | R49: 0.6 | S49: 0.5
B50: Enabling Framework | C50: 0.4 | E50: 0.1 | F50: 1.22 | G50: Population using solid fuels for cooking | H50: Off-grid | I50: 0 | J50: 0 | K50: =IFERROR(INDEX(IND!$P$10:$P$3209, MATCH($F50&" > "&$C$24, IND!$Y$10:$Y$3209, 0), 1)*IF(Q50="Percentage (Source Calculated)", 100, 1), 0) -> 45 | L50: % | M50: =IF(J50="", "", IFERROR(J50*dbl_ScoreMax*MAX(0, IFERROR(INDEX(IND!$S$10:$S$3209, MATCH($F50&" > "&$C$24, IND!$Y$10:$Y$3209, 0), 1), 0))/100, 0)) -> 0 | N50: =IF(M50="", "", IFERROR(M50/(J50*dbl_ScoreMax), 0)) -> 0 | P50: 22 | Q50: Percentage (Source Hardcoded) | R50: 0.1 | S50: 0
B51: Clean Energy Investment | C51: 0.3 | D51: Amount Invested | E51: 0.51 | F51: 2.01 | G51: ="Clean energy investments (" & int_InvStartYear & "-" & int_Year & ")" -> Clean energy investments (2011-2015) | H51: Both | I51: 0.5 | J51: 0.0765 | K51: =IFERROR(INDEX(IND!$P$10:$P$3209, MATCH($F51&" > "&$C$24, IND!$Y$10:$Y$3209, 0), 1)*IF(Q51="Percentage (Source Calculated)", 100, 1), 0) -> 362997.5199 | L51: USDm | M51: =IF(J51="", "", IFERROR(J51*dbl_ScoreMax*MAX(0, IFERROR(INDEX(IND!$S$10:$S$3209, MATCH($F51&" > "&$C$24, IND!$Y$10:$Y$3209, 0), 1), 0))/100, 0)) -> 0.1381376949 | N51: 0.3611443005 | O51: =HYPERLINK(MID(CELL("FileName", str_Hyperlink201), FIND("[", CELL("FileName", str_Hyperlink201)), 255) & "!str_Hyperlink201", "LINK") -> LINK | P51: 23 | Q51: Decimal | R51: 0.6 | S51: 0.5
B52: Clean Energy Investment | C52: =C51 -> 0.3 | D52: Amount Invested | E52: =E51 -> 0.51 | F52: 2.02 | G52: Growth rate of clean energy investments | H52: Both | I52: 0.5 | J52: 0.0765 | K52: =IFERROR(INDEX(IND!$P$10:$P$3209, MATCH($F52&" > "&$C$24, IND!$Y$10:$Y$3209, 0), 1)*IF(Q52="Percentage (Source Calculated)", 100, 1), 0) -> 44.36492751 | L52: % | M52: =IF(J52="", "", IFERROR(J52*dbl_ScoreMax*MAX(0, IFERROR(INDEX(IND!$S$10:$S$3209, MATCH($F52&" > "&$C$24, IND!$Y$10:$Y$3209, 0), 1), 0))/100, 0)) -> 0.1131305651 | N52: 0.2957661834 | P52: 24 | Q52: Percentage (Source Calculated) | R52: 0.4 | S52: 0.5
B53: Clean Energy Investment | C53: 0.3 | D53: Investment Type | E53: 0 | F53: 2.03 | G53: Asset finance investments | H53: Both | I53: 0 | J53: 0 | K53: =IFERROR(INDEX(IND!$P$10:$P$3209, MATCH($F53&" > "&$C$24, IND!$Y$10:$Y$3209, 0), 1)*IF(Q53="Percentage (Source Calculated)", 100, 1), 0) -> 336151.3753 | L53: USDm | M53: =IF(J53="", "", IFERROR(J53*dbl_ScoreMax*MAX(0, IFERROR(INDEX(IND!$S$10:$S$3209, MATCH($F53&" > "&$C$24, IND!$Y$10:$Y$3209, 0), 1), 0))/100, 0)) -> 0 | N53: =IF(M53="", "", IFERROR(M53/(J53*dbl_ScoreMax), 0)) -> 0 | P53: 25 | Q53: Decimal | R53: 0 | S53: 0
B54: Clean Energy Investment | C54: 0.3 | D54: Investment Type | E54: =E53 -> 0 | F54: 2.04 | G54: Corporate finance investments | H54: Both | I54: 0 | J54: 0 | K54: =IFERROR(INDEX(IND!$P$10:$P$3209, MATCH($F54&" > "&$C$24, IND!$Y$10:$Y$3209, 0), 1)*IF(Q54="Percentage (Source Calculated)", 100, 1), 0) -> 25073.0617 | L54: USDm | M54: =IF(J54="", "", IFERROR(J54*dbl_ScoreMax*MAX(0, IFERROR(INDEX(IND!$S$10:$S$3209, MATCH($F54&" > "&$C$24, IND!$Y$10:$Y$3209, 0), 1), 0))/100, 0)) -> 0 | N54: =IF(M54="", "", IFERROR(M54/(J54*dbl_ScoreMax), 0)) -> 0 | P54: 26 | Q54: Decimal | R54: 0 | S54: 0
B55: Clean Energy Investment | C55: 0.3 | D55: Investment Type | E55: =E54 -> 0 | F55: 2.05 | G55: VC/PE investments | H55: Both | I55: 0 | J55: 0 | K55: =IFERROR(INDEX(IND!$P$10:$P$3209, MATCH($F55&" > "&$C$24, IND!$Y$10:$Y$3209, 0), 1)*IF(Q55="Percentage (Source Calculated)", 100, 1), 0) -> 1773.08286 | L55: USDm | M55: =IF(J55="", "", IFERROR(J55*dbl_ScoreMax*MAX(0, IFERROR(INDEX(IND!$S$10:$S$3209, MATCH($F55&" > "&$C$24, IND!$Y$10:$Y$3209, 0), 1), 0))/100, 0)) -> 0 | N55: =IF(M55="", "", IFERROR(M55/(J55*dbl_ScoreMax), 0)) -> 0 | P55: 27 | Q55: Decimal | R55: 0 | S55: 0
B56: Clean Energy Investment | C56: 0.3 | D56: Fund Sources | E56: 0.26 | F56: 2.06 | G56: Loans, grants, grant programs | H56: Both | I56: 0.5 | J56: 0.039 | K56: =IFERROR(INDEX(IND!$P$10:$P$3209, MATCH($F56&" > "&$C$24, IND!$Y$10:$Y$3209, 0), 1)*IF(Q56="Percentage (Source Calculated)", 100, 1), 0) -> 489.28 | L56: USDm | M56: =IF(J56="", "", IFERROR(J56*dbl_ScoreMax*MAX(0, IFERROR(INDEX(IND!$S$10:$S$3209, MATCH($F56&" > "&$C$24, IND!$Y$10:$Y$3209, 0), 1), 0))/100, 0)) -> 0.0002547682943 | N56: 0.001306504073 | P56: 28 | Q56: Decimal | R56: 0.5 | S56: 0.5
B57: Clean Energy Investment | C57: 0.3 | D57: Fund Sources | E57: =E56 -> 0.26 | F57: 2.07 | G57: Local investments | H57: Both | I57: 0.5 | J57: 0.039 | K57: =IFERROR(INDEX(IND!$P$10:$P$3209, MATCH($F57&" > "&$C$24, IND!$Y$10:$Y$3209, 0), 1)*IF(Q57="Percentage (Source Calculated)", 100, 1), 0) -> 52752.7 | L57: USDm | M57: =IF(J57="", "", IFERROR(J57*dbl_ScoreMax*MAX(0, IFERROR(INDEX(IND!$S$10:$S$3209, MATCH($F57&" > "&$C$24, IND!$Y$10:$Y$3209, 0), 1), 0))/100, 0)) -> 0.0986443972 | N57: 0.5058687036 | P57: 29 | Q57: Decimal | R57: 0.5 | S57: 0.5
B58: Clean Energy Investment | C58: 0.3 | D58: Cost of Debt | E58: 0.23 | F58: 2.08 | G58: Average cost of debt | H58: Both | I58: 0.5 | J58: 0.0345 | K58: =IFERROR(INDEX(IND!$P$10:$P$3209, MATCH($F58&" > "&$C$24, IND!$Y$10:$Y$3209, 0), 1)*IF(Q58="Percentage (Source Calculated)", 100, 1), 0) -> 4.35 | L58: % | M58: =IF(J58="", "", IFERROR(J58*dbl_ScoreMax*MAX(0, IFERROR(INDEX(IND!$S$10:$S$3209, MATCH($F58&" > "&$C$24, IND!$Y$10:$Y$3209, 0), 1), 0))/100, 0)) -> 0.1356206897 | N58: =IF(M58="", "", IFERROR(M58/(J58*dbl_ScoreMax), 0)) -> 0.7862068966 | P58: 30 | Q58: Percentage (Source Hardcoded) | R58: =IF(K58=0, 0, 1/COUNTIF($K$58:$K$59, "<>0")) -> 0.5 | S58: =IF(K58=0, 0, 1/COUNTIF($K$58:$K$59, "<>0")) -> 0.5
B59: Clean Energy Investment | C59: 0.3 | D59: Cost of Debt | E59: =E58 -> 0.23 | F59: 2.09 | G59: Swap rate | H59: Both | I59: 0.5 | J59: 0.0345 | K59: =IFERROR(INDEX(IND!$P$10:$P$3209, MATCH($F59&" > "&$C$24, IND!$Y$10:$Y$3209, 0), 1)*IF(Q59="Percentage (Source Calculated)", 100, 1), 0) -> 2.95 | L59: % | M59: =IF(J59="", "", IFERROR(J59*dbl_ScoreMax*MAX(0, IFERROR(INDEX(IND!$S$10:$S$3209, MATCH($F59&" > "&$C$24, IND!$Y$10:$Y$3209, 0), 1), 0))/100, 0)) -> 0.1725 | N59: 1 | P59: 31 | Q59: Percentage (Source Hardcoded) | R59: =IF(K59=0, 0, 1/COUNTIF($K$58:$K$59, "<>0")) -> 0.5 | S59: =IF(K59=0, 0, 1/COUNTIF($K$58:$K$59, "<>0")) -> 0.5
B60: Low-Carbon Business | C60: 0.15 | D60: Value Chain | E60: 1 | F60: 3.01 | G60: Financial institutions in clean energy | H60: Both | I60: 0.25 | J60: 0.0375 | K60: =IFERROR(INDEX(IND!$P$10:$P$3209, MATCH($F60&" > "&$C$24, IND!$Y$10:$Y$3209, 0), 1)*IF(Q60="Percentage (Source Calculated)", 100, 1), 0) -> 5 | L60: =IF(K60=1, "Company Type", "Company Types") -> Company Types | M60: =IF(J60="", "", IFERROR(J60*dbl_ScoreMax*MAX(0, IFERROR(INDEX(IND!$S$10:$S$3209, MATCH($F60&" > "&$C$24, IND!$Y$10:$Y$3209, 0), 1), 0))/100, 0)) -> 0.1875 | N60: 1 | O60: =HYPERLINK(MID(CELL("FileName", str_Hyperlink301), FIND("[", CELL("FileName", str_Hyperlink301)), 255) & "!str_Hyperlink301", "LINK") -> LINK | P60: =P59+1 -> 32 | Q60: Decimal | R60: 0.2 | S60: 0.25
B61: Low-Carbon Business | C61: =C60 -> 0.15 | D61: Value Chain | E61: =E60 -> 1 | F61: 3.02 | G61: Value chains by clean energy sector | H61: Both | I61: 0.5 | J61: 0.075 | K61: =IFERROR(INDEX(IND!$P$10:$P$3209, MATCH($F61&" > "&$C$24, IND!$Y$10:$Y$3209, 0), 1)*IF(Q61="Percentage (Source Calculated)", 100, 1), 0) -> 38 | L61: =IF(K61=1, "Value Chain", "Value Chains") -> Value Chains | M61: =IF(J61="", "", IFERROR(J61*dbl_ScoreMax*MAX(0, IFERROR(INDEX(IND!$S$10:$S$3209, MATCH($F61&" > "&$C$24, IND!$Y$10:$Y$3209, 0), 1), 0))/100, 0)) -> 0.375 | N61: 1 | O61: =HYPERLINK(MID(CELL("FileName", str_Hyperlink302), FIND("[", CELL("FileName", str_Hyperlink302)), 255) & "!str_Hyperlink302", "LINK") -> LINK | P61: 33 | Q61: Decimal | R61: 0.2 | S61: 0.5
B62: Low-Carbon Business | C62: =C61 -> 0.15 | D62: Value Chain | E62: =E61 -> 1 | F62: 3.03 | G62: Distributed value chains by sector | H62: Off-grid | I62: 0 | J62: 0 | K62: =IFERROR(INDEX(IND!$P$10:$P$3209, MATCH($F62&" > "&$C$24, IND!$Y$10:$Y$3209, 0), 1)*IF(Q62="Percentage (Source Calculated)", 100, 1), 0) -> 0 | L62: =IF(K62=1, "Value Chain", "Value Chains") -> Value Chains | M62: =IF(J62="", "", IFERROR(J62*dbl_ScoreMax*MAX(0, IFERROR(INDEX(IND!$S$10:$S$3209, MATCH($F62&" > "&$C$24, IND!$Y$10:$Y$3209, 0), 1), 0))/100, 0)) -> 0 | N62: 0 | O62: =HYPERLINK(MID(CELL("FileName", str_Hyperlink303), FIND("[", CELL("FileName", str_Hyperlink303)), 255) & "!str_Hyperlink303", "LINK") -> LINK | P62: 34 | Q62: Decimal | R62: 0.2 | S62: 0
B63: Low-Carbon Business | C63: =C62 -> 0.15 | D63: Value Chain | E63: =E62 -> 1 | F63: 3.04 | G63: Clean energy service providers | H63: Both | I63: 0.25 | J63: 0.0375 | K63: =IFERROR(INDEX(IND!$P$10:$P$3209, MATCH($F63&" > "&$C$24, IND!$Y$10:$Y$3209, 0), 1)*IF(Q63="Percentage (Source Calculated)", 100, 1), 0) -> 20 | L63: =IF(K63=1, "Service Provider", "Sevice Providers") -> Sevice Providers | M63: =IF(J63="", "", IFERROR(J63*dbl_ScoreMax*MAX(0, IFERROR(INDEX(IND!$S$10:$S$3209, MATCH($F63&" > "&$C$24, IND!$Y$10:$Y$3209, 0), 1), 0))/100, 0)) -> 0.1875 | N63: 1 | O63: =HYPERLINK(MID(CELL("FileName", str_Hyperlink304), FIND("[", CELL("FileName", str_Hyperlink304)), 255) & "!str_Hyperlink304", "LINK") -> LINK | P63: 35 | Q63: Decimal | R63: 0.2 | S63: 0.25
B64: Low-Carbon Business | C64: =C63 -> 0.15 | D64: Value Chain | E64: =E63 -> 1 | F64: 3.05 | G64: Distributed clean energy service providers | H64: Off-grid | I64: 0 | J64: 0 | K64: =IFERROR(INDEX(IND!$P$10:$P$3209, MATCH($F64&" > "&$C$24, IND!$Y$10:$Y$3209, 0), 1)*IF(Q64="Percentage (Source Calculated)", 100, 1), 0) -> 0 | L64: =IF(K64=1, "Service Provider", "Sevice Providers") -> Sevice Providers | M64: =IF(J64="", "", IFERROR(J64*dbl_ScoreMax*MAX(0, IFERROR(INDEX(IND!$S$10:$S$3209, MATCH($F64&" > "&$C$24, IND!$Y$10:$Y$3209, 0), 1), 0))/100, 0)) -> 0 | N64: 0 | O64: =HYPERLINK(MID(CELL("FileName", str_Hyperlink305), FIND("[", CELL("FileName", str_Hyperlink305)), 255) & "!str_Hyperlink305", "LINK") -> LINK | P64: 36 | Q64: Decimal | R64: 0.2 | S64: 0
B65: GHG Management Activities | C65: 0.15 | D65: Carbon Offsets | E65: 0.4 | F65: 4.01 | G65: Carbon offsets historical activity | H65: Both | I65: 0.5 | J65: 0.03 | K65: =IFERROR(INDEX(IND!$P$10:$P$3209, MATCH($F65&" > "&$C$24, IND!$Y$10:$Y$3209, 0), 1)*IF(Q65="Percentage (Source Calculated)", 100, 1), 0) -> 3 | L65: Projects Score | M65: =IF(J65="", "", IFERROR(J65*dbl_ScoreMax*MAX(0, IFERROR(INDEX(IND!$S$10:$S$3209, MATCH($F65&" > "&$C$24, IND!$Y$10:$Y$3209, 0), 1), 0))/100, 0)) -> 0.1125 | N65: 0.75 | P65: 37 | Q65: Decimal | R65: 0.5 | S65: 0.5
B66: GHG Management Activities | C66: =C65 -> 0.15 | D66: Carbon Offsets | E66: =E65 -> 0.4 | F66: 4.02 | G66: CDM risk | H66: Both | I66: 0.25 | J66: 0.015 | K66: =IFERROR(INDEX(IND!$P$10:$P$3209, MATCH($F66&" > "&$C$24, IND!$Y$10:$Y$3209, 0), 1)*IF(Q66="Percentage (Source Calculated)", 100, 1), 0) -> 6 | L66: Failures/Project | M66: =IF(J66="", "", IFERROR(J66*dbl_ScoreMax*MAX(0, IFERROR(INDEX(IND!$S$10:$S$3209, MATCH($F66&" > "&$C$24, IND!$Y$10:$Y$3209, 0), 1), 0))/100, 0)) -> 0.075 | N66: 1 | P66: 38 | Q66: Decimal | R66: 0.25 | S66: 0.25
B67: GHG Management Activities | C67: 0.15 | D67: Carbon Offsets | E67: =E66 -> 0.4 | F67: 4.03 | G67: Carbon offsets future potential | H67: Both | I67: 0.25 | J67: 0.015 | K67: =IFERROR(INDEX(IND!$P$10:$P$3209, MATCH($F67&" > "&$C$24, IND!$Y$10:$Y$3209, 0), 1)*IF(Q67="Percentage (Source Calculated)", 100, 1), 0) -> 0.52 | L67: Potential | M67: =IF(J67="", "", IFERROR(J67*dbl_ScoreMax*MAX(0, IFERROR(INDEX(IND!$S$10:$S$3209, MATCH($F67&" > "&$C$24, IND!$Y$10:$Y$3209, 0), 1), 0))/100, 0)) -> 0.013 | N67: 0.1733333333 | P67: 39 | Q67: Decimal | R67: 0.25 | S67: 0.25
B68: GHG Management Activities | C68: 0.15 | D68: Carbon Policy | E68: 0.3 | F68: 4.04 | G68: GHG emissions reduction target | H68: Both | I68: 0.4166666667 | J68: 0.01875 | K68: =IFERROR(INDEX(IND!$P$10:$P$3209, MATCH($F68&" > "&$C$24, IND!$Y$10:$Y$3209, 0), 1)*IF(Q68="Percentage (Source Calculated)", 100, 1), 0) -> 0.5 | L68: Target Score | M68: =IF(J68="", "", IFERROR(J68*dbl_ScoreMax*MAX(0, IFERROR(INDEX(IND!$S$10:$S$3209, MATCH($F68&" > "&$C$24, IND!$Y$10:$Y$3209, 0), 1), 0))/100, 0)) -> 0.046875 | N68: 0.5 | P68: 40 | Q68: Decimal | R68: 0.4166666667 | S68: 0.4166666667
B69: GHG Management Activities | C69: =C67 -> 0.15 | D69: Carbon Policy | E69: =E68 -> 0.3 | F69: 4.05 | G69: Carbon Tax | H69: Both | I69: 0 | J69: =IF(I69="", "", C69*E69*I69) -> 0 | K69: =IFERROR(INDEX(IND!$P$10:$P$3209, MATCH($F69&" > "&$C$24, IND!$Y$10:$Y$3209, 0), 1)*IF(Q69="Percentage (Source Calculated)", 100, 1), 0) -> 0 | L69: Registry Score | M69: =IF(J69="", "", IFERROR(J69*dbl_ScoreMax*MAX(0, IFERROR(INDEX(IND!$S$10:$S$3209, MATCH($F69&" > "&$C$24, IND!$Y$10:$Y$3209, 0), 1), 0))/100, 0)) -> 0 | N69: =IF(M69="", "", IFERROR(M69/(J69*dbl_ScoreMax), 0)) -> 0 | P69: 41 | Q69: Decimal | R69: 0 | S69: 0
B70: GHG Management Activities | C70: =C68 -> 0.15 | D70: Carbon Policy | E70: =E69 -> 0.3 | F70: 4.06 | G70: GHG country registry | H70: Both | I70: 0.25 | J70: 0.01125 | K70: =IFERROR(INDEX(IND!$P$10:$P$3209, MATCH($F70&" > "&$C$24, IND!$Y$10:$Y$3209, 0), 1)*IF(Q70="Percentage (Source Calculated)", 100, 1), 0) -> 2 | L70: Registry Score | M70: =IF(J70="", "", IFERROR(J70*dbl_ScoreMax*MAX(0, IFERROR(INDEX(IND!$S$10:$S$3209, MATCH($F70&" > "&$C$24, IND!$Y$10:$Y$3209, 0), 1), 0))/100, 0)) -> 0.0375 | N70: 0.6666666667 | P70: 42 | Q70: Decimal | R70: 0.25 | S70: 0.25
B71: GHG Management Activities | C71: 0.15 | D71: Carbon Policy | E71: =E70 -> 0.3 | F71: 4.07 | G71: GHG market-based instruments | H71: Both | I71: 0.08333333333 | J71: 0.00375 | K71: =IFERROR(INDEX(IND!$P$10:$P$3209, MATCH($F71&" > "&$C$24, IND!$Y$10:$Y$3209, 0), 1)*IF(Q71="Percentage (Source Calculated)", 100, 1), 0) -> 0.5 | L71: Program | M71: =IF(J71="", "", IFERROR(J71*dbl_ScoreMax*MAX(0, IFERROR(INDEX(IND!$S$10:$S$3209, MATCH($F71&" > "&$C$24, IND!$Y$10:$Y$3209, 0), 1), 0))/100, 0)) -> 0.009375 | N71: 0.5 | P71: 43 | Q71: Decimal | R71: 0.08333333333 | S71: 0.08333333333
B72: GHG Management Activities | C72: 0.15 | D72: Carbon Policy | E72: =E71 -> 0.3 | F72: 4.08 | G72: PMR & NAMA | H72: Both | I72: 0.25 | J72: 0.01125 | K72: =IFERROR(INDEX(IND!$P$10:$P$3209, MATCH($F72&" > "&$C$24, IND!$Y$10:$Y$3209, 0), 1)*IF(Q72="Percentage (Source Calculated)", 100, 1), 0) -> 2 | L72: PMR & NAMA | M72: =IF(J72="", "", IFERROR(J72*dbl_ScoreMax*MAX(0, IFERROR(INDEX(IND!$S$10:$S$3209, MATCH($F72&" > "&$C$24, IND!$Y$10:$Y$3209, 0), 1), 0))/100, 0)) -> 0.01875 | N72: 0.3333333333 | P72: 44 | Q72: Decimal | R72: 0.25 | S72: 0.25
B73: GHG Management Activities | C73: 0.15 | D73: Corporate Awareness | E73: 0.3 | F73: 4.09 | G73: Voluntary GHG reporting by corporates | H73: Both | I73: 0.1666666667 | J73: 0.0075 | K73: =IFERROR(INDEX(IND!$P$10:$P$3209, MATCH($F73&" > "&$C$24, IND!$Y$10:$Y$3209, 0), 1)*IF(Q73="Percentage (Source Calculated)", 100, 1), 0) -> 0.01 | L73: Companies | M73: =IF(J73="", "", IFERROR(J73*dbl_ScoreMax*MAX(0, IFERROR(INDEX(IND!$S$10:$S$3209, MATCH($F73&" > "&$C$24, IND!$Y$10:$Y$3209, 0), 1), 0))/100, 0)) -> 0.000375 | N73: 0.01 | P73: 45 | Q73: Decimal | R73: 0.1666666667 | S73: 0.1666666667
B74: GHG Management Activities | C74: 0.15 | D74: Corporate Awareness | E74: =E73 -> 0.3 | F74: 4.1 | G74: Investor pressure – PRI signatories | H74: Both | I74: 0.1666666667 | J74: 0.0075 | K74: =IFERROR(INDEX(IND!$P$10:$P$3209, MATCH($F74&" > "&$C$24, IND!$Y$10:$Y$3209, 0), 1)*IF(Q74="Percentage (Source Calculated)", 100, 1), 0) -> 0.01 | L74: Companies | M74: =IF(J74="", "", IFERROR(J74*dbl_ScoreMax*MAX(0, IFERROR(INDEX(IND!$S$10:$S$3209, MATCH($F74&" > "&$C$24, IND!$Y$10:$Y$3209, 0), 1), 0))/100, 0)) -> 0.000375 | N74: 0.01 | P74: 46 | Q74: Decimal | R74: 0.1666666667 | S74: 0.1666666667
B75: GHG Management Activities | C75: 0.15 | D75: Corporate Awareness | E75: =E74 -> 0.3 | F75: 4.11 | G75: Corporate energy efficiency initiatives | H75: Both | I75: 0.1666666667 | J75: 0.0075 | K75: =IFERROR(INDEX(IND!$P$10:$P$3209, MATCH($F75&" > "&$C$24, IND!$Y$10:$Y$3209, 0), 1)*IF(Q75="Percentage (Source Calculated)", 100, 1), 0) -> 0.97 | L75: Companies | M75: =IF(J75="", "", IFERROR(J75*dbl_ScoreMax*MAX(0, IFERROR(INDEX(IND!$S$10:$S$3209, MATCH($F75&" > "&$C$24, IND!$Y$10:$Y$3209, 0), 1), 0))/100, 0)) -> 0.036375 | N75: 0.97 | P75: 47 | Q75: Decimal | R75: 0.1666666667 | S75: 0.1666666667
B76: GHG Management Activities | C76: 0.15 | D76: Corporate Awareness | E76: =E75 -> 0.3 | F76: 4.12 | G76: Corporate emission reduction policies | H76: Both | I76: 0.1666666667 | J76: 0.0075 | K76: =IFERROR(INDEX(IND!$P$10:$P$3209, MATCH($F76&" > "&$C$24, IND!$Y$10:$Y$3209, 0), 1)*IF(Q76="Percentage (Source Calculated)", 100, 1), 0) -> 0.9 | L76: Companies | M76: =IF(J76="", "", IFERROR(J76*dbl_ScoreMax*MAX(0, IFERROR(INDEX(IND!$S$10:$S$3209, MATCH($F76&" > "&$C$24, IND!$Y$10:$Y$3209, 0), 1), 0))/100, 0)) -> 0.03375 | N76: 0.9 | P76: 48 | Q76: Decimal | R76: 0.1666666667 | S76: 0.1666666667
B77: GHG Management Activities | C77: 0.15 | D77: Corporate Awareness | E77: =E76 -> 0.3 | F77: 4.13 | G77: Capacity building – env. business training | H77: Both | I77: 0.1666666667 | J77: 0.0075 | K77: =IFERROR(INDEX(IND!$P$10:$P$3209, MATCH($F77&" > "&$C$24, IND!$Y$10:$Y$3209, 0), 1)*IF(Q77="Percentage (Source Calculated)", 100, 1), 0) -> 1 | L77: Organisations | M77: =IF(J77="", "", IFERROR(J77*dbl_ScoreMax*MAX(0, IFERROR(INDEX(IND!$S$10:$S$3209, MATCH($F77&" > "&$C$24, IND!$Y$10:$Y$3209, 0), 1), 0))/100, 0)) -> 0.0375 | N77: 1 | P77: 49 | Q77: Decimal | R77: 0.1666666667 | S77: 0.1666666667
B78: GHG Management Activities | C78: 0.15 | D78: Corporate Awareness | E78: =E77 -> 0.3 | F78: 4.14 | G78: Capacity building – think tanks | H78: Both | I78: 0.1666666667 | J78: 0.0075 | K78: =IFERROR(INDEX(IND!$P$10:$P$3209, MATCH($F78&" > "&$C$24, IND!$Y$10:$Y$3209, 0), 1)*IF(Q78="Percentage (Source Calculated)", 100, 1), 0) -> 1 | L78: Organisations | M78: =IF(J78="", "", IFERROR(J78*dbl_ScoreMax*MAX(0, IFERROR(INDEX(IND!$S$10:$S$3209, MATCH($F78&" > "&$C$24, IND!$Y$10:$Y$3209, 0), 1), 0))/100, 0)) -> 0.0375 | N78: 1 | P78: 50 | Q78: Decimal | R78: 0.1666666667 | S78: 0.1666666667
B80: FURTHER INDICATOR DETAILS | E80: MAX
A81: 1.01 | B81: 1.01 - Clean energy policies | D81: =COUNTIF(D82:D89, "Yes") -> 6 | E81: =COUNTA($E$82:$E$89) -> 8
A82: =A81 -> 1.01 | B82: Energy target | D82: =IF(F82=1, "Yes", "No") -> Yes | E82: Yes | F82: =IF(E82="", "", IFERROR(INDEX(SID!X$3:X$12290, MATCH(A82&" > "&B82&" > "&str_Country, SID!$Z$3:$Z$12290, 0), 1), "")) -> 1
A83: =A82 -> 1.01 | B83: Auctions | D83: =IF(F83=1, "Yes", "No") -> No | E83: Yes | F83: =IF(E83="", "", IFERROR(INDEX(SID!X$3:X$12290, MATCH(A83&" > "&B83&" > "&str_Country, SID!$Z$3:$Z$12290, 0), 1), "")) -> 0
A84: 1.01 | B84: Feed-in tariff | D84: Yes | E84: Yes | F84: =IF(E84="", "", IFERROR(INDEX(SID!X$3:X$12290, MATCH(A84&" > "&B84&" > "&str_Country, SID!$Z$3:$Z$12290, 0), 1), "")) -> 1
A85: 1.01 | B85: Net metering | D85: Yes | E85: Yes | F85: =IF(E85="", "", IFERROR(INDEX(SID!X$3:X$12290, MATCH(A85&" > "&B85&" > "&str_Country, SID!$Z$3:$Z$12290, 0), 1), "")) -> 1
A86: 1.01 | B86: Utility regulation | D86: Yes | E86: Yes | F86: =IF(E86="", "", IFERROR(INDEX(SID!X$3:X$12290, MATCH(A86&" > "&B86&" > "&str_Country, SID!$Z$3:$Z$12290, 0), 1), "")) -> 1
A87: 1.01 | B87: Debt/Equity incentives | D87: No | E87: Yes | F87: =IF(E87="", "", IFERROR(INDEX(SID!X$3:X$12290, MATCH(A87&" > "&B87&" > "&str_Country, SID!$Z$3:$Z$12290, 0), 1), "")) -> 0
A88: 1.01 | B88: Tax incentives | D88: Yes | E88: Yes | F88: =IF(E88="", "", IFERROR(INDEX(SID!X$3:X$12290, MATCH(A88&" > "&B88&" > "&str_Country, SID!$Z$3:$Z$12290, 0), 1), "")) -> 1
A89: 1.01 | B89: Biofuel blending mandate | D89: Yes | E89: Yes | F89: =IF(E89="", "", IFERROR(INDEX(SID!X$3:X$12290, MATCH(A89&" > "&B89&" > "&str_Country, SID!$Z$3:$Z$12290, 0), 1), "")) -> 1
A90: 1.02 | B90: 1.02 - Power sector structure | D90: =$K$30 -> 6.960395712 | E90: =IND!$R$90 -> 11.5 | F90: =IF(E90="", "", IFERROR(INDEX(SID!X$3:X$12290, MATCH(A90&" > "&B90&" > "&str_Country, SID!$Z$3:$Z$12290, 0), 1), "")) -> 
A91: =A90 -> 1.02 | B91: Utility privatisation | D91: =IF(F91=1, "Yes", IF(AND(F91>0, F91<1), "Somewhat", "No")) -> Somewhat | E91: Yes | F91: =IF(E91="", "", IFERROR(INDEX(SID!X$3:X$12290, MATCH(A91&" > "&B91&" > "&str_Country, SID!$Z$3:$Z$12290, 0), 1), "")) -> 0.5
A92: 1.02 | B92: Utility unbundling | D92: =IF(F92=0, "No", IF(AND(F92>0, F92<1), "Somewhat", "Yes")) -> Somewhat | E92: Yes | F92: =IF(E92="", "", IFERROR(INDEX(SID!X$3:X$12290, MATCH(A92&" > "&B92&" > "&str_Country, SID!$Z$3:$Z$12290, 0), 1), "")) -> 0.25
A93: 1.02 | B93: Independent power transmission | D93: =IF(F93=0, "No", IF(AND(F93>0, F93<1), "Somewhat", "Yes")) -> No | E93: Yes | F93: =IF(E93="", "", IFERROR(INDEX(SID!X$3:X$12290, MATCH(A93&" > "&B93&" > "&str_Country, SID!$Z$3:$Z$12290, 0), 1), "")) -> 0
A94: 1.02 | B94: Price distortions | D94: =IF(F94=0, "Yes", IF(AND(F94>0, F94<1), "Somewhat", "No")) -> Yes | E94: No | F94: =IF(E94="", "", IFERROR(INDEX(SID!X$3:X$12290, MATCH(A94&" > "&B94&" > "&str_Country, SID!$Z$3:$Z$12290, 0), 1), "")) -> 0
A95: 1.02 | B95: Power outages - frequency | D95: =IF(F95<=0.13, "Very High", IF(AND(F95>0.13, F95<=0.25), "High", IF(AND(F95>0.25, F95<=0.38), "Regular", IF(AND(F95>0.38, F95<=0.5), "Low", "Very Low")))) -> Low | E95: Very Low | F95: =IF(E95="", "", IFERROR(INDEX(SID!X$3:X$12290, MATCH(A95&" > "&B95&" > "&str_Country, SID!$Z$3:$Z$12290, 0), 1), "")) -> 0.4993351064
A96: 1.02 | B96: Power outages - duration | D96: =IF(F96<=0.13, "Very Long", IF(AND(F96>0.13, F96<=0.25), "Long", IF(AND(F96>0.25, F96<=0.38), "Regular", IF(AND(F96>0.38, F96<=0.5), "Short", "Very Short")))) -> Short | E96: Very Short | F96: =IF(E96="", "", IFERROR(INDEX(SID!X$3:X$12290, MATCH(A96&" > "&B96&" > "&str_Country, SID!$Z$3:$Z$12290, 0), 1), "")) -> 0.4810606061
A97: 1.02 | B97: Barriers to private sector participation | D97: =IF(F97=1, "None", IF(AND(F97>0, F97<1), "Somewhat", "High")) -> None | E97: No | F97: =IF(E97="", "", IFERROR(INDEX(SID!X$3:X$12290, MATCH(A97&" > "&B97&" > "&str_Country, SID!$Z$3:$Z$12290, 0), 1), "")) -> 1
A98: 1.02 | B98: Retail market liberalisation | D98: =IF(F98=0, "No", IF(AND(F98>0, F98<1), "Somewhat", "Yes")) -> Somewhat | E98: Yes | F98: =IF(E98="", "", IFERROR(INDEX(SID!X$3:X$12290, MATCH(A98&" > "&B98&" > "&str_Country, SID!$Z$3:$Z$12290, 0), 1), "")) -> 0.5
A99: 1.02 | B99: Wholesale power market | D99: =IF(F99=0, "No", IF(AND(F99>0, F99<1), "Somewhat", "Yes")) -> Somewhat | E99: Yes | F99: =IF(E99="", "", IFERROR(INDEX(SID!X$3:X$12290, MATCH(A99&" > "&B99&" > "&str_Country, SID!$Z$3:$Z$12290, 0), 1), "")) -> 0.5
A100: 1.02 | B100: Concentration of generation market | D100: =IF(F100=0, "High", IF(AND(F100>0, F100<1), "Somewhat", "No")) -> High | E100: No | F100: =IF(E100="", "", IFERROR(INDEX(SID!X$3:X$12290, MATCH(A100&" > "&B100&" > "&str_Country, SID!$Z$3:$Z$12290, 0), 1), "")) -> 0
A101: 1.02 | B101: Concentration of supply market | D101: =IF(F101=0, "High", IF(AND(F101>0, F101<0.5), "Somewhat", "No")) -> Somewhat | E101: No | F101: =IF(E101="", "", IFERROR(INDEX(SID!X$3:X$12290, MATCH(A101&" > "&B101&" > "&str_Country, SID!$Z$3:$Z$12290, 0), 1), "")) -> 0.25
A102: 1.02 | B102: Openess to IPPs | D102: =SUMIFS(SID!X$3:X$3618, SID!$Z$3:$Z$3618, A102&" > "&B102&" > "&str_Country) -> 0.98 | E102: 1 | F102: =IF(E102="", "", IFERROR(INDEX(SID!X$3:X$12290, MATCH(A102&" > "&B102&" > "&str_Country, SID!$Z$3:$Z$12290, 0), 1), "")) -> 0.98
A103: =A102 -> 1.02 | B103: Offtaker risk | D103: =IF(F103=0, "Very High", IF(F103=0.25, "Low", IF(F103=0.5, "Neutral", IF(F103=1, "Low Risk", "Very Low")))) -> Low Risk | E103: Very Low | F103: =IF(E103="", "", IFERROR(INDEX(SID!X$3:X$12290, MATCH(A103&" > "&B103&" > "&str_Country, SID!$Z$3:$Z$12290, 0), 1), "")) -> 1
A104: 1.02 | B104: Availability of finance | D104: =IF(F104=0, "Low", IF(AND(F104>0.5, F104<1), "Medium", "High")) -> High | E104: High | F104: =IF(E104="", "", IFERROR(INDEX(SID!X$3:X$12290, MATCH(A104&" > "&B104&" > "&str_Country, SID!$Z$3:$Z$12290, 0), 1), "")) -> 1
A105: 1.03 | B105: 1.03 - Distributed energy framework | D105: =IF($S$27="Off-grid",$K$31,"Off-grid only") -> Off-grid only | E105: =IF($S$27="Off-grid",IND!$R$170,"None") -> None | F105: =IF(E105="", "", IFERROR(INDEX(SID!X$3:X$12290, MATCH(A105&" > "&B105&" > "&str_Country, SID!$Z$3:$Z$12290, 0), 1), "")) -> 
A106: =A105 -> 1.03 | B106: Mini-grids: licensing | D106: =IF($S$27="Off-grid",IF(F106=0,"No",IF(AND(F106>0,F106<1*1),"Somewhat","Yes")),"N/A") -> N/A | E106: =IF($S$27="Off-grid","Yes","None") -> None | F106: =IF(E106="", "", IFERROR(INDEX(SID!X$3:X$12290, MATCH(A106&" > "&B106&" > "&str_Country, SID!$Z$3:$Z$12290, 0), 1), "")) -> 0
A107: 1.03 | B107: Mini-grids: concessions | D107: =IF($S$27="Off-grid",IF(F107=0,"No",IF(AND(F107>0,F107<1*1),"Somewhat","Yes")),"N/A") -> N/A | E107: None | F107: =IF(E107="", "", IFERROR(INDEX(SID!X$3:X$12290, MATCH(A107&" > "&B107&" > "&str_Country, SID!$Z$3:$Z$12290, 0), 1), "")) -> 0
A108: 1.03 | B108: Mini-grids: threshold | D108: =IF($S$27="Off-grid",IF(F108=0,"Yes",IF(AND(F108>0,F108<1),"Somewhat","No")),"N/A") -> N/A | E108: =IF($S$27="Off-grid","No","None") -> None | F108: =IF(E108="", "", IFERROR(INDEX(SID!X$3:X$12290, MATCH(A108&" > "&B108&" > "&str_Country, SID!$Z$3:$Z$12290, 0), 1), "")) -> 0
A109: 1.03 | B109: Dedicated regulator | D109: =IF($S$27="Off-grid",IF(F109=0,"No",IF(AND(F109>0,F109<1),"Somewhat","Yes")),"N/A") -> N/A | E109: =IF($S$27="Off-grid"&"","Yes","None") -> None | F109: =IF(E109="", "", IFERROR(INDEX(SID!X$3:X$12290, MATCH(A109&" > "&B109&" > "&str_Country, SID!$Z$3:$Z$12290, 0), 1), "")) -> 0
A110: 1.03 | B110: Dedicated team within utility | D110: =IF($S$27="Off-grid",IF(F110=0,"No",IF(AND(F110>0,F110<1),"Somewhat","Yes")),"N/A") -> N/A | E110: None | F110: =IF(E110="", "", IFERROR(INDEX(SID!X$3:X$12290, MATCH(A110&" > "&B110&" > "&str_Country, SID!$Z$3:$Z$12290, 0), 1), "")) -> 0
A111: 1.03 | B111: Light-handed regulatory framework | D111: =IF($S$27="Off-grid",IF(F111=0,"No",IF(AND(F111>0,F111<1),"Somewhat","Yes")),"N/A") -> N/A | E111: None | F111: =IF(E111="", "", IFERROR(INDEX(SID!X$3:X$12290, MATCH(A111&" > "&B111&" > "&str_Country, SID!$Z$3:$Z$12290, 0), 1), "")) -> 0
A112: 1.03 | B112: Cost reflective tariffs | D112: =IF($S$27="Off-grid",IF(F112=0,"No",IF(AND(F112>0,F112<1),"Somewhat","Yes")),"N/A") -> N/A | E112: None | F112: =IF(E112="", "", IFERROR(INDEX(SID!X$3:X$12290, MATCH(A112&" > "&B112&" > "&str_Country, SID!$Z$3:$Z$12290, 0), 1), "")) -> 0
A113: 1.03 | B113: Duration of tariffs | D113: =IF($S$27="Off-grid",IF(F113=0,"No",IF(AND(F113>0,F113<1),"Somewhat","Yes")),"N/A") -> N/A | E113: None | F113: =IF(E113="", "", IFERROR(INDEX(SID!X$3:X$12290, MATCH(A113&" > "&B113&" > "&str_Country, SID!$Z$3:$Z$12290, 0), 1), "")) -> 0
A114: 1.03 | B114: Tariff deregulation | D114: =IF($S$27="Off-grid",IF(F114=0,"No",IF(AND(F114>0,F114<1),"Somewhat","Yes")),"N/A") -> N/A | E114: None | F114: =IF(E114="", "", IFERROR(INDEX(SID!X$3:X$12290, MATCH(A114&" > "&B114&" > "&str_Country, SID!$Z$3:$Z$12290, 0), 1), "")) -> 0
A115: 1.03 | B115: Standardised PPAs | D115: N/A | E115: None | F115: =IF(E115="", "", IFERROR(INDEX(SID!X$3:X$12290, MATCH(A115&" > "&B115&" > "&str_Country, SID!$Z$3:$Z$12290, 0), 1), "")) -> 0
A116: 1.03 | B116: PPAs of sufficient duration | D116: N/A | E116: None | F116: =IF(E116="", "", IFERROR(INDEX(SID!X$3:X$12290, MATCH(A116&" > "&B116&" > "&str_Country, SID!$Z$3:$Z$12290, 0), 1), "")) -> 0
A117: 1.03 | B117: Purchase obligation | D117: N/A | E117: None | F117: =IF(E117="", "", IFERROR(INDEX(SID!X$3:X$12290, MATCH(A117&" > "&B117&" > "&str_Country, SID!$Z$3:$Z$12290, 0), 1), "")) -> 0
A118: 1.03 | B118: Clear rules on interconnection | D118: N/A | E118: None | F118: =IF(E118="", "", IFERROR(INDEX(SID!X$3:X$12290, MATCH(A118&" > "&B118&" > "&str_Country, SID!$Z$3:$Z$12290, 0), 1), "")) -> 0
A119: 1.03 | B119: Clear rules on arrival of the main grid | D119: N/A | E119: None | F119: =IF(E119="", "", IFERROR(INDEX(SID!X$3:X$12290, MATCH(A119&" > "&B119&" > "&str_Country, SID!$Z$3:$Z$12290, 0), 1), "")) -> 0
A120: 1.03 | B120: Transparent grid extension plan | D120: N/A | E120: None | F120: =IF(E120="", "", IFERROR(INDEX(SID!X$3:X$12290, MATCH(A120&" > "&B120&" > "&str_Country, SID!$Z$3:$Z$12290, 0), 1), "")) -> 0
A121: 1.03 | B121: Quality of service standards | D121: N/A | E121: None | F121: =IF(E121="", "", IFERROR(INDEX(SID!X$3:X$12290, MATCH(A121&" > "&B121&" > "&str_Country, SID!$Z$3:$Z$12290, 0), 1), "")) -> 0
A122: 1.03 | B122: SPPs can deliver financial services | D122: N/A | E122: =IF($S$27="Off-grid"&"","Yes","None") -> None | F122: =IF(E122="", "", IFERROR(INDEX(SID!X$3:X$12290, MATCH(A122&" > "&B122&" > "&str_Country, SID!$Z$3:$Z$12290, 0), 1), "")) -> 0
A123: 1.05 | B123: 1.05 - Energy access policies | D123: =IF($S$27="Off-grid",$K$33,"Off-grid only") -> Off-grid only | E123: =IF($S$27="Off-grid",IND!$R$266,"None") -> None | F123: =IF(E123="", "", IFERROR(INDEX(SID!X$3:X$12290, MATCH(A123&" > "&B123&" > "&str_Country, SID!$Z$3:$Z$12290, 0), 1), "")) -> 
A124: =A123 -> 1.05 | B124: Rural electrification program | D124: =IF($S$27="Off-grid",IF(F124=0,"No",IF(AND(F124>0,F124<1*1),"Somewhat","Yes")),"N/A") -> N/A | E124: =IF($S$27="Off-grid","Yes","None") -> None | F124: =IF(E124="", "", IFERROR(INDEX(SID!X$3:X$12290, MATCH(A124&" > "&B124&" > "&str_Country, SID!$Z$3:$Z$12290, 0), 1), "")) -> 1
A125: 1.05 | B125: Rural electrification agency | D125: =IF($S$27="Off-grid",IF(F125=0,"No",IF(AND(F125>0,F125<1*1),"Somewhat","Yes")),"N/A") -> N/A | E125: =IF($S$27="Off-grid","Yes","None") -> None | F125: =IF(E125="", "", IFERROR(INDEX(SID!X$3:X$12290, MATCH(A125&" > "&B125&" > "&str_Country, SID!$Z$3:$Z$12290, 0), 1), "")) -> 0
A126: 1.05 | B126: Rural electrification budget | D126: =IF($S$27="Off-grid",IF(F126<0.01, "Low", IF(AND(F126>=0.04, F126<1), "Average", "High")),"N/A") -> N/A | E126: =IF($S$27="Off-grid","High","None") -> None | F126: =IF(E126="", "", IFERROR(INDEX(SID!X$3:X$12290, MATCH(A126&" > "&B126&" > "&str_Country, SID!$Z$3:$Z$12290, 0), 1), "")) -> 0
A127: 1.05 | B127: Energy access targets (general) | D127: =IF($S$27="Off-grid",IF(F127=0,"No",IF(AND(F127>0,F127<1),"Somewhat","Yes")),"N/A") -> N/A | E127: =IF($S$27="Off-grid"&"","Yes","None") -> None | F127: =IF(E127="", "", IFERROR(INDEX(SID!X$3:X$12290, MATCH(A127&" > "&B127&" > "&str_Country, SID!$Z$3:$Z$12290, 0), 1), "")) -> 0
A128: 1.05 | B128: Offgrid energy access target | D128: =IF($S$27="Off-grid",IF(F128=0,"No",IF(AND(F128>0,F128<1),"Somewhat","Yes")),"N/A") -> N/A | E128: =IF($S$27="Off-grid","Yes","None") -> None | F128: =IF(E128="", "", IFERROR(INDEX(SID!X$3:X$12290, MATCH(A128&" > "&B128&" > "&str_Country, SID!$Z$3:$Z$12290, 0), 1), "")) -> 0
A129: 1.05 | B129: Offgrid financing facilities | D129: =IF($S$27="Off-grid",IF(F129=0,"No",IF(AND(F129>0,F129<1*1),"Somewhat","Yes")),"N/A") -> N/A | E129: None | F129: =IF(E129="", "", IFERROR(INDEX(SID!X$3:X$12290, MATCH(A129&" > "&B129&" > "&str_Country, SID!$Z$3:$Z$12290, 0), 1), "")) -> 0
A130: 1.05 | B130: New connection cost | D130: =IF($S$27="Off-grid",IF(F130<0.03, "Low", IF(AND(F130>=0.05, F130<1), "Average", "High")),"N/A") -> N/A | E130: Low | F130: =IF(E130="", "", IFERROR(INDEX(SID!X$3:X$12290, MATCH(A130&" > "&B130&" > "&str_Country, SID!$Z$3:$Z$12290, 0), 1), "")) -> 0
A131: 1.05 | B131: Connection grants | D131: =IF($S$27="Off-grid",IF(F131=0,"No",IF(AND(F131>0,F131<1),"Somewhat","Yes")),"N/A") -> N/A | E131: None | F131: =IF(E131="", "", IFERROR(INDEX(SID!X$3:X$12290, MATCH(A131&" > "&B131&" > "&str_Country, SID!$Z$3:$Z$12290, 0), 1), "")) -> 0
A132: 1.05 | B132: Other off-grid incentives | D132: N/A | E132: None | F132: =IF(E132="", "", IFERROR(INDEX(SID!X$3:X$12290, MATCH(A132&" > "&B132&" > "&str_Country, SID!$Z$3:$Z$12290, 0), 1), "")) -> 0
A133: 1.05 | B133: Tax / duty reductions | D133: N/A | E133: None | F133: =IF(E133="", "", IFERROR(INDEX(SID!X$3:X$12290, MATCH(A133&" > "&B133&" > "&str_Country, SID!$Z$3:$Z$12290, 0), 1), "")) -> 0
A134: 1.05 | B134: Off-grid market building | D134: =IF($S$27="Off-grid",IF(F134=0,"No",IF(AND(F134>0,F134<1*1),"Somewhat","Yes")),"N/A") -> N/A | E134: None | F134: =IF(E134="", "", IFERROR(INDEX(SID!X$3:X$12290, MATCH(A134&" > "&B134&" > "&str_Country, SID!$Z$3:$Z$12290, 0), 1), "")) -> 0
A135: 1.05 | B135: Mobile money penetration | D135: =IF($S$27="Off-grid",IF(F135<0.2, "Low", IF(AND(F135<=0.5, F135<1), "Medium", "High")),"N/A") -> N/A | E135: High | F135: =IF(E135="", "", IFERROR(INDEX(SID!X$3:X$12290, MATCH(A135&" > "&B135&" > "&str_Country, SID!$Z$3:$Z$12290, 0), 1), "")) -> 0
A136: 1.05 | B136: PAYG availability | D136: N/A | E136: None | F136: =IF(E136="", "", IFERROR(INDEX(SID!X$3:X$12290, MATCH(A136&" > "&B136&" > "&str_Country, SID!$Z$3:$Z$12290, 0), 1), "")) -> 0
A137: 1.05 | B137: Pico-solar quality standards | D137: N/A | E137: None | F137: =IF(E137="", "", IFERROR(INDEX(SID!X$3:X$12290, MATCH(A137&" > "&B137&" > "&str_Country, SID!$Z$3:$Z$12290, 0), 1), "")) -> 0
A138: 1.06 | B138: 1.06 - Barriers | D138: =$K$34 -> 0.9267 | E138: =IF($S$27="Off-grid",IND!$R$330,1) -> 1 | F138: =IF(E138="", "", IFERROR(INDEX(SID!X$3:X$12290, MATCH(A138&" > "&B138&" > "&str_Country, SID!$Z$3:$Z$12290, 0), 1), "")) -> 
A139: =A138 -> 1.06 | B139: Kerosene and diesel subsidies | D139: =IF($S$27="Off-grid",IF(F139=0,"Yes",IF(AND(F139=0.25,F139=5),"Somewhat","No")),"N/A") -> N/A | E139: No | F139: =IF(E139="", "", IFERROR(INDEX(SID!X$3:X$12290, MATCH(A139&" > "&B139&" > "&str_Country, SID!$Z$3:$Z$12290, 0), 1), "")) -> 0
A140: =A139 -> 1.06 | B140: Off-grid solar VAT rate | D140: =IF($S$27="Off-grid",IF(F140<0.2,"High",IF(AND(F140<0.4,F140<0.5),"Medium","Low")),"N/A") -> N/A | E140: Low | F140: =IF(E140="", "", IFERROR(INDEX(SID!X$3:X$12290, MATCH(A140&" > "&B140&" > "&str_Country, SID!$Z$3:$Z$12290, 0), 1), "")) -> 0
A141: 1.06 | B141: VAT reductions | D141: =IF($S$27="Off-grid",IF(F141=0,"No",IF(F141<0.26,"Somewhat","Yes")),"N/A") -> N/A | E141: Yes | F141: =IF(E141="", "", IFERROR(INDEX(SID!X$3:X$12290, MATCH(A141&" > "&B141&" > "&str_Country, SID!$Z$3:$Z$12290, 0), 1), "")) -> 0
A142: 1.06 | B142: Import duty reductions | D142: =IF($S$27="Off-grid",IF(F142=0,"No",IF(F142<0.26,"Somewhat","Yes")),"N/A") -> N/A | E142: Yes | F142: =IF(E142="", "", IFERROR(INDEX(SID!X$3:X$12290, MATCH(A142&" > "&B142&" > "&str_Country, SID!$Z$3:$Z$12290, 0), 1), "")) -> 0
A143: 1.06 | B143: Other import barriers | D143: =IF($S$27="Off-grid",IF(F143=0,"Yes",IF(AND(F143>0,F143<1),"Somewhat","No")),"N/A") -> N/A | E143: No | F143: =IF(E143="", "", IFERROR(INDEX(SID!X$3:X$12290, MATCH(A143&" > "&B143&" > "&str_Country, SID!$Z$3:$Z$12290, 0), 1), "")) -> 0
A144: 1.06 | B144: Other retail barriers | D144: =IF($S$27="Off-grid",IF(F144=0,"Yes",IF(AND(F144>0,F144<1),"Somewhat","No")),"N/A") -> N/A | E144: No | F144: =IF(E144="", "", IFERROR(INDEX(SID!X$3:X$12290, MATCH(A144&" > "&B144&" > "&str_Country, SID!$Z$3:$Z$12290, 0), 1), "")) -> 0
A145: 1.06 | B145: Import duties | D145: =IF(F145=0, "High", IF(AND(F145>0, F145<0.5), "Somewhat", "Low")) -> Low | E145: Low | F145: =IF(E145="", "", IFERROR(INDEX(SID!X$3:X$12290, MATCH(A145&" > "&B145&" > "&str_Country, SID!$Z$3:$Z$12290, 0), 1), "")) -> 0.9267
A146: 1.07 | B146: 1.07 - Clean energy capacity (MW) | D146: =SUM(C147:C151) -> 256581.8 | F146: =IF(E146="", "", IFERROR(INDEX(SID!X$3:X$12290, MATCH(A146&" > "&B146&" > "&str_Country, SID!$Z$3:$Z$12290, 0), 1), "")) -> 
A147: =A146 -> 1.07 | B147: Biomass & Waste | C147: =IFERROR(INDEX(CHRT!$L$9:$L$17, MATCH(B147, CHRT!$A$9:$A$17,0), 1), 0) -> 10025 | D147: =IF($D$146=0,0,C147/SUM($C$147:$C$152)) -> 0.006725962484 | F147: =IF(E147="", "", IFERROR(INDEX(SID!X$3:X$12290, MATCH(A147&" > "&B147&" > "&str_Country, SID!$Z$3:$Z$12290, 0), 1), "")) -> 
A148: 1.07 | B148: Geothermal | C148: =IFERROR(INDEX(CHRT!$L$9:$L$17, MATCH(B148, CHRT!$A$9:$A$17,0), 1), 0) -> 28 | D148: 1.878573063e-05 | F148: =IF(E148="", "", IFERROR(INDEX(SID!X$3:X$12290, MATCH(A148&" > "&B148&" > "&str_Country, SID!$Z$3:$Z$12290, 0), 1), "")) -> 
A149: 1.07 | B149: Small Hydro | C149: =IFERROR(INDEX(CHRT!$L$9:$L$17, MATCH(B149, CHRT!$A$9:$A$17,0), 1), 0) -> 76648.8 | D149: 0.05142513249 | F149: =IF(E149="", "", IFERROR(INDEX(SID!X$3:X$12290, MATCH(A149&" > "&B149&" > "&str_Country, SID!$Z$3:$Z$12290, 0), 1), "")) -> 
A150: 1.07 | B150: Solar | C150: =IFERROR(INDEX(CHRT!$L$9:$L$17, MATCH(B150, CHRT!$A$9:$A$17,0), 1), 0) -> 41580 | D150: 0.02789680998 | F150: =IF(E150="", "", IFERROR(INDEX(SID!X$3:X$12290, MATCH(A150&" > "&B150&" > "&str_Country, SID!$Z$3:$Z$12290, 0), 1), "")) -> 
A151: 1.07 | B151: Wind | C151: =IFERROR(INDEX(CHRT!$L$9:$L$17, MATCH(B151, CHRT!$A$9:$A$17,0), 1), 0) -> 128300 | D151: 0.08607890141 | F151: =IF(E151="", "", IFERROR(INDEX(SID!X$3:X$12290, MATCH(A151&" > "&B151&" > "&str_Country, SID!$Z$3:$Z$12290, 0), 1), "")) -> 
A152: 1.07 | B152: Other Energy | C152: =IFERROR(INDEX(CHRT!$L$9:$L$17, MATCH(B152, CHRT!$A$9:$A$17,0), 1), 0) -> 1233911.2 | D152: 0.8278544079 | F152: =IF(E152="", "", IFERROR(INDEX(SID!X$3:X$12290, MATCH(A152&" > "&B152&" > "&str_Country, SID!$Z$3:$Z$12290, 0), 1), "")) -> 
A153: 1.07 | B153: Capacity (MW) - Cumulative | F153: =IF(E153="", "", IFERROR(INDEX(SID!X$3:X$12290, MATCH(A153&" > "&B153&" > "&str_Country, SID!$Z$3:$Z$12290, 0), 1), "")) -> 
A154: 1.07 | F154: =IF(E154="", "", IFERROR(INDEX(SID!X$3:X$12290, MATCH(A154&" > "&B154&" > "&str_Country, SID!$Z$3:$Z$12290, 0), 1), "")) -> 
A155: 1.07 | F155: =IF(E155="", "", IFERROR(INDEX(SID!X$3:X$12290, MATCH(A155&" > "&B155&" > "&str_Country, SID!$Z$3:$Z$12290, 0), 1), "")) -> 
A156: 1.07 | F156: =IF(E156="", "", IFERROR(INDEX(SID!X$3:X$12290, MATCH(A156&" > "&B156&" > "&str_Country, SID!$Z$3:$Z$12290, 0), 1), "")) -> 
A157: 1.07 | F157: =IF(E157="", "", IFERROR(INDEX(SID!X$3:X$12290, MATCH(A157&" > "&B157&" > "&str_Country, SID!$Z$3:$Z$12290, 0), 1), "")) -> 
A158: 1.07 | F158: =IF(E158="", "", IFERROR(INDEX(SID!X$3:X$12290, MATCH(A158&" > "&B158&" > "&str_Country, SID!$Z$3:$Z$12290, 0), 1), "")) -> 
A159: 1.07 | F159: =IF(E159="", "", IFERROR(INDEX(SID!X$3:X$12290, MATCH(A159&" > "&B159&" > "&str_Country, SID!$Z$3:$Z$12290, 0), 1), "")) -> 
A160: 1.07 | F160: =IF(E160="", "", IFERROR(INDEX(SID!X$3:X$12290, MATCH(A160&" > "&B160&" > "&str_Country, SID!$Z$3:$Z$12290, 0), 1), "")) -> 
A161: 1.07 | F161: =IF(E161="", "", IFERROR(INDEX(SID!X$3:X$12290, MATCH(A161&" > "&B161&" > "&str_Country, SID!$Z$3:$Z$12290, 0), 1), "")) -> 
A162: 1.07 | F162: =IF(E162="", "", IFERROR(INDEX(SID!X$3:X$12290, MATCH(A162&" > "&B162&" > "&str_Country, SID!$Z$3:$Z$12290, 0), 1), "")) -> 
A163: 1.07 | F163: =IF(E163="", "", IFERROR(INDEX(SID!X$3:X$12290, MATCH(A163&" > "&B163&" > "&str_Country, SID!$Z$3:$Z$12290, 0), 1), "")) -> 
A164: 1.07 | F164: =IF(E164="", "", IFERROR(INDEX(SID!X$3:X$12290, MATCH(A164&" > "&B164&" > "&str_Country, SID!$Z$3:$Z$12290, 0), 1), "")) -> 
A165: 1.07 | F165: =IF(E165="", "", IFERROR(INDEX(SID!X$3:X$12290, MATCH(A165&" > "&B165&" > "&str_Country, SID!$Z$3:$Z$12290, 0), 1), "")) -> 
A166: 1.07 | F166: =IF(E166="", "", IFERROR(INDEX(SID!X$3:X$12290, MATCH(A166&" > "&B166&" > "&str_Country, SID!$Z$3:$Z$12290, 0), 1), "")) -> 
A167: 1.07 | F167: =IF(E167="", "", IFERROR(INDEX(SID!X$3:X$12290, MATCH(A167&" > "&B167&" > "&str_Country, SID!$Z$3:$Z$12290, 0), 1), "")) -> 
A168: 1.07 | F168: =IF(E168="", "", IFERROR(INDEX(SID!X$3:X$12290, MATCH(A168&" > "&B168&" > "&str_Country, SID!$Z$3:$Z$12290, 0), 1), "")) -> 
A169: 1.07 | F169: =IF(E169="", "", IFERROR(INDEX(SID!X$3:X$12290, MATCH(A169&" > "&B169&" > "&str_Country, SID!$Z$3:$Z$12290, 0), 1), "")) -> 
A170: 1.07 | F170: =IF(E170="", "", IFERROR(INDEX(SID!X$3:X$12290, MATCH(A170&" > "&B170&" > "&str_Country, SID!$Z$3:$Z$12290, 0), 1), "")) -> 
A171: 1.07 | F171: =IF(E171="", "", IFERROR(INDEX(SID!X$3:X$12290, MATCH(A171&" > "&B171&" > "&str_Country, SID!$Z$3:$Z$12290, 0), 1), "")) -> 
A172: 1.09 | B172: 1.09 - Clean energy generation (GWh) | D172: =SUM(C173:C177) -> 531072 | F172: =IF(E172="", "", IFERROR(INDEX(SID!X$3:X$12290, MATCH(A172&" > "&B172&" > "&str_Country, SID!$Z$3:$Z$12290, 0), 1), "")) -> 
A173: =A172 -> 1.09 | B173: Biomass & Waste | C173: =IFERROR(INDEX(CHRT!$L$19:$L$27, MATCH(B173, CHRT!$A$19:$A$27,0), 1), 0) -> 40100 | D173: =IF($D$146=0,0,C173/SUM($C$173:$C$178)) -> 0.007206345897 | F173: =IF(E173="", "", IFERROR(INDEX(SID!X$3:X$12290, MATCH(A173&" > "&B173&" > "&str_Country, SID!$Z$3:$Z$12290, 0), 1), "")) -> 
A174: 1.09 | B174: Geothermal | C174: =IFERROR(INDEX(CHRT!$L$19:$L$27, MATCH(B174, CHRT!$A$19:$A$27,0), 1), 0) -> 140 | D174: 2.515931236e-05 | F174: =IF(E174="", "", IFERROR(INDEX(SID!X$3:X$12290, MATCH(A174&" > "&B174&" > "&str_Country, SID!$Z$3:$Z$12290, 0), 1), "")) -> 
A175: 1.09 | B175: Small Hydro | C175: =IFERROR(INDEX(CHRT!$L$19:$L$27, MATCH(B175, CHRT!$A$19:$A$27,0), 1), 0) -> 267432 | D175: 0.04806003731 | F175: =IF(E175="", "", IFERROR(INDEX(SID!X$3:X$12290, MATCH(A175&" > "&B175&" > "&str_Country, SID!$Z$3:$Z$12290, 0), 1), "")) -> 
A176: 1.09 | B176: Solar | C176: =IFERROR(INDEX(CHRT!$L$19:$L$27, MATCH(B176, CHRT!$A$19:$A$27,0), 1), 0) -> 38300 | D176: 0.006882869024 | F176: =IF(E176="", "", IFERROR(INDEX(SID!X$3:X$12290, MATCH(A176&" > "&B176&" > "&str_Country, SID!$Z$3:$Z$12290, 0), 1), "")) -> 
A177: 1.09 | B177: Wind | C177: =IFERROR(INDEX(CHRT!$L$19:$L$27, MATCH(B177, CHRT!$A$19:$A$27,0), 1), 0) -> 185100 | D177: 0.03326420513 | F177: =IF(E177="", "", IFERROR(INDEX(SID!X$3:X$12290, MATCH(A177&" > "&B177&" > "&str_Country, SID!$Z$3:$Z$12290, 0), 1), "")) -> 
A178: 1.09 | B178: Other Energy | C178: =IFERROR(INDEX(CHRT!$L$19:$L$27, MATCH(B178, CHRT!$A$19:$A$27,0), 1), 0) -> 5033468 | D178: 0.9045613833 | F178: =IF(E178="", "", IFERROR(INDEX(SID!X$3:X$12290, MATCH(A178&" > "&B178&" > "&str_Country, SID!$Z$3:$Z$12290, 0), 1), "")) -> 
A179: 1.09 | B179: Generation (GWh) - Cumulative | F179: =IF(E179="", "", IFERROR(INDEX(SID!X$3:X$12290, MATCH(A179&" > "&B179&" > "&str_Country, SID!$Z$3:$Z$12290, 0), 1), "")) -> 
A180: 1.09 | F180: =IF(E180="", "", IFERROR(INDEX(SID!X$3:X$12290, MATCH(A180&" > "&B180&" > "&str_Country, SID!$Z$3:$Z$12290, 0), 1), "")) -> 
A181: 1.09 | F181: =IF(E181="", "", IFERROR(INDEX(SID!X$3:X$12290, MATCH(A181&" > "&B181&" > "&str_Country, SID!$Z$3:$Z$12290, 0), 1), "")) -> 
A182: 1.09 | F182: =IF(E182="", "", IFERROR(INDEX(SID!X$3:X$12290, MATCH(A182&" > "&B182&" > "&str_Country, SID!$Z$3:$Z$12290, 0), 1), "")) -> 
A183: 1.09 | F183: =IF(E183="", "", IFERROR(INDEX(SID!X$3:X$12290, MATCH(A183&" > "&B183&" > "&str_Country, SID!$Z$3:$Z$12290, 0), 1), "")) -> 
A184: 1.09 | F184: =IF(E184="", "", IFERROR(INDEX(SID!X$3:X$12290, MATCH(A184&" > "&B184&" > "&str_Country, SID!$Z$3:$Z$12290, 0), 1), "")) -> 
A185: 1.09 | F185: =IF(E185="", "", IFERROR(INDEX(SID!X$3:X$12290, MATCH(A185&" > "&B185&" > "&str_Country, SID!$Z$3:$Z$12290, 0), 1), "")) -> 
A186: 1.09 | F186: =IF(E186="", "", IFERROR(INDEX(SID!X$3:X$12290, MATCH(A186&" > "&B186&" > "&str_Country, SID!$Z$3:$Z$12290, 0), 1), "")) -> 
A187: 1.09 | F187: =IF(E187="", "", IFERROR(INDEX(SID!X$3:X$12290, MATCH(A187&" > "&B187&" > "&str_Country, SID!$Z$3:$Z$12290, 0), 1), "")) -> 
A188: 1.09 | F188: =IF(E188="", "", IFERROR(INDEX(SID!X$3:X$12290, MATCH(A188&" > "&B188&" > "&str_Country, SID!$Z$3:$Z$12290, 0), 1), "")) -> 
A189: 1.09 | F189: =IF(E189="", "", IFERROR(INDEX(SID!X$3:X$12290, MATCH(A189&" > "&B189&" > "&str_Country, SID!$Z$3:$Z$12290, 0), 1), "")) -> 
A190: 1.09 | F190: =IF(E190="", "", IFERROR(INDEX(SID!X$3:X$12290, MATCH(A190&" > "&B190&" > "&str_Country, SID!$Z$3:$Z$12290, 0), 1), "")) -> 
A191: 1.09 | F191: =IF(E191="", "", IFERROR(INDEX(SID!X$3:X$12290, MATCH(A191&" > "&B191&" > "&str_Country, SID!$Z$3:$Z$12290, 0), 1), "")) -> 
A192: 1.09 | F192: =IF(E192="", "", IFERROR(INDEX(SID!X$3:X$12290, MATCH(A192&" > "&B192&" > "&str_Country, SID!$Z$3:$Z$12290, 0), 1), "")) -> 
A193: 1.09 | F193: =IF(E193="", "", IFERROR(INDEX(SID!X$3:X$12290, MATCH(A193&" > "&B193&" > "&str_Country, SID!$Z$3:$Z$12290, 0), 1), "")) -> 
A194: 1.09 | F194: =IF(E194="", "", IFERROR(INDEX(SID!X$3:X$12290, MATCH(A194&" > "&B194&" > "&str_Country, SID!$Z$3:$Z$12290, 0), 1), "")) -> 
A195: 1.09 | F195: =IF(E195="", "", IFERROR(INDEX(SID!X$3:X$12290, MATCH(A195&" > "&B195&" > "&str_Country, SID!$Z$3:$Z$12290, 0), 1), "")) -> 
A196: 1.09 | F196: =IF(E196="", "", IFERROR(INDEX(SID!X$3:X$12290, MATCH(A196&" > "&B196&" > "&str_Country, SID!$Z$3:$Z$12290, 0), 1), "")) -> 
A197: 1.09 | F197: =IF(E197="", "", IFERROR(INDEX(SID!X$3:X$12290, MATCH(A197&" > "&B197&" > "&str_Country, SID!$Z$3:$Z$12290, 0), 1), "")) -> 
A198: 1.09 | B198: Clean Energy Capacity Factors (%) | D198: =IFERROR(AVERAGEIF(D199:D203, "<>0"), 0) -> 0.3391069611 | F198: =IF(E198="", "", IFERROR(INDEX(SID!X$3:X$12290, MATCH(A198&" > "&B198&" > "&str_Country, SID!$Z$3:$Z$12290, 0), 1), "")) -> 
A199: 1.09 | B199: Biomass & Waste | D199: =IF(C147=0,0,(C173*1000)/(8760*C147)) -> 0.4566210046 | F199: =IF(E199="", "", IFERROR(INDEX(SID!X$3:X$12290, MATCH(A199&" > "&B199&" > "&str_Country, SID!$Z$3:$Z$12290, 0), 1), "")) -> 
A200: 1.09 | B200: Geothermal | D200: 0.5707762557 | F200: =IF(E200="", "", IFERROR(INDEX(SID!X$3:X$12290, MATCH(A200&" > "&B200&" > "&str_Country, SID!$Z$3:$Z$12290, 0), 1), "")) -> 
A201: 1.09 | B201: Small Hydro | D201: 0.3982941302 | F201: =IF(E201="", "", IFERROR(INDEX(SID!X$3:X$12290, MATCH(A201&" > "&B201&" > "&str_Country, SID!$Z$3:$Z$12290, 0), 1), "")) -> 
A202: 1.09 | B202: Solar | D202: =IF(C150=0,0,(C176*1000)/(8760*C150)) -> 0.1051502193 | F202: =IF(E202="", "", IFERROR(INDEX(SID!X$3:X$12290, MATCH(A202&" > "&B202&" > "&str_Country, SID!$Z$3:$Z$12290, 0), 1), "")) -> 
... 113 more rows

Sheet IND (hidden)
F2: Model Base Year | G2: 2015
F3: Growth Rate Cap (%) | G3: 1.5
F4: Maximum Score | G4: 5
F5: Benchmark Max | G5: 100
F6: Investment Year (Start) | G6: 2011
A8: Indicator Data
A9: Indicator | B9: Country | C9: Indicator ID | D9: Parameter | E9: Category | F9: Indicator | G9: On/off-grid | H9: Levelisation | I9: Growth | J9: Units | K9: Region | L9: Countries & States | M9: Best Case | N9: User Defined | O9: Levelisation | P9: ="Data ("&int_Year&")" -> Data (2015) | Q9: Data (Levelised) | R9: Benchmark | S9: Score | T9: Hardcoded Scores | U9: Growth Rate | V9: ="Investment ("&int_InvStartYear& " to " &int_Year&")" -> Investment (2011 to 2015) | W9: ="Investment ("&int_InvStartYear& " to " &int_Year-1&")" -> Investment (2011 to 2014) | X9: ="Investment ("&int_InvStartYear& " to " &int_Year&")" -> Investment (2011 to 2015) | Y9: Row ID
A10: 1 | B10: 1 | C10: =INDEX(DEFN!$A$4:$K$53, MATCH($A10, DEFN!$A$4:$A$53, 0), MATCH(C$9, DEFN!$A$3:$K$3, 0)) -> 1.01 | D10: =INDEX(DEFN!$A$4:$K$53, MATCH($A10, DEFN!$A$4:$A$53, 0), MATCH(D$9, DEFN!$A$3:$K$3, 0)) -> Enabling Framework | E10: =INDEX(DEFN!$A$4:$K$53, MATCH($A10, DEFN!$A$4:$A$53, 0), MATCH(E$9, DEFN!$A$3:$K$3, 0)) -> Policy & Regulation | F10: =INDEX(DEFN!$A$4:$K$53, MATCH($A10, DEFN!$A$4:$A$53, 0), MATCH(F$9, DEFN!$A$3:$K$3, 0)) -> Clean energy policies | G10: =INDEX(DEFN!$A$4:$K$53, MATCH($A10, DEFN!$A$4:$A$53, 0), MATCH(G$9, DEFN!$A$3:$K$3, 0)) -> Both | H10: =INDEX(DEFN!$A$4:$K$53, MATCH($A10, DEFN!$A$4:$A$53, 0), MATCH(H$9, DEFN!$A$3:$K$3, 0)) -> None | I10: =INDEX(DEFN!$A$4:$K$53, MATCH($A10, DEFN!$A$4:$A$53, 0), MATCH(I$9, DEFN!$A$3:$K$3, 0)) -> None | J10: =INDEX(DEFN!$A$4:$K$53, MATCH($A10, DEFN!$A$4:$A$53, 0), MATCH(J$9, DEFN!$A$3:$K$3, 0)) -> Policy Types | K10: =INDEX(DEFN!B$250:B$313, MATCH($B10, DEFN!$A$250:$A$313, 0), 1) -> Africa | L10: =INDEX(DEFN!C$250:C$313, MATCH($B10, DEFN!$A$250:$A$313, 0), 1) -> Botswana | M10: =INDEX(DEFN!$A$4:$K$53, MATCH($A10, DEFN!$A$4:$A$53, 0), MATCH(M$9, DEFN!$A$3:$K$3, 0)) -> User Defined | N10: =INDEX(DEFN!$A$4:$K$53, MATCH($A10, DEFN!$A$4:$A$53, 0), MATCH(N$9, DEFN!$A$3:$K$3, 0)) -> 5 | O10: =IFERROR(IF($H10="None", 1, IF($H10="All Capacity", SUMIFS(SID!X$3:X$12290, SID!$G$3:$G$12290, "<>Power demand", SID!$K$3:$K$12290, $L10, SID!$I$3:$I$12290, $J10), IF($H10="All Generation", SUMIFS(SID!X$3:X$12290, SID!$K$3:$K$12290, $L10, SID!$I$3:$I$12290, $J10), SUMIFS(SID!X$3:X$12290, SID!$F$3:$F$12290, $H10, SID!$K$3:$K$12290, $L10)))), 1) -> 1 | P10: =IF(ISNUMBER(FIND("Growth", F10)), U10, IF(V10<>0,V10, SUMIFS(SID!X$3:X$12290, SID!$C$3:$C$12290, $C10, SID!$K$3:$K$12290, $L10, SID!$Y$3:$Y$12290, 0))) -> 1 | Q10: =IFERROR(IF(ISNUMBER(T10), MAX(T10/O10, 0), MAX(IF(LEFT(F10, 11)="Growth rate", MIN(P10, dbl_GrowthCap), P10)/O10, 0)), 0) -> 0.44 | R10: =IF(F10<>F9, IFERROR(IF(M10="User Defined", $N10, IF(M10="Min", SMALL(Q10:Q73, COUNTIF(Q10:Q73, 0)+1), IF(M10="Max", MAX(Q10:Q73), IF(M10="Average", AVERAGEIF(Q10:Q73, "<>0"), IF(M10="Total", SUM(Q10:Q73), 0))))), 0),R9) -> 5 | S10: =IFERROR(dbl_BenchmarkMax*IF(M10="Min", R10/Q10, Q10/R10), 0) -> 8.8 | T10: 0.44 | U10: =IF(I10="Clean energy investments", IF(OR(W10=0, X10=0), 0, X10/W10-1), IF(OR(I10="None", SUMIFS(SID!X$3:X$12290, SID!$F$3:$F$12290, I10, SID!$K$3:$K$12290, L10, SID!$Y$3:$Y$12290, 0)=0), 0, IFERROR(SUMIFS(SID!X$3:X$12290, SID!$F$3:$F$12290, I10, SID!$K$3:$K$12290, L10, SID!$Y$3:$Y$12290, 0)/SUMIFS(SID!W$3:W$12290, SID!$F$3:$F$12290, I10, SID!$K$3:$K$12290, L10, SID!$Y$3:$Y$12290, 0) - 1, 0))) -> 0 | V10: =IF(J10<>"USDm", 0, IF(F10="Clean energy investments", IF(ISNUMBER(FIND("-", $L10)), SUMIFS(INV!$J$3:$J$11498, INV!$E$3:$E$11498, $L10, INV!$A$3:$A$11498, "<=" & int_Year, INV!$A$3:$A$11498, ">=" & $G$6), SUMIFS(INV!$J$3:$J$11498, INV!$F$3:$F$11498, $L10, INV!$A$3:$A$11498, "<=" & int_Year, INV!$A$3:$A$11498, ">=" & $G$6)), IF(ISNUMBER(FIND("-", $L10)), SUMIFS(INV!$J$3:$J$11498, INV!$E$3:$E$11498, $L10, INV!$I$3:$I$11498, $F10, INV!$A$3:$A$11498, "<=" & int_Year, INV!$A$3:$A$11498, ">=" & $G$6), SUMIFS(INV!$J$3:$J$11498, INV!$F$3:$F$11498, $L10, INV!$I$3:$I$11498, $F10, INV!$A$3:$A$11498, "<=" & int_Year, INV!$A$3:$A$11498, ">=" & $G$6)))) -> 0 | W10: =IF(I10<>"Clean energy investments", 0, IF(ISNUMBER(FIND("-", $L10)), SUMIFS(INV!$J$3:$J$11498, INV!$E$3:$E$11498, $L10, INV!$A$3:$A$11498, ">="& int_InvStartYear, INV!$A$3:$A$11498, "<="& int_Year-1), SUMIFS(INV!$J$3:$J$11498, INV!$F$3:$F$11498, $L10, INV!$A$3:$A$11498, ">="& int_InvStartYear, INV!$A$3:$A$11498, "<="& int_Year-1))) -> 0 | X10: =IF(I10<>"Clean energy investments", 0, IF(ISNUMBER(FIND("-", $L10)), SUMIFS(INV!$J$3:$J$11498, INV!$E$3:$E$11498, $L10, INV!$A$3:$A$11498, ">="& int_InvStartYear, INV!$A$3:$A$11498, "<="& int_Year), SUMIFS(INV!$J$3:$J$11498, INV!$F$3:$F$11498, $L10, INV!$A$3:$A$11498, ">="& int_InvStartYear, INV!$A$3:$A$11498, "<="& int_Year))) -> 0 | Y10: =C10&" > " &L10 -> 1.01 > Botswana
A11: 1 | B11: =B10+1 -> 2 | C11: =INDEX(DEFN!$A$4:$K$53, MATCH($A11, DEFN!$A$4:$A$53, 0), MATCH(C$9, DEFN!$A$3:$K$3, 0)) -> 1.01 | D11: =INDEX(DEFN!$A$4:$K$53, MATCH($A11, DEFN!$A$4:$A$53, 0), MATCH(D$9, DEFN!$A$3:$K$3, 0)) -> Enabling Framework | E11: =INDEX(DEFN!$A$4:$K$53, MATCH($A11, DEFN!$A$4:$A$53, 0), MATCH(E$9, DEFN!$A$3:$K$3, 0)) -> Policy & Regulation | F11: =INDEX(DEFN!$A$4:$K$53, MATCH($A11, DEFN!$A$4:$A$53, 0), MATCH(F$9, DEFN!$A$3:$K$3, 0)) -> Clean energy policies | G11: =INDEX(DEFN!$A$4:$K$53, MATCH($A11, DEFN!$A$4:$A$53, 0), MATCH(G$9, DEFN!$A$3:$K$3, 0)) -> Both | H11: =INDEX(DEFN!$A$4:$K$53, MATCH($A11, DEFN!$A$4:$A$53, 0), MATCH(H$9, DEFN!$A$3:$K$3, 0)) -> None | I11: =INDEX(DEFN!$A$4:$K$53, MATCH($A11, DEFN!$A$4:$A$53, 0), MATCH(I$9, DEFN!$A$3:$K$3, 0)) -> None | J11: =INDEX(DEFN!$A$4:$K$53, MATCH($A11, DEFN!$A$4:$A$53, 0), MATCH(J$9, DEFN!$A$3:$K$3, 0)) -> Policy Types | K11: =INDEX(DEFN!B$250:B$313, MATCH($B11, DEFN!$A$250:$A$313, 0), 1) -> Africa | L11: =INDEX(DEFN!C$250:C$313, MATCH($B11, DEFN!$A$250:$A$313, 0), 1) -> Cameroon | M11: =INDEX(DEFN!$A$4:$K$53, MATCH($A11, DEFN!$A$4:$A$53, 0), MATCH(M$9, DEFN!$A$3:$K$3, 0)) -> User Defined | N11: =INDEX(DEFN!$A$4:$K$53, MATCH($A11, DEFN!$A$4:$A$53, 0), MATCH(N$9, DEFN!$A$3:$K$3, 0)) -> 5 | O11: =IFERROR(IF($H11="None", 1, IF($H11="All Capacity", SUMIFS(SID!X$3:X$12290, SID!$G$3:$G$12290, "<>Power demand", SID!$K$3:$K$12290, $L11, SID!$I$3:$I$12290, $J11), IF($H11="All Generation", SUMIFS(SID!X$3:X$12290, SID!$K$3:$K$12290, $L11, SID!$I$3:$I$12290, $J11), SUMIFS(SID!X$3:X$12290, SID!$F$3:$F$12290, $H11, SID!$K$3:$K$12290, $L11)))), 1) -> 1 | P11: =IF(ISNUMBER(FIND("Growth", F11)), U11, IF(V11<>0,V11, SUMIFS(SID!X$3:X$12290, SID!$C$3:$C$12290, $C11, SID!$K$3:$K$12290, $L11, SID!$Y$3:$Y$12290, 0))) -> 3 | Q11: 0.96 | R11: =IF(F11<>F10, IFERROR(IF(M11="User Defined", $N11, IF(M11="Min", SMALL(Q11:Q74, COUNTIF(Q11:Q74, 0)+1), IF(M11="Max", MAX(Q11:Q74), IF(M11="Average", AVERAGEIF(Q11:Q74, "<>0"), IF(M11="Total", SUM(Q11:Q74), 0))))), 0),R10) -> 5 | S11: 19.2 | T11: 0.96 | U11: =IF(I11="Clean energy investments", IF(OR(W11=0, X11=0), 0, X11/W11-1), IF(OR(I11="None", SUMIFS(SID!X$3:X$12290, SID!$F$3:$F$12290, I11, SID!$K$3:$K$12290, L11, SID!$Y$3:$Y$12290, 0)=0), 0, IFERROR(SUMIFS(SID!X$3:X$12290, SID!$F$3:$F$12290, I11, SID!$K$3:$K$12290, L11, SID!$Y$3:$Y$12290, 0)/SUMIFS(SID!W$3:W$12290, SID!$F$3:$F$12290, I11, SID!$K$3:$K$12290, L11, SID!$Y$3:$Y$12290, 0) - 1, 0))) -> 0 | V11: =IF(J11<>"USDm", 0, IF(F11="Clean energy investments", IF(ISNUMBER(FIND("-", $L11)), SUMIFS(INV!$J$3:$J$11498, INV!$E$3:$E$11498, $L11, INV!$A$3:$A$11498, "<=" & int_Year, INV!$A$3:$A$11498, ">=" & $G$6), SUMIFS(INV!$J$3:$J$11498, INV!$F$3:$F$11498, $L11, INV!$A$3:$A$11498, "<=" & int_Year, INV!$A$3:$A$11498, ">=" & $G$6)), IF(ISNUMBER(FIND("-", $L11)), SUMIFS(INV!$J$3:$J$11498, INV!$E$3:$E$11498, $L11, INV!$I$3:$I$11498, $F11, INV!$A$3:$A$11498, "<=" & int_Year, INV!$A$3:$A$11498, ">=" & $G$6), SUMIFS(INV!$J$3:$J$11498, INV!$F$3:$F$11498, $L11, INV!$I$3:$I$11498, $F11, INV!$A$3:$A$11498, "<=" & int_Year, INV!$A$3:$A$11498, ">=" & $G$6)))) -> 0 | W11: =IF(I11<>"Clean energy investments", 0, IF(ISNUMBER(FIND("-", $L11)), SUMIFS(INV!$J$3:$J$11498, INV!$E$3:$E$11498, $L11, INV!$A$3:$A$11498, ">="& int_InvStartYear, INV!$A$3:$A$11498, "<="& int_Year-1), SUMIFS(INV!$J$3:$J$11498, INV!$F$3:$F$11498, $L11, INV!$A$3:$A$11498, ">="& int_InvStartYear, INV!$A$3:$A$11498, "<="& int_Year-1))) -> 0 | X11: =IF(I11<>"Clean energy investments", 0, IF(ISNUMBER(FIND("-", $L11)), SUMIFS(INV!$J$3:$J$11498, INV!$E$3:$E$11498, $L11, INV!$A$3:$A$11498, ">="& int_InvStartYear, INV!$A$3:$A$11498, "<="& int_Year), SUMIFS(INV!$J$3:$J$11498, INV!$F$3:$F$11498, $L11, INV!$A$3:$A$11498, ">="& int_InvStartYear, INV!$A$3:$A$11498, "<="& int_Year))) -> 0 | Y11: 1.01 > Cameroon
A12: 1 | B12: =B11+1 -> 3 | C12: =INDEX(DEFN!$A$4:$K$53, MATCH($A12, DEFN!$A$4:$A$53, 0), MATCH(C$9, DEFN!$A$3:$K$3, 0)) -> 1.01 | D12: =INDEX(DEFN!$A$4:$K$53, MATCH($A12, DEFN!$A$4:$A$53, 0), MATCH(D$9, DEFN!$A$3:$K$3, 0)) -> Enabling Framework | E12: =INDEX(DEFN!$A$4:$K$53, MATCH($A12, DEFN!$A$4:$A$53, 0), MATCH(E$9, DEFN!$A$3:$K$3, 0)) -> Policy & Regulation | F12: =INDEX(DEFN!$A$4:$K$53, MATCH($A12, DEFN!$A$4:$A$53, 0), MATCH(F$9, DEFN!$A$3:$K$3, 0)) -> Clean energy policies | G12: =INDEX(DEFN!$A$4:$K$53, MATCH($A12, DEFN!$A$4:$A$53, 0), MATCH(G$9, DEFN!$A$3:$K$3, 0)) -> Both | H12: =INDEX(DEFN!$A$4:$K$53, MATCH($A12, DEFN!$A$4:$A$53, 0), MATCH(H$9, DEFN!$A$3:$K$3, 0)) -> None | I12: =INDEX(DEFN!$A$4:$K$53, MATCH($A12, DEFN!$A$4:$A$53, 0), MATCH(I$9, DEFN!$A$3:$K$3, 0)) -> None | J12: =INDEX(DEFN!$A$4:$K$53, MATCH($A12, DEFN!$A$4:$A$53, 0), MATCH(J$9, DEFN!$A$3:$K$3, 0)) -> Policy Types | K12: =INDEX(DEFN!B$250:B$313, MATCH($B12, DEFN!$A$250:$A$313, 0), 1) -> Africa | L12: =INDEX(DEFN!C$250:C$313, MATCH($B12, DEFN!$A$250:$A$313, 0), 1) -> Congo (Dem. Rep.) | M12: =INDEX(DEFN!$A$4:$K$53, MATCH($A12, DEFN!$A$4:$A$53, 0), MATCH(M$9, DEFN!$A$3:$K$3, 0)) -> User Defined | N12: =INDEX(DEFN!$A$4:$K$53, MATCH($A12, DEFN!$A$4:$A$53, 0), MATCH(N$9, DEFN!$A$3:$K$3, 0)) -> 5 | O12: =IFERROR(IF($H12="None", 1, IF($H12="All Capacity", SUMIFS(SID!X$3:X$12290, SID!$G$3:$G$12290, "<>Power demand", SID!$K$3:$K$12290, $L12, SID!$I$3:$I$12290, $J12), IF($H12="All Generation", SUMIFS(SID!X$3:X$12290, SID!$K$3:$K$12290, $L12, SID!$I$3:$I$12290, $J12), SUMIFS(SID!X$3:X$12290, SID!$F$3:$F$12290, $H12, SID!$K$3:$K$12290, $L12)))), 1) -> 1 | P12: =IF(ISNUMBER(FIND("Growth", F12)), U12, IF(V12<>0,V12, SUMIFS(SID!X$3:X$12290, SID!$C$3:$C$12290, $C12, SID!$K$3:$K$12290, $L12, SID!$Y$3:$Y$12290, 0))) -> 1 | Q12: 0.29 | R12: 5 | S12: 5.8 | T12: 0.29 | U12: =IF(I12="Clean energy investments", IF(OR(W12=0, X12=0), 0, X12/W12-1), IF(OR(I12="None", SUMIFS(SID!X$3:X$12290, SID!$F$3:$F$12290, I12, SID!$K$3:$K$12290, L12, SID!$Y$3:$Y$12290, 0)=0), 0, IFERROR(SUMIFS(SID!X$3:X$12290, SID!$F$3:$F$12290, I12, SID!$K$3:$K$12290, L12, SID!$Y$3:$Y$12290, 0)/SUMIFS(SID!W$3:W$12290, SID!$F$3:$F$12290, I12, SID!$K$3:$K$12290, L12, SID!$Y$3:$Y$12290, 0) - 1, 0))) -> 0 | V12: =IF(J12<>"USDm", 0, IF(F12="Clean energy investments", IF(ISNUMBER(FIND("-", $L12)), SUMIFS(INV!$J$3:$J$11498, INV!$E$3:$E$11498, $L12, INV!$A$3:$A$11498, "<=" & int_Year, INV!$A$3:$A$11498, ">=" & $G$6), SUMIFS(INV!$J$3:$J$11498, INV!$F$3:$F$11498, $L12, INV!$A$3:$A$11498, "<=" & int_Year, INV!$A$3:$A$11498, ">=" & $G$6)), IF(ISNUMBER(FIND("-", $L12)), SUMIFS(INV!$J$3:$J$11498, INV!$E$3:$E$11498, $L12, INV!$I$3:$I$11498, $F12, INV!$A$3:$A$11498, "<=" & int_Year, INV!$A$3:$A$11498, ">=" & $G$6), SUMIFS(INV!$J$3:$J$11498, INV!$F$3:$F$11498, $L12, INV!$I$3:$I$11498, $F12, INV!$A$3:$A$11498, "<=" & int_Year, INV!$A$3:$A$11498, ">=" & $G$6)))) -> 0 | W12: =IF(I12<>"Clean energy investments", 0, IF(ISNUMBER(FIND("-", $L12)), SUMIFS(INV!$J$3:$J$11498, INV!$E$3:$E$11498, $L12, INV!$A$3:$A$11498, ">="& int_InvStartYear, INV!$A$3:$A$11498, "<="& int_Year-1), SUMIFS(INV!$J$3:$J$11498, INV!$F$3:$F$11498, $L12, INV!$A$3:$A$11498, ">="& int_InvStartYear, INV!$A$3:$A$11498, "<="& int_Year-1))) -> 0 | X12: =IF(I12<>"Clean energy investments", 0, IF(ISNUMBER(FIND("-", $L12)), SUMIFS(INV!$J$3:$J$11498, INV!$E$3:$E$11498, $L12, INV!$A$3:$A$11498, ">="& int_InvStartYear, INV!$A$3:$A$11498, "<="& int_Year), SUMIFS(INV!$J$3:$J$11498, INV!$F$3:$F$11498, $L12, INV!$A$3:$A$11498, ">="& int_InvStartYear, INV!$A$3:$A$11498, "<="& int_Year))) -> 0 | Y12: 1.01 > Congo (Dem. Rep.)
A13: 1 | B13: 4 | C13: =INDEX(DEFN!$A$4:$K$53, MATCH($A13, DEFN!$A$4:$A$53, 0), MATCH(C$9, DEFN!$A$3:$K$3, 0)) -> 1.01 | D13: =INDEX(DEFN!$A$4:$K$53, MATCH($A13, DEFN!$A$4:$A$53, 0), MATCH(D$9, DEFN!$A$3:$K$3, 0)) -> Enabling Framework | E13: =INDEX(DEFN!$A$4:$K$53, MATCH($A13, DEFN!$A$4:$A$53, 0), MATCH(E$9, DEFN!$A$3:$K$3, 0)) -> Policy & Regulation | F13: =INDEX(DEFN!$A$4:$K$53, MATCH($A13, DEFN!$A$4:$A$53, 0), MATCH(F$9, DEFN!$A$3:$K$3, 0)) -> Clean energy policies | G13: =INDEX(DEFN!$A$4:$K$53, MATCH($A13, DEFN!$A$4:$A$53, 0), MATCH(G$9, DEFN!$A$3:$K$3, 0)) -> Both | H13: =INDEX(DEFN!$A$4:$K$53, MATCH($A13, DEFN!$A$4:$A$53, 0), MATCH(H$9, DEFN!$A$3:$K$3, 0)) -> None | I13: =INDEX(DEFN!$A$4:$K$53, MATCH($A13, DEFN!$A$4:$A$53, 0), MATCH(I$9, DEFN!$A$3:$K$3, 0)) -> None | J13: =INDEX(DEFN!$A$4:$K$53, MATCH($A13, DEFN!$A$4:$A$53, 0), MATCH(J$9, DEFN!$A$3:$K$3, 0)) -> Policy Types | K13: =INDEX(DEFN!B$250:B$313, MATCH($B13, DEFN!$A$250:$A$313, 0), 1) -> Africa | L13: =INDEX(DEFN!C$250:C$313, MATCH($B13, DEFN!$A$250:$A$313, 0), 1) -> Cote d'Ivoire | M13: =INDEX(DEFN!$A$4:$K$53, MATCH($A13, DEFN!$A$4:$A$53, 0), MATCH(M$9, DEFN!$A$3:$K$3, 0)) -> User Defined | N13: =INDEX(DEFN!$A$4:$K$53, MATCH($A13, DEFN!$A$4:$A$53, 0), MATCH(N$9, DEFN!$A$3:$K$3, 0)) -> 5 | O13: =IFERROR(IF($H13="None", 1, IF($H13="All Capacity", SUMIFS(SID!X$3:X$12290, SID!$G$3:$G$12290, "<>Power demand", SID!$K$3:$K$12290, $L13, SID!$I$3:$I$12290, $J13), IF($H13="All Generation", SUMIFS(SID!X$3:X$12290, SID!$K$3:$K$12290, $L13, SID!$I$3:$I$12290, $J13), SUMIFS(SID!X$3:X$12290, SID!$F$3:$F$12290, $H13, SID!$K$3:$K$12290, $L13)))), 1) -> 1 | P13: =IF(ISNUMBER(FIND("Growth", F13)), U13, IF(V13<>0,V13, SUMIFS(SID!X$3:X$12290, SID!$C$3:$C$12290, $C13, SID!$K$3:$K$12290, $L13, SID!$Y$3:$Y$12290, 0))) -> 2 | Q13: 0.45 | R13: 5 | S13: 9 | T13: 0.45 | U13: =IF(I13="Clean energy investments", IF(OR(W13=0, X13=0), 0, X13/W13-1), IF(OR(I13="None", SUMIFS(SID!X$3:X$12290, SID!$F$3:$F$12290, I13, SID!$K$3:$K$12290, L13, SID!$Y$3:$Y$12290, 0)=0), 0, IFERROR(SUMIFS(SID!X$3:X$12290, SID!$F$3:$F$12290, I13, SID!$K$3:$K$12290, L13, SID!$Y$3:$Y$12290, 0)/SUMIFS(SID!W$3:W$12290, SID!$F$3:$F$12290, I13, SID!$K$3:$K$12290, L13, SID!$Y$3:$Y$12290, 0) - 1, 0))) -> 0 | V13: =IF(J13<>"USDm", 0, IF(F13="Clean energy investments", IF(ISNUMBER(FIND("-", $L13)), SUMIFS(INV!$J$3:$J$11498, INV!$E$3:$E$11498, $L13, INV!$A$3:$A$11498, "<=" & int_Year, INV!$A$3:$A$11498, ">=" & $G$6), SUMIFS(INV!$J$3:$J$11498, INV!$F$3:$F$11498, $L13, INV!$A$3:$A$11498, "<=" & int_Year, INV!$A$3:$A$11498, ">=" & $G$6)), IF(ISNUMBER(FIND("-", $L13)), SUMIFS(INV!$J$3:$J$11498, INV!$E$3:$E$11498, $L13, INV!$I$3:$I$11498, $F13, INV!$A$3:$A$11498, "<=" & int_Year, INV!$A$3:$A$11498, ">=" & $G$6), SUMIFS(INV!$J$3:$J$11498, INV!$F$3:$F$11498, $L13, INV!$I$3:$I$11498, $F13, INV!$A$3:$A$11498, "<=" & int_Year, INV!$A$3:$A$11498, ">=" & $G$6)))) -> 0 | W13: =IF(I13<>"Clean energy investments", 0, IF(ISNUMBER(FIND("-", $L13)), SUMIFS(INV!$J$3:$J$11498, INV!$E$3:$E$11498, $L13, INV!$A$3:$A$11498, ">="& int_InvStartYear, INV!$A$3:$A$11498, "<="& int_Year-1), SUMIFS(INV!$J$3:$J$11498, INV!$F$3:$F$11498, $L13, INV!$A$3:$A$11498, ">="& int_InvStartYear, INV!$A$3:$A$11498, "<="& int_Year-1))) -> 0 | X13: =IF(I13<>"Clean energy investments", 0, IF(ISNUMBER(FIND("-", $L13)), SUMIFS(INV!$J$3:$J$11498, INV!$E$3:$E$11498, $L13, INV!$A$3:$A$11498, ">="& int_InvStartYear, INV!$A$3:$A$11498, "<="& int_Year), SUMIFS(INV!$J$3:$J$11498, INV!$F$3:$F$11498, $L13, INV!$A$3:$A$11498, ">="& int_InvStartYear, INV!$A$3:$A$11498, "<="& int_Year))) -> 0 | Y13: 1.01 > Cote d'Ivoire
A14: 1 | B14: 5 | C14: =INDEX(DEFN!$A$4:$K$53, MATCH($A14, DEFN!$A$4:$A$53, 0), MATCH(C$9, DEFN!$A$3:$K$3, 0)) -> 1.01 | D14: =INDEX(DEFN!$A$4:$K$53, MATCH($A14, DEFN!$A$4:$A$53, 0), MATCH(D$9, DEFN!$A$3:$K$3, 0)) -> Enabling Framework | E14: =INDEX(DEFN!$A$4:$K$53, MATCH($A14, DEFN!$A$4:$A$53, 0), MATCH(E$9, DEFN!$A$3:$K$3, 0)) -> Policy & Regulation | F14: =INDEX(DEFN!$A$4:$K$53, MATCH($A14, DEFN!$A$4:$A$53, 0), MATCH(F$9, DEFN!$A$3:$K$3, 0)) -> Clean energy policies | G14: =INDEX(DEFN!$A$4:$K$53, MATCH($A14, DEFN!$A$4:$A$53, 0), MATCH(G$9, DEFN!$A$3:$K$3, 0)) -> Both | H14: =INDEX(DEFN!$A$4:$K$53, MATCH($A14, DEFN!$A$4:$A$53, 0), MATCH(H$9, DEFN!$A$3:$K$3, 0)) -> None | I14: =INDEX(DEFN!$A$4:$K$53, MATCH($A14, DEFN!$A$4:$A$53, 0), MATCH(I$9, DEFN!$A$3:$K$3, 0)) -> None | J14: =INDEX(DEFN!$A$4:$K$53, MATCH($A14, DEFN!$A$4:$A$53, 0), MATCH(J$9, DEFN!$A$3:$K$3, 0)) -> Policy Types | K14: =INDEX(DEFN!B$250:B$313, MATCH($B14, DEFN!$A$250:$A$313, 0), 1) -> Africa | L14: =INDEX(DEFN!C$250:C$313, MATCH($B14, DEFN!$A$250:$A$313, 0), 1) -> Ethiopia | M14: =INDEX(DEFN!$A$4:$K$53, MATCH($A14, DEFN!$A$4:$A$53, 0), MATCH(M$9, DEFN!$A$3:$K$3, 0)) -> User Defined | N14: =INDEX(DEFN!$A$4:$K$53, MATCH($A14, DEFN!$A$4:$A$53, 0), MATCH(N$9, DEFN!$A$3:$K$3, 0)) -> 5 | O14: =IFERROR(IF($H14="None", 1, IF($H14="All Capacity", SUMIFS(SID!X$3:X$12290, SID!$G$3:$G$12290, "<>Power demand", SID!$K$3:$K$12290, $L14, SID!$I$3:$I$12290, $J14), IF($H14="All Generation", SUMIFS(SID!X$3:X$12290, SID!$K$3:$K$12290, $L14, SID!$I$3:$I$12290, $J14), SUMIFS(SID!X$3:X$12290, SID!$F$3:$F$12290, $H14, SID!$K$3:$K$12290, $L14)))), 1) -> 1 | P14: =IF(ISNUMBER(FIND("Growth", F14)), U14, IF(V14<>0,V14, SUMIFS(SID!X$3:X$12290, SID!$C$3:$C$12290, $C14, SID!$K$3:$K$12290, $L14, SID!$Y$3:$Y$12290, 0))) -> 4 | Q14: 1.35 | R14: 5 | S14: 27 | T14: 1.35 | U14: =IF(I14="Clean energy investments", IF(OR(W14=0, X14=0), 0, X14/W14-1), IF(OR(I14="None", SUMIFS(SID!X$3:X$12290, SID!$F$3:$F$12290, I14, SID!$K$3:$K$12290, L14, SID!$Y$3:$Y$12290, 0)=0), 0, IFERROR(SUMIFS(SID!X$3:X$12290, SID!$F$3:$F$12290, I14, SID!$K$3:$K$12290, L14, SID!$Y$3:$Y$12290, 0)/SUMIFS(SID!W$3:W$12290, SID!$F$3:$F$12290, I14, SID!$K$3:$K$12290, L14, SID!$Y$3:$Y$12290, 0) - 1, 0))) -> 0 | V14: =IF(J14<>"USDm", 0, IF(F14="Clean energy investments", IF(ISNUMBER(FIND("-", $L14)), SUMIFS(INV!$J$3:$J$11498, INV!$E$3:$E$11498, $L14, INV!$A$3:$A$11498, "<=" & int_Year, INV!$A$3:$A$11498, ">=" & $G$6), SUMIFS(INV!$J$3:$J$11498, INV!$F$3:$F$11498, $L14, INV!$A$3:$A$11498, "<=" & int_Year, INV!$A$3:$A$11498, ">=" & $G$6)), IF(ISNUMBER(FIND("-", $L14)), SUMIFS(INV!$J$3:$J$11498, INV!$E$3:$E$11498, $L14, INV!$I$3:$I$11498, $F14, INV!$A$3:$A$11498, "<=" & int_Year, INV!$A$3:$A$11498, ">=" & $G$6), SUMIFS(INV!$J$3:$J$11498, INV!$F$3:$F$11498, $L14, INV!$I$3:$I$11498, $F14, INV!$A$3:$A$11498, "<=" & int_Year, INV!$A$3:$A$11498, ">=" & $G$6)))) -> 0 | W14: =IF(I14<>"Clean energy investments", 0, IF(ISNUMBER(FIND("-", $L14)), SUMIFS(INV!$J$3:$J$11498, INV!$E$3:$E$11498, $L14, INV!$A$3:$A$11498, ">="& int_InvStartYear, INV!$A$3:$A$11498, "<="& int_Year-1), SUMIFS(INV!$J$3:$J$11498, INV!$F$3:$F$11498, $L14, INV!$A$3:$A$11498, ">="& int_InvStartYear, INV!$A$3:$A$11498, "<="& int_Year-1))) -> 0 | X14: =IF(I14<>"Clean energy investments", 0, IF(ISNUMBER(FIND("-", $L14)), SUMIFS(INV!$J$3:$J$11498, INV!$E$3:$E$11498, $L14, INV!$A$3:$A$11498, ">="& int_InvStartYear, INV!$A$3:$A$11498, "<="& int_Year), SUMIFS(INV!$J$3:$J$11498, INV!$F$3:$F$11498, $L14, INV!$A$3:$A$11498, ">="& int_InvStartYear, INV!$A$3:$A$11498, "<="& int_Year))) -> 0 | Y14: 1.01 > Ethiopia
A15: 1 | B15: 6 | C15: =INDEX(DEFN!$A$4:$K$53, MATCH($A15, DEFN!$A$4:$A$53, 0), MATCH(C$9, DEFN!$A$3:$K$3, 0)) -> 1.01 | D15: =INDEX(DEFN!$A$4:$K$53, MATCH($A15, DEFN!$A$4:$A$53, 0), MATCH(D$9, DEFN!$A$3:$K$3, 0)) -> Enabling Framework | E15: =INDEX(DEFN!$A$4:$K$53, MATCH($A15, DEFN!$A$4:$A$53, 0), MATCH(E$9, DEFN!$A$3:$K$3, 0)) -> Policy & Regulation | F15: =INDEX(DEFN!$A$4:$K$53, MATCH($A15, DEFN!$A$4:$A$53, 0), MATCH(F$9, DEFN!$A$3:$K$3, 0)) -> Clean energy policies | G15: =INDEX(DEFN!$A$4:$K$53, MATCH($A15, DEFN!$A$4:$A$53, 0), MATCH(G$9, DEFN!$A$3:$K$3, 0)) -> Both | H15: =INDEX(DEFN!$A$4:$K$53, MATCH($A15, DEFN!$A$4:$A$53, 0), MATCH(H$9, DEFN!$A$3:$K$3, 0)) -> None | I15: =INDEX(DEFN!$A$4:$K$53, MATCH($A15, DEFN!$A$4:$A$53, 0), MATCH(I$9, DEFN!$A$3:$K$3, 0)) -> None | J15: =INDEX(DEFN!$A$4:$K$53, MATCH($A15, DEFN!$A$4:$A$53, 0), MATCH(J$9, DEFN!$A$3:$K$3, 0)) -> Policy Types | K15: =INDEX(DEFN!B$250:B$313, MATCH($B15, DEFN!$A$250:$A$313, 0), 1) -> Africa | L15: =INDEX(DEFN!C$250:C$313, MATCH($B15, DEFN!$A$250:$A$313, 0), 1) -> Ghana | M15: =INDEX(DEFN!$A$4:$K$53, MATCH($A15, DEFN!$A$4:$A$53, 0), MATCH(M$9, DEFN!$A$3:$K$3, 0)) -> User Defined | N15: =INDEX(DEFN!$A$4:$K$53, MATCH($A15, DEFN!$A$4:$A$53, 0), MATCH(N$9, DEFN!$A$3:$K$3, 0)) -> 5 | O15: =IFERROR(IF($H15="None", 1, IF($H15="All Capacity", SUMIFS(SID!X$3:X$12290, SID!$G$3:$G$12290, "<>Power demand", SID!$K$3:$K$12290, $L15, SID!$I$3:$I$12290, $J15), IF($H15="All Generation", SUMIFS(SID!X$3:X$12290, SID!$K$3:$K$12290, $L15, SID!$I$3:$I$12290, $J15), SUMIFS(SID!X$3:X$12290, SID!$F$3:$F$12290, $H15, SID!$K$3:$K$12290, $L15)))), 1) -> 1 | P15: =IF(ISNUMBER(FIND("Growth", F15)), U15, IF(V15<>0,V15, SUMIFS(SID!X$3:X$12290, SID!$C$3:$C$12290, $C15, SID!$K$3:$K$12290, $L15, SID!$Y$3:$Y$12290, 0))) -> 3 | Q15: 1.18 | R15: 5 | S15: 23.6 | T15: 1.18 | U15: =IF(I15="Clean energy investments", IF(OR(W15=0, X15=0), 0, X15/W15-1), IF(OR(I15="None", SUMIFS(SID!X$3:X$12290, SID!$F$3:$F$12290, I15, SID!$K$3:$K$12290, L15, SID!$Y$3:$Y$12290, 0)=0), 0, IFERROR(SUMIFS(SID!X$3:X$12290, SID!$F$3:$F$12290, I15, SID!$K$3:$K$12290, L15, SID!$Y$3:$Y$12290, 0)/SUMIFS(SID!W$3:W$12290, SID!$F$3:$F$12290, I15, SID!$K$3:$K$12290, L15, SID!$Y$3:$Y$12290, 0) - 1, 0))) -> 0 | V15: =IF(J15<>"USDm", 0, IF(F15="Clean energy investments", IF(ISNUMBER(FIND("-", $L15)), SUMIFS(INV!$J$3:$J$11498, INV!$E$3:$E$11498, $L15, INV!$A$3:$A$11498, "<=" & int_Year, INV!$A$3:$A$11498, ">=" & $G$6), SUMIFS(INV!$J$3:$J$11498, INV!$F$3:$F$11498, $L15, INV!$A$3:$A$11498, "<=" & int_Year, INV!$A$3:$A$11498, ">=" & $G$6)), IF(ISNUMBER(FIND("-", $L15)), SUMIFS(INV!$J$3:$J$11498, INV!$E$3:$E$11498, $L15, INV!$I$3:$I$11498, $F15, INV!$A$3:$A$11498, "<=" & int_Year, INV!$A$3:$A$11498, ">=" & $G$6), SUMIFS(INV!$J$3:$J$11498, INV!$F$3:$F$11498, $L15, INV!$I$3:$I$11498, $F15, INV!$A$3:$A$11498, "<=" & int_Year, INV!$A$3:$A$11498, ">=" & $G$6)))) -> 0 | W15: =IF(I15<>"Clean energy investments", 0, IF(ISNUMBER(FIND("-", $L15)), SUMIFS(INV!$J$3:$J$11498, INV!$E$3:$E$11498, $L15, INV!$A$3:$A$11498, ">="& int_InvStartYear, INV!$A$3:$A$11498, "<="& int_Year-1), SUMIFS(INV!$J$3:$J$11498, INV!$F$3:$F$11498, $L15, INV!$A$3:$A$11498, ">="& int_InvStartYear, INV!$A$3:$A$11498, "<="& int_Year-1))) -> 0 | X15: =IF(I15<>"Clean energy investments", 0, IF(ISNUMBER(FIND("-", $L15)), SUMIFS(INV!$J$3:$J$11498, INV!$E$3:$E$11498, $L15, INV!$A$3:$A$11498, ">="& int_InvStartYear, INV!$A$3:$A$11498, "<="& int_Year), SUMIFS(INV!$J$3:$J$11498, INV!$F$3:$F$11498, $L15, INV!$A$3:$A$11498, ">="& int_InvStartYear, INV!$A$3:$A$11498, "<="& int_Year))) -> 0 | Y15: 1.01 > Ghana
A16: 1 | B16: 7 | C16: =INDEX(DEFN!$A$4:$K$53, MATCH($A16, DEFN!$A$4:$A$53, 0), MATCH(C$9, DEFN!$A$3:$K$3, 0)) -> 1.01 | D16: =INDEX(DEFN!$A$4:$K$53, MATCH($A16, DEFN!$A$4:$A$53, 0), MATCH(D$9, DEFN!$A$3:$K$3, 0)) -> Enabling Framework | E16: =INDEX(DEFN!$A$4:$K$53, MATCH($A16, DEFN!$A$4:$A$53, 0), MATCH(E$9, DEFN!$A$3:$K$3, 0)) -> Policy & Regulation | F16: =INDEX(DEFN!$A$4:$K$53, MATCH($A16, DEFN!$A$4:$A$53, 0), MATCH(F$9, DEFN!$A$3:$K$3, 0)) -> Clean energy policies | G16: =INDEX(DEFN!$A$4:$K$53, MATCH($A16, DEFN!$A$4:$A$53, 0), MATCH(G$9, DEFN!$A$3:$K$3, 0)) -> Both | H16: =INDEX(DEFN!$A$4:$K$53, MATCH($A16, DEFN!$A$4:$A$53, 0), MATCH(H$9, DEFN!$A$3:$K$3, 0)) -> None | I16: =INDEX(DEFN!$A$4:$K$53, MATCH($A16, DEFN!$A$4:$A$53, 0), MATCH(I$9, DEFN!$A$3:$K$3, 0)) -> None | J16: =INDEX(DEFN!$A$4:$K$53, MATCH($A16, DEFN!$A$4:$A$53, 0), MATCH(J$9, DEFN!$A$3:$K$3, 0)) -> Policy Types | K16: =INDEX(DEFN!B$250:B$313, MATCH($B16, DEFN!$A$250:$A$313, 0), 1) -> Africa | L16: =INDEX(DEFN!C$250:C$313, MATCH($B16, DEFN!$A$250:$A$313, 0), 1) -> Kenya | M16: =INDEX(DEFN!$A$4:$K$53, MATCH($A16, DEFN!$A$4:$A$53, 0), MATCH(M$9, DEFN!$A$3:$K$3, 0)) -> User Defined | N16: =INDEX(DEFN!$A$4:$K$53, MATCH($A16, DEFN!$A$4:$A$53, 0), MATCH(N$9, DEFN!$A$3:$K$3, 0)) -> 5 | O16: =IFERROR(IF($H16="None", 1, IF($H16="All Capacity", SUMIFS(SID!X$3:X$12290, SID!$G$3:$G$12290, "<>Power demand", SID!$K$3:$K$12290, $L16, SID!$I$3:$I$12290, $J16), IF($H16="All Generation", SUMIFS(SID!X$3:X$12290, SID!$K$3:$K$12290, $L16, SID!$I$3:$I$12290, $J16), SUMIFS(SID!X$3:X$12290, SID!$F$3:$F$12290, $H16, SID!$K$3:$K$12290, $L16)))), 1) -> 1 | P16: =IF(ISNUMBER(FIND("Growth", F16)), U16, IF(V16<>0,V16, SUMIFS(SID!X$3:X$12290, SID!$C$3:$C$12290, $C16, SID!$K$3:$K$12290, $L16, SID!$Y$3:$Y$12290, 0))) -> 4 | Q16: 1.28 | R16: 5 | S16: 25.6 | T16: 1.28 | U16: =IF(I16="Clean energy investments", IF(OR(W16=0, X16=0), 0, X16/W16-1), IF(OR(I16="None", SUMIFS(SID!X$3:X$12290, SID!$F$3:$F$12290, I16, SID!$K$3:$K$12290, L16, SID!$Y$3:$Y$12290, 0)=0), 0, IFERROR(SUMIFS(SID!X$3:X$12290, SID!$F$3:$F$12290, I16, SID!$K$3:$K$12290, L16, SID!$Y$3:$Y$12290, 0)/SUMIFS(SID!W$3:W$12290, SID!$F$3:$F$12290, I16, SID!$K$3:$K$12290, L16, SID!$Y$3:$Y$12290, 0) - 1, 0))) -> 0 | V16: =IF(J16<>"USDm", 0, IF(F16="Clean energy investments", IF(ISNUMBER(FIND("-", $L16)), SUMIFS(INV!$J$3:$J$11498, INV!$E$3:$E$11498, $L16, INV!$A$3:$A$11498, "<=" & int_Year, INV!$A$3:$A$11498, ">=" & $G$6), SUMIFS(INV!$J$3:$J$11498, INV!$F$3:$F$11498, $L16, INV!$A$3:$A$11498, "<=" & int_Year, INV!$A$3:$A$11498, ">=" & $G$6)), IF(ISNUMBER(FIND("-", $L16)), SUMIFS(INV!$J$3:$J$11498, INV!$E$3:$E$11498, $L16, INV!$I$3:$I$11498, $F16, INV!$A$3:$A$11498, "<=" & int_Year, INV!$A$3:$A$11498, ">=" & $G$6), SUMIFS(INV!$J$3:$J$11498, INV!$F$3:$F$11498, $L16, INV!$I$3:$I$11498, $F16, INV!$A$3:$A$11498, "<=" & int_Year, INV!$A$3:$A$11498, ">=" & $G$6)))) -> 0 | W16: =IF(I16<>"Clean energy investments", 0, IF(ISNUMBER(FIND("-", $L16)), SUMIFS(INV!$J$3:$J$11498, INV!$E$3:$E$11498, $L16, INV!$A$3:$A$11498, ">="& int_InvStartYear, INV!$A$3:$A$11498, "<="& int_Year-1), SUMIFS(INV!$J$3:$J$11498, INV!$F$3:$F$11498, $L16, INV!$A$3:$A$11498, ">="& int_InvStartYear, INV!$A$3:$A$11498, "<="& int_Year-1))) -> 0 | X16: =IF(I16<>"Clean energy investments", 0, IF(ISNUMBER(FIND("-", $L16)), SUMIFS(INV!$J$3:$J$11498, INV!$E$3:$E$11498, $L16, INV!$A$3:$A$11498, ">="& int_InvStartYear, INV!$A$3:$A$11498, "<="& int_Year), SUMIFS(INV!$J$3:$J$11498, INV!$F$3:$F$11498, $L16, INV!$A$3:$A$11498, ">="& int_InvStartYear, INV!$A$3:$A$11498, "<="& int_Year))) -> 0 | Y16: 1.01 > Kenya
A17: 1 | B17: 8 | C17: =INDEX(DEFN!$A$4:$K$53, MATCH($A17, DEFN!$A$4:$A$53, 0), MATCH(C$9, DEFN!$A$3:$K$3, 0)) -> 1.01 | D17: =INDEX(DEFN!$A$4:$K$53, MATCH($A17, DEFN!$A$4:$A$53, 0), MATCH(D$9, DEFN!$A$3:$K$3, 0)) -> Enabling Framework | E17: =INDEX(DEFN!$A$4:$K$53, MATCH($A17, DEFN!$A$4:$A$53, 0), MATCH(E$9, DEFN!$A$3:$K$3, 0)) -> Policy & Regulation | F17: =INDEX(DEFN!$A$4:$K$53, MATCH($A17, DEFN!$A$4:$A$53, 0), MATCH(F$9, DEFN!$A$3:$K$3, 0)) -> Clean energy policies | G17: =INDEX(DEFN!$A$4:$K$53, MATCH($A17, DEFN!$A$4:$A$53, 0), MATCH(G$9, DEFN!$A$3:$K$3, 0)) -> Both | H17: =INDEX(DEFN!$A$4:$K$53, MATCH($A17, DEFN!$A$4:$A$53, 0), MATCH(H$9, DEFN!$A$3:$K$3, 0)) -> None | I17: =INDEX(DEFN!$A$4:$K$53, MATCH($A17, DEFN!$A$4:$A$53, 0), MATCH(I$9, DEFN!$A$3:$K$3, 0)) -> None | J17: =INDEX(DEFN!$A$4:$K$53, MATCH($A17, DEFN!$A$4:$A$53, 0), MATCH(J$9, DEFN!$A$3:$K$3, 0)) -> Policy Types | K17: =INDEX(DEFN!B$250:B$313, MATCH($B17, DEFN!$A$250:$A$313, 0), 1) -> Africa | L17: =INDEX(DEFN!C$250:C$313, MATCH($B17, DEFN!$A$250:$A$313, 0), 1) -> Liberia | M17: =INDEX(DEFN!$A$4:$K$53, MATCH($A17, DEFN!$A$4:$A$53, 0), MATCH(M$9, DEFN!$A$3:$K$3, 0)) -> User Defined | N17: =INDEX(DEFN!$A$4:$K$53, MATCH($A17, DEFN!$A$4:$A$53, 0), MATCH(N$9, DEFN!$A$3:$K$3, 0)) -> 5 | O17: =IFERROR(IF($H17="None", 1, IF($H17="All Capacity", SUMIFS(SID!X$3:X$12290, SID!$G$3:$G$12290, "<>Power demand", SID!$K$3:$K$12290, $L17, SID!$I$3:$I$12290, $J17), IF($H17="All Generation", SUMIFS(SID!X$3:X$12290, SID!$K$3:$K$12290, $L17, SID!$I$3:$I$12290, $J17), SUMIFS(SID!X$3:X$12290, SID!$F$3:$F$12290, $H17, SID!$K$3:$K$12290, $L17)))), 1) -> 1 | P17: =IF(ISNUMBER(FIND("Growth", F17)), U17, IF(V17<>0,V17, SUMIFS(SID!X$3:X$12290, SID!$C$3:$C$12290, $C17, SID!$K$3:$K$12290, $L17, SID!$Y$3:$Y$12290, 0))) -> 3 | Q17: 0.98 | R17: 5 | S17: 19.6 | T17: 0.98 | U17: =IF(I17="Clean energy investments", IF(OR(W17=0, X17=0), 0, X17/W17-1), IF(OR(I17="None", SUMIFS(SID!X$3:X$12290, SID!$F$3:$F$12290, I17, SID!$K$3:$K$12290, L17, SID!$Y$3:$Y$12290, 0)=0), 0, IFERROR(SUMIFS(SID!X$3:X$12290, SID!$F$3:$F$12290, I17, SID!$K$3:$K$12290, L17, SID!$Y$3:$Y$12290, 0)/SUMIFS(SID!W$3:W$12290, SID!$F$3:$F$12290, I17, SID!$K$3:$K$12290, L17, SID!$Y$3:$Y$12290, 0) - 1, 0))) -> 0 | V17: =IF(J17<>"USDm", 0, IF(F17="Clean energy investments", IF(ISNUMBER(FIND("-", $L17)), SUMIFS(INV!$J$3:$J$11498, INV!$E$3:$E$11498, $L17, INV!$A$3:$A$11498, "<=" & int_Year, INV!$A$3:$A$11498, ">=" & $G$6), SUMIFS(INV!$J$3:$J$11498, INV!$F$3:$F$11498, $L17, INV!$A$3:$A$11498, "<=" & int_Year, INV!$A$3:$A$11498, ">=" & $G$6)), IF(ISNUMBER(FIND("-", $L17)), SUMIFS(INV!$J$3:$J$11498, INV!$E$3:$E$11498, $L17, INV!$I$3:$I$11498, $F17, INV!$A$3:$A$11498, "<=" & int_Year, INV!$A$3:$A$11498, ">=" & $G$6), SUMIFS(INV!$J$3:$J$11498, INV!$F$3:$F$11498, $L17, INV!$I$3:$I$11498, $F17, INV!$A$3:$A$11498, "<=" & int_Year, INV!$A$3:$A$11498, ">=" & $G$6)))) -> 0 | W17: =IF(I17<>"Clean energy investments", 0, IF(ISNUMBER(FIND("-", $L17)), SUMIFS(INV!$J$3:$J$11498, INV!$E$3:$E$11498, $L17, INV!$A$3:$A$11498, ">="& int_InvStartYear, INV!$A$3:$A$11498, "<="& int_Year-1), SUMIFS(INV!$J$3:$J$11498, INV!$F$3:$F$11498, $L17, INV!$A$3:$A$11498, ">="& int_InvStartYear, INV!$A$3:$A$11498, "<="& int_Year-1))) -> 0 | X17: =IF(I17<>"Clean energy investments", 0, IF(ISNUMBER(FIND("-", $L17)), SUMIFS(INV!$J$3:$J$11498, INV!$E$3:$E$11498, $L17, INV!$A$3:$A$11498, ">="& int_InvStartYear, INV!$A$3:$A$11498, "<="& int_Year), SUMIFS(INV!$J$3:$J$11498, INV!$F$3:$F$11498, $L17, INV!$A$3:$A$11498, ">="& int_InvStartYear, INV!$A$3:$A$11498, "<="& int_Year))) -> 0 | Y17: 1.01 > Liberia
A18: 1 | B18: 9 | C18: =INDEX(DEFN!$A$4:$K$53, MATCH($A18, DEFN!$A$4:$A$53, 0), MATCH(C$9, DEFN!$A$3:$K$3, 0)) -> 1.01 | D18: =INDEX(DEFN!$A$4:$K$53, MATCH($A18, DEFN!$A$4:$A$53, 0), MATCH(D$9, DEFN!$A$3:$K$3, 0)) -> Enabling Framework | E18: =INDEX(DEFN!$A$4:$K$53, MATCH($A18, DEFN!$A$4:$A$53, 0), MATCH(E$9, DEFN!$A$3:$K$3, 0)) -> Policy & Regulation | F18: =INDEX(DEFN!$A$4:$K$53, MATCH($A18, DEFN!$A$4:$A$53, 0), MATCH(F$9, DEFN!$A$3:$K$3, 0)) -> Clean energy policies | G18: =INDEX(DEFN!$A$4:$K$53, MATCH($A18, DEFN!$A$4:$A$53, 0), MATCH(G$9, DEFN!$A$3:$K$3, 0)) -> Both | H18: =INDEX(DEFN!$A$4:$K$53, MATCH($A18, DEFN!$A$4:$A$53, 0), MATCH(H$9, DEFN!$A$3:$K$3, 0)) -> None | I18: =INDEX(DEFN!$A$4:$K$53, MATCH($A18, DEFN!$A$4:$A$53, 0), MATCH(I$9, DEFN!$A$3:$K$3, 0)) -> None | J18: =INDEX(DEFN!$A$4:$K$53, MATCH($A18, DEFN!$A$4:$A$53, 0), MATCH(J$9, DEFN!$A$3:$K$3, 0)) -> Policy Types | K18: =INDEX(DEFN!B$250:B$313, MATCH($B18, DEFN!$A$250:$A$313, 0), 1) -> Africa | L18: =INDEX(DEFN!C$250:C$313, MATCH($B18, DEFN!$A$250:$A$313, 0), 1) -> Malawi | M18: =INDEX(DEFN!$A$4:$K$53, MATCH($A18, DEFN!$A$4:$A$53, 0), MATCH(M$9, DEFN!$A$3:$K$3, 0)) -> User Defined | N18: =INDEX(DEFN!$A$4:$K$53, MATCH($A18, DEFN!$A$4:$A$53, 0), MATCH(N$9, DEFN!$A$3:$K$3, 0)) -> 5 | O18: =IFERROR(IF($H18="None", 1, IF($H18="All Capacity", SUMIFS(SID!X$3:X$12290, SID!$G$3:$G$12290, "<>Power demand", SID!$K$3:$K$12290, $L18, SID!$I$3:$I$12290, $J18), IF($H18="All Generation", SUMIFS(SID!X$3:X$12290, SID!$K$3:$K$12290, $L18, SID!$I$3:$I$12290, $J18), SUMIFS(SID!X$3:X$12290, SID!$F$3:$F$12290, $H18, SID!$K$3:$K$12290, $L18)))), 1) -> 1 | P18: =IF(ISNUMBER(FIND("Growth", F18)), U18, IF(V18<>0,V18, SUMIFS(SID!X$3:X$12290, SID!$C$3:$C$12290, $C18, SID!$K$3:$K$12290, $L18, SID!$Y$3:$Y$12290, 0))) -> 4 | Q18: 1.14 | R18: 5 | S18: 22.8 | T18: 1.14 | U18: =IF(I18="Clean energy investments", IF(OR(W18=0, X18=0), 0, X18/W18-1), IF(OR(I18="None", SUMIFS(SID!X$3:X$12290, SID!$F$3:$F$12290, I18, SID!$K$3:$K$12290, L18, SID!$Y$3:$Y$12290, 0)=0), 0, IFERROR(SUMIFS(SID!X$3:X$12290, SID!$F$3:$F$12290, I18, SID!$K$3:$K$12290, L18, SID!$Y$3:$Y$12290, 0)/SUMIFS(SID!W$3:W$12290, SID!$F$3:$F$12290, I18, SID!$K$3:$K$12290, L18, SID!$Y$3:$Y$12290, 0) - 1, 0))) -> 0 | V18: =IF(J18<>"USDm", 0, IF(F18="Clean energy investments", IF(ISNUMBER(FIND("-", $L18)), SUMIFS(INV!$J$3:$J$11498, INV!$E$3:$E$11498, $L18, INV!$A$3:$A$11498, "<=" & int_Year, INV!$A$3:$A$11498, ">=" & $G$6), SUMIFS(INV!$J$3:$J$11498, INV!$F$3:$F$11498, $L18, INV!$A$3:$A$11498, "<=" & int_Year, INV!$A$3:$A$11498, ">=" & $G$6)), IF(ISNUMBER(FIND("-", $L18)), SUMIFS(INV!$J$3:$J$11498, INV!$E$3:$E$11498, $L18, INV!$I$3:$I$11498, $F18, INV!$A$3:$A$11498, "<=" & int_Year, INV!$A$3:$A$11498, ">=" & $G$6), SUMIFS(INV!$J$3:$J$11498, INV!$F$3:$F$11498, $L18, INV!$I$3:$I$11498, $F18, INV!$A$3:$A$11498, "<=" & int_Year, INV!$A$3:$A$11498, ">=" & $G$6)))) -> 0 | W18: =IF(I18<>"Clean energy investments", 0, IF(ISNUMBER(FIND("-", $L18)), SUMIFS(INV!$J$3:$J$11498, INV!$E$3:$E$11498, $L18, INV!$A$3:$A$11498, ">="& int_InvStartYear, INV!$A$3:$A$11498, "<="& int_Year-1), SUMIFS(INV!$J$3:$J$11498, INV!$F$3:$F$11498, $L18, INV!$A$3:$A$11498, ">="& int_InvStartYear, INV!$A$3:$A$11498, "<="& int_Year-1))) -> 0 | X18: =IF(I18<>"Clean energy investments", 0, IF(ISNUMBER(FIND("-", $L18)), SUMIFS(INV!$J$3:$J$11498, INV!$E$3:$E$11498, $L18, INV!$A$3:$A$11498, ">="& int_InvStartYear, INV!$A$3:$A$11498, "<="& int_Year), SUMIFS(INV!$J$3:$J$11498, INV!$F$3:$F$11498, $L18, INV!$A$3:$A$11498, ">="& int_InvStartYear, INV!$A$3:$A$11498, "<="& int_Year))) -> 0 | Y18: 1.01 > Malawi
A19: 1 | B19: 10 | C19: =INDEX(DEFN!$A$4:$K$53, MATCH($A19, DEFN!$A$4:$A$53, 0), MATCH(C$9, DEFN!$A$3:$K$3, 0)) -> 1.01 | D19: =INDEX(DEFN!$A$4:$K$53, MATCH($A19, DEFN!$A$4:$A$53, 0), MATCH(D$9, DEFN!$A$3:$K$3, 0)) -> Enabling Framework | E19: =INDEX(DEFN!$A$4:$K$53, MATCH($A19, DEFN!$A$4:$A$53, 0), MATCH(E$9, DEFN!$A$3:$K$3, 0)) -> Policy & Regulation | F19: =INDEX(DEFN!$A$4:$K$53, MATCH($A19, DEFN!$A$4:$A$53, 0), MATCH(F$9, DEFN!$A$3:$K$3, 0)) -> Clean energy policies | G19: =INDEX(DEFN!$A$4:$K$53, MATCH($A19, DEFN!$A$4:$A$53, 0), MATCH(G$9, DEFN!$A$3:$K$3, 0)) -> Both | H19: =INDEX(DEFN!$A$4:$K$53, MATCH($A19, DEFN!$A$4:$A$53, 0), MATCH(H$9, DEFN!$A$3:$K$3, 0)) -> None | I19: =INDEX(DEFN!$A$4:$K$53, MATCH($A19, DEFN!$A$4:$A$53, 0), MATCH(I$9, DEFN!$A$3:$K$3, 0)) -> None | J19: =INDEX(DEFN!$A$4:$K$53, MATCH($A19, DEFN!$A$4:$A$53, 0), MATCH(J$9, DEFN!$A$3:$K$3, 0)) -> Policy Types | K19: =INDEX(DEFN!B$250:B$313, MATCH($B19, DEFN!$A$250:$A$313, 0), 1) -> Africa | L19: =INDEX(DEFN!C$250:C$313, MATCH($B19, DEFN!$A$250:$A$313, 0), 1) -> Mozambique | M19: =INDEX(DEFN!$A$4:$K$53, MATCH($A19, DEFN!$A$4:$A$53, 0), MATCH(M$9, DEFN!$A$3:$K$3, 0)) -> User Defined | N19: =INDEX(DEFN!$A$4:$K$53, MATCH($A19, DEFN!$A$4:$A$53, 0), MATCH(N$9, DEFN!$A$3:$K$3, 0)) -> 5 | O19: =IFERROR(IF($H19="None", 1, IF($H19="All Capacity", SUMIFS(SID!X$3:X$12290, SID!$G$3:$G$12290, "<>Power demand", SID!$K$3:$K$12290, $L19, SID!$I$3:$I$12290, $J19), IF($H19="All Generation", SUMIFS(SID!X$3:X$12290, SID!$K$3:$K$12290, $L19, SID!$I$3:$I$12290, $J19), SUMIFS(SID!X$3:X$12290, SID!$F$3:$F$12290, $H19, SID!$K$3:$K$12290, $L19)))), 1) -> 1 | P19: =IF(ISNUMBER(FIND("Growth", F19)), U19, IF(V19<>0,V19, SUMIFS(SID!X$3:X$12290, SID!$C$3:$C$12290, $C19, SID!$K$3:$K$12290, $L19, SID!$Y$3:$Y$12290, 0))) -> 3 | Q19: 0.99 | R19: 5 | S19: 19.8 | T19: 0.99 | U19: =IF(I19="Clean energy investments", IF(OR(W19=0, X19=0), 0, X19/W19-1), IF(OR(I19="None", SUMIFS(SID!X$3:X$12290, SID!$F$3:$F$12290, I19, SID!$K$3:$K$12290, L19, SID!$Y$3:$Y$12290, 0)=0), 0, IFERROR(SUMIFS(SID!X$3:X$12290, SID!$F$3:$F$12290, I19, SID!$K$3:$K$12290, L19, SID!$Y$3:$Y$12290, 0)/SUMIFS(SID!W$3:W$12290, SID!$F$3:$F$12290, I19, SID!$K$3:$K$12290, L19, SID!$Y$3:$Y$12290, 0) - 1, 0))) -> 0 | V19: =IF(J19<>"USDm", 0, IF(F19="Clean energy investments", IF(ISNUMBER(FIND("-", $L19)), SUMIFS(INV!$J$3:$J$11498, INV!$E$3:$E$11498, $L19, INV!$A$3:$A$11498, "<=" & int_Year, INV!$A$3:$A$11498, ">=" & $G$6), SUMIFS(INV!$J$3:$J$11498, INV!$F$3:$F$11498, $L19, INV!$A$3:$A$11498, "<=" & int_Year, INV!$A$3:$A$11498, ">=" & $G$6)), IF(ISNUMBER(FIND("-", $L19)), SUMIFS(INV!$J$3:$J$11498, INV!$E$3:$E$11498, $L19, INV!$I$3:$I$11498, $F19, INV!$A$3:$A$11498, "<=" & int_Year, INV!$A$3:$A$11498, ">=" & $G$6), SUMIFS(INV!$J$3:$J$11498, INV!$F$3:$F$11498, $L19, INV!$I$3:$I$11498, $F19, INV!$A$3:$A$11498, "<=" & int_Year, INV!$A$3:$A$11498, ">=" & $G$6)))) -> 0 | W19: =IF(I19<>"Clean energy investments", 0, IF(ISNUMBER(FIND("-", $L19)), SUMIFS(INV!$J$3:$J$11498, INV!$E$3:$E$11498, $L19, INV!$A$3:$A$11498, ">="& int_InvStartYear, INV!$A$3:$A$11498, "<="& int_Year-1), SUMIFS(INV!$J$3:$J$11498, INV!$F$3:$F$11498, $L19, INV!$A$3:$A$11498, ">="& int_InvStartYear, INV!$A$3:$A$11498, "<="& int_Year-1))) -> 0 | X19: =IF(I19<>"Clean energy investments", 0, IF(ISNUMBER(FIND("-", $L19)), SUMIFS(INV!$J$3:$J$11498, INV!$E$3:$E$11498, $L19, INV!$A$3:$A$11498, ">="& int_InvStartYear, INV!$A$3:$A$11498, "<="& int_Year), SUMIFS(INV!$J$3:$J$11498, INV!$F$3:$F$11498, $L19, INV!$A$3:$A$11498, ">="& int_InvStartYear, INV!$A$3:$A$11498, "<="& int_Year))) -> 0 | Y19: 1.01 > Mozambique
A20: 1 | B20: 11 | C20: =INDEX(DEFN!$A$4:$K$53, MATCH($A20, DEFN!$A$4:$A$53, 0), MATCH(C$9, DEFN!$A$3:$K$3, 0)) -> 1.01 | D20: =INDEX(DEFN!$A$4:$K$53, MATCH($A20, DEFN!$A$4:$A$53, 0), MATCH(D$9, DEFN!$A$3:$K$3, 0)) -> Enabling Framework | E20: =INDEX(DEFN!$A$4:$K$53, MATCH($A20, DEFN!$A$4:$A$53, 0), MATCH(E$9, DEFN!$A$3:$K$3, 0)) -> Policy & Regulation | F20: =INDEX(DEFN!$A$4:$K$53, MATCH($A20, DEFN!$A$4:$A$53, 0), MATCH(F$9, DEFN!$A$3:$K$3, 0)) -> Clean energy policies | G20: =INDEX(DEFN!$A$4:$K$53, MATCH($A20, DEFN!$A$4:$A$53, 0), MATCH(G$9, DEFN!$A$3:$K$3, 0)) -> Both | H20: =INDEX(DEFN!$A$4:$K$53, MATCH($A20, DEFN!$A$4:$A$53, 0), MATCH(H$9, DEFN!$A$3:$K$3, 0)) -> None | I20: =INDEX(DEFN!$A$4:$K$53, MATCH($A20, DEFN!$A$4:$A$53, 0), MATCH(I$9, DEFN!$A$3:$K$3, 0)) -> None | J20: =INDEX(DEFN!$A$4:$K$53, MATCH($A20, DEFN!$A$4:$A$53, 0), MATCH(J$9, DEFN!$A$3:$K$3, 0)) -> Policy Types | K20: =INDEX(DEFN!B$250:B$313, MATCH($B20, DEFN!$A$250:$A$313, 0), 1) -> Africa | L20: =INDEX(DEFN!C$250:C$313, MATCH($B20, DEFN!$A$250:$A$313, 0), 1) -> Nigeria | M20: =INDEX(DEFN!$A$4:$K$53, MATCH($A20, DEFN!$A$4:$A$53, 0), MATCH(M$9, DEFN!$A$3:$K$3, 0)) -> User Defined | N20: =INDEX(DEFN!$A$4:$K$53, MATCH($A20, DEFN!$A$4:$A$53, 0), MATCH(N$9, DEFN!$A$3:$K$3, 0)) -> 5 | O20: =IFERROR(IF($H20="None", 1, IF($H20="All Capacity", SUMIFS(SID!X$3:X$12290, SID!$G$3:$G$12290, "<>Power demand", SID!$K$3:$K$12290, $L20, SID!$I$3:$I$12290, $J20), IF($H20="All Generation", SUMIFS(SID!X$3:X$12290, SID!$K$3:$K$12290, $L20, SID!$I$3:$I$12290, $J20), SUMIFS(SID!X$3:X$12290, SID!$F$3:$F$12290, $H20, SID!$K$3:$K$12290, $L20)))), 1) -> 1 | P20: =IF(ISNUMBER(FIND("Growth", F20)), U20, IF(V20<>0,V20, SUMIFS(SID!X$3:X$12290, SID!$C$3:$C$12290, $C20, SID!$K$3:$K$12290, $L20, SID!$Y$3:$Y$12290, 0))) -> 6 | Q20: 1.66 | R20: 5 | S20: 33.2 | T20: 1.66 | U20: =IF(I20="Clean energy investments", IF(OR(W20=0, X20=0), 0, X20/W20-1), IF(OR(I20="None", SUMIFS(SID!X$3:X$12290, SID!$F$3:$F$12290, I20, SID!$K$3:$K$12290, L20, SID!$Y$3:$Y$12290, 0)=0), 0, IFERROR(SUMIFS(SID!X$3:X$12290, SID!$F$3:$F$12290, I20, SID!$K$3:$K$12290, L20, SID!$Y$3:$Y$12290, 0)/SUMIFS(SID!W$3:W$12290, SID!$F$3:$F$12290, I20, SID!$K$3:$K$12290, L20, SID!$Y$3:$Y$12290, 0) - 1, 0))) -> 0 | V20: =IF(J20<>"USDm", 0, IF(F20="Clean energy investments", IF(ISNUMBER(FIND("-", $L20)), SUMIFS(INV!$J$3:$J$11498, INV!$E$3:$E$11498, $L20, INV!$A$3:$A$11498, "<=" & int_Year, INV!$A$3:$A$11498, ">=" & $G$6), SUMIFS(INV!$J$3:$J$11498, INV!$F$3:$F$11498, $L20, INV!$A$3:$A$11498, "<=" & int_Year, INV!$A$3:$A$11498, ">=" & $G$6)), IF(ISNUMBER(FIND("-", $L20)), SUMIFS(INV!$J$3:$J$11498, INV!$E$3:$E$11498, $L20, INV!$I$3:$I$11498, $F20, INV!$A$3:$A$11498, "<=" & int_Year, INV!$A$3:$A$11498, ">=" & $G$6), SUMIFS(INV!$J$3:$J$11498, INV!$F$3:$F$11498, $L20, INV!$I$3:$I$11498, $F20, INV!$A$3:$A$11498, "<=" & int_Year, INV!$A$3:$A$11498, ">=" & $G$6)))) -> 0 | W20: =IF(I20<>"Clean energy investments", 0, IF(ISNUMBER(FIND("-", $L20)), SUMIFS(INV!$J$3:$J$11498, INV!$E$3:$E$11498, $L20, INV!$A$3:$A$11498, ">="& int_InvStartYear, INV!$A$3:$A$11498, "<="& int_Year-1), SUMIFS(INV!$J$3:$J$11498, INV!$F$3:$F$11498, $L20, INV!$A$3:$A$11498, ">="& int_InvStartYear, INV!$A$3:$A$11498, "<="& int_Year-1))) -> 0 | X20: =IF(I20<>"Clean energy investments", 0, IF(ISNUMBER(FIND("-", $L20)), SUMIFS(INV!$J$3:$J$11498, INV!$E$3:$E$11498, $L20, INV!$A$3:$A$11498, ">="& int_InvStartYear, INV!$A$3:$A$11498, "<="& int_Year), SUMIFS(INV!$J$3:$J$11498, INV!$F$3:$F$11498, $L20, INV!$A$3:$A$11498, ">="& int_InvStartYear, INV!$A$3:$A$11498, "<="& int_Year))) -> 0 | Y20: 1.01 > Nigeria
A21: 1 | B21: 12 | C21: =INDEX(DEFN!$A$4:$K$53, MATCH($A21, DEFN!$A$4:$A$53, 0), MATCH(C$9, DEFN!$A$3:$K$3, 0)) -> 1.01 | D21: =INDEX(DEFN!$A$4:$K$53, MATCH($A21, DEFN!$A$4:$A$53, 0), MATCH(D$9, DEFN!$A$3:$K$3, 0)) -> Enabling Framework | E21: =INDEX(DEFN!$A$4:$K$53, MATCH($A21, DEFN!$A$4:$A$53, 0), MATCH(E$9, DEFN!$A$3:$K$3, 0)) -> Policy & Regulation | F21: =INDEX(DEFN!$A$4:$K$53, MATCH($A21, DEFN!$A$4:$A$53, 0), MATCH(F$9, DEFN!$A$3:$K$3, 0)) -> Clean energy policies | G21: =INDEX(DEFN!$A$4:$K$53, MATCH($A21, DEFN!$A$4:$A$53, 0), MATCH(G$9, DEFN!$A$3:$K$3, 0)) -> Both | H21: =INDEX(DEFN!$A$4:$K$53, MATCH($A21, DEFN!$A$4:$A$53, 0), MATCH(H$9, DEFN!$A$3:$K$3, 0)) -> None | I21: =INDEX(DEFN!$A$4:$K$53, MATCH($A21, DEFN!$A$4:$A$53, 0), MATCH(I$9, DEFN!$A$3:$K$3, 0)) -> None | J21: =INDEX(DEFN!$A$4:$K$53, MATCH($A21, DEFN!$A$4:$A$53, 0), MATCH(J$9, DEFN!$A$3:$K$3, 0)) -> Policy Types | K21: =INDEX(DEFN!B$250:B$313, MATCH($B21, DEFN!$A$250:$A$313, 0), 1) -> Africa | L21: =INDEX(DEFN!C$250:C$313, MATCH($B21, DEFN!$A$250:$A$313, 0), 1) -> Rwanda | M21: =INDEX(DEFN!$A$4:$K$53, MATCH($A21, DEFN!$A$4:$A$53, 0), MATCH(M$9, DEFN!$A$3:$K$3, 0)) -> User Defined | N21: =INDEX(DEFN!$A$4:$K$53, MATCH($A21, DEFN!$A$4:$A$53, 0), MATCH(N$9, DEFN!$A$3:$K$3, 0)) -> 5 | O21: =IFERROR(IF($H21="None", 1, IF($H21="All Capacity", SUMIFS(SID!X$3:X$12290, SID!$G$3:$G$12290, "<>Power demand", SID!$K$3:$K$12290, $L21, SID!$I$3:$I$12290, $J21), IF($H21="All Generation", SUMIFS(SID!X$3:X$12290, SID!$K$3:$K$12290, $L21, SID!$I$3:$I$12290, $J21), SUMIFS(SID!X$3:X$12290, SID!$F$3:$F$12290, $H21, SID!$K$3:$K$12290, $L21)))), 1) -> 1 | P21: =IF(ISNUMBER(FIND("Growth", F21)), U21, IF(V21<>0,V21, SUMIFS(SID!X$3:X$12290, SID!$C$3:$C$12290, $C21, SID!$K$3:$K$12290, $L21, SID!$Y$3:$Y$12290, 0))) -> 6 | Q21: 2.37 | R21: 5 | S21: 47.4 | T21: 2.37 | U21: =IF(I21="Clean energy investments", IF(OR(W21=0, X21=0), 0, X21/W21-1), IF(OR(I21="None", SUMIFS(SID!X$3:X$12290, SID!$F$3:$F$12290, I21, SID!$K$3:$K$12290, L21, SID!$Y$3:$Y$12290, 0)=0), 0, IFERROR(SUMIFS(SID!X$3:X$12290, SID!$F$3:$F$12290, I21, SID!$K$3:$K$12290, L21, SID!$Y$3:$Y$12290, 0)/SUMIFS(SID!W$3:W$12290, SID!$F$3:$F$12290, I21, SID!$K$3:$K$12290, L21, SID!$Y$3:$Y$12290, 0) - 1, 0))) -> 0 | V21: =IF(J21<>"USDm", 0, IF(F21="Clean energy investments", IF(ISNUMBER(FIND("-", $L21)), SUMIFS(INV!$J$3:$J$11498, INV!$E$3:$E$11498, $L21, INV!$A$3:$A$11498, "<=" & int_Year, INV!$A$3:$A$11498, ">=" & $G$6), SUMIFS(INV!$J$3:$J$11498, INV!$F$3:$F$11498, $L21, INV!$A$3:$A$11498, "<=" & int_Year, INV!$A$3:$A$11498, ">=" & $G$6)), IF(ISNUMBER(FIND("-", $L21)), SUMIFS(INV!$J$3:$J$11498, INV!$E$3:$E$11498, $L21, INV!$I$3:$I$11498, $F21, INV!$A$3:$A$11498, "<=" & int_Year, INV!$A$3:$A$11498, ">=" & $G$6), SUMIFS(INV!$J$3:$J$11498, INV!$F$3:$F$11498, $L21, INV!$I$3:$I$11498, $F21, INV!$A$3:$A$11498, "<=" & int_Year, INV!$A$3:$A$11498, ">=" & $G$6)))) -> 0 | W21: =IF(I21<>"Clean energy investments", 0, IF(ISNUMBER(FIND("-", $L21)), SUMIFS(INV!$J$3:$J$11498, INV!$E$3:$E$11498, $L21, INV!$A$3:$A$11498, ">="& int_InvStartYear, INV!$A$3:$A$11498, "<="& int_Year-1), SUMIFS(INV!$J$3:$J$11498, INV!$F$3:$F$11498, $L21, INV!$A$3:$A$11498, ">="& int_InvStartYear, INV!$A$3:$A$11498, "<="& int_Year-1))) -> 0 | X21: =IF(I21<>"Clean energy investments", 0, IF(ISNUMBER(FIND("-", $L21)), SUMIFS(INV!$J$3:$J$11498, INV!$E$3:$E$11498, $L21, INV!$A$3:$A$11498, ">="& int_InvStartYear, INV!$A$3:$A$11498, "<="& int_Year), SUMIFS(INV!$J$3:$J$11498, INV!$F$3:$F$11498, $L21, INV!$A$3:$A$11498, ">="& int_InvStartYear, INV!$A$3:$A$11498, "<="& int_Year))) -> 0 | Y21: 1.01 > Rwanda
A22: 1 | B22: 13 | C22: =INDEX(DEFN!$A$4:$K$53, MATCH($A22, DEFN!$A$4:$A$53, 0), MATCH(C$9, DEFN!$A$3:$K$3, 0)) -> 1.01 | D22: =INDEX(DEFN!$A$4:$K$53, MATCH($A22, DEFN!$A$4:$A$53, 0), MATCH(D$9, DEFN!$A$3:$K$3, 0)) -> Enabling Framework | E22: =INDEX(DEFN!$A$4:$K$53, MATCH($A22, DEFN!$A$4:$A$53, 0), MATCH(E$9, DEFN!$A$3:$K$3, 0)) -> Policy & Regulation | F22: =INDEX(DEFN!$A$4:$K$53, MATCH($A22, DEFN!$A$4:$A$53, 0), MATCH(F$9, DEFN!$A$3:$K$3, 0)) -> Clean energy policies | G22: =INDEX(DEFN!$A$4:$K$53, MATCH($A22, DEFN!$A$4:$A$53, 0), MATCH(G$9, DEFN!$A$3:$K$3, 0)) -> Both | H22: =INDEX(DEFN!$A$4:$K$53, MATCH($A22, DEFN!$A$4:$A$53, 0), MATCH(H$9, DEFN!$A$3:$K$3, 0)) -> None | I22: =INDEX(DEFN!$A$4:$K$53, MATCH($A22, DEFN!$A$4:$A$53, 0), MATCH(I$9, DEFN!$A$3:$K$3, 0)) -> None | J22: =INDEX(DEFN!$A$4:$K$53, MATCH($A22, DEFN!$A$4:$A$53, 0), MATCH(J$9, DEFN!$A$3:$K$3, 0)) -> Policy Types | K22: =INDEX(DEFN!B$250:B$313, MATCH($B22, DEFN!$A$250:$A$313, 0), 1) -> Africa | L22: =INDEX(DEFN!C$250:C$313, MATCH($B22, DEFN!$A$250:$A$313, 0), 1) -> Senegal | M22: =INDEX(DEFN!$A$4:$K$53, MATCH($A22, DEFN!$A$4:$A$53, 0), MATCH(M$9, DEFN!$A$3:$K$3, 0)) -> User Defined | N22: =INDEX(DEFN!$A$4:$K$53, MATCH($A22, DEFN!$A$4:$A$53, 0), MATCH(N$9, DEFN!$A$3:$K$3, 0)) -> 5 | O22: =IFERROR(IF($H22="None", 1, IF($H22="All Capacity", SUMIFS(SID!X$3:X$12290, SID!$G$3:$G$12290, "<>Power demand", SID!$K$3:$K$12290, $L22, SID!$I$3:$I$12290, $J22), IF($H22="All Generation", SUMIFS(SID!X$3:X$12290, SID!$K$3:$K$12290, $L22, SID!$I$3:$I$12290, $J22), SUMIFS(SID!X$3:X$12290, SID!$F$3:$F$12290, $H22, SID!$K$3:$K$12290, $L22)))), 1) -> 1 | P22: =IF(ISNUMBER(FIND("Growth", F22)), U22, IF(V22<>0,V22, SUMIFS(SID!X$3:X$12290, SID!$C$3:$C$12290, $C22, SID!$K$3:$K$12290, $L22, SID!$Y$3:$Y$12290, 0))) -> 4 | Q22: 1.59 | R22: 5 | S22: 31.8 | T22: 1.59 | U22: =IF(I22="Clean energy investments", IF(OR(W22=0, X22=0), 0, X22/W22-1), IF(OR(I22="None", SUMIFS(SID!X$3:X$12290, SID!$F$3:$F$12290, I22, SID!$K$3:$K$12290, L22, SID!$Y$3:$Y$12290, 0)=0), 0, IFERROR(SUMIFS(SID!X$3:X$12290, SID!$F$3:$F$12290, I22, SID!$K$3:$K$12290, L22, SID!$Y$3:$Y$12290, 0)/SUMIFS(SID!W$3:W$12290, SID!$F$3:$F$12290, I22, SID!$K$3:$K$12290, L22, SID!$Y$3:$Y$12290, 0) - 1, 0))) -> 0 | V22: =IF(J22<>"USDm", 0, IF(F22="Clean energy investments", IF(ISNUMBER(FIND("-", $L22)), SUMIFS(INV!$J$3:$J$11498, INV!$E$3:$E$11498, $L22, INV!$A$3:$A$11498, "<=" & int_Year, INV!$A$3:$A$11498, ">=" & $G$6), SUMIFS(INV!$J$3:$J$11498, INV!$F$3:$F$11498, $L22, INV!$A$3:$A$11498, "<=" & int_Year, INV!$A$3:$A$11498, ">=" & $G$6)), IF(ISNUMBER(FIND("-", $L22)), SUMIFS(INV!$J$3:$J$11498, INV!$E$3:$E$11498, $L22, INV!$I$3:$I$11498, $F22, INV!$A$3:$A$11498, "<=" & int_Year, INV!$A$3:$A$11498, ">=" & $G$6), SUMIFS(INV!$J$3:$J$11498, INV!$F$3:$F$11498, $L22, INV!$I$3:$I$11498, $F22, INV!$A$3:$A$11498, "<=" & int_Year, INV!$A$3:$A$11498, ">=" & $G$6)))) -> 0 | W22: =IF(I22<>"Clean energy investments", 0, IF(ISNUMBER(FIND("-", $L22)), SUMIFS(INV!$J$3:$J$11498, INV!$E$3:$E$11498, $L22, INV!$A$3:$A$11498, ">="& int_InvStartYear, INV!$A$3:$A$11498, "<="& int_Year-1), SUMIFS(INV!$J$3:$J$11498, INV!$F$3:$F$11498, $L22, INV!$A$3:$A$11498, ">="& int_InvStartYear, INV!$A$3:$A$11498, "<="& int_Year-1))) -> 0 | X22: =IF(I22<>"Clean energy investments", 0, IF(ISNUMBER(FIND("-", $L22)), SUMIFS(INV!$J$3:$J$11498, INV!$E$3:$E$11498, $L22, INV!$A$3:$A$11498, ">="& int_InvStartYear, INV!$A$3:$A$11498, "<="& int_Year), SUMIFS(INV!$J$3:$J$11498, INV!$F$3:$F$11498, $L22, INV!$A$3:$A$11498, ">="& int_InvStartYear, INV!$A$3:$A$11498, "<="& int_Year))) -> 0 | Y22: 1.01 > Senegal
A23: 1 | B23: 14 | C23: =INDEX(DEFN!$A$4:$K$53, MATCH($A23, DEFN!$A$4:$A$53, 0), MATCH(C$9, DEFN!$A$3:$K$3, 0)) -> 1.01 | D23: =INDEX(DEFN!$A$4:$K$53, MATCH($A23, DEFN!$A$4:$A$53, 0), MATCH(D$9, DEFN!$A$3:$K$3, 0)) -> Enabling Framework | E23: =INDEX(DEFN!$A$4:$K$53, MATCH($A23, DEFN!$A$4:$A$53, 0), MATCH(E$9, DEFN!$A$3:$K$3, 0)) -> Policy & Regulation | F23: =INDEX(DEFN!$A$4:$K$53, MATCH($A23, DEFN!$A$4:$A$53, 0), MATCH(F$9, DEFN!$A$3:$K$3, 0)) -> Clean energy policies | G23: =INDEX(DEFN!$A$4:$K$53, MATCH($A23, DEFN!$A$4:$A$53, 0), MATCH(G$9, DEFN!$A$3:$K$3, 0)) -> Both | H23: =INDEX(DEFN!$A$4:$K$53, MATCH($A23, DEFN!$A$4:$A$53, 0), MATCH(H$9, DEFN!$A$3:$K$3, 0)) -> None | I23: =INDEX(DEFN!$A$4:$K$53, MATCH($A23, DEFN!$A$4:$A$53, 0), MATCH(I$9, DEFN!$A$3:$K$3, 0)) -> None | J23: =INDEX(DEFN!$A$4:$K$53, MATCH($A23, DEFN!$A$4:$A$53, 0), MATCH(J$9, DEFN!$A$3:$K$3, 0)) -> Policy Types | K23: =INDEX(DEFN!B$250:B$313, MATCH($B23, DEFN!$A$250:$A$313, 0), 1) -> Africa | L23: =INDEX(DEFN!C$250:C$313, MATCH($B23, DEFN!$A$250:$A$313, 0), 1) -> Sierra Leone | M23: =INDEX(DEFN!$A$4:$K$53, MATCH($A23, DEFN!$A$4:$A$53, 0), MATCH(M$9, DEFN!$A$3:$K$3, 0)) -> User Defined | N23: =INDEX(DEFN!$A$4:$K$53, MATCH($A23, DEFN!$A$4:$A$53, 0), MATCH(N$9, DEFN!$A$3:$K$3, 0)) -> 5 | O23: =IFERROR(IF($H23="None", 1, IF($H23="All Capacity", SUMIFS(SID!X$3:X$12290, SID!$G$3:$G$12290, "<>Power demand", SID!$K$3:$K$12290, $L23, SID!$I$3:$I$12290, $J23), IF($H23="All Generation", SUMIFS(SID!X$3:X$12290, SID!$K$3:$K$12290, $L23, SID!$I$3:$I$12290, $J23), SUMIFS(SID!X$3:X$12290, SID!$F$3:$F$12290, $H23, SID!$K$3:$K$12290, $L23)))), 1) -> 1 | P23: =IF(ISNUMBER(FIND("Growth", F23)), U23, IF(V23<>0,V23, SUMIFS(SID!X$3:X$12290, SID!$C$3:$C$12290, $C23, SID!$K$3:$K$12290, $L23, SID!$Y$3:$Y$12290, 0))) -> 0 | Q23: 0 | R23: 5 | S23: 0 | T23: 0 | U23: =IF(I23="Clean energy investments", IF(OR(W23=0, X23=0), 0, X23/W23-1), IF(OR(I23="None", SUMIFS(SID!X$3:X$12290, SID!$F$3:$F$12290, I23, SID!$K$3:$K$12290, L23, SID!$Y$3:$Y$12290, 0)=0), 0, IFERROR(SUMIFS(SID!X$3:X$12290, SID!$F$3:$F$12290, I23, SID!$K$3:$K$12290, L23, SID!$Y$3:$Y$12290, 0)/SUMIFS(SID!W$3:W$12290, SID!$F$3:$F$12290, I23, SID!$K$3:$K$12290, L23, SID!$Y$3:$Y$12290, 0) - 1, 0))) -> 0 | V23: =IF(J23<>"USDm", 0, IF(F23="Clean energy investments", IF(ISNUMBER(FIND("-", $L23)), SUMIFS(INV!$J$3:$J$11498, INV!$E$3:$E$11498, $L23, INV!$A$3:$A$11498, "<=" & int_Year, INV!$A$3:$A$11498, ">=" & $G$6), SUMIFS(INV!$J$3:$J$11498, INV!$F$3:$F$11498, $L23, INV!$A$3:$A$11498, "<=" & int_Year, INV!$A$3:$A$11498, ">=" & $G$6)), IF(ISNUMBER(FIND("-", $L23)), SUMIFS(INV!$J$3:$J$11498, INV!$E$3:$E$11498, $L23, INV!$I$3:$I$11498, $F23, INV!$A$3:$A$11498, "<=" & int_Year, INV!$A$3:$A$11498, ">=" & $G$6), SUMIFS(INV!$J$3:$J$11498, INV!$F$3:$F$11498, $L23, INV!$I$3:$I$11498, $F23, INV!$A$3:$A$11498, "<=" & int_Year, INV!$A$3:$A$11498, ">=" & $G$6)))) -> 0 | W23: =IF(I23<>"Clean energy investments", 0, IF(ISNUMBER(FIND("-", $L23)), SUMIFS(INV!$J$3:$J$11498, INV!$E$3:$E$11498, $L23, INV!$A$3:$A$11498, ">="& int_InvStartYear, INV!$A$3:$A$11498, "<="& int_Year-1), SUMIFS(INV!$J$3:$J$11498, INV!$F$3:$F$11498, $L23, INV!$A$3:$A$11498, ">="& int_InvStartYear, INV!$A$3:$A$11498, "<="& int_Year-1))) -> 0 | X23: =IF(I23<>"Clean energy investments", 0, IF(ISNUMBER(FIND("-", $L23)), SUMIFS(INV!$J$3:$J$11498, INV!$E$3:$E$11498, $L23, INV!$A$3:$A$11498, ">="& int_InvStartYear, INV!$A$3:$A$11498, "<="& int_Year), SUMIFS(INV!$J$3:$J$11498, INV!$F$3:$F$11498, $L23, INV!$A$3:$A$11498, ">="& int_InvStartYear, INV!$A$3:$A$11498, "<="& int_Year))) -> 0 | Y23: 1.01 > Sierra Leone
A24: 1 | B24: 15 | C24: =INDEX(DEFN!$A$4:$K$53, MATCH($A24, DEFN!$A$4:$A$53, 0), MATCH(C$9, DEFN!$A$3:$K$3, 0)) -> 1.01 | D24: =INDEX(DEFN!$A$4:$K$53, MATCH($A24, DEFN!$A$4:$A$53, 0), MATCH(D$9, DEFN!$A$3:$K$3, 0)) -> Enabling Framework | E24: =INDEX(DEFN!$A$4:$K$53, MATCH($A24, DEFN!$A$4:$A$53, 0), MATCH(E$9, DEFN!$A$3:$K$3, 0)) -> Policy & Regulation | F24: =INDEX(DEFN!$A$4:$K$53, MATCH($A24, DEFN!$A$4:$A$53, 0), MATCH(F$9, DEFN!$A$3:$K$3, 0)) -> Clean energy policies | G24: =INDEX(DEFN!$A$4:$K$53, MATCH($A24, DEFN!$A$4:$A$53, 0), MATCH(G$9, DEFN!$A$3:$K$3, 0)) -> Both | H24: =INDEX(DEFN!$A$4:$K$53, MATCH($A24, DEFN!$A$4:$A$53, 0), MATCH(H$9, DEFN!$A$3:$K$3, 0)) -> None | I24: =INDEX(DEFN!$A$4:$K$53, MATCH($A24, DEFN!$A$4:$A$53, 0), MATCH(I$9, DEFN!$A$3:$K$3, 0)) -> None | J24: =INDEX(DEFN!$A$4:$K$53, MATCH($A24, DEFN!$A$4:$A$53, 0), MATCH(J$9, DEFN!$A$3:$K$3, 0)) -> Policy Types | K24: =INDEX(DEFN!B$250:B$313, MATCH($B24, DEFN!$A$250:$A$313, 0), 1) -> Africa | L24: =INDEX(DEFN!C$250:C$313, MATCH($B24, DEFN!$A$250:$A$313, 0), 1) -> South Africa | M24: =INDEX(DEFN!$A$4:$K$53, MATCH($A24, DEFN!$A$4:$A$53, 0), MATCH(M$9, DEFN!$A$3:$K$3, 0)) -> User Defined | N24: =INDEX(DEFN!$A$4:$K$53, MATCH($A24, DEFN!$A$4:$A$53, 0), MATCH(N$9, DEFN!$A$3:$K$3, 0)) -> 5 | O24: =IFERROR(IF($H24="None", 1, IF($H24="All Capacity", SUMIFS(SID!X$3:X$12290, SID!$G$3:$G$12290, "<>Power demand", SID!$K$3:$K$12290, $L24, SID!$I$3:$I$12290, $J24), IF($H24="All Generation", SUMIFS(SID!X$3:X$12290, SID!$K$3:$K$12290, $L24, SID!$I$3:$I$12290, $J24), SUMIFS(SID!X$3:X$12290, SID!$F$3:$F$12290, $H24, SID!$K$3:$K$12290, $L24)))), 1) -> 1 | P24: =IF(ISNUMBER(FIND("Growth", F24)), U24, IF(V24<>0,V24, SUMIFS(SID!X$3:X$12290, SID!$C$3:$C$12290, $C24, SID!$K$3:$K$12290, $L24, SID!$Y$3:$Y$12290, 0))) -> 4 | Q24: 1.64 | R24: 5 | S24: 32.8 | T24: 1.64 | U24: =IF(I24="Clean energy investments", IF(OR(W24=0, X24=0), 0, X24/W24-1), IF(OR(I24="None", SUMIFS(SID!X$3:X$12290, SID!$F$3:$F$12290, I24, SID!$K$3:$K$12290, L24, SID!$Y$3:$Y$12290, 0)=0), 0, IFERROR(SUMIFS(SID!X$3:X$12290, SID!$F$3:$F$12290, I24, SID!$K$3:$K$12290, L24, SID!$Y$3:$Y$12290, 0)/SUMIFS(SID!W$3:W$12290, SID!$F$3:$F$12290, I24, SID!$K$3:$K$12290, L24, SID!$Y$3:$Y$12290, 0) - 1, 0))) -> 0 | V24: =IF(J24<>"USDm", 0, IF(F24="Clean energy investments", IF(ISNUMBER(FIND("-", $L24)), SUMIFS(INV!$J$3:$J$11498, INV!$E$3:$E$11498, $L24, INV!$A$3:$A$11498, "<=" & int_Year, INV!$A$3:$A$11498, ">=" & $G$6), SUMIFS(INV!$J$3:$J$11498, INV!$F$3:$F$11498, $L24, INV!$A$3:$A$11498, "<=" & int_Year, INV!$A$3:$A$11498, ">=" & $G$6)), IF(ISNUMBER(FIND("-", $L24)), SUMIFS(INV!$J$3:$J$11498, INV!$E$3:$E$11498, $L24, INV!$I$3:$I$11498, $F24, INV!$A$3:$A$11498, "<=" & int_Year, INV!$A$3:$A$11498, ">=" & $G$6), SUMIFS(INV!$J$3:$J$11498, INV!$F$3:$F$11498, $L24, INV!$I$3:$I$11498, $F24, INV!$A$3:$A$11498, "<=" & int_Year, INV!$A$3:$A$11498, ">=" & $G$6)))) -> 0 | W24: =IF(I24<>"Clean energy investments", 0, IF(ISNUMBER(FIND("-", $L24)), SUMIFS(INV!$J$3:$J$11498, INV!$E$3:$E$11498, $L24, INV!$A$3:$A$11498, ">="& int_InvStartYear, INV!$A$3:$A$11498, "<="& int_Year-1), SUMIFS(INV!$J$3:$J$11498, INV!$F$3:$F$11498, $L24, INV!$A$3:$A$11498, ">="& int_InvStartYear, INV!$A$3:$A$11498, "<="& int_Year-1))) -> 0 | X24: =IF(I24<>"Clean energy investments", 0, IF(ISNUMBER(FIND("-", $L24)), SUMIFS(INV!$J$3:$J$11498, INV!$E$3:$E$11498, $L24, INV!$A$3:$A$11498, ">="& int_InvStartYear, INV!$A$3:$A$11498, "<="& int_Year), SUMIFS(INV!$J$3:$J$11498, INV!$F$3:$F$11498, $L24, INV!$A$3:$A$11498, ">="& int_InvStartYear, INV!$A$3:$A$11498, "<="& int_Year))) -> 0 | Y24: 1.01 > South Africa
A25: 1 | B25: 16 | C25: =INDEX(DEFN!$A$4:$K$53, MATCH($A25, DEFN!$A$4:$A$53, 0), MATCH(C$9, DEFN!$A$3:$K$3, 0)) -> 1.01 | D25: =INDEX(DEFN!$A$4:$K$53, MATCH($A25, DEFN!$A$4:$A$53, 0), MATCH(D$9, DEFN!$A$3:$K$3, 0)) -> Enabling Framework | E25: =INDEX(DEFN!$A$4:$K$53, MATCH($A25, DEFN!$A$4:$A$53, 0), MATCH(E$9, DEFN!$A$3:$K$3, 0)) -> Policy & Regulation | F25: =INDEX(DEFN!$A$4:$K$53, MATCH($A25, DEFN!$A$4:$A$53, 0), MATCH(F$9, DEFN!$A$3:$K$3, 0)) -> Clean energy policies | G25: =INDEX(DEFN!$A$4:$K$53, MATCH($A25, DEFN!$A$4:$A$53, 0), MATCH(G$9, DEFN!$A$3:$K$3, 0)) -> Both | H25: =INDEX(DEFN!$A$4:$K$53, MATCH($A25, DEFN!$A$4:$A$53, 0), MATCH(H$9, DEFN!$A$3:$K$3, 0)) -> None | I25: =INDEX(DEFN!$A$4:$K$53, MATCH($A25, DEFN!$A$4:$A$53, 0), MATCH(I$9, DEFN!$A$3:$K$3, 0)) -> None | J25: =INDEX(DEFN!$A$4:$K$53, MATCH($A25, DEFN!$A$4:$A$53, 0), MATCH(J$9, DEFN!$A$3:$K$3, 0)) -> Policy Types | K25: =INDEX(DEFN!B$250:B$313, MATCH($B25, DEFN!$A$250:$A$313, 0), 1) -> Africa | L25: =INDEX(DEFN!C$250:C$313, MATCH($B25, DEFN!$A$250:$A$313, 0), 1) -> Tanzania | M25: =INDEX(DEFN!$A$4:$K$53, MATCH($A25, DEFN!$A$4:$A$53, 0), MATCH(M$9, DEFN!$A$3:$K$3, 0)) -> User Defined | N25: =INDEX(DEFN!$A$4:$K$53, MATCH($A25, DEFN!$A$4:$A$53, 0), MATCH(N$9, DEFN!$A$3:$K$3, 0)) -> 5 | O25: =IFERROR(IF($H25="None", 1, IF($H25="All Capacity", SUMIFS(SID!X$3:X$12290, SID!$G$3:$G$12290, "<>Power demand", SID!$K$3:$K$12290, $L25, SID!$I$3:$I$12290, $J25), IF($H25="All Generation", SUMIFS(SID!X$3:X$12290, SID!$K$3:$K$12290, $L25, SID!$I$3:$I$12290, $J25), SUMIFS(SID!X$3:X$12290, SID!$F$3:$F$12290, $H25, SID!$K$3:$K$12290, $L25)))), 1) -> 1 | P25: =IF(ISNUMBER(FIND("Growth", F25)), U25, IF(V25<>0,V25, SUMIFS(SID!X$3:X$12290, SID!$C$3:$C$12290, $C25, SID!$K$3:$K$12290, $L25, SID!$Y$3:$Y$12290, 0))) -> 4 | Q25: 1.26 | R25: 5 | S25: 25.2 | T25: 1.26 | U25: =IF(I25="Clean energy investments", IF(OR(W25=0, X25=0), 0, X25/W25-1), IF(OR(I25="None", SUMIFS(SID!X$3:X$12290, SID!$F$3:$F$12290, I25, SID!$K$3:$K$12290, L25, SID!$Y$3:$Y$12290, 0)=0), 0, IFERROR(SUMIFS(SID!X$3:X$12290, SID!$F$3:$F$12290, I25, SID!$K$3:$K$12290, L25, SID!$Y$3:$Y$12290, 0)/SUMIFS(SID!W$3:W$12290, SID!$F$3:$F$12290, I25, SID!$K$3:$K$12290, L25, SID!$Y$3:$Y$12290, 0) - 1, 0))) -> 0 | V25: =IF(J25<>"USDm", 0, IF(F25="Clean energy investments", IF(ISNUMBER(FIND("-", $L25)), SUMIFS(INV!$J$3:$J$11498, INV!$E$3:$E$11498, $L25, INV!$A$3:$A$11498, "<=" & int_Year, INV!$A$3:$A$11498, ">=" & $G$6), SUMIFS(INV!$J$3:$J$11498, INV!$F$3:$F$11498, $L25, INV!$A$3:$A$11498, "<=" & int_Year, INV!$A$3:$A$11498, ">=" & $G$6)), IF(ISNUMBER(FIND("-", $L25)), SUMIFS(INV!$J$3:$J$11498, INV!$E$3:$E$11498, $L25, INV!$I$3:$I$11498, $F25, INV!$A$3:$A$11498, "<=" & int_Year, INV!$A$3:$A$11498, ">=" & $G$6), SUMIFS(INV!$J$3:$J$11498, INV!$F$3:$F$11498, $L25, INV!$I$3:$I$11498, $F25, INV!$A$3:$A$11498, "<=" & int_Year, INV!$A$3:$A$11498, ">=" & $G$6)))) -> 0 | W25: =IF(I25<>"Clean energy investments", 0, IF(ISNUMBER(FIND("-", $L25)), SUMIFS(INV!$J$3:$J$11498, INV!$E$3:$E$11498, $L25, INV!$A$3:$A$11498, ">="& int_InvStartYear, INV!$A$3:$A$11498, "<="& int_Year-1), SUMIFS(INV!$J$3:$J$11498, INV!$F$3:$F$11498, $L25, INV!$A$3:$A$11498, ">="& int_InvStartYear, INV!$A$3:$A$11498, "<="& int_Year-1))) -> 0 | X25: =IF(I25<>"Clean energy investments", 0, IF(ISNUMBER(FIND("-", $L25)), SUMIFS(INV!$J$3:$J$11498, INV!$E$3:$E$11498, $L25, INV!$A$3:$A$11498, ">="& int_InvStartYear, INV!$A$3:$A$11498, "<="& int_Year), SUMIFS(INV!$J$3:$J$11498, INV!$F$3:$F$11498, $L25, INV!$A$3:$A$11498, ">="& int_InvStartYear, INV!$A$3:$A$11498, "<="& int_Year))) -> 0 | Y25: 1.01 > Tanzania
A26: 1 | B26: 17 | C26: =INDEX(DEFN!$A$4:$K$53, MATCH($A26, DEFN!$A$4:$A$53, 0), MATCH(C$9, DEFN!$A$3:$K$3, 0)) -> 1.01 | D26: =INDEX(DEFN!$A$4:$K$53, MATCH($A26, DEFN!$A$4:$A$53, 0), MATCH(D$9, DEFN!$A$3:$K$3, 0)) -> Enabling Framework | E26: =INDEX(DEFN!$A$4:$K$53, MATCH($A26, DEFN!$A$4:$A$53, 0), MATCH(E$9, DEFN!$A$3:$K$3, 0)) -> Policy & Regulation | F26: =INDEX(DEFN!$A$4:$K$53, MATCH($A26, DEFN!$A$4:$A$53, 0), MATCH(F$9, DEFN!$A$3:$K$3, 0)) -> Clean energy policies | G26: =INDEX(DEFN!$A$4:$K$53, MATCH($A26, DEFN!$A$4:$A$53, 0), MATCH(G$9, DEFN!$A$3:$K$3, 0)) -> Both | H26: =INDEX(DEFN!$A$4:$K$53, MATCH($A26, DEFN!$A$4:$A$53, 0), MATCH(H$9, DEFN!$A$3:$K$3, 0)) -> None | I26: =INDEX(DEFN!$A$4:$K$53, MATCH($A26, DEFN!$A$4:$A$53, 0), MATCH(I$9, DEFN!$A$3:$K$3, 0)) -> None | J26: =INDEX(DEFN!$A$4:$K$53, MATCH($A26, DEFN!$A$4:$A$53, 0), MATCH(J$9, DEFN!$A$3:$K$3, 0)) -> Policy Types | K26: =INDEX(DEFN!B$250:B$313, MATCH($B26, DEFN!$A$250:$A$313, 0), 1) -> Africa | L26: =INDEX(DEFN!C$250:C$313, MATCH($B26, DEFN!$A$250:$A$313, 0), 1) -> Uganda | M26: =INDEX(DEFN!$A$4:$K$53, MATCH($A26, DEFN!$A$4:$A$53, 0), MATCH(M$9, DEFN!$A$3:$K$3, 0)) -> User Defined | N26: =INDEX(DEFN!$A$4:$K$53, MATCH($A26, DEFN!$A$4:$A$53, 0), MATCH(N$9, DEFN!$A$3:$K$3, 0)) -> 5 | O26: =IFERROR(IF($H26="None", 1, IF($H26="All Capacity", SUMIFS(SID!X$3:X$12290, SID!$G$3:$G$12290, "<>Power demand", SID!$K$3:$K$12290, $L26, SID!$I$3:$I$12290, $J26), IF($H26="All Generation", SUMIFS(SID!X$3:X$12290, SID!$K$3:$K$12290, $L26, SID!$I$3:$I$12290, $J26), SUMIFS(SID!X$3:X$12290, SID!$F$3:$F$12290, $H26, SID!$K$3:$K$12290, $L26)))), 1) -> 1 | P26: =IF(ISNUMBER(FIND("Growth", F26)), U26, IF(V26<>0,V26, SUMIFS(SID!X$3:X$12290, SID!$C$3:$C$12290, $C26, SID!$K$3:$K$12290, $L26, SID!$Y$3:$Y$12290, 0))) -> 5 | Q26: 2.05 | R26: 5 | S26: 41 | T26: 2.05 | U26: =IF(I26="Clean energy investments", IF(OR(W26=0, X26=0), 0, X26/W26-1), IF(OR(I26="None", SUMIFS(SID!X$3:X$12290, SID!$F$3:$F$12290, I26, SID!$K$3:$K$12290, L26, SID!$Y$3:$Y$12290, 0)=0), 0, IFERROR(SUMIFS(SID!X$3:X$12290, SID!$F$3:$F$12290, I26, SID!$K$3:$K$12290, L26, SID!$Y$3:$Y$12290, 0)/SUMIFS(SID!W$3:W$12290, SID!$F$3:$F$12290, I26, SID!$K$3:$K$12290, L26, SID!$Y$3:$Y$12290, 0) - 1, 0))) -> 0 | V26: =IF(J26<>"USDm", 0, IF(F26="Clean energy investments", IF(ISNUMBER(FIND("-", $L26)), SUMIFS(INV!$J$3:$J$11498, INV!$E$3:$E$11498, $L26, INV!$A$3:$A$11498, "<=" & int_Year, INV!$A$3:$A$11498, ">=" & $G$6), SUMIFS(INV!$J$3:$J$11498, INV!$F$3:$F$11498, $L26, INV!$A$3:$A$11498, "<=" & int_Year, INV!$A$3:$A$11498, ">=" & $G$6)), IF(ISNUMBER(FIND("-", $L26)), SUMIFS(INV!$J$3:$J$11498, INV!$E$3:$E$11498, $L26, INV!$I$3:$I$11498, $F26, INV!$A$3:$A$11498, "<=" & int_Year, INV!$A$3:$A$11498, ">=" & $G$6), SUMIFS(INV!$J$3:$J$11498, INV!$F$3:$F$11498, $L26, INV!$I$3:$I$11498, $F26, INV!$A$3:$A$11498, "<=" & int_Year, INV!$A$3:$A$11498, ">=" & $G$6)))) -> 0 | W26: =IF(I26<>"Clean energy investments", 0, IF(ISNUMBER(FIND("-", $L26)), SUMIFS(INV!$J$3:$J$11498, INV!$E$3:$E$11498, $L26, INV!$A$3:$A$11498, ">="& int_InvStartYear, INV!$A$3:$A$11498, "<="& int_Year-1), SUMIFS(INV!$J$3:$J$11498, INV!$F$3:$F$11498, $L26, INV!$A$3:$A$11498, ">="& int_InvStartYear, INV!$A$3:$A$11498, "<="& int_Year-1))) -> 0 | X26: =IF(I26<>"Clean energy investments", 0, IF(ISNUMBER(FIND("-", $L26)), SUMIFS(INV!$J$3:$J$11498, INV!$E$3:$E$11498, $L26, INV!$A$3:$A$11498, ">="& int_InvStartYear, INV!$A$3:$A$11498, "<="& int_Year), SUMIFS(INV!$J$3:$J$11498, INV!$F$3:$F$11498, $L26, INV!$A$3:$A$11498, ">="& int_InvStartYear, INV!$A$3:$A$11498, "<="& int_Year))) -> 0 | Y26: 1.01 > Uganda
A27: 1 | B27: 18 | C27: =INDEX(DEFN!$A$4:$K$53, MATCH($A27, DEFN!$A$4:$A$53, 0), MATCH(C$9, DEFN!$A$3:$K$3, 0)) -> 1.01 | D27: =INDEX(DEFN!$A$4:$K$53, MATCH($A27, DEFN!$A$4:$A$53, 0), MATCH(D$9, DEFN!$A$3:$K$3, 0)) -> Enabling Framework | E27: =INDEX(DEFN!$A$4:$K$53, MATCH($A27, DEFN!$A$4:$A$53, 0), MATCH(E$9, DEFN!$A$3:$K$3, 0)) -> Policy & Regulation | F27: =INDEX(DEFN!$A$4:$K$53, MATCH($A27, DEFN!$A$4:$A$53, 0), MATCH(F$9, DEFN!$A$3:$K$3, 0)) -> Clean energy policies | G27: =INDEX(DEFN!$A$4:$K$53, MATCH($A27, DEFN!$A$4:$A$53, 0), MATCH(G$9, DEFN!$A$3:$K$3, 0)) -> Both | H27: =INDEX(DEFN!$A$4:$K$53, MATCH($A27, DEFN!$A$4:$A$53, 0), MATCH(H$9, DEFN!$A$3:$K$3, 0)) -> None | I27: =INDEX(DEFN!$A$4:$K$53, MATCH($A27, DEFN!$A$4:$A$53, 0), MATCH(I$9, DEFN!$A$3:$K$3, 0)) -> None | J27: =INDEX(DEFN!$A$4:$K$53, MATCH($A27, DEFN!$A$4:$A$53, 0), MATCH(J$9, DEFN!$A$3:$K$3, 0)) -> Policy Types | K27: =INDEX(DEFN!B$250:B$313, MATCH($B27, DEFN!$A$250:$A$313, 0), 1) -> Africa | L27: =INDEX(DEFN!C$250:C$313, MATCH($B27, DEFN!$A$250:$A$313, 0), 1) -> Zambia | M27: =INDEX(DEFN!$A$4:$K$53, MATCH($A27, DEFN!$A$4:$A$53, 0), MATCH(M$9, DEFN!$A$3:$K$3, 0)) -> User Defined | N27: =INDEX(DEFN!$A$4:$K$53, MATCH($A27, DEFN!$A$4:$A$53, 0), MATCH(N$9, DEFN!$A$3:$K$3, 0)) -> 5 | O27: =IFERROR(IF($H27="None", 1, IF($H27="All Capacity", SUMIFS(SID!X$3:X$12290, SID!$G$3:$G$12290, "<>Power demand", SID!$K$3:$K$12290, $L27, SID!$I$3:$I$12290, $J27), IF($H27="All Generation", SUMIFS(SID!X$3:X$12290, SID!$K$3:$K$12290, $L27, SID!$I$3:$I$12290, $J27), SUMIFS(SID!X$3:X$12290, SID!$F$3:$F$12290, $H27, SID!$K$3:$K$12290, $L27)))), 1) -> 1 | P27: =IF(ISNUMBER(FIND("Growth", F27)), U27, IF(V27<>0,V27, SUMIFS(SID!X$3:X$12290, SID!$C$3:$C$12290, $C27, SID!$K$3:$K$12290, $L27, SID!$Y$3:$Y$12290, 0))) -> 3 | Q27: 1.25 | R27: 5 | S27: 25 | T27: 1.25 | U27: =IF(I27="Clean energy investments", IF(OR(W27=0, X27=0), 0, X27/W27-1), IF(OR(I27="None", SUMIFS(SID!X$3:X$12290, SID!$F$3:$F$12290, I27, SID!$K$3:$K$12290, L27, SID!$Y$3:$Y$12290, 0)=0), 0, IFERROR(SUMIFS(SID!X$3:X$12290, SID!$F$3:$F$12290, I27, SID!$K$3:$K$12290, L27, SID!$Y$3:$Y$12290, 0)/SUMIFS(SID!W$3:W$12290, SID!$F$3:$F$12290, I27, SID!$K$3:$K$12290, L27, SID!$Y$3:$Y$12290, 0) - 1, 0))) -> 0 | V27: =IF(J27<>"USDm", 0, IF(F27="Clean energy investments", IF(ISNUMBER(FIND("-", $L27)), SUMIFS(INV!$J$3:$J$11498, INV!$E$3:$E$11498, $L27, INV!$A$3:$A$11498, "<=" & int_Year, INV!$A$3:$A$11498, ">=" & $G$6), SUMIFS(INV!$J$3:$J$11498, INV!$F$3:$F$11498, $L27, INV!$A$3:$A$11498, "<=" & int_Year, INV!$A$3:$A$11498, ">=" & $G$6)), IF(ISNUMBER(FIND("-", $L27)), SUMIFS(INV!$J$3:$J$11498, INV!$E$3:$E$11498, $L27, INV!$I$3:$I$11498, $F27, INV!$A$3:$A$11498, "<=" & int_Year, INV!$A$3:$A$11498, ">=" & $G$6), SUMIFS(INV!$J$3:$J$11498, INV!$F$3:$F$11498, $L27, INV!$I$3:$I$11498, $F27, INV!$A$3:$A$11498, "<=" & int_Year, INV!$A$3:$A$11498, ">=" & $G$6)))) -> 0 | W27: =IF(I27<>"Clean energy investments", 0, IF(ISNUMBER(FIND("-", $L27)), SUMIFS(INV!$J$3:$J$11498, INV!$E$3:$E$11498, $L27, INV!$A$3:$A$11498, ">="& int_InvStartYear, INV!$A$3:$A$11498, "<="& int_Year-1), SUMIFS(INV!$J$3:$J$11498, INV!$F$3:$F$11498, $L27, INV!$A$3:$A$11498, ">="& int_InvStartYear, INV!$A$3:$A$11498, "<="& int_Year-1))) -> 0 | X27: =IF(I27<>"Clean energy investments", 0, IF(ISNUMBER(FIND("-", $L27)), SUMIFS(INV!$J$3:$J$11498, INV!$E$3:$E$11498, $L27, INV!$A$3:$A$11498, ">="& int_InvStartYear, INV!$A$3:$A$11498, "<="& int_Year), SUMIFS(INV!$J$3:$J$11498, INV!$F$3:$F$11498, $L27, INV!$A$3:$A$11498, ">="& int_InvStartYear, INV!$A$3:$A$11498, "<="& int_Year))) -> 0 | Y27: 1.01 > Zambia
A28: 1 | B28: 19 | C28: =INDEX(DEFN!$A$4:$K$53, MATCH($A28, DEFN!$A$4:$A$53, 0), MATCH(C$9, DEFN!$A$3:$K$3, 0)) -> 1.01 | D28: =INDEX(DEFN!$A$4:$K$53, MATCH($A28, DEFN!$A$4:$A$53, 0), MATCH(D$9, DEFN!$A$3:$K$3, 0)) -> Enabling Framework | E28: =INDEX(DEFN!$A$4:$K$53, MATCH($A28, DEFN!$A$4:$A$53, 0), MATCH(E$9, DEFN!$A$3:$K$3, 0)) -> Policy & Regulation | F28: =INDEX(DEFN!$A$4:$K$53, MATCH($A28, DEFN!$A$4:$A$53, 0), MATCH(F$9, DEFN!$A$3:$K$3, 0)) -> Clean energy policies | G28: =INDEX(DEFN!$A$4:$K$53, MATCH($A28, DEFN!$A$4:$A$53, 0), MATCH(G$9, DEFN!$A$3:$K$3, 0)) -> Both | H28: =INDEX(DEFN!$A$4:$K$53, MATCH($A28, DEFN!$A$4:$A$53, 0), MATCH(H$9, DEFN!$A$3:$K$3, 0)) -> None | I28: =INDEX(DEFN!$A$4:$K$53, MATCH($A28, DEFN!$A$4:$A$53, 0), MATCH(I$9, DEFN!$A$3:$K$3, 0)) -> None | J28: =INDEX(DEFN!$A$4:$K$53, MATCH($A28, DEFN!$A$4:$A$53, 0), MATCH(J$9, DEFN!$A$3:$K$3, 0)) -> Policy Types | K28: =INDEX(DEFN!B$250:B$313, MATCH($B28, DEFN!$A$250:$A$313, 0), 1) -> Africa | L28: =INDEX(DEFN!C$250:C$313, MATCH($B28, DEFN!$A$250:$A$313, 0), 1) -> Zimbabwe | M28: =INDEX(DEFN!$A$4:$K$53, MATCH($A28, DEFN!$A$4:$A$53, 0), MATCH(M$9, DEFN!$A$3:$K$3, 0)) -> User Defined | N28: =INDEX(DEFN!$A$4:$K$53, MATCH($A28, DEFN!$A$4:$A$53, 0), MATCH(N$9, DEFN!$A$3:$K$3, 0)) -> 5 | O28: =IFERROR(IF($H28="None", 1, IF($H28="All Capacity", SUMIFS(SID!X$3:X$12290, SID!$G$3:$G$12290, "<>Power demand", SID!$K$3:$K$12290, $L28, SID!$I$3:$I$12290, $J28), IF($H28="All Generation", SUMIFS(SID!X$3:X$12290, SID!$K$3:$K$12290, $L28, SID!$I$3:$I$12290, $J28), SUMIFS(SID!X$3:X$12290, SID!$F$3:$F$12290, $H28, SID!$K$3:$K$12290, $L28)))), 1) -> 1 | P28: =IF(ISNUMBER(FIND("Growth", F28)), U28, IF(V28<>0,V28, SUMIFS(SID!X$3:X$12290, SID!$C$3:$C$12290, $C28, SID!$K$3:$K$12290, $L28, SID!$Y$3:$Y$12290, 0))) -> 3 | Q28: 0.85 | R28: 5 | S28: 17 | T28: 0.85 | U28: =IF(I28="Clean energy investments", IF(OR(W28=0, X28=0), 0, X28/W28-1), IF(OR(I28="None", SUMIFS(SID!X$3:X$12290, SID!$F$3:$F$12290, I28, SID!$K$3:$K$12290, L28, SID!$Y$3:$Y$12290, 0)=0), 0, IFERROR(SUMIFS(SID!X$3:X$12290, SID!$F$3:$F$12290, I28, SID!$K$3:$K$12290, L28, SID!$Y$3:$Y$12290, 0)/SUMIFS(SID!W$3:W$12290, SID!$F$3:$F$12290, I28, SID!$K$3:$K$12290, L28, SID!$Y$3:$Y$12290, 0) - 1, 0))) -> 0 | V28: =IF(J28<>"USDm", 0, IF(F28="Clean energy investments", IF(ISNUMBER(FIND("-", $L28)), SUMIFS(INV!$J$3:$J$11498, INV!$E$3:$E$11498, $L28, INV!$A$3:$A$11498, "<=" & int_Year, INV!$A$3:$A$11498, ">=" & $G$6), SUMIFS(INV!$J$3:$J$11498, INV!$F$3:$F$11498, $L28, INV!$A$3:$A$11498, "<=" & int_Year, INV!$A$3:$A$11498, ">=" & $G$6)), IF(ISNUMBER(FIND("-", $L28)), SUMIFS(INV!$J$3:$J$11498, INV!$E$3:$E$11498, $L28, INV!$I$3:$I$11498, $F28, INV!$A$3:$A$11498, "<=" & int_Year, INV!$A$3:$A$11498, ">=" & $G$6), SUMIFS(INV!$J$3:$J$11498, INV!$F$3:$F$11498, $L28, INV!$I$3:$I$11498, $F28, INV!$A$3:$A$11498, "<=" & int_Year, INV!$A$3:$A$11498, ">=" & $G$6)))) -> 0 | W28: =IF(I28<>"Clean energy investments", 0, IF(ISNUMBER(FIND("-", $L28)), SUMIFS(INV!$J$3:$J$11498, INV!$E$3:$E$11498, $L28, INV!$A$3:$A$11498, ">="& int_InvStartYear, INV!$A$3:$A$11498, "<="& int_Year-1), SUMIFS(INV!$J$3:$J$11498, INV!$F$3:$F$11498, $L28, INV!$A$3:$A$11498, ">="& int_InvStartYear, INV!$A$3:$A$11498, "<="& int_Year-1))) -> 0 | X28: =IF(I28<>"Clean energy investments", 0, IF(ISNUMBER(FIND("-", $L28)), SUMIFS(INV!$J$3:$J$11498, INV!$E$3:$E$11498, $L28, INV!$A$3:$A$11498, ">="& int_InvStartYear, INV!$A$3:$A$11498, "<="& int_Year), SUMIFS(INV!$J$3:$J$11498, INV!$F$3:$F$11498, $L28, INV!$A$3:$A$11498, ">="& int_InvStartYear, INV!$A$3:$A$11498, "<="& int_Year))) -> 0 | Y28: 1.01 > Zimbabwe
A29: 1 | B29: 20 | C29: =INDEX(DEFN!$A$4:$K$53, MATCH($A29, DEFN!$A$4:$A$53, 0), MATCH(C$9, DEFN!$A$3:$K$3, 0)) -> 1.01 | D29: =INDEX(DEFN!$A$4:$K$53, MATCH($A29, DEFN!$A$4:$A$53, 0), MATCH(D$9, DEFN!$A$3:$K$3, 0)) -> Enabling Framework | E29: =INDEX(DEFN!$A$4:$K$53, MATCH($A29, DEFN!$A$4:$A$53, 0), MATCH(E$9, DEFN!$A$3:$K$3, 0)) -> Policy & Regulation | F29: =INDEX(DEFN!$A$4:$K$53, MATCH($A29, DEFN!$A$4:$A$53, 0), MATCH(F$9, DEFN!$A$3:$K$3, 0)) -> Clean energy policies | G29: =INDEX(DEFN!$A$4:$K$53, MATCH($A29, DEFN!$A$4:$A$53, 0), MATCH(G$9, DEFN!$A$3:$K$3, 0)) -> Both | H29: =INDEX(DEFN!$A$4:$K$53, MATCH($A29, DEFN!$A$4:$A$53, 0), MATCH(H$9, DEFN!$A$3:$K$3, 0)) -> None | I29: =INDEX(DEFN!$A$4:$K$53, MATCH($A29, DEFN!$A$4:$A$53, 0), MATCH(I$9, DEFN!$A$3:$K$3, 0)) -> None | J29: =INDEX(DEFN!$A$4:$K$53, MATCH($A29, DEFN!$A$4:$A$53, 0), MATCH(J$9, DEFN!$A$3:$K$3, 0)) -> Policy Types | K29: =INDEX(DEFN!B$250:B$313, MATCH($B29, DEFN!$A$250:$A$313, 0), 1) -> Asia | L29: =INDEX(DEFN!C$250:C$313, MATCH($B29, DEFN!$A$250:$A$313, 0), 1) -> Bangladesh | M29: =INDEX(DEFN!$A$4:$K$53, MATCH($A29, DEFN!$A$4:$A$53, 0), MATCH(M$9, DEFN!$A$3:$K$3, 0)) -> User Defined | N29: =INDEX(DEFN!$A$4:$K$53, MATCH($A29, DEFN!$A$4:$A$53, 0), MATCH(N$9, DEFN!$A$3:$K$3, 0)) -> 5 | O29: =IFERROR(IF($H29="None", 1, IF($H29="All Capacity", SUMIFS(SID!X$3:X$12290, SID!$G$3:$G$12290, "<>Power demand", SID!$K$3:$K$12290, $L29, SID!$I$3:$I$12290, $J29), IF($H29="All Generation", SUMIFS(SID!X$3:X$12290, SID!$K$3:$K$12290, $L29, SID!$I$3:$I$12290, $J29), SUMIFS(SID!X$3:X$12290, SID!$F$3:$F$12290, $H29, SID!$K$3:$K$12290, $L29)))), 1) -> 1 | P29: =IF(ISNUMBER(FIND("Growth", F29)), U29, IF(V29<>0,V29, SUMIFS(SID!X$3:X$12290, SID!$C$3:$C$12290, $C29, SID!$K$3:$K$12290, $L29, SID!$Y$3:$Y$12290, 0))) -> 4 | Q29: 1.26 | R29: 5 | S29: 25.2 | T29: 1.26 | U29: =IF(I29="Clean energy investments", IF(OR(W29=0, X29=0), 0, X29/W29-1), IF(OR(I29="None", SUMIFS(SID!X$3:X$12290, SID!$F$3:$F$12290, I29, SID!$K$3:$K$12290, L29, SID!$Y$3:$Y$12290, 0)=0), 0, IFERROR(SUMIFS(SID!X$3:X$12290, SID!$F$3:$F$12290, I29, SID!$K$3:$K$12290, L29, SID!$Y$3:$Y$12290, 0)/SUMIFS(SID!W$3:W$12290, SID!$F$3:$F$12290, I29, SID!$K$3:$K$12290, L29, SID!$Y$3:$Y$12290, 0) - 1, 0))) -> 0 | V29: =IF(J29<>"USDm", 0, IF(F29="Clean energy investments", IF(ISNUMBER(FIND("-", $L29)), SUMIFS(INV!$J$3:$J$11498, INV!$E$3:$E$11498, $L29, INV!$A$3:$A$11498, "<=" & int_Year, INV!$A$3:$A$11498, ">=" & $G$6), SUMIFS(INV!$J$3:$J$11498, INV!$F$3:$F$11498, $L29, INV!$A$3:$A$11498, "<=" & int_Year, INV!$A$3:$A$11498, ">=" & $G$6)), IF(ISNUMBER(FIND("-", $L29)), SUMIFS(INV!$J$3:$J$11498, INV!$E$3:$E$11498, $L29, INV!$I$3:$I$11498, $F29, INV!$A$3:$A$11498, "<=" & int_Year, INV!$A$3:$A$11498, ">=" & $G$6), SUMIFS(INV!$J$3:$J$11498, INV!$F$3:$F$11498, $L29, INV!$I$3:$I$11498, $F29, INV!$A$3:$A$11498, "<=" & int_Year, INV!$A$3:$A$11498, ">=" & $G$6)))) -> 0 | W29: =IF(I29<>"Clean energy investments", 0, IF(ISNUMBER(FIND("-", $L29)), SUMIFS(INV!$J$3:$J$11498, INV!$E$3:$E$11498, $L29, INV!$A$3:$A$11498, ">="& int_InvStartYear, INV!$A$3:$A$11498, "<="& int_Year-1), SUMIFS(INV!$J$3:$J$11498, INV!$F$3:$F$11498, $L29, INV!$A$3:$A$11498, ">="& int_InvStartYear, INV!$A$3:$A$11498, "<="& int_Year-1))) -> 0 | X29: =IF(I29<>"Clean energy investments", 0, IF(ISNUMBER(FIND("-", $L29)), SUMIFS(INV!$J$3:$J$11498, INV!$E$3:$E$11498, $L29, INV!$A$3:$A$11498, ">="& int_InvStartYear, INV!$A$3:$A$11498, "<="& int_Year), SUMIFS(INV!$J$3:$J$11498, INV!$F$3:$F$11498, $L29, INV!$A$3:$A$11498, ">="& int_InvStartYear, INV!$A$3:$A$11498, "<="& int_Year))) -> 0 | Y29: 1.01 > Bangladesh
A30: 1 | B30: 21 | C30: =INDEX(DEFN!$A$4:$K$53, MATCH($A30, DEFN!$A$4:$A$53, 0), MATCH(C$9, DEFN!$A$3:$K$3, 0)) -> 1.01 | D30: =INDEX(DEFN!$A$4:$K$53, MATCH($A30, DEFN!$A$4:$A$53, 0), MATCH(D$9, DEFN!$A$3:$K$3, 0)) -> Enabling Framework | E30: =INDEX(DEFN!$A$4:$K$53, MATCH($A30, DEFN!$A$4:$A$53, 0), MATCH(E$9, DEFN!$A$3:$K$3, 0)) -> Policy & Regulation | F30: =INDEX(DEFN!$A$4:$K$53, MATCH($A30, DEFN!$A$4:$A$53, 0), MATCH(F$9, DEFN!$A$3:$K$3, 0)) -> Clean energy policies | G30: =INDEX(DEFN!$A$4:$K$53, MATCH($A30, DEFN!$A$4:$A$53, 0), MATCH(G$9, DEFN!$A$3:$K$3, 0)) -> Both | H30: =INDEX(DEFN!$A$4:$K$53, MATCH($A30, DEFN!$A$4:$A$53, 0), MATCH(H$9, DEFN!$A$3:$K$3, 0)) -> None | I30: =INDEX(DEFN!$A$4:$K$53, MATCH($A30, DEFN!$A$4:$A$53, 0), MATCH(I$9, DEFN!$A$3:$K$3, 0)) -> None | J30: =INDEX(DEFN!$A$4:$K$53, MATCH($A30, DEFN!$A$4:$A$53, 0), MATCH(J$9, DEFN!$A$3:$K$3, 0)) -> Policy Types | K30: =INDEX(DEFN!B$250:B$313, MATCH($B30, DEFN!$A$250:$A$313, 0), 1) -> Asia | L30: =INDEX(DEFN!C$250:C$313, MATCH($B30, DEFN!$A$250:$A$313, 0), 1) -> China | M30: =INDEX(DEFN!$A$4:$K$53, MATCH($A30, DEFN!$A$4:$A$53, 0), MATCH(M$9, DEFN!$A$3:$K$3, 0)) -> User Defined | N30: =INDEX(DEFN!$A$4:$K$53, MATCH($A30, DEFN!$A$4:$A$53, 0), MATCH(N$9, DEFN!$A$3:$K$3, 0)) -> 5 | O30: =IFERROR(IF($H30="None", 1, IF($H30="All Capacity", SUMIFS(SID!X$3:X$12290, SID!$G$3:$G$12290, "<>Power demand", SID!$K$3:$K$12290, $L30, SID!$I$3:$I$12290, $J30), IF($H30="All Generation", SUMIFS(SID!X$3:X$12290, SID!$K$3:$K$12290, $L30, SID!$I$3:$I$12290, $J30), SUMIFS(SID!X$3:X$12290, SID!$F$3:$F$12290, $H30, SID!$K$3:$K$12290, $L30)))), 1) -> 1 | P30: =IF(ISNUMBER(FIND("Growth", F30)), U30, IF(V30<>0,V30, SUMIFS(SID!X$3:X$12290, SID!$C$3:$C$12290, $C30, SID!$K$3:$K$12290, $L30, SID!$Y$3:$Y$12290, 0))) -> 6 | Q30: 2.24 | R30: 5 | S30: 44.8 | T30: 2.24 | U30: =IF(I30="Clean energy investments", IF(OR(W30=0, X30=0), 0, X30/W30-1), IF(OR(I30="None", SUMIFS(SID!X$3:X$12290, SID!$F$3:$F$12290, I30, SID!$K$3:$K$12290, L30, SID!$Y$3:$Y$12290, 0)=0), 0, IFERROR(SUMIFS(SID!X$3:X$12290, SID!$F$3:$F$12290, I30, SID!$K$3:$K$12290, L30, SID!$Y$3:$Y$12290, 0)/SUMIFS(SID!W$3:W$12290, SID!$F$3:$F$12290, I30, SID!$K$3:$K$12290, L30, SID!$Y$3:$Y$12290, 0) - 1, 0))) -> 0 | V30: =IF(J30<>"USDm", 0, IF(F30="Clean energy investments", IF(ISNUMBER(FIND("-", $L30)), SUMIFS(INV!$J$3:$J$11498, INV!$E$3:$E$11498, $L30, INV!$A$3:$A$11498, "<=" & int_Year, INV!$A$3:$A$11498, ">=" & $G$6), SUMIFS(INV!$J$3:$J$11498, INV!$F$3:$F$11498, $L30, INV!$A$3:$A$11498, "<=" & int_Year, INV!$A$3:$A$11498, ">=" & $G$6)), IF(ISNUMBER(FIND("-", $L30)), SUMIFS(INV!$J$3:$J$11498, INV!$E$3:$E$11498, $L30, INV!$I$3:$I$11498, $F30, INV!$A$3:$A$11498, "<=" & int_Year, INV!$A$3:$A$11498, ">=" & $G$6), SUMIFS(INV!$J$3:$J$11498, INV!$F$3:$F$11498, $L30, INV!$I$3:$I$11498, $F30, INV!$A$3:$A$11498, "<=" & int_Year, INV!$A$3:$A$11498, ">=" & $G$6)))) -> 0 | W30: =IF(I30<>"Clean energy investments", 0, IF(ISNUMBER(FIND("-", $L30)), SUMIFS(INV!$J$3:$J$11498, INV!$E$3:$E$11498, $L30, INV!$A$3:$A$11498, ">="& int_InvStartYear, INV!$A$3:$A$11498, "<="& int_Year-1), SUMIFS(INV!$J$3:$J$11498, INV!$F$3:$F$11498, $L30, INV!$A$3:$A$11498, ">="& int_InvStartYear, INV!$A$3:$A$11498, "<="& int_Year-1))) -> 0 | X30: =IF(I30<>"Clean energy investments", 0, IF(ISNUMBER(FIND("-", $L30)), SUMIFS(INV!$J$3:$J$11498, INV!$E$3:$E$11498, $L30, INV!$A$3:$A$11498, ">="& int_InvStartYear, INV!$A$3:$A$11498, "<="& int_Year), SUMIFS(INV!$J$3:$J$11498, INV!$F$3:$F$11498, $L30, INV!$A$3:$A$11498, ">="& int_InvStartYear, INV!$A$3:$A$11498, "<="& int_Year))) -> 0 | Y30: 1.01 > China
A31: 1 | B31: 22 | C31: =INDEX(DEFN!$A$4:$K$53, MATCH($A31, DEFN!$A$4:$A$53, 0), MATCH(C$9, DEFN!$A$3:$K$3, 0)) -> 1.01 | D31: =INDEX(DEFN!$A$4:$K$53, MATCH($A31, DEFN!$A$4:$A$53, 0), MATCH(D$9, DEFN!$A$3:$K$3, 0)) -> Enabling Framework | E31: =INDEX(DEFN!$A$4:$K$53, MATCH($A31, DEFN!$A$4:$A$53, 0), MATCH(E$9, DEFN!$A$3:$K$3, 0)) -> Policy & Regulation | F31: =INDEX(DEFN!$A$4:$K$53, MATCH($A31, DEFN!$A$4:$A$53, 0), MATCH(F$9, DEFN!$A$3:$K$3, 0)) -> Clean energy policies | G31: =INDEX(DEFN!$A$4:$K$53, MATCH($A31, DEFN!$A$4:$A$53, 0), MATCH(G$9, DEFN!$A$3:$K$3, 0)) -> Both | H31: =INDEX(DEFN!$A$4:$K$53, MATCH($A31, DEFN!$A$4:$A$53, 0), MATCH(H$9, DEFN!$A$3:$K$3, 0)) -> None | I31: =INDEX(DEFN!$A$4:$K$53, MATCH($A31, DEFN!$A$4:$A$53, 0), MATCH(I$9, DEFN!$A$3:$K$3, 0)) -> None | J31: =INDEX(DEFN!$A$4:$K$53, MATCH($A31, DEFN!$A$4:$A$53, 0), MATCH(J$9, DEFN!$A$3:$K$3, 0)) -> Policy Types | K31: =INDEX(DEFN!B$250:B$313, MATCH($B31, DEFN!$A$250:$A$313, 0), 1) -> Asia | L31: =INDEX(DEFN!C$250:C$313, MATCH($B31, DEFN!$A$250:$A$313, 0), 1) -> India | M31: =INDEX(DEFN!$A$4:$K$53, MATCH($A31, DEFN!$A$4:$A$53, 0), MATCH(M$9, DEFN!$A$3:$K$3, 0)) -> User Defined | N31: =INDEX(DEFN!$A$4:$K$53, MATCH($A31, DEFN!$A$4:$A$53, 0), MATCH(N$9, DEFN!$A$3:$K$3, 0)) -> 5 | O31: =IFERROR(IF($H31="None", 1, IF($H31="All Capacity", SUMIFS(SID!X$3:X$12290, SID!$G$3:$G$12290, "<>Power demand", SID!$K$3:$K$12290, $L31, SID!$I$3:$I$12290, $J31), IF($H31="All Generation", SUMIFS(SID!X$3:X$12290, SID!$K$3:$K$12290, $L31, SID!$I$3:$I$12290, $J31), SUMIFS(SID!X$3:X$12290, SID!$F$3:$F$12290, $H31, SID!$K$3:$K$12290, $L31)))), 1) -> 1 | P31: =IF(ISNUMBER(FIND("Growth", F31)), U31, IF(V31<>0,V31, SUMIFS(SID!X$3:X$12290, SID!$C$3:$C$12290, $C31, SID!$K$3:$K$12290, $L31, SID!$Y$3:$Y$12290, 0))) -> 8 | Q31: 2.85 | R31: 5 | S31: 57 | T31: 2.85 | U31: =IF(I31="Clean energy investments", IF(OR(W31=0, X31=0), 0, X31/W31-1), IF(OR(I31="None", SUMIFS(SID!X$3:X$12290, SID!$F$3:$F$12290, I31, SID!$K$3:$K$12290, L31, SID!$Y$3:$Y$12290, 0)=0), 0, IFERROR(SUMIFS(SID!X$3:X$12290, SID!$F$3:$F$12290, I31, SID!$K$3:$K$12290, L31, SID!$Y$3:$Y$12290, 0)/SUMIFS(SID!W$3:W$12290, SID!$F$3:$F$12290, I31, SID!$K$3:$K$12290, L31, SID!$Y$3:$Y$12290, 0) - 1, 0))) -> 0 | V31: =IF(J31<>"USDm", 0, IF(F31="Clean energy investments", IF(ISNUMBER(FIND("-", $L31)), SUMIFS(INV!$J$3:$J$11498, INV!$E$3:$E$11498, $L31, INV!$A$3:$A$11498, "<=" & int_Year, INV!$A$3:$A$11498, ">=" & $G$6), SUMIFS(INV!$J$3:$J$11498, INV!$F$3:$F$11498, $L31, INV!$A$3:$A$11498, "<=" & int_Year, INV!$A$3:$A$11498, ">=" & $G$6)), IF(ISNUMBER(FIND("-", $L31)), SUMIFS(INV!$J$3:$J$11498, INV!$E$3:$E$11498, $L31, INV!$I$3:$I$11498, $F31, INV!$A$3:$A$11498, "<=" & int_Year, INV!$A$3:$A$11498, ">=" & $G$6), SUMIFS(INV!$J$3:$J$11498, INV!$F$3:$F$11498, $L31, INV!$I$3:$I$11498, $F31, INV!$A$3:$A$11498, "<=" & int_Year, INV!$A$3:$A$11498, ">=" & $G$6)))) -> 0 | W31: =IF(I31<>"Clean energy investments", 0, IF(ISNUMBER(FIND("-", $L31)), SUMIFS(INV!$J$3:$J$11498, INV!$E$3:$E$11498, $L31, INV!$A$3:$A$11498, ">="& int_InvStartYear, INV!$A$3:$A$11498, "<="& int_Year-1), SUMIFS(INV!$J$3:$J$11498, INV!$F$3:$F$11498, $L31, INV!$A$3:$A$11498, ">="& int_InvStartYear, INV!$A$3:$A$11498, "<="& int_Year-1))) -> 0 | X31: =IF(I31<>"Clean energy investments", 0, IF(ISNUMBER(FIND("-", $L31)), SUMIFS(INV!$J$3:$J$11498, INV!$E$3:$E$11498, $L31, INV!$A$3:$A$11498, ">="& int_InvStartYear, INV!$A$3:$A$11498, "<="& int_Year), SUMIFS(INV!$J$3:$J$11498, INV!$F$3:$F$11498, $L31, INV!$A$3:$A$11498, ">="& int_InvStartYear, INV!$A$3:$A$11498, "<="& int_Year))) -> 0 | Y31: 1.01 > India
A32: 1 | B32: 23 | C32: =INDEX(DEFN!$A$4:$K$53, MATCH($A32, DEFN!$A$4:$A$53, 0), MATCH(C$9, DEFN!$A$3:$K$3, 0)) -> 1.01 | D32: =INDEX(DEFN!$A$4:$K$53, MATCH($A32, DEFN!$A$4:$A$53, 0), MATCH(D$9, DEFN!$A$3:$K$3, 0)) -> Enabling Framework | E32: =INDEX(DEFN!$A$4:$K$53, MATCH($A32, DEFN!$A$4:$A$53, 0), MATCH(E$9, DEFN!$A$3:$K$3, 0)) -> Policy & Regulation | F32: =INDEX(DEFN!$A$4:$K$53, MATCH($A32, DEFN!$A$4:$A$53, 0), MATCH(F$9, DEFN!$A$3:$K$3, 0)) -> Clean energy policies | G32: =INDEX(DEFN!$A$4:$K$53, MATCH($A32, DEFN!$A$4:$A$53, 0), MATCH(G$9, DEFN!$A$3:$K$3, 0)) -> Both | H32: =INDEX(DEFN!$A$4:$K$53, MATCH($A32, DEFN!$A$4:$A$53, 0), MATCH(H$9, DEFN!$A$3:$K$3, 0)) -> None | I32: =INDEX(DEFN!$A$4:$K$53, MATCH($A32, DEFN!$A$4:$A$53, 0), MATCH(I$9, DEFN!$A$3:$K$3, 0)) -> None | J32: =INDEX(DEFN!$A$4:$K$53, MATCH($A32, DEFN!$A$4:$A$53, 0), MATCH(J$9, DEFN!$A$3:$K$3, 0)) -> Policy Types | K32: =INDEX(DEFN!B$250:B$313, MATCH($B32, DEFN!$A$250:$A$313, 0), 1) -> Asia | L32: =INDEX(DEFN!C$250:C$313, MATCH($B32, DEFN!$A$250:$A$313, 0), 1) -> India - Andhra Pradesh | M32: =INDEX(DEFN!$A$4:$K$53, MATCH($A32, DEFN!$A$4:$A$53, 0), MATCH(M$9, DEFN!$A$3:$K$3, 0)) -> User Defined | N32: =INDEX(DEFN!$A$4:$K$53, MATCH($A32, DEFN!$A$4:$A$53, 0), MATCH(N$9, DEFN!$A$3:$K$3, 0)) -> 5 | O32: =IFERROR(IF($H32="None", 1, IF($H32="All Capacity", SUMIFS(SID!X$3:X$12290, SID!$G$3:$G$12290, "<>Power demand", SID!$K$3:$K$12290, $L32, SID!$I$3:$I$12290, $J32), IF($H32="All Generation", SUMIFS(SID!X$3:X$12290, SID!$K$3:$K$12290, $L32, SID!$I$3:$I$12290, $J32), SUMIFS(SID!X$3:X$12290, SID!$F$3:$F$12290, $H32, SID!$K$3:$K$12290, $L32)))), 1) -> 1 | P32: =IF(ISNUMBER(FIND("Growth", F32)), U32, IF(V32<>0,V32, SUMIFS(SID!X$3:X$12290, SID!$C$3:$C$12290, $C32, SID!$K$3:$K$12290, $L32, SID!$Y$3:$Y$12290, 0))) -> 8 | Q32: 0 | R32: 5 | S32: 0 | T32: 0 | U32: =IF(I32="Clean energy investments", IF(OR(W32=0, X32=0), 0, X32/W32-1), IF(OR(I32="None", SUMIFS(SID!X$3:X$12290, SID!$F$3:$F$12290, I32, SID!$K$3:$K$12290, L32, SID!$Y$3:$Y$12290, 0)=0), 0, IFERROR(SUMIFS(SID!X$3:X$12290, SID!$F$3:$F$12290, I32, SID!$K$3:$K$12290, L32, SID!$Y$3:$Y$12290, 0)/SUMIFS(SID!W$3:W$12290, SID!$F$3:$F$12290, I32, SID!$K$3:$K$12290, L32, SID!$Y$3:$Y$12290, 0) - 1, 0))) -> 0 | V32: =IF(J32<>"USDm", 0, IF(F32="Clean energy investments", IF(ISNUMBER(FIND("-", $L32)), SUMIFS(INV!$J$3:$J$11498, INV!$E$3:$E$11498, $L32, INV!$A$3:$A$11498, "<=" & int_Year, INV!$A$3:$A$11498, ">=" & $G$6), SUMIFS(INV!$J$3:$J$11498, INV!$F$3:$F$11498, $L32, INV!$A$3:$A$11498, "<=" & int_Year, INV!$A$3:$A$11498, ">=" & $G$6)), IF(ISNUMBER(FIND("-", $L32)), SUMIFS(INV!$J$3:$J$11498, INV!$E$3:$E$11498, $L32, INV!$I$3:$I$11498, $F32, INV!$A$3:$A$11498, "<=" & int_Year, INV!$A$3:$A$11498, ">=" & $G$6), SUMIFS(INV!$J$3:$J$11498, INV!$F$3:$F$11498, $L32, INV!$I$3:$I$11498, $F32, INV!$A$3:$A$11498, "<=" & int_Year, INV!$A$3:$A$11498, ">=" & $G$6)))) -> 0 | W32: =IF(I32<>"Clean energy investments", 0, IF(ISNUMBER(FIND("-", $L32)), SUMIFS(INV!$J$3:$J$11498, INV!$E$3:$E$11498, $L32, INV!$A$3:$A$11498, ">="& int_InvStartYear, INV!$A$3:$A$11498, "<="& int_Year-1), SUMIFS(INV!$J$3:$J$11498, INV!$F$3:$F$11498, $L32, INV!$A$3:$A$11498, ">="& int_InvStartYear, INV!$A$3:$A$11498, "<="& int_Year-1))) -> 0 | X32: =IF(I32<>"Clean energy investments", 0, IF(ISNUMBER(FIND("-", $L32)), SUMIFS(INV!$J$3:$J$11498, INV!$E$3:$E$11498, $L32, INV!$A$3:$A$11498, ">="& int_InvStartYear, INV!$A$3:$A$11498, "<="& int_Year), SUMIFS(INV!$J$3:$J$11498, INV!$F$3:$F$11498, $L32, INV!$A$3:$A$11498, ">="& int_InvStartYear, INV!$A$3:$A$11498, "<="& int_Year))) -> 0 | Y32: 1.01 > India - Andhra Pradesh
A33: 1 | B33: 24 | C33: =INDEX(DEFN!$A$4:$K$53, MATCH($A33, DEFN!$A$4:$A$53, 0), MATCH(C$9, DEFN!$A$3:$K$3, 0)) -> 1.01 | D33: =INDEX(DEFN!$A$4:$K$53, MATCH($A33, DEFN!$A$4:$A$53, 0), MATCH(D$9, DEFN!$A$3:$K$3, 0)) -> Enabling Framework | E33: =INDEX(DEFN!$A$4:$K$53, MATCH($A33, DEFN!$A$4:$A$53, 0), MATCH(E$9, DEFN!$A$3:$K$3, 0)) -> Policy & Regulation | F33: =INDEX(DEFN!$A$4:$K$53, MATCH($A33, DEFN!$A$4:$A$53, 0), MATCH(F$9, DEFN!$A$3:$K$3, 0)) -> Clean energy policies | G33: =INDEX(DEFN!$A$4:$K$53, MATCH($A33, DEFN!$A$4:$A$53, 0), MATCH(G$9, DEFN!$A$3:$K$3, 0)) -> Both | H33: =INDEX(DEFN!$A$4:$K$53, MATCH($A33, DEFN!$A$4:$A$53, 0), MATCH(H$9, DEFN!$A$3:$K$3, 0)) -> None | I33: =INDEX(DEFN!$A$4:$K$53, MATCH($A33, DEFN!$A$4:$A$53, 0), MATCH(I$9, DEFN!$A$3:$K$3, 0)) -> None | J33: =INDEX(DEFN!$A$4:$K$53, MATCH($A33, DEFN!$A$4:$A$53, 0), MATCH(J$9, DEFN!$A$3:$K$3, 0)) -> Policy Types | K33: =INDEX(DEFN!B$250:B$313, MATCH($B33, DEFN!$A$250:$A$313, 0), 1) -> Asia | L33: =INDEX(DEFN!C$250:C$313, MATCH($B33, DEFN!$A$250:$A$313, 0), 1) -> India - Bihar | M33: =INDEX(DEFN!$A$4:$K$53, MATCH($A33, DEFN!$A$4:$A$53, 0), MATCH(M$9, DEFN!$A$3:$K$3, 0)) -> User Defined | N33: =INDEX(DEFN!$A$4:$K$53, MATCH($A33, DEFN!$A$4:$A$53, 0), MATCH(N$9, DEFN!$A$3:$K$3, 0)) -> 5 | O33: =IFERROR(IF($H33="None", 1, IF($H33="All Capacity", SUMIFS(SID!X$3:X$12290, SID!$G$3:$G$12290, "<>Power demand", SID!$K$3:$K$12290, $L33, SID!$I$3:$I$12290, $J33), IF($H33="All Generation", SUMIFS(SID!X$3:X$12290, SID!$K$3:$K$12290, $L33, SID!$I$3:$I$12290, $J33), SUMIFS(SID!X$3:X$12290, SID!$F$3:$F$12290, $H33, SID!$K$3:$K$12290, $L33)))), 1) -> 1 | P33: =IF(ISNUMBER(FIND("Growth", F33)), U33, IF(V33<>0,V33, SUMIFS(SID!X$3:X$12290, SID!$C$3:$C$12290, $C33, SID!$K$3:$K$12290, $L33, SID!$Y$3:$Y$12290, 0))) -> 7 | Q33: 0 | R33: 5 | S33: 0 | T33: 0 | U33: =IF(I33="Clean energy investments", IF(OR(W33=0, X33=0), 0, X33/W33-1), IF(OR(I33="None", SUMIFS(SID!X$3:X$12290, SID!$F$3:$F$12290, I33, SID!$K$3:$K$12290, L33, SID!$Y$3:$Y$12290, 0)=0), 0, IFERROR(SUMIFS(SID!X$3:X$12290, SID!$F$3:$F$12290, I33, SID!$K$3:$K$12290, L33, SID!$Y$3:$Y$12290, 0)/SUMIFS(SID!W$3:W$12290, SID!$F$3:$F$12290, I33, SID!$K$3:$K$12290, L33, SID!$Y$3:$Y$12290, 0) - 1, 0))) -> 0 | V33: =IF(J33<>"USDm", 0, IF(F33="Clean energy investments", IF(ISNUMBER(FIND("-", $L33)), SUMIFS(INV!$J$3:$J$11498, INV!$E$3:$E$11498, $L33, INV!$A$3:$A$11498, "<=" & int_Year, INV!$A$3:$A$11498, ">=" & $G$6), SUMIFS(INV!$J$3:$J$11498, INV!$F$3:$F$11498, $L33, INV!$A$3:$A$11498, "<=" & int_Year, INV!$A$3:$A$11498, ">=" & $G$6)), IF(ISNUMBER(FIND("-", $L33)), SUMIFS(INV!$J$3:$J$11498, INV!$E$3:$E$11498, $L33, INV!$I$3:$I$11498, $F33, INV!$A$3:$A$11498, "<=" & int_Year, INV!$A$3:$A$11498, ">=" & $G$6), SUMIFS(INV!$J$3:$J$11498, INV!$F$3:$F$11498, $L33, INV!$I$3:$I$11498, $F33, INV!$A$3:$A$11498, "<=" & int_Year, INV!$A$3:$A$11498, ">=" & $G$6)))) -> 0 | W33: =IF(I33<>"Clean energy investments", 0, IF(ISNUMBER(FIND("-", $L33)), SUMIFS(INV!$J$3:$J$11498, INV!$E$3:$E$11498, $L33, INV!$A$3:$A$11498, ">="& int_InvStartYear, INV!$A$3:$A$11498, "<="& int_Year-1), SUMIFS(INV!$J$3:$J$11498, INV!$F$3:$F$11498, $L33, INV!$A$3:$A$11498, ">="& int_InvStartYear, INV!$A$3:$A$11498, "<="& int_Year-1))) -> 0 | X33: =IF(I33<>"Clean energy investments", 0, IF(ISNUMBER(FIND("-", $L33)), SUMIFS(INV!$J$3:$J$11498, INV!$E$3:$E$11498, $L33, INV!$A$3:$A$11498, ">="& int_InvStartYear, INV!$A$3:$A$11498, "<="& int_Year), SUMIFS(INV!$J$3:$J$11498, INV!$F$3:$F$11498, $L33, INV!$A$3:$A$11498, ">="& int_InvStartYear, INV!$A$3:$A$11498, "<="& int_Year))) -> 0 | Y33: 1.01 > India - Bihar
A34: 1 | B34: 25 | C34: =INDEX(DEFN!$A$4:$K$53, MATCH($A34, DEFN!$A$4:$A$53, 0), MATCH(C$9, DEFN!$A$3:$K$3, 0)) -> 1.01 | D34: =INDEX(DEFN!$A$4:$K$53, MATCH($A34, DEFN!$A$4:$A$53, 0), MATCH(D$9, DEFN!$A$3:$K$3, 0)) -> Enabling Framework | E34: =INDEX(DEFN!$A$4:$K$53, MATCH($A34, DEFN!$A$4:$A$53, 0), MATCH(E$9, DEFN!$A$3:$K$3, 0)) -> Policy & Regulation | F34: =INDEX(DEFN!$A$4:$K$53, MATCH($A34, DEFN!$A$4:$A$53, 0), MATCH(F$9, DEFN!$A$3:$K$3, 0)) -> Clean energy policies | G34: =INDEX(DEFN!$A$4:$K$53, MATCH($A34, DEFN!$A$4:$A$53, 0), MATCH(G$9, DEFN!$A$3:$K$3, 0)) -> Both | H34: =INDEX(DEFN!$A$4:$K$53, MATCH($A34, DEFN!$A$4:$A$53, 0), MATCH(H$9, DEFN!$A$3:$K$3, 0)) -> None | I34: =INDEX(DEFN!$A$4:$K$53, MATCH($A34, DEFN!$A$4:$A$53, 0), MATCH(I$9, DEFN!$A$3:$K$3, 0)) -> None | J34: =INDEX(DEFN!$A$4:$K$53, MATCH($A34, DEFN!$A$4:$A$53, 0), MATCH(J$9, DEFN!$A$3:$K$3, 0)) -> Policy Types | K34: =INDEX(DEFN!B$250:B$313, MATCH($B34, DEFN!$A$250:$A$313, 0), 1) -> Asia | L34: =INDEX(DEFN!C$250:C$313, MATCH($B34, DEFN!$A$250:$A$313, 0), 1) -> India - Madhya Pradesh | M34: =INDEX(DEFN!$A$4:$K$53, MATCH($A34, DEFN!$A$4:$A$53, 0), MATCH(M$9, DEFN!$A$3:$K$3, 0)) -> User Defined | N34: =INDEX(DEFN!$A$4:$K$53, MATCH($A34, DEFN!$A$4:$A$53, 0), MATCH(N$9, DEFN!$A$3:$K$3, 0)) -> 5 | O34: =IFERROR(IF($H34="None", 1, IF($H34="All Capacity", SUMIFS(SID!X$3:X$12290, SID!$G$3:$G$12290, "<>Power demand", SID!$K$3:$K$12290, $L34, SID!$I$3:$I$12290, $J34), IF($H34="All Generation", SUMIFS(SID!X$3:X$12290, SID!$K$3:$K$12290, $L34, SID!$I$3:$I$12290, $J34), SUMIFS(SID!X$3:X$12290, SID!$F$3:$F$12290, $H34, SID!$K$3:$K$12290, $L34)))), 1) -> 1 | P34: =IF(ISNUMBER(FIND("Growth", F34)), U34, IF(V34<>0,V34, SUMIFS(SID!X$3:X$12290, SID!$C$3:$C$12290, $C34, SID!$K$3:$K$12290, $L34, SID!$Y$3:$Y$12290, 0))) -> 8 | Q34: 0 | R34: 5 | S34: 0 | T34: 0 | U34: =IF(I34="Clean energy investments", IF(OR(W34=0, X34=0), 0, X34/W34-1), IF(OR(I34="None", SUMIFS(SID!X$3:X$12290, SID!$F$3:$F$12290, I34, SID!$K$3:$K$12290, L34, SID!$Y$3:$Y$12290, 0)=0), 0, IFERROR(SUMIFS(SID!X$3:X$12290, SID!$F$3:$F$12290, I34, SID!$K$3:$K$12290, L34, SID!$Y$3:$Y$12290, 0)/SUMIFS(SID!W$3:W$12290, SID!$F$3:$F$12290, I34, SID!$K$3:$K$12290, L34, SID!$Y$3:$Y$12290, 0) - 1, 0))) -> 0 | V34: =IF(J34<>"USDm", 0, IF(F34="Clean energy investments", IF(ISNUMBER(FIND("-", $L34)), SUMIFS(INV!$J$3:$J$11498, INV!$E$3:$E$11498, $L34, INV!$A$3:$A$11498, "<=" & int_Year, INV!$A$3:$A$11498, ">=" & $G$6), SUMIFS(INV!$J$3:$J$11498, INV!$F$3:$F$11498, $L34, INV!$A$3:$A$11498, "<=" & int_Year, INV!$A$3:$A$11498, ">=" & $G$6)), IF(ISNUMBER(FIND("-", $L34)), SUMIFS(INV!$J$3:$J$11498, INV!$E$3:$E$11498, $L34, INV!$I$3:$I$11498, $F34, INV!$A$3:$A$11498, "<=" & int_Year, INV!$A$3:$A$11498, ">=" & $G$6), SUMIFS(INV!$J$3:$J$11498, INV!$F$3:$F$11498, $L34, INV!$I$3:$I$11498, $F34, INV!$A$3:$A$11498, "<=" & int_Year, INV!$A$3:$A$11498, ">=" & $G$6)))) -> 0 | W34: =IF(I34<>"Clean energy investments", 0, IF(ISNUMBER(FIND("-", $L34)), SUMIFS(INV!$J$3:$J$11498, INV!$E$3:$E$11498, $L34, INV!$A$3:$A$11498, ">="& int_InvStartYear, INV!$A$3:$A$11498, "<="& int_Year-1), SUMIFS(INV!$J$3:$J$11498, INV!$F$3:$F$11498, $L34, INV!$A$3:$A$11498, ">="& int_InvStartYear, INV!$A$3:$A$11498, "<="& int_Year-1))) -> 0 | X34: =IF(I34<>"Clean energy investments", 0, IF(ISNUMBER(FIND("-", $L34)), SUMIFS(INV!$J$3:$J$11498, INV!$E$3:$E$11498, $L34, INV!$A$3:$A$11498, ">="& int_InvStartYear, INV!$A$3:$A$11498, "<="& int_Year), SUMIFS(INV!$J$3:$J$11498, INV!$F$3:$F$11498, $L34, INV!$A$3:$A$11498, ">="& int_InvStartYear, INV!$A$3:$A$11498, "<="& int_Year))) -> 0 | Y34: 1.01 > India - Madhya Pradesh
A35: 1 | B35: 26 | C35: =INDEX(DEFN!$A$4:$K$53, MATCH($A35, DEFN!$A$4:$A$53, 0), MATCH(C$9, DEFN!$A$3:$K$3, 0)) -> 1.01 | D35: =INDEX(DEFN!$A$4:$K$53, MATCH($A35, DEFN!$A$4:$A$53, 0), MATCH(D$9, DEFN!$A$3:$K$3, 0)) -> Enabling Framework | E35: =INDEX(DEFN!$A$4:$K$53, MATCH($A35, DEFN!$A$4:$A$53, 0), MATCH(E$9, DEFN!$A$3:$K$3, 0)) -> Policy & Regulation | F35: =INDEX(DEFN!$A$4:$K$53, MATCH($A35, DEFN!$A$4:$A$53, 0), MATCH(F$9, DEFN!$A$3:$K$3, 0)) -> Clean energy policies | G35: =INDEX(DEFN!$A$4:$K$53, MATCH($A35, DEFN!$A$4:$A$53, 0), MATCH(G$9, DEFN!$A$3:$K$3, 0)) -> Both | H35: =INDEX(DEFN!$A$4:$K$53, MATCH($A35, DEFN!$A$4:$A$53, 0), MATCH(H$9, DEFN!$A$3:$K$3, 0)) -> None | I35: =INDEX(DEFN!$A$4:$K$53, MATCH($A35, DEFN!$A$4:$A$53, 0), MATCH(I$9, DEFN!$A$3:$K$3, 0)) -> None | J35: =INDEX(DEFN!$A$4:$K$53, MATCH($A35, DEFN!$A$4:$A$53, 0), MATCH(J$9, DEFN!$A$3:$K$3, 0)) -> Policy Types | K35: =INDEX(DEFN!B$250:B$313, MATCH($B35, DEFN!$A$250:$A$313, 0), 1) -> Asia | L35: =INDEX(DEFN!C$250:C$313, MATCH($B35, DEFN!$A$250:$A$313, 0), 1) -> India - Odisha | M35: =INDEX(DEFN!$A$4:$K$53, MATCH($A35, DEFN!$A$4:$A$53, 0), MATCH(M$9, DEFN!$A$3:$K$3, 0)) -> User Defined | N35: =INDEX(DEFN!$A$4:$K$53, MATCH($A35, DEFN!$A$4:$A$53, 0), MATCH(N$9, DEFN!$A$3:$K$3, 0)) -> 5 | O35: =IFERROR(IF($H35="None", 1, IF($H35="All Capacity", SUMIFS(SID!X$3:X$12290, SID!$G$3:$G$12290, "<>Power demand", SID!$K$3:$K$12290, $L35, SID!$I$3:$I$12290, $J35), IF($H35="All Generation", SUMIFS(SID!X$3:X$12290, SID!$K$3:$K$12290, $L35, SID!$I$3:$I$12290, $J35), SUMIFS(SID!X$3:X$12290, SID!$F$3:$F$12290, $H35, SID!$K$3:$K$12290, $L35)))), 1) -> 1 | P35: =IF(ISNUMBER(FIND("Growth", F35)), U35, IF(V35<>0,V35, SUMIFS(SID!X$3:X$12290, SID!$C$3:$C$12290, $C35, SID!$K$3:$K$12290, $L35, SID!$Y$3:$Y$12290, 0))) -> 6 | Q35: 0 | R35: 5 | S35: 0 | T35: 0 | U35: =IF(I35="Clean energy investments", IF(OR(W35=0, X35=0), 0, X35/W35-1), IF(OR(I35="None", SUMIFS(SID!X$3:X$12290, SID!$F$3:$F$12290, I35, SID!$K$3:$K$12290, L35, SID!$Y$3:$Y$12290, 0)=0), 0, IFERROR(SUMIFS(SID!X$3:X$12290, SID!$F$3:$F$12290, I35, SID!$K$3:$K$12290, L35, SID!$Y$3:$Y$12290, 0)/SUMIFS(SID!W$3:W$12290, SID!$F$3:$F$12290, I35, SID!$K$3:$K$12290, L35, SID!$Y$3:$Y$12290, 0) - 1, 0))) -> 0 | V35: =IF(J35<>"USDm", 0, IF(F35="Clean energy investments", IF(ISNUMBER(FIND("-", $L35)), SUMIFS(INV!$J$3:$J$11498, INV!$E$3:$E$11498, $L35, INV!$A$3:$A$11498, "<=" & int_Year, INV!$A$3:$A$11498, ">=" & $G$6), SUMIFS(INV!$J$3:$J$11498, INV!$F$3:$F$11498, $L35, INV!$A$3:$A$11498, "<=" & int_Year, INV!$A$3:$A$11498, ">=" & $G$6)), IF(ISNUMBER(FIND("-", $L35)), SUMIFS(INV!$J$3:$J$11498, INV!$E$3:$E$11498, $L35, INV!$I$3:$I$11498, $F35, INV!$A$3:$A$11498, "<=" & int_Year, INV!$A$3:$A$11498, ">=" & $G$6), SUMIFS(INV!$J$3:$J$11498, INV!$F$3:$F$11498, $L35, INV!$I$3:$I$11498, $F35, INV!$A$3:$A$11498, "<=" & int_Year, INV!$A$3:$A$11498, ">=" & $G$6)))) -> 0 | W35: =IF(I35<>"Clean energy investments", 0, IF(ISNUMBER(FIND("-", $L35)), SUMIFS(INV!$J$3:$J$11498, INV!$E$3:$E$11498, $L35, INV!$A$3:$A$11498, ">="& int_InvStartYear, INV!$A$3:$A$11498, "<="& int_Year-1), SUMIFS(INV!$J$3:$J$11498, INV!$F$3:$F$11498, $L35, INV!$A$3:$A$11498, ">="& int_InvStartYear, INV!$A$3:$A$11498, "<="& int_Year-1))) -> 0 | X35: =IF(I35<>"Clean energy investments", 0, IF(ISNUMBER(FIND("-", $L35)), SUMIFS(INV!$J$3:$J$11498, INV!$E$3:$E$11498, $L35, INV!$A$3:$A$11498, ">="& int_InvStartYear, INV!$A$3:$A$11498, "<="& int_Year), SUMIFS(INV!$J$3:$J$11498, INV!$F$3:$F$11498, $L35, INV!$A$3:$A$11498, ">="& int_InvStartYear, INV!$A$3:$A$11498, "<="& int_Year))) -> 0 | Y35: 1.01 > India - Odisha
A36: 1 | B36: 27 | C36: =INDEX(DEFN!$A$4:$K$53, MATCH($A36, DEFN!$A$4:$A$53, 0), MATCH(C$9, DEFN!$A$3:$K$3, 0)) -> 1.01 | D36: =INDEX(DEFN!$A$4:$K$53, MATCH($A36, DEFN!$A$4:$A$53, 0), MATCH(D$9, DEFN!$A$3:$K$3, 0)) -> Enabling Framework | E36: =INDEX(DEFN!$A$4:$K$53, MATCH($A36, DEFN!$A$4:$A$53, 0), MATCH(E$9, DEFN!$A$3:$K$3, 0)) -> Policy & Regulation | F36: =INDEX(DEFN!$A$4:$K$53, MATCH($A36, DEFN!$A$4:$A$53, 0), MATCH(F$9, DEFN!$A$3:$K$3, 0)) -> Clean energy policies | G36: =INDEX(DEFN!$A$4:$K$53, MATCH($A36, DEFN!$A$4:$A$53, 0), MATCH(G$9, DEFN!$A$3:$K$3, 0)) -> Both | H36: =INDEX(DEFN!$A$4:$K$53, MATCH($A36, DEFN!$A$4:$A$53, 0), MATCH(H$9, DEFN!$A$3:$K$3, 0)) -> None | I36: =INDEX(DEFN!$A$4:$K$53, MATCH($A36, DEFN!$A$4:$A$53, 0), MATCH(I$9, DEFN!$A$3:$K$3, 0)) -> None | J36: =INDEX(DEFN!$A$4:$K$53, MATCH($A36, DEFN!$A$4:$A$53, 0), MATCH(J$9, DEFN!$A$3:$K$3, 0)) -> Policy Types | K36: =INDEX(DEFN!B$250:B$313, MATCH($B36, DEFN!$A$250:$A$313, 0), 1) -> Asia | L36: =INDEX(DEFN!C$250:C$313, MATCH($B36, DEFN!$A$250:$A$313, 0), 1) -> India - Uttar Pradesh | M36: =INDEX(DEFN!$A$4:$K$53, MATCH($A36, DEFN!$A$4:$A$53, 0), MATCH(M$9, DEFN!$A$3:$K$3, 0)) -> User Defined | N36: =INDEX(DEFN!$A$4:$K$53, MATCH($A36, DEFN!$A$4:$A$53, 0), MATCH(N$9, DEFN!$A$3:$K$3, 0)) -> 5 | O36: =IFERROR(IF($H36="None", 1, IF($H36="All Capacity", SUMIFS(SID!X$3:X$12290, SID!$G$3:$G$12290, "<>Power demand", SID!$K$3:$K$12290, $L36, SID!$I$3:$I$12290, $J36), IF($H36="All Generation", SUMIFS(SID!X$3:X$12290, SID!$K$3:$K$12290, $L36, SID!$I$3:$I$12290, $J36), SUMIFS(SID!X$3:X$12290, SID!$F$3:$F$12290, $H36, SID!$K$3:$K$12290, $L36)))), 1) -> 1 | P36: =IF(ISNUMBER(FIND("Growth", F36)), U36, IF(V36<>0,V36, SUMIFS(SID!X$3:X$12290, SID!$C$3:$C$12290, $C36, SID!$K$3:$K$12290, $L36, SID!$Y$3:$Y$12290, 0))) -> 8 | Q36: 0 | R36: 5 | S36: 0 | T36: 0 | U36: =IF(I36="Clean energy investments", IF(OR(W36=0, X36=0), 0, X36/W36-1), IF(OR(I36="None", SUMIFS(SID!X$3:X$12290, SID!$F$3:$F$12290, I36, SID!$K$3:$K$12290, L36, SID!$Y$3:$Y$12290, 0)=0), 0, IFERROR(SUMIFS(SID!X$3:X$12290, SID!$F$3:$F$12290, I36, SID!$K$3:$K$12290, L36, SID!$Y$3:$Y$12290, 0)/SUMIFS(SID!W$3:W$12290, SID!$F$3:$F$12290, I36, SID!$K$3:$K$12290, L36, SID!$Y$3:$Y$12290, 0) - 1, 0))) -> 0 | V36: =IF(J36<>"USDm", 0, IF(F36="Clean energy investments", IF(ISNUMBER(FIND("-", $L36)), SUMIFS(INV!$J$3:$J$11498, INV!$E$3:$E$11498, $L36, INV!$A$3:$A$11498, "<=" & int_Year, INV!$A$3:$A$11498, ">=" & $G$6), SUMIFS(INV!$J$3:$J$11498, INV!$F$3:$F$11498, $L36, INV!$A$3:$A$11498, "<=" & int_Year, INV!$A$3:$A$11498, ">=" & $G$6)), IF(ISNUMBER(FIND("-", $L36)), SUMIFS(INV!$J$3:$J$11498, INV!$E$3:$E$11498, $L36, INV!$I$3:$I$11498, $F36, INV!$A$3:$A$11498, "<=" & int_Year, INV!$A$3:$A$11498, ">=" & $G$6), SUMIFS(INV!$J$3:$J$11498, INV!$F$3:$F$11498, $L36, INV!$I$3:$I$11498, $F36, INV!$A$3:$A$11498, "<=" & int_Year, INV!$A$3:$A$11498, ">=" & $G$6)))) -> 0 | W36: =IF(I36<>"Clean energy investments", 0, IF(ISNUMBER(FIND("-", $L36)), SUMIFS(INV!$J$3:$J$11498, INV!$E$3:$E$11498, $L36, INV!$A$3:$A$11498, ">="& int_InvStartYear, INV!$A$3:$A$11498, "<="& int_Year-1), SUMIFS(INV!$J$3:$J$11498, INV!$F$3:$F$11498, $L36, INV!$A$3:$A$11498, ">="& int_InvStartYear, INV!$A$3:$A$11498, "<="& int_Year-1))) -> 0 | X36: =IF(I36<>"Clean energy investments", 0, IF(ISNUMBER(FIND("-", $L36)), SUMIFS(INV!$J$3:$J$11498, INV!$E$3:$E$11498, $L36, INV!$A$3:$A$11498, ">="& int_InvStartYear, INV!$A$3:$A$11498, "<="& int_Year), SUMIFS(INV!$J$3:$J$11498, INV!$F$3:$F$11498, $L36, INV!$A$3:$A$11498, ">="& int_InvStartYear, INV!$A$3:$A$11498, "<="& int_Year))) -> 0 | Y36: 1.01 > India - Uttar Pradesh
A37: 1 | B37: 28 | C37: =INDEX(DEFN!$A$4:$K$53, MATCH($A37, DEFN!$A$4:$A$53, 0), MATCH(C$9, DEFN!$A$3:$K$3, 0)) -> 1.01 | D37: =INDEX(DEFN!$A$4:$K$53, MATCH($A37, DEFN!$A$4:$A$53, 0), MATCH(D$9, DEFN!$A$3:$K$3, 0)) -> Enabling Framework | E37: =INDEX(DEFN!$A$4:$K$53, MATCH($A37, DEFN!$A$4:$A$53, 0), MATCH(E$9, DEFN!$A$3:$K$3, 0)) -> Policy & Regulation | F37: =INDEX(DEFN!$A$4:$K$53, MATCH($A37, DEFN!$A$4:$A$53, 0), MATCH(F$9, DEFN!$A$3:$K$3, 0)) -> Clean energy policies | G37: =INDEX(DEFN!$A$4:$K$53, MATCH($A37, DEFN!$A$4:$A$53, 0), MATCH(G$9, DEFN!$A$3:$K$3, 0)) -> Both | H37: =INDEX(DEFN!$A$4:$K$53, MATCH($A37, DEFN!$A$4:$A$53, 0), MATCH(H$9, DEFN!$A$3:$K$3, 0)) -> None | I37: =INDEX(DEFN!$A$4:$K$53, MATCH($A37, DEFN!$A$4:$A$53, 0), MATCH(I$9, DEFN!$A$3:$K$3, 0)) -> None | J37: =INDEX(DEFN!$A$4:$K$53, MATCH($A37, DEFN!$A$4:$A$53, 0), MATCH(J$9, DEFN!$A$3:$K$3, 0)) -> Policy Types | K37: =INDEX(DEFN!B$250:B$313, MATCH($B37, DEFN!$A$250:$A$313, 0), 1) -> Asia | L37: =INDEX(DEFN!C$250:C$313, MATCH($B37, DEFN!$A$250:$A$313, 0), 1) -> India - West Bengal | M37: =INDEX(DEFN!$A$4:$K$53, MATCH($A37, DEFN!$A$4:$A$53, 0), MATCH(M$9, DEFN!$A$3:$K$3, 0)) -> User Defined | N37: =INDEX(DEFN!$A$4:$K$53, MATCH($A37, DEFN!$A$4:$A$53, 0), MATCH(N$9, DEFN!$A$3:$K$3, 0)) -> 5 | O37: =IFERROR(IF($H37="None", 1, IF($H37="All Capacity", SUMIFS(SID!X$3:X$12290, SID!$G$3:$G$12290, "<>Power demand", SID!$K$3:$K$12290, $L37, SID!$I$3:$I$12290, $J37), IF($H37="All Generation", SUMIFS(SID!X$3:X$12290, SID!$K$3:$K$12290, $L37, SID!$I$3:$I$12290, $J37), SUMIFS(SID!X$3:X$12290, SID!$F$3:$F$12290, $H37, SID!$K$3:$K$12290, $L37)))), 1) -> 1 | P37: =IF(ISNUMBER(FIND("Growth", F37)), U37, IF(V37<>0,V37, SUMIFS(SID!X$3:X$12290, SID!$C$3:$C$12290, $C37, SID!$K$3:$K$12290, $L37, SID!$Y$3:$Y$12290, 0))) -> 5 | Q37: 0 | R37: 5 | S37: 0 | T37: 0 | U37: =IF(I37="Clean energy investments", IF(OR(W37=0, X37=0), 0, X37/W37-1), IF(OR(I37="None", SUMIFS(SID!X$3:X$12290, SID!$F$3:$F$12290, I37, SID!$K$3:$K$12290, L37, SID!$Y$3:$Y$12290, 0)=0), 0, IFERROR(SUMIFS(SID!X$3:X$12290, SID!$F$3:$F$12290, I37, SID!$K$3:$K$12290, L37, SID!$Y$3:$Y$12290, 0)/SUMIFS(SID!W$3:W$12290, SID!$F$3:$F$12290, I37, SID!$K$3:$K$12290, L37, SID!$Y$3:$Y$12290, 0) - 1, 0))) -> 0 | V37: =IF(J37<>"USDm", 0, IF(F37="Clean energy investments", IF(ISNUMBER(FIND("-", $L37)), SUMIFS(INV!$J$3:$J$11498, INV!$E$3:$E$11498, $L37, INV!$A$3:$A$11498, "<=" & int_Year, INV!$A$3:$A$11498, ">=" & $G$6), SUMIFS(INV!$J$3:$J$11498, INV!$F$3:$F$11498, $L37, INV!$A$3:$A$11498, "<=" & int_Year, INV!$A$3:$A$11498, ">=" & $G$6)), IF(ISNUMBER(FIND("-", $L37)), SUMIFS(INV!$J$3:$J$11498, INV!$E$3:$E$11498, $L37, INV!$I$3:$I$11498, $F37, INV!$A$3:$A$11498, "<=" & int_Year, INV!$A$3:$A$11498, ">=" & $G$6), SUMIFS(INV!$J$3:$J$11498, INV!$F$3:$F$11498, $L37, INV!$I$3:$I$11498, $F37, INV!$A$3:$A$11498, "<=" & int_Year, INV!$A$3:$A$11498, ">=" & $G$6)))) -> 0 | W37: =IF(I37<>"Clean energy investments", 0, IF(ISNUMBER(FIND("-", $L37)), SUMIFS(INV!$J$3:$J$11498, INV!$E$3:$E$11498, $L37, INV!$A$3:$A$11498, ">="& int_InvStartYear, INV!$A$3:$A$11498, "<="& int_Year-1), SUMIFS(INV!$J$3:$J$11498, INV!$F$3:$F$11498, $L37, INV!$A$3:$A$11498, ">="& int_InvStartYear, INV!$A$3:$A$11498, "<="& int_Year-1))) -> 0 | X37: =IF(I37<>"Clean energy investments", 0, IF(ISNUMBER(FIND("-", $L37)), SUMIFS(INV!$J$3:$J$11498, INV!$E$3:$E$11498, $L37, INV!$A$3:$A$11498, ">="& int_InvStartYear, INV!$A$3:$A$11498, "<="& int_Year), SUMIFS(INV!$J$3:$J$11498, INV!$F$3:$F$11498, $L37, INV!$A$3:$A$11498, ">="& int_InvStartYear, INV!$A$3:$A$11498, "<="& int_Year))) -> 0 | Y37: 1.01 > India - West Bengal
A38: 1 | B38: 29 | C38: =INDEX(DEFN!$A$4:$K$53, MATCH($A38, DEFN!$A$4:$A$53, 0), MATCH(C$9, DEFN!$A$3:$K$3, 0)) -> 1.01 | D38: =INDEX(DEFN!$A$4:$K$53, MATCH($A38, DEFN!$A$4:$A$53, 0), MATCH(D$9, DEFN!$A$3:$K$3, 0)) -> Enabling Framework | E38: =INDEX(DEFN!$A$4:$K$53, MATCH($A38, DEFN!$A$4:$A$53, 0), MATCH(E$9, DEFN!$A$3:$K$3, 0)) -> Policy & Regulation | F38: =INDEX(DEFN!$A$4:$K$53, MATCH($A38, DEFN!$A$4:$A$53, 0), MATCH(F$9, DEFN!$A$3:$K$3, 0)) -> Clean energy policies | G38: =INDEX(DEFN!$A$4:$K$53, MATCH($A38, DEFN!$A$4:$A$53, 0), MATCH(G$9, DEFN!$A$3:$K$3, 0)) -> Both | H38: =INDEX(DEFN!$A$4:$K$53, MATCH($A38, DEFN!$A$4:$A$53, 0), MATCH(H$9, DEFN!$A$3:$K$3, 0)) -> None | I38: =INDEX(DEFN!$A$4:$K$53, MATCH($A38, DEFN!$A$4:$A$53, 0), MATCH(I$9, DEFN!$A$3:$K$3, 0)) -> None | J38: =INDEX(DEFN!$A$4:$K$53, MATCH($A38, DEFN!$A$4:$A$53, 0), MATCH(J$9, DEFN!$A$3:$K$3, 0)) -> Policy Types | K38: =INDEX(DEFN!B$250:B$313, MATCH($B38, DEFN!$A$250:$A$313, 0), 1) -> Asia | L38: =INDEX(DEFN!C$250:C$313, MATCH($B38, DEFN!$A$250:$A$313, 0), 1) -> Indonesia | M38: =INDEX(DEFN!$A$4:$K$53, MATCH($A38, DEFN!$A$4:$A$53, 0), MATCH(M$9, DEFN!$A$3:$K$3, 0)) -> User Defined | N38: =INDEX(DEFN!$A$4:$K$53, MATCH($A38, DEFN!$A$4:$A$53, 0), MATCH(N$9, DEFN!$A$3:$K$3, 0)) -> 5 | O38: =IFERROR(IF($H38="None", 1, IF($H38="All Capacity", SUMIFS(SID!X$3:X$12290, SID!$G$3:$G$12290, "<>Power demand", SID!$K$3:$K$12290, $L38, SID!$I$3:$I$12290, $J38), IF($H38="All Generation", SUMIFS(SID!X$3:X$12290, SID!$K$3:$K$12290, $L38, SID!$I$3:$I$12290, $J38), SUMIFS(SID!X$3:X$12290, SID!$F$3:$F$12290, $H38, SID!$K$3:$K$12290, $L38)))), 1) -> 1 | P38: =IF(ISNUMBER(FIND("Growth", F38)), U38, IF(V38<>0,V38, SUMIFS(SID!X$3:X$12290, SID!$C$3:$C$12290, $C38, SID!$K$3:$K$12290, $L38, SID!$Y$3:$Y$12290, 0))) -> 5 | Q38: 2.15 | R38: 5 | S38: 43 | T38: 2.15 | U38: =IF(I38="Clean energy investments", IF(OR(W38=0, X38=0), 0, X38/W38-1), IF(OR(I38="None", SUMIFS(SID!X$3:X$12290, SID!$F$3:$F$12290, I38, SID!$K$3:$K$12290, L38, SID!$Y$3:$Y$12290, 0)=0), 0, IFERROR(SUMIFS(SID!X$3:X$12290, SID!$F$3:$F$12290, I38, SID!$K$3:$K$12290, L38, SID!$Y$3:$Y$12290, 0)/SUMIFS(SID!W$3:W$12290, SID!$F$3:$F$12290, I38, SID!$K$3:$K$12290, L38, SID!$Y$3:$Y$12290, 0) - 1, 0))) -> 0 | V38: =IF(J38<>"USDm", 0, IF(F38="Clean energy investments", IF(ISNUMBER(FIND("-", $L38)), SUMIFS(INV!$J$3:$J$11498, INV!$E$3:$E$11498, $L38, INV!$A$3:$A$11498, "<=" & int_Year, INV!$A$3:$A$11498, ">=" & $G$6), SUMIFS(INV!$J$3:$J$11498, INV!$F$3:$F$11498, $L38, INV!$A$3:$A$11498, "<=" & int_Year, INV!$A$3:$A$11498, ">=" & $G$6)), IF(ISNUMBER(FIND("-", $L38)), SUMIFS(INV!$J$3:$J$11498, INV!$E$3:$E$11498, $L38, INV!$I$3:$I$11498, $F38, INV!$A$3:$A$11498, "<=" & int_Year, INV!$A$3:$A$11498, ">=" & $G$6), SUMIFS(INV!$J$3:$J$11498, INV!$F$3:$F$11498, $L38, INV!$I$3:$I$11498, $F38, INV!$A$3:$A$11498, "<=" & int_Year, INV!$A$3:$A$11498, ">=" & $G$6)))) -> 0 | W38: =IF(I38<>"Clean energy investments", 0, IF(ISNUMBER(FIND("-", $L38)), SUMIFS(INV!$J$3:$J$11498, INV!$E$3:$E$11498, $L38, INV!$A$3:$A$11498, ">="& int_InvStartYear, INV!$A$3:$A$11498, "<="& int_Year-1), SUMIFS(INV!$J$3:$J$11498, INV!$F$3:$F$11498, $L38, INV!$A$3:$A$11498, ">="& int_InvStartYear, INV!$A$3:$A$11498, "<="& int_Year-1))) -> 0 | X38: =IF(I38<>"Clean energy investments", 0, IF(ISNUMBER(FIND("-", $L38)), SUMIFS(INV!$J$3:$J$11498, INV!$E$3:$E$11498, $L38, INV!$A$3:$A$11498, ">="& int_InvStartYear, INV!$A$3:$A$11498, "<="& int_Year), SUMIFS(INV!$J$3:$J$11498, INV!$F$3:$F$11498, $L38, INV!$A$3:$A$11498, ">="& int_InvStartYear, INV!$A$3:$A$11498, "<="& int_Year))) -> 0 | Y38: 1.01 > Indonesia
A39: 1 | B39: 30 | C39: =INDEX(DEFN!$A$4:$K$53, MATCH($A39, DEFN!$A$4:$A$53, 0), MATCH(C$9, DEFN!$A$3:$K$3, 0)) -> 1.01 | D39: =INDEX(DEFN!$A$4:$K$53, MATCH($A39, DEFN!$A$4:$A$53, 0), MATCH(D$9, DEFN!$A$3:$K$3, 0)) -> Enabling Framework | E39: =INDEX(DEFN!$A$4:$K$53, MATCH($A39, DEFN!$A$4:$A$53, 0), MATCH(E$9, DEFN!$A$3:$K$3, 0)) -> Policy & Regulation | F39: =INDEX(DEFN!$A$4:$K$53, MATCH($A39, DEFN!$A$4:$A$53, 0), MATCH(F$9, DEFN!$A$3:$K$3, 0)) -> Clean energy policies | G39: =INDEX(DEFN!$A$4:$K$53, MATCH($A39, DEFN!$A$4:$A$53, 0), MATCH(G$9, DEFN!$A$3:$K$3, 0)) -> Both | H39: =INDEX(DEFN!$A$4:$K$53, MATCH($A39, DEFN!$A$4:$A$53, 0), MATCH(H$9, DEFN!$A$3:$K$3, 0)) -> None | I39: =INDEX(DEFN!$A$4:$K$53, MATCH($A39, DEFN!$A$4:$A$53, 0), MATCH(I$9, DEFN!$A$3:$K$3, 0)) -> None | J39: =INDEX(DEFN!$A$4:$K$53, MATCH($A39, DEFN!$A$4:$A$53, 0), MATCH(J$9, DEFN!$A$3:$K$3, 0)) -> Policy Types | K39: =INDEX(DEFN!B$250:B$313, MATCH($B39, DEFN!$A$250:$A$313, 0), 1) -> Asia | L39: =INDEX(DEFN!C$250:C$313, MATCH($B39, DEFN!$A$250:$A$313, 0), 1) -> Myanmar | M39: =INDEX(DEFN!$A$4:$K$53, MATCH($A39, DEFN!$A$4:$A$53, 0), MATCH(M$9, DEFN!$A$3:$K$3, 0)) -> User Defined | N39: =INDEX(DEFN!$A$4:$K$53, MATCH($A39, DEFN!$A$4:$A$53, 0), MATCH(N$9, DEFN!$A$3:$K$3, 0)) -> 5 | O39: =IFERROR(IF($H39="None", 1, IF($H39="All Capacity", SUMIFS(SID!X$3:X$12290, SID!$G$3:$G$12290, "<>Power demand", SID!$K$3:$K$12290, $L39, SID!$I$3:$I$12290, $J39), IF($H39="All Generation", SUMIFS(SID!X$3:X$12290, SID!$K$3:$K$12290, $L39, SID!$I$3:$I$12290, $J39), SUMIFS(SID!X$3:X$12290, SID!$F$3:$F$12290, $H39, SID!$K$3:$K$12290, $L39)))), 1) -> 1 | P39: =IF(ISNUMBER(FIND("Growth", F39)), U39, IF(V39<>0,V39, SUMIFS(SID!X$3:X$12290, SID!$C$3:$C$12290, $C39, SID!$K$3:$K$12290, $L39, SID!$Y$3:$Y$12290, 0))) -> 2 | Q39: 0.5 | R39: 5 | S39: 10 | T39: 0.5 | U39: =IF(I39="Clean energy investments", IF(OR(W39=0, X39=0), 0, X39/W39-1), IF(OR(I39="None", SUMIFS(SID!X$3:X$12290, SID!$F$3:$F$12290, I39, SID!$K$3:$K$12290, L39, SID!$Y$3:$Y$12290, 0)=0), 0, IFERROR(SUMIFS(SID!X$3:X$12290, SID!$F$3:$F$12290, I39, SID!$K$3:$K$12290, L39, SID!$Y$3:$Y$12290, 0)/SUMIFS(SID!W$3:W$12290, SID!$F$3:$F$12290, I39, SID!$K$3:$K$12290, L39, SID!$Y$3:$Y$12290, 0) - 1, 0))) -> 0 | V39: =IF(J39<>"USDm", 0, IF(F39="Clean energy investments", IF(ISNUMBER(FIND("-", $L39)), SUMIFS(INV!$J$3:$J$11498, INV!$E$3:$E$11498, $L39, INV!$A$3:$A$11498, "<=" & int_Year, INV!$A$3:$A$11498, ">=" & $G$6), SUMIFS(INV!$J$3:$J$11498, INV!$F$3:$F$11498, $L39, INV!$A$3:$A$11498, "<=" & int_Year, INV!$A$3:$A$11498, ">=" & $G$6)), IF(ISNUMBER(FIND("-", $L39)), SUMIFS(INV!$J$3:$J$11498, INV!$E$3:$E$11498, $L39, INV!$I$3:$I$11498, $F39, INV!$A$3:$A$11498, "<=" & int_Year, INV!$A$3:$A$11498, ">=" & $G$6), SUMIFS(INV!$J$3:$J$11498, INV!$F$3:$F$11498, $L39, INV!$I$3:$I$11498, $F39, INV!$A$3:$A$11498, "<=" & int_Year, INV!$A$3:$A$11498, ">=" & $G$6)))) -> 0 | W39: =IF(I39<>"Clean energy investments", 0, IF(ISNUMBER(FIND("-", $L39)), SUMIFS(INV!$J$3:$J$11498, INV!$E$3:$E$11498, $L39, INV!$A$3:$A$11498, ">="& int_InvStartYear, INV!$A$3:$A$11498, "<="& int_Year-1), SUMIFS(INV!$J$3:$J$11498, INV!$F$3:$F$11498, $L39, INV!$A$3:$A$11498, ">="& int_InvStartYear, INV!$A$3:$A$11498, "<="& int_Year-1))) -> 0 | X39: =IF(I39<>"Clean energy investments", 0, IF(ISNUMBER(FIND("-", $L39)), SUMIFS(INV!$J$3:$J$11498, INV!$E$3:$E$11498, $L39, INV!$A$3:$A$11498, ">="& int_InvStartYear, INV!$A$3:$A$11498, "<="& int_Year), SUMIFS(INV!$J$3:$J$11498, INV!$F$3:$F$11498, $L39, INV!$A$3:$A$11498, ">="& int_InvStartYear, INV!$A$3:$A$11498, "<="& int_Year))) -> 0 | Y39: 1.01 > Myanmar
A40: 1 | B40: 31 | C40: =INDEX(DEFN!$A$4:$K$53, MATCH($A40, DEFN!$A$4:$A$53, 0), MATCH(C$9, DEFN!$A$3:$K$3, 0)) -> 1.01 | D40: =INDEX(DEFN!$A$4:$K$53, MATCH($A40, DEFN!$A$4:$A$53, 0), MATCH(D$9, DEFN!$A$3:$K$3, 0)) -> Enabling Framework | E40: =INDEX(DEFN!$A$4:$K$53, MATCH($A40, DEFN!$A$4:$A$53, 0), MATCH(E$9, DEFN!$A$3:$K$3, 0)) -> Policy & Regulation | F40: =INDEX(DEFN!$A$4:$K$53, MATCH($A40, DEFN!$A$4:$A$53, 0), MATCH(F$9, DEFN!$A$3:$K$3, 0)) -> Clean energy policies | G40: =INDEX(DEFN!$A$4:$K$53, MATCH($A40, DEFN!$A$4:$A$53, 0), MATCH(G$9, DEFN!$A$3:$K$3, 0)) -> Both | H40: =INDEX(DEFN!$A$4:$K$53, MATCH($A40, DEFN!$A$4:$A$53, 0), MATCH(H$9, DEFN!$A$3:$K$3, 0)) -> None | I40: =INDEX(DEFN!$A$4:$K$53, MATCH($A40, DEFN!$A$4:$A$53, 0), MATCH(I$9, DEFN!$A$3:$K$3, 0)) -> None | J40: =INDEX(DEFN!$A$4:$K$53, MATCH($A40, DEFN!$A$4:$A$53, 0), MATCH(J$9, DEFN!$A$3:$K$3, 0)) -> Policy Types | K40: =INDEX(DEFN!B$250:B$313, MATCH($B40, DEFN!$A$250:$A$313, 0), 1) -> Asia | L40: =INDEX(DEFN!C$250:C$313, MATCH($B40, DEFN!$A$250:$A$313, 0), 1) -> Nepal | M40: =INDEX(DEFN!$A$4:$K$53, MATCH($A40, DEFN!$A$4:$A$53, 0), MATCH(M$9, DEFN!$A$3:$K$3, 0)) -> User Defined | N40: =INDEX(DEFN!$A$4:$K$53, MATCH($A40, DEFN!$A$4:$A$53, 0), MATCH(N$9, DEFN!$A$3:$K$3, 0)) -> 5 | O40: =IFERROR(IF($H40="None", 1, IF($H40="All Capacity", SUMIFS(SID!X$3:X$12290, SID!$G$3:$G$12290, "<>Power demand", SID!$K$3:$K$12290, $L40, SID!$I$3:$I$12290, $J40), IF($H40="All Generation", SUMIFS(SID!X$3:X$12290, SID!$K$3:$K$12290, $L40, SID!$I$3:$I$12290, $J40), SUMIFS(SID!X$3:X$12290, SID!$F$3:$F$12290, $H40, SID!$K$3:$K$12290, $L40)))), 1) -> 1 | P40: =IF(ISNUMBER(FIND("Growth", F40)), U40, IF(V40<>0,V40, SUMIFS(SID!X$3:X$12290, SID!$C$3:$C$12290, $C40, SID!$K$3:$K$12290, $L40, SID!$Y$3:$Y$12290, 0))) -> 3 | Q40: 1.11 | R40: 5 | S40: 22.2 | T40: 1.11 | U40: =IF(I40="Clean energy investments", IF(OR(W40=0, X40=0), 0, X40/W40-1), IF(OR(I40="None", SUMIFS(SID!X$3:X$12290, SID!$F$3:$F$12290, I40, SID!$K$3:$K$12290, L40, SID!$Y$3:$Y$12290, 0)=0), 0, IFERROR(SUMIFS(SID!X$3:X$12290, SID!$F$3:$F$12290, I40, SID!$K$3:$K$12290, L40, SID!$Y$3:$Y$12290, 0)/SUMIFS(SID!W$3:W$12290, SID!$F$3:$F$12290, I40, SID!$K$3:$K$12290, L40, SID!$Y$3:$Y$12290, 0) - 1, 0))) -> 0 | V40: =IF(J40<>"USDm", 0, IF(F40="Clean energy investments", IF(ISNUMBER(FIND("-", $L40)), SUMIFS(INV!$J$3:$J$11498, INV!$E$3:$E$11498, $L40, INV!$A$3:$A$11498, "<=" & int_Year, INV!$A$3:$A$11498, ">=" & $G$6), SUMIFS(INV!$J$3:$J$11498, INV!$F$3:$F$11498, $L40, INV!$A$3:$A$11498, "<=" & int_Year, INV!$A$3:$A$11498, ">=" & $G$6)), IF(ISNUMBER(FIND("-", $L40)), SUMIFS(INV!$J$3:$J$11498, INV!$E$3:$E$11498, $L40, INV!$I$3:$I$11498, $F40, INV!$A$3:$A$11498, "<=" & int_Year, INV!$A$3:$A$11498, ">=" & $G$6), SUMIFS(INV!$J$3:$J$11498, INV!$F$3:$F$11498, $L40, INV!$I$3:$I$11498, $F40, INV!$A$3:$A$11498, "<=" & int_Year, INV!$A$3:$A$11498, ">=" & $G$6)))) -> 0 | W40: =IF(I40<>"Clean energy investments", 0, IF(ISNUMBER(FIND("-", $L40)), SUMIFS(INV!$J$3:$J$11498, INV!$E$3:$E$11498, $L40, INV!$A$3:$A$11498, ">="& int_InvStartYear, INV!$A$3:$A$11498, "<="& int_Year-1), SUMIFS(INV!$J$3:$J$11498, INV!$F$3:$F$11498, $L40, INV!$A$3:$A$11498, ">="& int_InvStartYear, INV!$A$3:$A$11498, "<="& int_Year-1))) -> 0 | X40: =IF(I40<>"Clean energy investments", 0, IF(ISNUMBER(FIND("-", $L40)), SUMIFS(INV!$J$3:$J$11498, INV!$E$3:$E$11498, $L40, INV!$A$3:$A$11498, ">="& int_InvStartYear, INV!$A$3:$A$11498, "<="& int_Year), SUMIFS(INV!$J$3:$J$11498, INV!$F$3:$F$11498, $L40, INV!$A$3:$A$11498, ">="& int_InvStartYear, INV!$A$3:$A$11498, "<="& int_Year))) -> 0 | Y40: 1.01 > Nepal
A41: 1 | B41: 32 | C41: =INDEX(DEFN!$A$4:$K$53, MATCH($A41, DEFN!$A$4:$A$53, 0), MATCH(C$9, DEFN!$A$3:$K$3, 0)) -> 1.01 | D41: =INDEX(DEFN!$A$4:$K$53, MATCH($A41, DEFN!$A$4:$A$53, 0), MATCH(D$9, DEFN!$A$3:$K$3, 0)) -> Enabling Framework | E41: =INDEX(DEFN!$A$4:$K$53, MATCH($A41, DEFN!$A$4:$A$53, 0), MATCH(E$9, DEFN!$A$3:$K$3, 0)) -> Policy & Regulation | F41: =INDEX(DEFN!$A$4:$K$53, MATCH($A41, DEFN!$A$4:$A$53, 0), MATCH(F$9, DEFN!$A$3:$K$3, 0)) -> Clean energy policies | G41: =INDEX(DEFN!$A$4:$K$53, MATCH($A41, DEFN!$A$4:$A$53, 0), MATCH(G$9, DEFN!$A$3:$K$3, 0)) -> Both | H41: =INDEX(DEFN!$A$4:$K$53, MATCH($A41, DEFN!$A$4:$A$53, 0), MATCH(H$9, DEFN!$A$3:$K$3, 0)) -> None | I41: =INDEX(DEFN!$A$4:$K$53, MATCH($A41, DEFN!$A$4:$A$53, 0), MATCH(I$9, DEFN!$A$3:$K$3, 0)) -> None | J41: =INDEX(DEFN!$A$4:$K$53, MATCH($A41, DEFN!$A$4:$A$53, 0), MATCH(J$9, DEFN!$A$3:$K$3, 0)) -> Policy Types | K41: =INDEX(DEFN!B$250:B$313, MATCH($B41, DEFN!$A$250:$A$313, 0), 1) -> Asia | L41: =INDEX(DEFN!C$250:C$313, MATCH($B41, DEFN!$A$250:$A$313, 0), 1) -> Pakistan | M41: =INDEX(DEFN!$A$4:$K$53, MATCH($A41, DEFN!$A$4:$A$53, 0), MATCH(M$9, DEFN!$A$3:$K$3, 0)) -> User Defined | N41: =INDEX(DEFN!$A$4:$K$53, MATCH($A41, DEFN!$A$4:$A$53, 0), MATCH(N$9, DEFN!$A$3:$K$3, 0)) -> 5 | O41: =IFERROR(IF($H41="None", 1, IF($H41="All Capacity", SUMIFS(SID!X$3:X$12290, SID!$G$3:$G$12290, "<>Power demand", SID!$K$3:$K$12290, $L41, SID!$I$3:$I$12290, $J41), IF($H41="All Generation", SUMIFS(SID!X$3:X$12290, SID!$K$3:$K$12290, $L41, SID!$I$3:$I$12290, $J41), SUMIFS(SID!X$3:X$12290, SID!$F$3:$F$12290, $H41, SID!$K$3:$K$12290, $L41)))), 1) -> 1 | P41: =IF(ISNUMBER(FIND("Growth", F41)), U41, IF(V41<>0,V41, SUMIFS(SID!X$3:X$12290, SID!$C$3:$C$12290, $C41, SID!$K$3:$K$12290, $L41, SID!$Y$3:$Y$12290, 0))) -> 6 | Q41: 1.43 | R41: 5 | S41: 28.6 | T41: 1.43 | U41: =IF(I41="Clean energy investments", IF(OR(W41=0, X41=0), 0, X41/W41-1), IF(OR(I41="None", SUMIFS(SID!X$3:X$12290, SID!$F$3:$F$12290, I41, SID!$K$3:$K$12290, L41, SID!$Y$3:$Y$12290, 0)=0), 0, IFERROR(SUMIFS(SID!X$3:X$12290, SID!$F$3:$F$12290, I41, SID!$K$3:$K$12290, L41, SID!$Y$3:$Y$12290, 0)/SUMIFS(SID!W$3:W$12290, SID!$F$3:$F$12290, I41, SID!$K$3:$K$12290, L41, SID!$Y$3:$Y$12290, 0) - 1, 0))) -> 0 | V41: =IF(J41<>"USDm", 0, IF(F41="Clean energy investments", IF(ISNUMBER(FIND("-", $L41)), SUMIFS(INV!$J$3:$J$11498, INV!$E$3:$E$11498, $L41, INV!$A$3:$A$11498, "<=" & int_Year, INV!$A$3:$A$11498, ">=" & $G$6), SUMIFS(INV!$J$3:$J$11498, INV!$F$3:$F$11498, $L41, INV!$A$3:$A$11498, "<=" & int_Year, INV!$A$3:$A$11498, ">=" & $G$6)), IF(ISNUMBER(FIND("-", $L41)), SUMIFS(INV!$J$3:$J$11498, INV!$E$3:$E$11498, $L41, INV!$I$3:$I$11498, $F41, INV!$A$3:$A$11498, "<=" & int_Year, INV!$A$3:$A$11498, ">=" & $G$6), SUMIFS(INV!$J$3:$J$11498, INV!$F$3:$F$11498, $L41, INV!$I$3:$I$11498, $F41, INV!$A$3:$A$11498, "<=" & int_Year, INV!$A$3:$A$11498, ">=" & $G$6)))) -> 0 | W41: =IF(I41<>"Clean energy investments", 0, IF(ISNUMBER(FIND("-", $L41)), SUMIFS(INV!$J$3:$J$11498, INV!$E$3:$E$11498, $L41, INV!$A$3:$A$11498, ">="& int_InvStartYear, INV!$A$3:$A$11498, "<="& int_Year-1), SUMIFS(INV!$J$3:$J$11498, INV!$F$3:$F$11498, $L41, INV!$A$3:$A$11498, ">="& int_InvStartYear, INV!$A$3:$A$11498, "<="& int_Year-1))) -> 0 | X41: =IF(I41<>"Clean energy investments", 0, IF(ISNUMBER(FIND("-", $L41)), SUMIFS(INV!$J$3:$J$11498, INV!$E$3:$E$11498, $L41, INV!$A$3:$A$11498, ">="& int_InvStartYear, INV!$A$3:$A$11498, "<="& int_Year), SUMIFS(INV!$J$3:$J$11498, INV!$F$3:$F$11498, $L41, INV!$A$3:$A$11498, ">="& int_InvStartYear, INV!$A$3:$A$11498, "<="& int_Year))) -> 0 | Y41: 1.01 > Pakistan
A42: 1 | B42: 33 | C42: =INDEX(DEFN!$A$4:$K$53, MATCH($A42, DEFN!$A$4:$A$53, 0), MATCH(C$9, DEFN!$A$3:$K$3, 0)) -> 1.01 | D42: =INDEX(DEFN!$A$4:$K$53, MATCH($A42, DEFN!$A$4:$A$53, 0), MATCH(D$9, DEFN!$A$3:$K$3, 0)) -> Enabling Framework | E42: =INDEX(DEFN!$A$4:$K$53, MATCH($A42, DEFN!$A$4:$A$53, 0), MATCH(E$9, DEFN!$A$3:$K$3, 0)) -> Policy & Regulation | F42: =INDEX(DEFN!$A$4:$K$53, MATCH($A42, DEFN!$A$4:$A$53, 0), MATCH(F$9, DEFN!$A$3:$K$3, 0)) -> Clean energy policies | G42: =INDEX(DEFN!$A$4:$K$53, MATCH($A42, DEFN!$A$4:$A$53, 0), MATCH(G$9, DEFN!$A$3:$K$3, 0)) -> Both | H42: =INDEX(DEFN!$A$4:$K$53, MATCH($A42, DEFN!$A$4:$A$53, 0), MATCH(H$9, DEFN!$A$3:$K$3, 0)) -> None | I42: =INDEX(DEFN!$A$4:$K$53, MATCH($A42, DEFN!$A$4:$A$53, 0), MATCH(I$9, DEFN!$A$3:$K$3, 0)) -> None | J42: =INDEX(DEFN!$A$4:$K$53, MATCH($A42, DEFN!$A$4:$A$53, 0), MATCH(J$9, DEFN!$A$3:$K$3, 0)) -> Policy Types | K42: =INDEX(DEFN!B$250:B$313, MATCH($B42, DEFN!$A$250:$A$313, 0), 1) -> Asia | L42: =INDEX(DEFN!C$250:C$313, MATCH($B42, DEFN!$A$250:$A$313, 0), 1) -> Sri Lanka | M42: =INDEX(DEFN!$A$4:$K$53, MATCH($A42, DEFN!$A$4:$A$53, 0), MATCH(M$9, DEFN!$A$3:$K$3, 0)) -> User Defined | N42: =INDEX(DEFN!$A$4:$K$53, MATCH($A42, DEFN!$A$4:$A$53, 0), MATCH(N$9, DEFN!$A$3:$K$3, 0)) -> 5 | O42: =IFERROR(IF($H42="None", 1, IF($H42="All Capacity", SUMIFS(SID!X$3:X$12290, SID!$G$3:$G$12290, "<>Power demand", SID!$K$3:$K$12290, $L42, SID!$I$3:$I$12290, $J42), IF($H42="All Generation", SUMIFS(SID!X$3:X$12290, SID!$K$3:$K$12290, $L42, SID!$I$3:$I$12290, $J42), SUMIFS(SID!X$3:X$12290, SID!$F$3:$F$12290, $H42, SID!$K$3:$K$12290, $L42)))), 1) -> 1 | P42: =IF(ISNUMBER(FIND("Growth", F42)), U42, IF(V42<>0,V42, SUMIFS(SID!X$3:X$12290, SID!$C$3:$C$12290, $C42, SID!$K$3:$K$12290, $L42, SID!$Y$3:$Y$12290, 0))) -> 4 | Q42: 1.33 | R42: 5 | S42: 26.6 | T42: 1.33 | U42: =IF(I42="Clean energy investments", IF(OR(W42=0, X42=0), 0, X42/W42-1), IF(OR(I42="None", SUMIFS(SID!X$3:X$12290, SID!$F$3:$F$12290, I42, SID!$K$3:$K$12290, L42, SID!$Y$3:$Y$12290, 0)=0), 0, IFERROR(SUMIFS(SID!X$3:X$12290, SID!$F$3:$F$12290, I42, SID!$K$3:$K$12290, L42, SID!$Y$3:$Y$12290, 0)/SUMIFS(SID!W$3:W$12290, SID!$F$3:$F$12290, I42, SID!$K$3:$K$12290, L42, SID!$Y$3:$Y$12290, 0) - 1, 0))) -> 0 | V42: =IF(J42<>"USDm", 0, IF(F42="Clean energy investments", IF(ISNUMBER(FIND("-", $L42)), SUMIFS(INV!$J$3:$J$11498, INV!$E$3:$E$11498, $L42, INV!$A$3:$A$11498, "<=" & int_Year, INV!$A$3:$A$11498, ">=" & $G$6), SUMIFS(INV!$J$3:$J$11498, INV!$F$3:$F$11498, $L42, INV!$A$3:$A$11498, "<=" & int_Year, INV!$A$3:$A$11498, ">=" & $G$6)), IF(ISNUMBER(FIND("-", $L42)), SUMIFS(INV!$J$3:$J$11498, INV!$E$3:$E$11498, $L42, INV!$I$3:$I$11498, $F42, INV!$A$3:$A$11498, "<=" & int_Year, INV!$A$3:$A$11498, ">=" & $G$6), SUMIFS(INV!$J$3:$J$11498, INV!$F$3:$F$11498, $L42, INV!$I$3:$I$11498, $F42, INV!$A$3:$A$11498, "<=" & int_Year, INV!$A$3:$A$11498, ">=" & $G$6)))) -> 0 | W42: =IF(I42<>"Clean energy investments", 0, IF(ISNUMBER(FIND("-", $L42)), SUMIFS(INV!$J$3:$J$11498, INV!$E$3:$E$11498, $L42, INV!$A$3:$A$11498, ">="& int_InvStartYear, INV!$A$3:$A$11498, "<="& int_Year-1), SUMIFS(INV!$J$3:$J$11498, INV!$F$3:$F$11498, $L42, INV!$A$3:$A$11498, ">="& int_InvStartYear, INV!$A$3:$A$11498, "<="& int_Year-1))) -> 0 | X42: =IF(I42<>"Clean energy investments", 0, IF(ISNUMBER(FIND("-", $L42)), SUMIFS(INV!$J$3:$J$11498, INV!$E$3:$E$11498, $L42, INV!$A$3:$A$11498, ">="& int_InvStartYear, INV!$A$3:$A$11498, "<="& int_Year), SUMIFS(INV!$J$3:$J$11498, INV!$F$3:$F$11498, $L42, INV!$A$3:$A$11498, ">="& int_InvStartYear, INV!$A$3:$A$11498, "<="& int_Year))) -> 0 | Y42: 1.01 > Sri Lanka
A43: 1 | B43: 34 | C43: =INDEX(DEFN!$A$4:$K$53, MATCH($A43, DEFN!$A$4:$A$53, 0), MATCH(C$9, DEFN!$A$3:$K$3, 0)) -> 1.01 | D43: =INDEX(DEFN!$A$4:$K$53, MATCH($A43, DEFN!$A$4:$A$53, 0), MATCH(D$9, DEFN!$A$3:$K$3, 0)) -> Enabling Framework | E43: =INDEX(DEFN!$A$4:$K$53, MATCH($A43, DEFN!$A$4:$A$53, 0), MATCH(E$9, DEFN!$A$3:$K$3, 0)) -> Policy & Regulation | F43: =INDEX(DEFN!$A$4:$K$53, MATCH($A43, DEFN!$A$4:$A$53, 0), MATCH(F$9, DEFN!$A$3:$K$3, 0)) -> Clean energy policies | G43: =INDEX(DEFN!$A$4:$K$53, MATCH($A43, DEFN!$A$4:$A$53, 0), MATCH(G$9, DEFN!$A$3:$K$3, 0)) -> Both | H43: =INDEX(DEFN!$A$4:$K$53, MATCH($A43, DEFN!$A$4:$A$53, 0), MATCH(H$9, DEFN!$A$3:$K$3, 0)) -> None | I43: =INDEX(DEFN!$A$4:$K$53, MATCH($A43, DEFN!$A$4:$A$53, 0), MATCH(I$9, DEFN!$A$3:$K$3, 0)) -> None | J43: =INDEX(DEFN!$A$4:$K$53, MATCH($A43, DEFN!$A$4:$A$53, 0), MATCH(J$9, DEFN!$A$3:$K$3, 0)) -> Policy Types | K43: =INDEX(DEFN!B$250:B$313, MATCH($B43, DEFN!$A$250:$A$313, 0), 1) -> Asia | L43: =INDEX(DEFN!C$250:C$313, MATCH($B43, DEFN!$A$250:$A$313, 0), 1) -> Tajikistan | M43: =INDEX(DEFN!$A$4:$K$53, MATCH($A43, DEFN!$A$4:$A$53, 0), MATCH(M$9, DEFN!$A$3:$K$3, 0)) -> User Defined | N43: =INDEX(DEFN!$A$4:$K$53, MATCH($A43, DEFN!$A$4:$A$53, 0), MATCH(N$9, DEFN!$A$3:$K$3, 0)) -> 5 | O43: =IFERROR(IF($H43="None", 1, IF($H43="All Capacity", SUMIFS(SID!X$3:X$12290, SID!$G$3:$G$12290, "<>Power demand", SID!$K$3:$K$12290, $L43, SID!$I$3:$I$12290, $J43), IF($H43="All Generation", SUMIFS(SID!X$3:X$12290, SID!$K$3:$K$12290, $L43, SID!$I$3:$I$12290, $J43), SUMIFS(SID!X$3:X$12290, SID!$F$3:$F$12290, $H43, SID!$K$3:$K$12290, $L43)))), 1) -> 1 | P43: =IF(ISNUMBER(FIND("Growth", F43)), U43, IF(V43<>0,V43, SUMIFS(SID!X$3:X$12290, SID!$C$3:$C$12290, $C43, SID!$K$3:$K$12290, $L43, SID!$Y$3:$Y$12290, 0))) -> 3 | Q43: 0.97 | R43: 5 | S43: 19.4 | T43: 0.97 | U43: =IF(I43="Clean energy investments", IF(OR(W43=0, X43=0), 0, X43/W43-1), IF(OR(I43="None", SUMIFS(SID!X$3:X$12290, SID!$F$3:$F$12290, I43, SID!$K$3:$K$12290, L43, SID!$Y$3:$Y$12290, 0)=0), 0, IFERROR(SUMIFS(SID!X$3:X$12290, SID!$F$3:$F$12290, I43, SID!$K$3:$K$12290, L43, SID!$Y$3:$Y$12290, 0)/SUMIFS(SID!W$3:W$12290, SID!$F$3:$F$12290, I43, SID!$K$3:$K$12290, L43, SID!$Y$3:$Y$12290, 0) - 1, 0))) -> 0 | V43: =IF(J43<>"USDm", 0, IF(F43="Clean energy investments", IF(ISNUMBER(FIND("-", $L43)), SUMIFS(INV!$J$3:$J$11498, INV!$E$3:$E$11498, $L43, INV!$A$3:$A$11498, "<=" & int_Year, INV!$A$3:$A$11498, ">=" & $G$6), SUMIFS(INV!$J$3:$J$11498, INV!$F$3:$F$11498, $L43, INV!$A$3:$A$11498, "<=" & int_Year, INV!$A$3:$A$11498, ">=" & $G$6)), IF(ISNUMBER(FIND("-", $L43)), SUMIFS(INV!$J$3:$J$11498, INV!$E$3:$E$11498, $L43, INV!$I$3:$I$11498, $F43, INV!$A$3:$A$11498, "<=" & int_Year, INV!$A$3:$A$11498, ">=" & $G$6), SUMIFS(INV!$J$3:$J$11498, INV!$F$3:$F$11498, $L43, INV!$I$3:$I$11498, $F43, INV!$A$3:$A$11498, "<=" & int_Year, INV!$A$3:$A$11498, ">=" & $G$6)))) -> 0 | W43: =IF(I43<>"Clean energy investments", 0, IF(ISNUMBER(FIND("-", $L43)), SUMIFS(INV!$J$3:$J$11498, INV!$E$3:$E$11498, $L43, INV!$A$3:$A$11498, ">="& int_InvStartYear, INV!$A$3:$A$11498, "<="& int_Year-1), SUMIFS(INV!$J$3:$J$11498, INV!$F$3:$F$11498, $L43, INV!$A$3:$A$11498, ">="& int_InvStartYear, INV!$A$3:$A$11498, "<="& int_Year-1))) -> 0 | X43: =IF(I43<>"Clean energy investments", 0, IF(ISNUMBER(FIND("-", $L43)), SUMIFS(INV!$J$3:$J$11498, INV!$E$3:$E$11498, $L43, INV!$A$3:$A$11498, ">="& int_InvStartYear, INV!$A$3:$A$11498, "<="& int_Year), SUMIFS(INV!$J$3:$J$11498, INV!$F$3:$F$11498, $L43, INV!$A$3:$A$11498, ">="& int_InvStartYear, INV!$A$3:$A$11498, "<="& int_Year))) -> 0 | Y43: 1.01 > Tajikistan
A44: 1 | B44: 35 | C44: =INDEX(DEFN!$A$4:$K$53, MATCH($A44, DEFN!$A$4:$A$53, 0), MATCH(C$9, DEFN!$A$3:$K$3, 0)) -> 1.01 | D44: =INDEX(DEFN!$A$4:$K$53, MATCH($A44, DEFN!$A$4:$A$53, 0), MATCH(D$9, DEFN!$A$3:$K$3, 0)) -> Enabling Framework | E44: =INDEX(DEFN!$A$4:$K$53, MATCH($A44, DEFN!$A$4:$A$53, 0), MATCH(E$9, DEFN!$A$3:$K$3, 0)) -> Policy & Regulation | F44: =INDEX(DEFN!$A$4:$K$53, MATCH($A44, DEFN!$A$4:$A$53, 0), MATCH(F$9, DEFN!$A$3:$K$3, 0)) -> Clean energy policies | G44: =INDEX(DEFN!$A$4:$K$53, MATCH($A44, DEFN!$A$4:$A$53, 0), MATCH(G$9, DEFN!$A$3:$K$3, 0)) -> Both | H44: =INDEX(DEFN!$A$4:$K$53, MATCH($A44, DEFN!$A$4:$A$53, 0), MATCH(H$9, DEFN!$A$3:$K$3, 0)) -> None | I44: =INDEX(DEFN!$A$4:$K$53, MATCH($A44, DEFN!$A$4:$A$53, 0), MATCH(I$9, DEFN!$A$3:$K$3, 0)) -> None | J44: =INDEX(DEFN!$A$4:$K$53, MATCH($A44, DEFN!$A$4:$A$53, 0), MATCH(J$9, DEFN!$A$3:$K$3, 0)) -> Policy Types | K44: =INDEX(DEFN!B$250:B$313, MATCH($B44, DEFN!$A$250:$A$313, 0), 1) -> Asia | L44: =INDEX(DEFN!C$250:C$313, MATCH($B44, DEFN!$A$250:$A$313, 0), 1) -> Vietnam | M44: =INDEX(DEFN!$A$4:$K$53, MATCH($A44, DEFN!$A$4:$A$53, 0), MATCH(M$9, DEFN!$A$3:$K$3, 0)) -> User Defined | N44: =INDEX(DEFN!$A$4:$K$53, MATCH($A44, DEFN!$A$4:$A$53, 0), MATCH(N$9, DEFN!$A$3:$K$3, 0)) -> 5 | O44: =IFERROR(IF($H44="None", 1, IF($H44="All Capacity", SUMIFS(SID!X$3:X$12290, SID!$G$3:$G$12290, "<>Power demand", SID!$K$3:$K$12290, $L44, SID!$I$3:$I$12290, $J44), IF($H44="All Generation", SUMIFS(SID!X$3:X$12290, SID!$K$3:$K$12290, $L44, SID!$I$3:$I$12290, $J44), SUMIFS(SID!X$3:X$12290, SID!$F$3:$F$12290, $H44, SID!$K$3:$K$12290, $L44)))), 1) -> 1 | P44: =IF(ISNUMBER(FIND("Growth", F44)), U44, IF(V44<>0,V44, SUMIFS(SID!X$3:X$12290, SID!$C$3:$C$12290, $C44, SID!$K$3:$K$12290, $L44, SID!$Y$3:$Y$12290, 0))) -> 4 | Q44: 1.29 | R44: 5 | S44: 25.8 | T44: 1.29 | U44: =IF(I44="Clean energy investments", IF(OR(W44=0, X44=0), 0, X44/W44-1), IF(OR(I44="None", SUMIFS(SID!X$3:X$12290, SID!$F$3:$F$12290, I44, SID!$K$3:$K$12290, L44, SID!$Y$3:$Y$12290, 0)=0), 0, IFERROR(SUMIFS(SID!X$3:X$12290, SID!$F$3:$F$12290, I44, SID!$K$3:$K$12290, L44, SID!$Y$3:$Y$12290, 0)/SUMIFS(SID!W$3:W$12290, SID!$F$3:$F$12290, I44, SID!$K$3:$K$12290, L44, SID!$Y$3:$Y$12290, 0) - 1, 0))) -> 0 | V44: =IF(J44<>"USDm", 0, IF(F44="Clean energy investments", IF(ISNUMBER(FIND("-", $L44)), SUMIFS(INV!$J$3:$J$11498, INV!$E$3:$E$11498, $L44, INV!$A$3:$A$11498, "<=" & int_Year, INV!$A$3:$A$11498, ">=" & $G$6), SUMIFS(INV!$J$3:$J$11498, INV!$F$3:$F$11498, $L44, INV!$A$3:$A$11498, "<=" & int_Year, INV!$A$3:$A$11498, ">=" & $G$6)), IF(ISNUMBER(FIND("-", $L44)), SUMIFS(INV!$J$3:$J$11498, INV!$E$3:$E$11498, $L44, INV!$I$3:$I$11498, $F44, INV!$A$3:$A$11498, "<=" & int_Year, INV!$A$3:$A$11498, ">=" & $G$6), SUMIFS(INV!$J$3:$J$11498, INV!$F$3:$F$11498, $L44, INV!$I$3:$I$11498, $F44, INV!$A$3:$A$11498, "<=" & int_Year, INV!$A$3:$A$11498, ">=" & $G$6)))) -> 0 | W44: =IF(I44<>"Clean energy investments", 0, IF(ISNUMBER(FIND("-", $L44)), SUMIFS(INV!$J$3:$J$11498, INV!$E$3:$E$11498, $L44, INV!$A$3:$A$11498, ">="& int_InvStartYear, INV!$A$3:$A$11498, "<="& int_Year-1), SUMIFS(INV!$J$3:$J$11498, INV!$F$3:$F$11498, $L44, INV!$A$3:$A$11498, ">="& int_InvStartYear, INV!$A$3:$A$11498, "<="& int_Year-1))) -> 0 | X44: =IF(I44<>"Clean energy investments", 0, IF(ISNUMBER(FIND("-", $L44)), SUMIFS(INV!$J$3:$J$11498, INV!$E$3:$E$11498, $L44, INV!$A$3:$A$11498, ">="& int_InvStartYear, INV!$A$3:$A$11498, "<="& int_Year), SUMIFS(INV!$J$3:$J$11498, INV!$F$3:$F$11498, $L44, INV!$A$3:$A$11498, ">="& int_InvStartYear, INV!$A$3:$A$11498, "<="& int_Year))) -> 0 | Y44: 1.01 > Vietnam
A45: 1 | B45: 36 | C45: =INDEX(DEFN!$A$4:$K$53, MATCH($A45, DEFN!$A$4:$A$53, 0), MATCH(C$9, DEFN!$A$3:$K$3, 0)) -> 1.01 | D45: =INDEX(DEFN!$A$4:$K$53, MATCH($A45, DEFN!$A$4:$A$53, 0), MATCH(D$9, DEFN!$A$3:$K$3, 0)) -> Enabling Framework | E45: =INDEX(DEFN!$A$4:$K$53, MATCH($A45, DEFN!$A$4:$A$53, 0), MATCH(E$9, DEFN!$A$3:$K$3, 0)) -> Policy & Regulation | F45: =INDEX(DEFN!$A$4:$K$53, MATCH($A45, DEFN!$A$4:$A$53, 0), MATCH(F$9, DEFN!$A$3:$K$3, 0)) -> Clean energy policies | G45: =INDEX(DEFN!$A$4:$K$53, MATCH($A45, DEFN!$A$4:$A$53, 0), MATCH(G$9, DEFN!$A$3:$K$3, 0)) -> Both | H45: =INDEX(DEFN!$A$4:$K$53, MATCH($A45, DEFN!$A$4:$A$53, 0), MATCH(H$9, DEFN!$A$3:$K$3, 0)) -> None | I45: =INDEX(DEFN!$A$4:$K$53, MATCH($A45, DEFN!$A$4:$A$53, 0), MATCH(I$9, DEFN!$A$3:$K$3, 0)) -> None | J45: =INDEX(DEFN!$A$4:$K$53, MATCH($A45, DEFN!$A$4:$A$53, 0), MATCH(J$9, DEFN!$A$3:$K$3, 0)) -> Policy Types | K45: =INDEX(DEFN!B$250:B$313, MATCH($B45, DEFN!$A$250:$A$313, 0), 1) -> LAC | L45: =INDEX(DEFN!C$250:C$313, MATCH($B45, DEFN!$A$250:$A$313, 0), 1) -> Argentina | M45: =INDEX(DEFN!$A$4:$K$53, MATCH($A45, DEFN!$A$4:$A$53, 0), MATCH(M$9, DEFN!$A$3:$K$3, 0)) -> User Defined | N45: =INDEX(DEFN!$A$4:$K$53, MATCH($A45, DEFN!$A$4:$A$53, 0), MATCH(N$9, DEFN!$A$3:$K$3, 0)) -> 5 | O45: =IFERROR(IF($H45="None", 1, IF($H45="All Capacity", SUMIFS(SID!X$3:X$12290, SID!$G$3:$G$12290, "<>Power demand", SID!$K$3:$K$12290, $L45, SID!$I$3:$I$12290, $J45), IF($H45="All Generation", SUMIFS(SID!X$3:X$12290, SID!$K$3:$K$12290, $L45, SID!$I$3:$I$12290, $J45), SUMIFS(SID!X$3:X$12290, SID!$F$3:$F$12290, $H45, SID!$K$3:$K$12290, $L45)))), 1) -> 1 | P45: =IF(ISNUMBER(FIND("Growth", F45)), U45, IF(V45<>0,V45, SUMIFS(SID!X$3:X$12290, SID!$C$3:$C$12290, $C45, SID!$K$3:$K$12290, $L45, SID!$Y$3:$Y$12290, 0))) -> 4 | Q45: 1.45 | R45: 5 | S45: 29 | T45: 1.45 | U45: =IF(I45="Clean energy investments", IF(OR(W45=0, X45=0), 0, X45/W45-1), IF(OR(I45="None", SUMIFS(SID!X$3:X$12290, SID!$F$3:$F$12290, I45, SID!$K$3:$K$12290, L45, SID!$Y$3:$Y$12290, 0)=0), 0, IFERROR(SUMIFS(SID!X$3:X$12290, SID!$F$3:$F$12290, I45, SID!$K$3:$K$12290, L45, SID!$Y$3:$Y$12290, 0)/SUMIFS(SID!W$3:W$12290, SID!$F$3:$F$12290, I45, SID!$K$3:$K$12290, L45, SID!$Y$3:$Y$12290, 0) - 1, 0))) -> 0 | V45: =IF(J45<>"USDm", 0, IF(F45="Clean energy investments", IF(ISNUMBER(FIND("-", $L45)), SUMIFS(INV!$J$3:$J$11498, INV!$E$3:$E$11498, $L45, INV!$A$3:$A$11498, "<=" & int_Year, INV!$A$3:$A$11498, ">=" & $G$6), SUMIFS(INV!$J$3:$J$11498, INV!$F$3:$F$11498, $L45, INV!$A$3:$A$11498, "<=" & int_Year, INV!$A$3:$A$11498, ">=" & $G$6)), IF(ISNUMBER(FIND("-", $L45)), SUMIFS(INV!$J$3:$J$11498, INV!$E$3:$E$11498, $L45, INV!$I$3:$I$11498, $F45, INV!$A$3:$A$11498, "<=" & int_Year, INV!$A$3:$A$11498, ">=" & $G$6), SUMIFS(INV!$J$3:$J$11498, INV!$F$3:$F$11498, $L45, INV!$I$3:$I$11498, $F45, INV!$A$3:$A$11498, "<=" & int_Year, INV!$A$3:$A$11498, ">=" & $G$6)))) -> 0 | W45: =IF(I45<>"Clean energy investments", 0, IF(ISNUMBER(FIND("-", $L45)), SUMIFS(INV!$J$3:$J$11498, INV!$E$3:$E$11498, $L45, INV!$A$3:$A$11498, ">="& int_InvStartYear, INV!$A$3:$A$11498, "<="& int_Year-1), SUMIFS(INV!$J$3:$J$11498, INV!$F$3:$F$11498, $L45, INV!$A$3:$A$11498, ">="& int_InvStartYear, INV!$A$3:$A$11498, "<="& int_Year-1))) -> 0 | X45: =IF(I45<>"Clean energy investments", 0, IF(ISNUMBER(FIND("-", $L45)), SUMIFS(INV!$J$3:$J$11498, INV!$E$3:$E$11498, $L45, INV!$A$3:$A$11498, ">="& int_InvStartYear, INV!$A$3:$A$11498, "<="& int_Year), SUMIFS(INV!$J$3:$J$11498, INV!$F$3:$F$11498, $L45, INV!$A$3:$A$11498, ">="& int_InvStartYear, INV!$A$3:$A$11498, "<="& int_Year))) -> 0 | Y45: 1.01 > Argentina
A46: 1 | B46: 37 | C46: =INDEX(DEFN!$A$4:$K$53, MATCH($A46, DEFN!$A$4:$A$53, 0), MATCH(C$9, DEFN!$A$3:$K$3, 0)) -> 1.01 | D46: =INDEX(DEFN!$A$4:$K$53, MATCH($A46, DEFN!$A$4:$A$53, 0), MATCH(D$9, DEFN!$A$3:$K$3, 0)) -> Enabling Framework | E46: =INDEX(DEFN!$A$4:$K$53, MATCH($A46, DEFN!$A$4:$A$53, 0), MATCH(E$9, DEFN!$A$3:$K$3, 0)) -> Policy & Regulation | F46: =INDEX(DEFN!$A$4:$K$53, MATCH($A46, DEFN!$A$4:$A$53, 0), MATCH(F$9, DEFN!$A$3:$K$3, 0)) -> Clean energy policies | G46: =INDEX(DEFN!$A$4:$K$53, MATCH($A46, DEFN!$A$4:$A$53, 0), MATCH(G$9, DEFN!$A$3:$K$3, 0)) -> Both | H46: =INDEX(DEFN!$A$4:$K$53, MATCH($A46, DEFN!$A$4:$A$53, 0), MATCH(H$9, DEFN!$A$3:$K$3, 0)) -> None | I46: =INDEX(DEFN!$A$4:$K$53, MATCH($A46, DEFN!$A$4:$A$53, 0), MATCH(I$9, DEFN!$A$3:$K$3, 0)) -> None | J46: =INDEX(DEFN!$A$4:$K$53, MATCH($A46, DEFN!$A$4:$A$53, 0), MATCH(J$9, DEFN!$A$3:$K$3, 0)) -> Policy Types | K46: =INDEX(DEFN!B$250:B$313, MATCH($B46, DEFN!$A$250:$A$313, 0), 1) -> LAC | L46: =INDEX(DEFN!C$250:C$313, MATCH($B46, DEFN!$A$250:$A$313, 0), 1) -> Bahamas | M46: =INDEX(DEFN!$A$4:$K$53, MATCH($A46, DEFN!$A$4:$A$53, 0), MATCH(M$9, DEFN!$A$3:$K$3, 0)) -> User Defined | N46: =INDEX(DEFN!$A$4:$K$53, MATCH($A46, DEFN!$A$4:$A$53, 0), MATCH(N$9, DEFN!$A$3:$K$3, 0)) -> 5 | O46: =IFERROR(IF($H46="None", 1, IF($H46="All Capacity", SUMIFS(SID!X$3:X$12290, SID!$G$3:$G$12290, "<>Power demand", SID!$K$3:$K$12290, $L46, SID!$I$3:$I$12290, $J46), IF($H46="All Generation", SUMIFS(SID!X$3:X$12290, SID!$K$3:$K$12290, $L46, SID!$I$3:$I$12290, $J46), SUMIFS(SID!X$3:X$12290, SID!$F$3:$F$12290, $H46, SID!$K$3:$K$12290, $L46)))), 1) -> 1 | P46: =IF(ISNUMBER(FIND("Growth", F46)), U46, IF(V46<>0,V46, SUMIFS(SID!X$3:X$12290, SID!$C$3:$C$12290, $C46, SID!$K$3:$K$12290, $L46, SID!$Y$3:$Y$12290, 0))) -> 2 | Q46: 0.55 | R46: 5 | S46: 11 | T46: 0.55 | U46: =IF(I46="Clean energy investments", IF(OR(W46=0, X46=0), 0, X46/W46-1), IF(OR(I46="None", SUMIFS(SID!X$3:X$12290, SID!$F$3:$F$12290, I46, SID!$K$3:$K$12290, L46, SID!$Y$3:$Y$12290, 0)=0), 0, IFERROR(SUMIFS(SID!X$3:X$12290, SID!$F$3:$F$12290, I46, SID!$K$3:$K$12290, L46, SID!$Y$3:$Y$12290, 0)/SUMIFS(SID!W$3:W$12290, SID!$F$3:$F$12290, I46, SID!$K$3:$K$12290, L46, SID!$Y$3:$Y$12290, 0) - 1, 0))) -> 0 | V46: =IF(J46<>"USDm", 0, IF(F46="Clean energy investments", IF(ISNUMBER(FIND("-", $L46)), SUMIFS(INV!$J$3:$J$11498, INV!$E$3:$E$11498, $L46, INV!$A$3:$A$11498, "<=" & int_Year, INV!$A$3:$A$11498, ">=" & $G$6), SUMIFS(INV!$J$3:$J$11498, INV!$F$3:$F$11498, $L46, INV!$A$3:$A$11498, "<=" & int_Year, INV!$A$3:$A$11498, ">=" & $G$6)), IF(ISNUMBER(FIND("-", $L46)), SUMIFS(INV!$J$3:$J$11498, INV!$E$3:$E$11498, $L46, INV!$I$3:$I$11498, $F46, INV!$A$3:$A$11498, "<=" & int_Year, INV!$A$3:$A$11498, ">=" & $G$6), SUMIFS(INV!$J$3:$J$11498, INV!$F$3:$F$11498, $L46, INV!$I$3:$I$11498, $F46, INV!$A$3:$A$11498, "<=" & int_Year, INV!$A$3:$A$11498, ">=" & $G$6)))) -> 0 | W46: =IF(I46<>"Clean energy investments", 0, IF(ISNUMBER(FIND("-", $L46)), SUMIFS(INV!$J$3:$J$11498, INV!$E$3:$E$11498, $L46, INV!$A$3:$A$11498, ">="& int_InvStartYear, INV!$A$3:$A$11498, "<="& int_Year-1), SUMIFS(INV!$J$3:$J$11498, INV!$F$3:$F$11498, $L46, INV!$A$3:$A$11498, ">="& int_InvStartYear, INV!$A$3:$A$11498, "<="& int_Year-1))) -> 0 | X46: =IF(I46<>"Clean energy investments", 0, IF(ISNUMBER(FIND("-", $L46)), SUMIFS(INV!$J$3:$J$11498, INV!$E$3:$E$11498, $L46, INV!$A$3:$A$11498, ">="& int_InvStartYear, INV!$A$3:$A$11498, "<="& int_Year), SUMIFS(INV!$J$3:$J$11498, INV!$F$3:$F$11498, $L46, INV!$A$3:$A$11498, ">="& int_InvStartYear, INV!$A$3:$A$11498, "<="& int_Year))) -> 0 | Y46: 1.01 > Bahamas
A47: 1 | B47: 38 | C47: =INDEX(DEFN!$A$4:$K$53, MATCH($A47, DEFN!$A$4:$A$53, 0), MATCH(C$9, DEFN!$A$3:$K$3, 0)) -> 1.01 | D47: =INDEX(DEFN!$A$4:$K$53, MATCH($A47, DEFN!$A$4:$A$53, 0), MATCH(D$9, DEFN!$A$3:$K$3, 0)) -> Enabling Framework | E47: =INDEX(DEFN!$A$4:$K$53, MATCH($A47, DEFN!$A$4:$A$53, 0), MATCH(E$9, DEFN!$A$3:$K$3, 0)) -> Policy & Regulation | F47: =INDEX(DEFN!$A$4:$K$53, MATCH($A47, DEFN!$A$4:$A$53, 0), MATCH(F$9, DEFN!$A$3:$K$3, 0)) -> Clean energy policies | G47: =INDEX(DEFN!$A$4:$K$53, MATCH($A47, DEFN!$A$4:$A$53, 0), MATCH(G$9, DEFN!$A$3:$K$3, 0)) -> Both | H47: =INDEX(DEFN!$A$4:$K$53, MATCH($A47, DEFN!$A$4:$A$53, 0), MATCH(H$9, DEFN!$A$3:$K$3, 0)) -> None | I47: =INDEX(DEFN!$A$4:$K$53, MATCH($A47, DEFN!$A$4:$A$53, 0), MATCH(I$9, DEFN!$A$3:$K$3, 0)) -> None | J47: =INDEX(DEFN!$A$4:$K$53, MATCH($A47, DEFN!$A$4:$A$53, 0), MATCH(J$9, DEFN!$A$3:$K$3, 0)) -> Policy Types | K47: =INDEX(DEFN!B$250:B$313, MATCH($B47, DEFN!$A$250:$A$313, 0), 1) -> LAC | L47: =INDEX(DEFN!C$250:C$313, MATCH($B47, DEFN!$A$250:$A$313, 0), 1) -> Barbados | M47: =INDEX(DEFN!$A$4:$K$53, MATCH($A47, DEFN!$A$4:$A$53, 0), MATCH(M$9, DEFN!$A$3:$K$3, 0)) -> User Defined | N47: =INDEX(DEFN!$A$4:$K$53, MATCH($A47, DEFN!$A$4:$A$53, 0), MATCH(N$9, DEFN!$A$3:$K$3, 0)) -> 5 | O47: =IFERROR(IF($H47="None", 1, IF($H47="All Capacity", SUMIFS(SID!X$3:X$12290, SID!$G$3:$G$12290, "<>Power demand", SID!$K$3:$K$12290, $L47, SID!$I$3:$I$12290, $J47), IF($H47="All Generation", SUMIFS(SID!X$3:X$12290, SID!$K$3:$K$12290, $L47, SID!$I$3:$I$12290, $J47), SUMIFS(SID!X$3:X$12290, SID!$F$3:$F$12290, $H47, SID!$K$3:$K$12290, $L47)))), 1) -> 1 | P47: =IF(ISNUMBER(FIND("Growth", F47)), U47, IF(V47<>0,V47, SUMIFS(SID!X$3:X$12290, SID!$C$3:$C$12290, $C47, SID!$K$3:$K$12290, $L47, SID!$Y$3:$Y$12290, 0))) -> 3 | Q47: 1.64 | R47: 5 | S47: 32.8 | T47: 1.64 | U47: =IF(I47="Clean energy investments", IF(OR(W47=0, X47=0), 0, X47/W47-1), IF(OR(I47="None", SUMIFS(SID!X$3:X$12290, SID!$F$3:$F$12290, I47, SID!$K$3:$K$12290, L47, SID!$Y$3:$Y$12290, 0)=0), 0, IFERROR(SUMIFS(SID!X$3:X$12290, SID!$F$3:$F$12290, I47, SID!$K$3:$K$12290, L47, SID!$Y$3:$Y$12290, 0)/SUMIFS(SID!W$3:W$12290, SID!$F$3:$F$12290, I47, SID!$K$3:$K$12290, L47, SID!$Y$3:$Y$12290, 0) - 1, 0))) -> 0 | V47: =IF(J47<>"USDm", 0, IF(F47="Clean energy investments", IF(ISNUMBER(FIND("-", $L47)), SUMIFS(INV!$J$3:$J$11498, INV!$E$3:$E$11498, $L47, INV!$A$3:$A$11498, "<=" & int_Year, INV!$A$3:$A$11498, ">=" & $G$6), SUMIFS(INV!$J$3:$J$11498, INV!$F$3:$F$11498, $L47, INV!$A$3:$A$11498, "<=" & int_Year, INV!$A$3:$A$11498, ">=" & $G$6)), IF(ISNUMBER(FIND("-", $L47)), SUMIFS(INV!$J$3:$J$11498, INV!$E$3:$E$11498, $L47, INV!$I$3:$I$11498, $F47, INV!$A$3:$A$11498, "<=" & int_Year, INV!$A$3:$A$11498, ">=" & $G$6), SUMIFS(INV!$J$3:$J$11498, INV!$F$3:$F$11498, $L47, INV!$I$3:$I$11498, $F47, INV!$A$3:$A$11498, "<=" & int_Year, INV!$A$3:$A$11498, ">=" & $G$6)))) -> 0 | W47: =IF(I47<>"Clean energy investments", 0, IF(ISNUMBER(FIND("-", $L47)), SUMIFS(INV!$J$3:$J$11498, INV!$E$3:$E$11498, $L47, INV!$A$3:$A$11498, ">="& int_InvStartYear, INV!$A$3:$A$11498, "<="& int_Year-1), SUMIFS(INV!$J$3:$J$11498, INV!$F$3:$F$11498, $L47, INV!$A$3:$A$11498, ">="& int_InvStartYear, INV!$A$3:$A$11498, "<="& int_Year-1))) -> 0 | X47: =IF(I47<>"Clean energy investments", 0, IF(ISNUMBER(FIND("-", $L47)), SUMIFS(INV!$J$3:$J$11498, INV!$E$3:$E$11498, $L47, INV!$A$3:$A$11498, ">="& int_InvStartYear, INV!$A$3:$A$11498, "<="& int_Year), SUMIFS(INV!$J$3:$J$11498, INV!$F$3:$F$11498, $L47, INV!$A$3:$A$11498, ">="& int_InvStartYear, INV!$A$3:$A$11498, "<="& int_Year))) -> 0 | Y47: 1.01 > Barbados
A48: 1 | B48: 39 | C48: =INDEX(DEFN!$A$4:$K$53, MATCH($A48, DEFN!$A$4:$A$53, 0), MATCH(C$9, DEFN!$A$3:$K$3, 0)) -> 1.01 | D48: =INDEX(DEFN!$A$4:$K$53, MATCH($A48, DEFN!$A$4:$A$53, 0), MATCH(D$9, DEFN!$A$3:$K$3, 0)) -> Enabling Framework | E48: =INDEX(DEFN!$A$4:$K$53, MATCH($A48, DEFN!$A$4:$A$53, 0), MATCH(E$9, DEFN!$A$3:$K$3, 0)) -> Policy & Regulation | F48: =INDEX(DEFN!$A$4:$K$53, MATCH($A48, DEFN!$A$4:$A$53, 0), MATCH(F$9, DEFN!$A$3:$K$3, 0)) -> Clean energy policies | G48: =INDEX(DEFN!$A$4:$K$53, MATCH($A48, DEFN!$A$4:$A$53, 0), MATCH(G$9, DEFN!$A$3:$K$3, 0)) -> Both | H48: =INDEX(DEFN!$A$4:$K$53, MATCH($A48, DEFN!$A$4:$A$53, 0), MATCH(H$9, DEFN!$A$3:$K$3, 0)) -> None | I48: =INDEX(DEFN!$A$4:$K$53, MATCH($A48, DEFN!$A$4:$A$53, 0), MATCH(I$9, DEFN!$A$3:$K$3, 0)) -> None | J48: =INDEX(DEFN!$A$4:$K$53, MATCH($A48, DEFN!$A$4:$A$53, 0), MATCH(J$9, DEFN!$A$3:$K$3, 0)) -> Policy Types | K48: =INDEX(DEFN!B$250:B$313, MATCH($B48, DEFN!$A$250:$A$313, 0), 1) -> LAC | L48: =INDEX(DEFN!C$250:C$313, MATCH($B48, DEFN!$A$250:$A$313, 0), 1) -> Belize | M48: =INDEX(DEFN!$A$4:$K$53, MATCH($A48, DEFN!$A$4:$A$53, 0), MATCH(M$9, DEFN!$A$3:$K$3, 0)) -> User Defined | N48: =INDEX(DEFN!$A$4:$K$53, MATCH($A48, DEFN!$A$4:$A$53, 0), MATCH(N$9, DEFN!$A$3:$K$3, 0)) -> 5 | O48: =IFERROR(IF($H48="None", 1, IF($H48="All Capacity", SUMIFS(SID!X$3:X$12290, SID!$G$3:$G$12290, "<>Power demand", SID!$K$3:$K$12290, $L48, SID!$I$3:$I$12290, $J48), IF($H48="All Generation", SUMIFS(SID!X$3:X$12290, SID!$K$3:$K$12290, $L48, SID!$I$3:$I$12290, $J48), SUMIFS(SID!X$3:X$12290, SID!$F$3:$F$12290, $H48, SID!$K$3:$K$12290, $L48)))), 1) -> 1 | P48: =IF(ISNUMBER(FIND("Growth", F48)), U48, IF(V48<>0,V48, SUMIFS(SID!X$3:X$12290, SID!$C$3:$C$12290, $C48, SID!$K$3:$K$12290, $L48, SID!$Y$3:$Y$12290, 0))) -> 2 | Q48: 0.6 | R48: 5 | S48: 12 | T48: 0.6 | U48: =IF(I48="Clean energy investments", IF(OR(W48=0, X48=0), 0, X48/W48-1), IF(OR(I48="None", SUMIFS(SID!X$3:X$12290, SID!$F$3:$F$12290, I48, SID!$K$3:$K$12290, L48, SID!$Y$3:$Y$12290, 0)=0), 0, IFERROR(SUMIFS(SID!X$3:X$12290, SID!$F$3:$F$12290, I48, SID!$K$3:$K$12290, L48, SID!$Y$3:$Y$12290, 0)/SUMIFS(SID!W$3:W$12290, SID!$F$3:$F$12290, I48, SID!$K$3:$K$12290, L48, SID!$Y$3:$Y$12290, 0) - 1, 0))) -> 0 | V48: =IF(J48<>"USDm", 0, IF(F48="Clean energy investments", IF(ISNUMBER(FIND("-", $L48)), SUMIFS(INV!$J$3:$J$11498, INV!$E$3:$E$11498, $L48, INV!$A$3:$A$11498, "<=" & int_Year, INV!$A$3:$A$11498, ">=" & $G$6), SUMIFS(INV!$J$3:$J$11498, INV!$F$3:$F$11498, $L48, INV!$A$3:$A$11498, "<=" & int_Year, INV!$A$3:$A$11498, ">=" & $G$6)), IF(ISNUMBER(FIND("-", $L48)), SUMIFS(INV!$J$3:$J$11498, INV!$E$3:$E$11498, $L48, INV!$I$3:$I$11498, $F48, INV!$A$3:$A$11498, "<=" & int_Year, INV!$A$3:$A$11498, ">=" & $G$6), SUMIFS(INV!$J$3:$J$11498, INV!$F$3:$F$11498, $L48, INV!$I$3:$I$11498, $F48, INV!$A$3:$A$11498, "<=" & int_Year, INV!$A$3:$A$11498, ">=" & $G$6)))) -> 0 | W48: =IF(I48<>"Clean energy investments", 0, IF(ISNUMBER(FIND("-", $L48)), SUMIFS(INV!$J$3:$J$11498, INV!$E$3:$E$11498, $L48, INV!$A$3:$A$11498, ">="& int_InvStartYear, INV!$A$3:$A$11498, "<="& int_Year-1), SUMIFS(INV!$J$3:$J$11498, INV!$F$3:$F$11498, $L48, INV!$A$3:$A$11498, ">="& int_InvStartYear, INV!$A$3:$A$11498, "<="& int_Year-1))) -> 0 | X48: =IF(I48<>"Clean energy investments", 0, IF(ISNUMBER(FIND("-", $L48)), SUMIFS(INV!$J$3:$J$11498, INV!$E$3:$E$11498, $L48, INV!$A$3:$A$11498, ">="& int_InvStartYear, INV!$A$3:$A$11498, "<="& int_Year), SUMIFS(INV!$J$3:$J$11498, INV!$F$3:$F$11498, $L48, INV!$A$3:$A$11498, ">="& int_InvStartYear, INV!$A$3:$A$11498, "<="& int_Year))) -> 0 | Y48: 1.01 > Belize
A49: 1 | B49: 40 | C49: =INDEX(DEFN!$A$4:$K$53, MATCH($A49, DEFN!$A$4:$A$53, 0), MATCH(C$9, DEFN!$A$3:$K$3, 0)) -> 1.01 | D49: =INDEX(DEFN!$A$4:$K$53, MATCH($A49, DEFN!$A$4:$A$53, 0), MATCH(D$9, DEFN!$A$3:$K$3, 0)) -> Enabling Framework | E49: =INDEX(DEFN!$A$4:$K$53, MATCH($A49, DEFN!$A$4:$A$53, 0), MATCH(E$9, DEFN!$A$3:$K$3, 0)) -> Policy & Regulation | F49: =INDEX(DEFN!$A$4:$K$53, MATCH($A49, DEFN!$A$4:$A$53, 0), MATCH(F$9, DEFN!$A$3:$K$3, 0)) -> Clean energy policies | G49: =INDEX(DEFN!$A$4:$K$53, MATCH($A49, DEFN!$A$4:$A$53, 0), MATCH(G$9, DEFN!$A$3:$K$3, 0)) -> Both | H49: =INDEX(DEFN!$A$4:$K$53, MATCH($A49, DEFN!$A$4:$A$53, 0), MATCH(H$9, DEFN!$A$3:$K$3, 0)) -> None | I49: =INDEX(DEFN!$A$4:$K$53, MATCH($A49, DEFN!$A$4:$A$53, 0), MATCH(I$9, DEFN!$A$3:$K$3, 0)) -> None | J49: =INDEX(DEFN!$A$4:$K$53, MATCH($A49, DEFN!$A$4:$A$53, 0), MATCH(J$9, DEFN!$A$3:$K$3, 0)) -> Policy Types | K49: =INDEX(DEFN!B$250:B$313, MATCH($B49, DEFN!$A$250:$A$313, 0), 1) -> LAC | L49: =INDEX(DEFN!C$250:C$313, MATCH($B49, DEFN!$A$250:$A$313, 0), 1) -> Bolivia | M49: =INDEX(DEFN!$A$4:$K$53, MATCH($A49, DEFN!$A$4:$A$53, 0), MATCH(M$9, DEFN!$A$3:$K$3, 0)) -> User Defined | N49: =INDEX(DEFN!$A$4:$K$53, MATCH($A49, DEFN!$A$4:$A$53, 0), MATCH(N$9, DEFN!$A$3:$K$3, 0)) -> 5 | O49: =IFERROR(IF($H49="None", 1, IF($H49="All Capacity", SUMIFS(SID!X$3:X$12290, SID!$G$3:$G$12290, "<>Power demand", SID!$K$3:$K$12290, $L49, SID!$I$3:$I$12290, $J49), IF($H49="All Generation", SUMIFS(SID!X$3:X$12290, SID!$K$3:$K$12290, $L49, SID!$I$3:$I$12290, $J49), SUMIFS(SID!X$3:X$12290, SID!$F$3:$F$12290, $H49, SID!$K$3:$K$12290, $L49)))), 1) -> 1 | P49: =IF(ISNUMBER(FIND("Growth", F49)), U49, IF(V49<>0,V49, SUMIFS(SID!X$3:X$12290, SID!$C$3:$C$12290, $C49, SID!$K$3:$K$12290, $L49, SID!$Y$3:$Y$12290, 0))) -> 1 | Q49: 0.42 | R49: 5 | S49: 8.4 | T49: 0.42 | U49: =IF(I49="Clean energy investments", IF(OR(W49=0, X49=0), 0, X49/W49-1), IF(OR(I49="None", SUMIFS(SID!X$3:X$12290, SID!$F$3:$F$12290, I49, SID!$K$3:$K$12290, L49, SID!$Y$3:$Y$12290, 0)=0), 0, IFERROR(SUMIFS(SID!X$3:X$12290, SID!$F$3:$F$12290, I49, SID!$K$3:$K$12290, L49, SID!$Y$3:$Y$12290, 0)/SUMIFS(SID!W$3:W$12290, SID!$F$3:$F$12290, I49, SID!$K$3:$K$12290, L49, SID!$Y$3:$Y$12290, 0) - 1, 0))) -> 0 | V49: =IF(J49<>"USDm", 0, IF(F49="Clean energy investments", IF(ISNUMBER(FIND("-", $L49)), SUMIFS(INV!$J$3:$J$11498, INV!$E$3:$E$11498, $L49, INV!$A$3:$A$11498, "<=" & int_Year, INV!$A$3:$A$11498, ">=" & $G$6), SUMIFS(INV!$J$3:$J$11498, INV!$F$3:$F$11498, $L49, INV!$A$3:$A$11498, "<=" & int_Year, INV!$A$3:$A$11498, ">=" & $G$6)), IF(ISNUMBER(FIND("-", $L49)), SUMIFS(INV!$J$3:$J$11498, INV!$E$3:$E$11498, $L49, INV!$I$3:$I$11498, $F49, INV!$A$3:$A$11498, "<=" & int_Year, INV!$A$3:$A$11498, ">=" & $G$6), SUMIFS(INV!$J$3:$J$11498, INV!$F$3:$F$11498, $L49, INV!$I$3:$I$11498, $F49, INV!$A$3:$A$11498, "<=" & int_Year, INV!$A$3:$A$11498, ">=" & $G$6)))) -> 0 | W49: =IF(I49<>"Clean energy investments", 0, IF(ISNUMBER(FIND("-", $L49)), SUMIFS(INV!$J$3:$J$11498, INV!$E$3:$E$11498, $L49, INV!$A$3:$A$11498, ">="& int_InvStartYear, INV!$A$3:$A$11498, "<="& int_Year-1), SUMIFS(INV!$J$3:$J$11498, INV!$F$3:$F$11498, $L49, INV!$A$3:$A$11498, ">="& int_InvStartYear, INV!$A$3:$A$11498, "<="& int_Year-1))) -> 0 | X49: =IF(I49<>"Clean energy investments", 0, IF(ISNUMBER(FIND("-", $L49)), SUMIFS(INV!$J$3:$J$11498, INV!$E$3:$E$11498, $L49, INV!$A$3:$A$11498, ">="& int_InvStartYear, INV!$A$3:$A$11498, "<="& int_Year), SUMIFS(INV!$J$3:$J$11498, INV!$F$3:$F$11498, $L49, INV!$A$3:$A$11498, ">="& int_InvStartYear, INV!$A$3:$A$11498, "<="& int_Year))) -> 0 | Y49: 1.01 > Bolivia
A50: 1 | B50: 41 | C50: =INDEX(DEFN!$A$4:$K$53, MATCH($A50, DEFN!$A$4:$A$53, 0), MATCH(C$9, DEFN!$A$3:$K$3, 0)) -> 1.01 | D50: =INDEX(DEFN!$A$4:$K$53, MATCH($A50, DEFN!$A$4:$A$53, 0), MATCH(D$9, DEFN!$A$3:$K$3, 0)) -> Enabling Framework | E50: =INDEX(DEFN!$A$4:$K$53, MATCH($A50, DEFN!$A$4:$A$53, 0), MATCH(E$9, DEFN!$A$3:$K$3, 0)) -> Policy & Regulation | F50: =INDEX(DEFN!$A$4:$K$53, MATCH($A50, DEFN!$A$4:$A$53, 0), MATCH(F$9, DEFN!$A$3:$K$3, 0)) -> Clean energy policies | G50: =INDEX(DEFN!$A$4:$K$53, MATCH($A50, DEFN!$A$4:$A$53, 0), MATCH(G$9, DEFN!$A$3:$K$3, 0)) -> Both | H50: =INDEX(DEFN!$A$4:$K$53, MATCH($A50, DEFN!$A$4:$A$53, 0), MATCH(H$9, DEFN!$A$3:$K$3, 0)) -> None | I50: =INDEX(DEFN!$A$4:$K$53, MATCH($A50, DEFN!$A$4:$A$53, 0), MATCH(I$9, DEFN!$A$3:$K$3, 0)) -> None | J50: =INDEX(DEFN!$A$4:$K$53, MATCH($A50, DEFN!$A$4:$A$53, 0), MATCH(J$9, DEFN!$A$3:$K$3, 0)) -> Policy Types | K50: =INDEX(DEFN!B$250:B$313, MATCH($B50, DEFN!$A$250:$A$313, 0), 1) -> LAC | L50: =INDEX(DEFN!C$250:C$313, MATCH($B50, DEFN!$A$250:$A$313, 0), 1) -> Brazil | M50: =INDEX(DEFN!$A$4:$K$53, MATCH($A50, DEFN!$A$4:$A$53, 0), MATCH(M$9, DEFN!$A$3:$K$3, 0)) -> User Defined | N50: =INDEX(DEFN!$A$4:$K$53, MATCH($A50, DEFN!$A$4:$A$53, 0), MATCH(N$9, DEFN!$A$3:$K$3, 0)) -> 5 | O50: =IFERROR(IF($H50="None", 1, IF($H50="All Capacity", SUMIFS(SID!X$3:X$12290, SID!$G$3:$G$12290, "<>Power demand", SID!$K$3:$K$12290, $L50, SID!$I$3:$I$12290, $J50), IF($H50="All Generation", SUMIFS(SID!X$3:X$12290, SID!$K$3:$K$12290, $L50, SID!$I$3:$I$12290, $J50), SUMIFS(SID!X$3:X$12290, SID!$F$3:$F$12290, $H50, SID!$K$3:$K$12290, $L50)))), 1) -> 1 | P50: =IF(ISNUMBER(FIND("Growth", F50)), U50, IF(V50<>0,V50, SUMIFS(SID!X$3:X$12290, SID!$C$3:$C$12290, $C50, SID!$K$3:$K$12290, $L50, SID!$Y$3:$Y$12290, 0))) -> 6 | Q50: 2.6 | R50: 5 | S50: 52 | T50: 2.6 | U50: =IF(I50="Clean energy investments", IF(OR(W50=0, X50=0), 0, X50/W50-1), IF(OR(I50="None", SUMIFS(SID!X$3:X$12290, SID!$F$3:$F$12290, I50, SID!$K$3:$K$12290, L50, SID!$Y$3:$Y$12290, 0)=0), 0, IFERROR(SUMIFS(SID!X$3:X$12290, SID!$F$3:$F$12290, I50, SID!$K$3:$K$12290, L50, SID!$Y$3:$Y$12290, 0)/SUMIFS(SID!W$3:W$12290, SID!$F$3:$F$12290, I50, SID!$K$3:$K$12290, L50, SID!$Y$3:$Y$12290, 0) - 1, 0))) -> 0 | V50: =IF(J50<>"USDm", 0, IF(F50="Clean energy investments", IF(ISNUMBER(FIND("-", $L50)), SUMIFS(INV!$J$3:$J$11498, INV!$E$3:$E$11498, $L50, INV!$A$3:$A$11498, "<=" & int_Year, INV!$A$3:$A$11498, ">=" & $G$6), SUMIFS(INV!$J$3:$J$11498, INV!$F$3:$F$11498, $L50, INV!$A$3:$A$11498, "<=" & int_Year, INV!$A$3:$A$11498, ">=" & $G$6)), IF(ISNUMBER(FIND("-", $L50)), SUMIFS(INV!$J$3:$J$11498, INV!$E$3:$E$11498, $L50, INV!$I$3:$I$11498, $F50, INV!$A$3:$A$11498, "<=" & int_Year, INV!$A$3:$A$11498, ">=" & $G$6), SUMIFS(INV!$J$3:$J$11498, INV!$F$3:$F$11498, $L50, INV!$I$3:$I$11498, $F50, INV!$A$3:$A$11498, "<=" & int_Year, INV!$A$3:$A$11498, ">=" & $G$6)))) -> 0 | W50: =IF(I50<>"Clean energy investments", 0, IF(ISNUMBER(FIND("-", $L50)), SUMIFS(INV!$J$3:$J$11498, INV!$E$3:$E$11498, $L50, INV!$A$3:$A$11498, ">="& int_InvStartYear, INV!$A$3:$A$11498, "<="& int_Year-1), SUMIFS(INV!$J$3:$J$11498, INV!$F$3:$F$11498, $L50, INV!$A$3:$A$11498, ">="& int_InvStartYear, INV!$A$3:$A$11498, "<="& int_Year-1))) -> 0 | X50: =IF(I50<>"Clean energy investments", 0, IF(ISNUMBER(FIND("-", $L50)), SUMIFS(INV!$J$3:$J$11498, INV!$E$3:$E$11498, $L50, INV!$A$3:$A$11498, ">="& int_InvStartYear, INV!$A$3:$A$11498, "<="& int_Year), SUMIFS(INV!$J$3:$J$11498, INV!$F$3:$F$11498, $L50, INV!$A$3:$A$11498, ">="& int_InvStartYear, INV!$A$3:$A$11498, "<="& int_Year))) -> 0 | Y50: 1.01 > Brazil
A51: 1 | B51: 42 | C51: =INDEX(DEFN!$A$4:$K$53, MATCH($A51, DEFN!$A$4:$A$53, 0), MATCH(C$9, DEFN!$A$3:$K$3, 0)) -> 1.01 | D51: =INDEX(DEFN!$A$4:$K$53, MATCH($A51, DEFN!$A$4:$A$53, 0), MATCH(D$9, DEFN!$A$3:$K$3, 0)) -> Enabling Framework | E51: =INDEX(DEFN!$A$4:$K$53, MATCH($A51, DEFN!$A$4:$A$53, 0), MATCH(E$9, DEFN!$A$3:$K$3, 0)) -> Policy & Regulation | F51: =INDEX(DEFN!$A$4:$K$53, MATCH($A51, DEFN!$A$4:$A$53, 0), MATCH(F$9, DEFN!$A$3:$K$3, 0)) -> Clean energy policies | G51: =INDEX(DEFN!$A$4:$K$53, MATCH($A51, DEFN!$A$4:$A$53, 0), MATCH(G$9, DEFN!$A$3:$K$3, 0)) -> Both | H51: =INDEX(DEFN!$A$4:$K$53, MATCH($A51, DEFN!$A$4:$A$53, 0), MATCH(H$9, DEFN!$A$3:$K$3, 0)) -> None | I51: =INDEX(DEFN!$A$4:$K$53, MATCH($A51, DEFN!$A$4:$A$53, 0), MATCH(I$9, DEFN!$A$3:$K$3, 0)) -> None | J51: =INDEX(DEFN!$A$4:$K$53, MATCH($A51, DEFN!$A$4:$A$53, 0), MATCH(J$9, DEFN!$A$3:$K$3, 0)) -> Policy Types | K51: =INDEX(DEFN!B$250:B$313, MATCH($B51, DEFN!$A$250:$A$313, 0), 1) -> LAC | L51: =INDEX(DEFN!C$250:C$313, MATCH($B51, DEFN!$A$250:$A$313, 0), 1) -> Chile | M51: =INDEX(DEFN!$A$4:$K$53, MATCH($A51, DEFN!$A$4:$A$53, 0), MATCH(M$9, DEFN!$A$3:$K$3, 0)) -> User Defined | N51: =INDEX(DEFN!$A$4:$K$53, MATCH($A51, DEFN!$A$4:$A$53, 0), MATCH(N$9, DEFN!$A$3:$K$3, 0)) -> 5 | O51: =IFERROR(IF($H51="None", 1, IF($H51="All Capacity", SUMIFS(SID!X$3:X$12290, SID!$G$3:$G$12290, "<>Power demand", SID!$K$3:$K$12290, $L51, SID!$I$3:$I$12290, $J51), IF($H51="All Generation", SUMIFS(SID!X$3:X$12290, SID!$K$3:$K$12290, $L51, SID!$I$3:$I$12290, $J51), SUMIFS(SID!X$3:X$12290, SID!$F$3:$F$12290, $H51, SID!$K$3:$K$12290, $L51)))), 1) -> 1 | P51: =IF(ISNUMBER(FIND("Growth", F51)), U51, IF(V51<>0,V51, SUMIFS(SID!X$3:X$12290, SID!$C$3:$C$12290, $C51, SID!$K$3:$K$12290, $L51, SID!$Y$3:$Y$12290, 0))) -> 4 | Q51: 1.89 | R51: 5 | S51: 37.8 | T51: 1.89 | U51: =IF(I51="Clean energy investments", IF(OR(W51=0, X51=0), 0, X51/W51-1), IF(OR(I51="None", SUMIFS(SID!X$3:X$12290, SID!$F$3:$F$12290, I51, SID!$K$3:$K$12290, L51, SID!$Y$3:$Y$12290, 0)=0), 0, IFERROR(SUMIFS(SID!X$3:X$12290, SID!$F$3:$F$12290, I51, SID!$K$3:$K$12290, L51, SID!$Y$3:$Y$12290, 0)/SUMIFS(SID!W$3:W$12290, SID!$F$3:$F$12290, I51, SID!$K$3:$K$12290, L51, SID!$Y$3:$Y$12290, 0) - 1, 0))) -> 0 | V51: =IF(J51<>"USDm", 0, IF(F51="Clean energy investments", IF(ISNUMBER(FIND("-", $L51)), SUMIFS(INV!$J$3:$J$11498, INV!$E$3:$E$11498, $L51, INV!$A$3:$A$11498, "<=" & int_Year, INV!$A$3:$A$11498, ">=" & $G$6), SUMIFS(INV!$J$3:$J$11498, INV!$F$3:$F$11498, $L51, INV!$A$3:$A$11498, "<=" & int_Year, INV!$A$3:$A$11498, ">=" & $G$6)), IF(ISNUMBER(FIND("-", $L51)), SUMIFS(INV!$J$3:$J$11498, INV!$E$3:$E$11498, $L51, INV!$I$3:$I$11498, $F51, INV!$A$3:$A$11498, "<=" & int_Year, INV!$A$3:$A$11498, ">=" & $G$6), SUMIFS(INV!$J$3:$J$11498, INV!$F$3:$F$11498, $L51, INV!$I$3:$I$11498, $F51, INV!$A$3:$A$11498, "<=" & int_Year, INV!$A$3:$A$11498, ">=" & $G$6)))) -> 0 | W51: =IF(I51<>"Clean energy investments", 0, IF(ISNUMBER(FIND("-", $L51)), SUMIFS(INV!$J$3:$J$11498, INV!$E$3:$E$11498, $L51, INV!$A$3:$A$11498, ">="& int_InvStartYear, INV!$A$3:$A$11498, "<="& int_Year-1), SUMIFS(INV!$J$3:$J$11498, INV!$F$3:$F$11498, $L51, INV!$A$3:$A$11498, ">="& int_InvStartYear, INV!$A$3:$A$11498, "<="& int_Year-1))) -> 0 | X51: =IF(I51<>"Clean energy investments", 0, IF(ISNUMBER(FIND("-", $L51)), SUMIFS(INV!$J$3:$J$11498, INV!$E$3:$E$11498, $L51, INV!$A$3:$A$11498, ">="& int_InvStartYear, INV!$A$3:$A$11498, "<="& int_Year), SUMIFS(INV!$J$3:$J$11498, INV!$F$3:$F$11498, $L51, INV!$A$3:$A$11498, ">="& int_InvStartYear, INV!$A$3:$A$11498, "<="& int_Year))) -> 0 | Y51: 1.01 > Chile
A52: 1 | B52: 43 | C52: =INDEX(DEFN!$A$4:$K$53, MATCH($A52, DEFN!$A$4:$A$53, 0), MATCH(C$9, DEFN!$A$3:$K$3, 0)) -> 1.01 | D52: =INDEX(DEFN!$A$4:$K$53, MATCH($A52, DEFN!$A$4:$A$53, 0), MATCH(D$9, DEFN!$A$3:$K$3, 0)) -> Enabling Framework | E52: =INDEX(DEFN!$A$4:$K$53, MATCH($A52, DEFN!$A$4:$A$53, 0), MATCH(E$9, DEFN!$A$3:$K$3, 0)) -> Policy & Regulation | F52: =INDEX(DEFN!$A$4:$K$53, MATCH($A52, DEFN!$A$4:$A$53, 0), MATCH(F$9, DEFN!$A$3:$K$3, 0)) -> Clean energy policies | G52: =INDEX(DEFN!$A$4:$K$53, MATCH($A52, DEFN!$A$4:$A$53, 0), MATCH(G$9, DEFN!$A$3:$K$3, 0)) -> Both | H52: =INDEX(DEFN!$A$4:$K$53, MATCH($A52, DEFN!$A$4:$A$53, 0), MATCH(H$9, DEFN!$A$3:$K$3, 0)) -> None | I52: =INDEX(DEFN!$A$4:$K$53, MATCH($A52, DEFN!$A$4:$A$53, 0), MATCH(I$9, DEFN!$A$3:$K$3, 0)) -> None | J52: =INDEX(DEFN!$A$4:$K$53, MATCH($A52, DEFN!$A$4:$A$53, 0), MATCH(J$9, DEFN!$A$3:$K$3, 0)) -> Policy Types | K52: =INDEX(DEFN!B$250:B$313, MATCH($B52, DEFN!$A$250:$A$313, 0), 1) -> LAC | L52: =INDEX(DEFN!C$250:C$313, MATCH($B52, DEFN!$A$250:$A$313, 0), 1) -> Colombia | M52: =INDEX(DEFN!$A$4:$K$53, MATCH($A52, DEFN!$A$4:$A$53, 0), MATCH(M$9, DEFN!$A$3:$K$3, 0)) -> User Defined | N52: =INDEX(DEFN!$A$4:$K$53, MATCH($A52, DEFN!$A$4:$A$53, 0), MATCH(N$9, DEFN!$A$3:$K$3, 0)) -> 5 | O52: =IFERROR(IF($H52="None", 1, IF($H52="All Capacity", SUMIFS(SID!X$3:X$12290, SID!$G$3:$G$12290, "<>Power demand", SID!$K$3:$K$12290, $L52, SID!$I$3:$I$12290, $J52), IF($H52="All Generation", SUMIFS(SID!X$3:X$12290, SID!$K$3:$K$12290, $L52, SID!$I$3:$I$12290, $J52), SUMIFS(SID!X$3:X$12290, SID!$F$3:$F$12290, $H52, SID!$K$3:$K$12290, $L52)))), 1) -> 1 | P52: =IF(ISNUMBER(FIND("Growth", F52)), U52, IF(V52<>0,V52, SUMIFS(SID!X$3:X$12290, SID!$C$3:$C$12290, $C52, SID!$K$3:$K$12290, $L52, SID!$Y$3:$Y$12290, 0))) -> 3 | Q52: 1.24 | R52: 5 | S52: 24.8 | T52: 1.24 | U52: =IF(I52="Clean energy investments", IF(OR(W52=0, X52=0), 0, X52/W52-1), IF(OR(I52="None", SUMIFS(SID!X$3:X$12290, SID!$F$3:$F$12290, I52, SID!$K$3:$K$12290, L52, SID!$Y$3:$Y$12290, 0)=0), 0, IFERROR(SUMIFS(SID!X$3:X$12290, SID!$F$3:$F$12290, I52, SID!$K$3:$K$12290, L52, SID!$Y$3:$Y$12290, 0)/SUMIFS(SID!W$3:W$12290, SID!$F$3:$F$12290, I52, SID!$K$3:$K$12290, L52, SID!$Y$3:$Y$12290, 0) - 1, 0))) -> 0 | V52: =IF(J52<>"USDm", 0, IF(F52="Clean energy investments", IF(ISNUMBER(FIND("-", $L52)), SUMIFS(INV!$J$3:$J$11498, INV!$E$3:$E$11498, $L52, INV!$A$3:$A$11498, "<=" & int_Year, INV!$A$3:$A$11498, ">=" & $G$6), SUMIFS(INV!$J$3:$J$11498, INV!$F$3:$F$11498, $L52, INV!$A$3:$A$11498, "<=" & int_Year, INV!$A$3:$A$11498, ">=" & $G$6)), IF(ISNUMBER(FIND("-", $L52)), SUMIFS(INV!$J$3:$J$11498, INV!$E$3:$E$11498, $L52, INV!$I$3:$I$11498, $F52, INV!$A$3:$A$11498, "<=" & int_Year, INV!$A$3:$A$11498, ">=" & $G$6), SUMIFS(INV!$J$3:$J$11498, INV!$F$3:$F$11498, $L52, INV!$I$3:$I$11498, $F52, INV!$A$3:$A$11498, "<=" & int_Year, INV!$A$3:$A$11498, ">=" & $G$6)))) -> 0 | W52: =IF(I52<>"Clean energy investments", 0, IF(ISNUMBER(FIND("-", $L52)), SUMIFS(INV!$J$3:$J$11498, INV!$E$3:$E$11498, $L52, INV!$A$3:$A$11498, ">="& int_InvStartYear, INV!$A$3:$A$11498, "<="& int_Year-1), SUMIFS(INV!$J$3:$J$11498, INV!$F$3:$F$11498, $L52, INV!$A$3:$A$11498, ">="& int_InvStartYear, INV!$A$3:$A$11498, "<="& int_Year-1))) -> 0 | X52: =IF(I52<>"Clean energy investments", 0, IF(ISNUMBER(FIND("-", $L52)), SUMIFS(INV!$J$3:$J$11498, INV!$E$3:$E$11498, $L52, INV!$A$3:$A$11498, ">="& int_InvStartYear, INV!$A$3:$A$11498, "<="& int_Year), SUMIFS(INV!$J$3:$J$11498, INV!$F$3:$F$11498, $L52, INV!$A$3:$A$11498, ">="& int_InvStartYear, INV!$A$3:$A$11498, "<="& int_Year))) -> 0 | Y52: 1.01 > Colombia
A53: 1 | B53: 44 | C53: =INDEX(DEFN!$A$4:$K$53, MATCH($A53, DEFN!$A$4:$A$53, 0), MATCH(C$9, DEFN!$A$3:$K$3, 0)) -> 1.01 | D53: =INDEX(DEFN!$A$4:$K$53, MATCH($A53, DEFN!$A$4:$A$53, 0), MATCH(D$9, DEFN!$A$3:$K$3, 0)) -> Enabling Framework | E53: =INDEX(DEFN!$A$4:$K$53, MATCH($A53, DEFN!$A$4:$A$53, 0), MATCH(E$9, DEFN!$A$3:$K$3, 0)) -> Policy & Regulation | F53: =INDEX(DEFN!$A$4:$K$53, MATCH($A53, DEFN!$A$4:$A$53, 0), MATCH(F$9, DEFN!$A$3:$K$3, 0)) -> Clean energy policies | G53: =INDEX(DEFN!$A$4:$K$53, MATCH($A53, DEFN!$A$4:$A$53, 0), MATCH(G$9, DEFN!$A$3:$K$3, 0)) -> Both | H53: =INDEX(DEFN!$A$4:$K$53, MATCH($A53, DEFN!$A$4:$A$53, 0), MATCH(H$9, DEFN!$A$3:$K$3, 0)) -> None | I53: =INDEX(DEFN!$A$4:$K$53, MATCH($A53, DEFN!$A$4:$A$53, 0), MATCH(I$9, DEFN!$A$3:$K$3, 0)) -> None | J53: =INDEX(DEFN!$A$4:$K$53, MATCH($A53, DEFN!$A$4:$A$53, 0), MATCH(J$9, DEFN!$A$3:$K$3, 0)) -> Policy Types | K53: =INDEX(DEFN!B$250:B$313, MATCH($B53, DEFN!$A$250:$A$313, 0), 1) -> LAC | L53: =INDEX(DEFN!C$250:C$313, MATCH($B53, DEFN!$A$250:$A$313, 0), 1) -> Costa Rica | M53: =INDEX(DEFN!$A$4:$K$53, MATCH($A53, DEFN!$A$4:$A$53, 0), MATCH(M$9, DEFN!$A$3:$K$3, 0)) -> User Defined | N53: =INDEX(DEFN!$A$4:$K$53, MATCH($A53, DEFN!$A$4:$A$53, 0), MATCH(N$9, DEFN!$A$3:$K$3, 0)) -> 5 | O53: =IFERROR(IF($H53="None", 1, IF($H53="All Capacity", SUMIFS(SID!X$3:X$12290, SID!$G$3:$G$12290, "<>Power demand", SID!$K$3:$K$12290, $L53, SID!$I$3:$I$12290, $J53), IF($H53="All Generation", SUMIFS(SID!X$3:X$12290, SID!$K$3:$K$12290, $L53, SID!$I$3:$I$12290, $J53), SUMIFS(SID!X$3:X$12290, SID!$F$3:$F$12290, $H53, SID!$K$3:$K$12290, $L53)))), 1) -> 1 | P53: =IF(ISNUMBER(FIND("Growth", F53)), U53, IF(V53<>0,V53, SUMIFS(SID!X$3:X$12290, SID!$C$3:$C$12290, $C53, SID!$K$3:$K$12290, $L53, SID!$Y$3:$Y$12290, 0))) -> 3 | Q53: 1.5 | R53: 5 | S53: 30 | T53: 1.5 | U53: =IF(I53="Clean energy investments", IF(OR(W53=0, X53=0), 0, X53/W53-1), IF(OR(I53="None", SUMIFS(SID!X$3:X$12290, SID!$F$3:$F$12290, I53, SID!$K$3:$K$12290, L53, SID!$Y$3:$Y$12290, 0)=0), 0, IFERROR(SUMIFS(SID!X$3:X$12290, SID!$F$3:$F$12290, I53, SID!$K$3:$K$12290, L53, SID!$Y$3:$Y$12290, 0)/SUMIFS(SID!W$3:W$12290, SID!$F$3:$F$12290, I53, SID!$K$3:$K$12290, L53, SID!$Y$3:$Y$12290, 0) - 1, 0))) -> 0 | V53: =IF(J53<>"USDm", 0, IF(F53="Clean energy investments", IF(ISNUMBER(FIND("-", $L53)), SUMIFS(INV!$J$3:$J$11498, INV!$E$3:$E$11498, $L53, INV!$A$3:$A$11498, "<=" & int_Year, INV!$A$3:$A$11498, ">=" & $G$6), SUMIFS(INV!$J$3:$J$11498, INV!$F$3:$F$11498, $L53, INV!$A$3:$A$11498, "<=" & int_Year, INV!$A$3:$A$11498, ">=" & $G$6)), IF(ISNUMBER(FIND("-", $L53)), SUMIFS(INV!$J$3:$J$11498, INV!$E$3:$E$11498, $L53, INV!$I$3:$I$11498, $F53, INV!$A$3:$A$11498, "<=" & int_Year, INV!$A$3:$A$11498, ">=" & $G$6), SUMIFS(INV!$J$3:$J$11498, INV!$F$3:$F$11498, $L53, INV!$I$3:$I$11498, $F53, INV!$A$3:$A$11498, "<=" & int_Year, INV!$A$3:$A$11498, ">=" & $G$6)))) -> 0 | W53: =IF(I53<>"Clean energy investments", 0, IF(ISNUMBER(FIND("-", $L53)), SUMIFS(INV!$J$3:$J$11498, INV!$E$3:$E$11498, $L53, INV!$A$3:$A$11498, ">="& int_InvStartYear, INV!$A$3:$A$11498, "<="& int_Year-1), SUMIFS(INV!$J$3:$J$11498, INV!$F$3:$F$11498, $L53, INV!$A$3:$A$11498, ">="& int_InvStartYear, INV!$A$3:$A$11498, "<="& int_Year-1))) -> 0 | X53: =IF(I53<>"Clean energy investments", 0, IF(ISNUMBER(FIND("-", $L53)), SUMIFS(INV!$J$3:$J$11498, INV!$E$3:$E$11498, $L53, INV!$A$3:$A$11498, ">="& int_InvStartYear, INV!$A$3:$A$11498, "<="& int_Year), SUMIFS(INV!$J$3:$J$11498, INV!$F$3:$F$11498, $L53, INV!$A$3:$A$11498, ">="& int_InvStartYear, INV!$A$3:$A$11498, "<="& int_Year))) -> 0 | Y53: 1.01 > Costa Rica
A54: 1 | B54: 45 | C54: =INDEX(DEFN!$A$4:$K$53, MATCH($A54, DEFN!$A$4:$A$53, 0), MATCH(C$9, DEFN!$A$3:$K$3, 0)) -> 1.01 | D54: =INDEX(DEFN!$A$4:$K$53, MATCH($A54, DEFN!$A$4:$A$53, 0), MATCH(D$9, DEFN!$A$3:$K$3, 0)) -> Enabling Framework | E54: =INDEX(DEFN!$A$4:$K$53, MATCH($A54, DEFN!$A$4:$A$53, 0), MATCH(E$9, DEFN!$A$3:$K$3, 0)) -> Policy & Regulation | F54: =INDEX(DEFN!$A$4:$K$53, MATCH($A54, DEFN!$A$4:$A$53, 0), MATCH(F$9, DEFN!$A$3:$K$3, 0)) -> Clean energy policies | G54: =INDEX(DEFN!$A$4:$K$53, MATCH($A54, DEFN!$A$4:$A$53, 0), MATCH(G$9, DEFN!$A$3:$K$3, 0)) -> Both | H54: =INDEX(DEFN!$A$4:$K$53, MATCH($A54, DEFN!$A$4:$A$53, 0), MATCH(H$9, DEFN!$A$3:$K$3, 0)) -> None | I54: =INDEX(DEFN!$A$4:$K$53, MATCH($A54, DEFN!$A$4:$A$53, 0), MATCH(I$9, DEFN!$A$3:$K$3, 0)) -> None | J54: =INDEX(DEFN!$A$4:$K$53, MATCH($A54, DEFN!$A$4:$A$53, 0), MATCH(J$9, DEFN!$A$3:$K$3, 0)) -> Policy Types | K54: =INDEX(DEFN!B$250:B$313, MATCH($B54, DEFN!$A$250:$A$313, 0), 1) -> LAC | L54: =INDEX(DEFN!C$250:C$313, MATCH($B54, DEFN!$A$250:$A$313, 0), 1) -> Dominican Republic | M54: =INDEX(DEFN!$A$4:$K$53, MATCH($A54, DEFN!$A$4:$A$53, 0), MATCH(M$9, DEFN!$A$3:$K$3, 0)) -> User Defined | N54: =INDEX(DEFN!$A$4:$K$53, MATCH($A54, DEFN!$A$4:$A$53, 0), MATCH(N$9, DEFN!$A$3:$K$3, 0)) -> 5 | O54: =IFERROR(IF($H54="None", 1, IF($H54="All Capacity", SUMIFS(SID!X$3:X$12290, SID!$G$3:$G$12290, "<>Power demand", SID!$K$3:$K$12290, $L54, SID!$I$3:$I$12290, $J54), IF($H54="All Generation", SUMIFS(SID!X$3:X$12290, SID!$K$3:$K$12290, $L54, SID!$I$3:$I$12290, $J54), SUMIFS(SID!X$3:X$12290, SID!$F$3:$F$12290, $H54, SID!$K$3:$K$12290, $L54)))), 1) -> 1 | P54: =IF(ISNUMBER(FIND("Growth", F54)), U54, IF(V54<>0,V54, SUMIFS(SID!X$3:X$12290, SID!$C$3:$C$12290, $C54, SID!$K$3:$K$12290, $L54, SID!$Y$3:$Y$12290, 0))) -> 4 | Q54: 1.69 | R54: 5 | S54: 33.8 | T54: 1.69 | U54: =IF(I54="Clean energy investments", IF(OR(W54=0, X54=0), 0, X54/W54-1), IF(OR(I54="None", SUMIFS(SID!X$3:X$12290, SID!$F$3:$F$12290, I54, SID!$K$3:$K$12290, L54, SID!$Y$3:$Y$12290, 0)=0), 0, IFERROR(SUMIFS(SID!X$3:X$12290, SID!$F$3:$F$12290, I54, SID!$K$3:$K$12290, L54, SID!$Y$3:$Y$12290, 0)/SUMIFS(SID!W$3:W$12290, SID!$F$3:$F$12290, I54, SID!$K$3:$K$12290, L54, SID!$Y$3:$Y$12290, 0) - 1, 0))) -> 0 | V54: =IF(J54<>"USDm", 0, IF(F54="Clean energy investments", IF(ISNUMBER(FIND("-", $L54)), SUMIFS(INV!$J$3:$J$11498, INV!$E$3:$E$11498, $L54, INV!$A$3:$A$11498, "<=" & int_Year, INV!$A$3:$A$11498, ">=" & $G$6), SUMIFS(INV!$J$3:$J$11498, INV!$F$3:$F$11498, $L54, INV!$A$3:$A$11498, "<=" & int_Year, INV!$A$3:$A$11498, ">=" & $G$6)), IF(ISNUMBER(FIND("-", $L54)), SUMIFS(INV!$J$3:$J$11498, INV!$E$3:$E$11498, $L54, INV!$I$3:$I$11498, $F54, INV!$A$3:$A$11498, "<=" & int_Year, INV!$A$3:$A$11498, ">=" & $G$6), SUMIFS(INV!$J$3:$J$11498, INV!$F$3:$F$11498, $L54, INV!$I$3:$I$11498, $F54, INV!$A$3:$A$11498, "<=" & int_Year, INV!$A$3:$A$11498, ">=" & $G$6)))) -> 0 | W54: =IF(I54<>"Clean energy investments", 0, IF(ISNUMBER(FIND("-", $L54)), SUMIFS(INV!$J$3:$J$11498, INV!$E$3:$E$11498, $L54, INV!$A$3:$A$11498, ">="& int_InvStartYear, INV!$A$3:$A$11498, "<="& int_Year-1), SUMIFS(INV!$J$3:$J$11498, INV!$F$3:$F$11498, $L54, INV!$A$3:$A$11498, ">="& int_InvStartYear, INV!$A$3:$A$11498, "<="& int_Year-1))) -> 0 | X54: =IF(I54<>"Clean energy investments", 0, IF(ISNUMBER(FIND("-", $L54)), SUMIFS(INV!$J$3:$J$11498, INV!$E$3:$E$11498, $L54, INV!$A$3:$A$11498, ">="& int_InvStartYear, INV!$A$3:$A$11498, "<="& int_Year), SUMIFS(INV!$J$3:$J$11498, INV!$F$3:$F$11498, $L54, INV!$A$3:$A$11498, ">="& int_InvStartYear, INV!$A$3:$A$11498, "<="& int_Year))) -> 0 | Y54: 1.01 > Dominican Republic
A55: 1 | B55: 46 | C55: =INDEX(DEFN!$A$4:$K$53, MATCH($A55, DEFN!$A$4:$A$53, 0), MATCH(C$9, DEFN!$A$3:$K$3, 0)) -> 1.01 | D55: =INDEX(DEFN!$A$4:$K$53, MATCH($A55, DEFN!$A$4:$A$53, 0), MATCH(D$9, DEFN!$A$3:$K$3, 0)) -> Enabling Framework | E55: =INDEX(DEFN!$A$4:$K$53, MATCH($A55, DEFN!$A$4:$A$53, 0), MATCH(E$9, DEFN!$A$3:$K$3, 0)) -> Policy & Regulation | F55: =INDEX(DEFN!$A$4:$K$53, MATCH($A55, DEFN!$A$4:$A$53, 0), MATCH(F$9, DEFN!$A$3:$K$3, 0)) -> Clean energy policies | G55: =INDEX(DEFN!$A$4:$K$53, MATCH($A55, DEFN!$A$4:$A$53, 0), MATCH(G$9, DEFN!$A$3:$K$3, 0)) -> Both | H55: =INDEX(DEFN!$A$4:$K$53, MATCH($A55, DEFN!$A$4:$A$53, 0), MATCH(H$9, DEFN!$A$3:$K$3, 0)) -> None | I55: =INDEX(DEFN!$A$4:$K$53, MATCH($A55, DEFN!$A$4:$A$53, 0), MATCH(I$9, DEFN!$A$3:$K$3, 0)) -> None | J55: =INDEX(DEFN!$A$4:$K$53, MATCH($A55, DEFN!$A$4:$A$53, 0), MATCH(J$9, DEFN!$A$3:$K$3, 0)) -> Policy Types | K55: =INDEX(DEFN!B$250:B$313, MATCH($B55, DEFN!$A$250:$A$313, 0), 1) -> LAC | L55: =INDEX(DEFN!C$250:C$313, MATCH($B55, DEFN!$A$250:$A$313, 0), 1) -> Ecuador | M55: =INDEX(DEFN!$A$4:$K$53, MATCH($A55, DEFN!$A$4:$A$53, 0), MATCH(M$9, DEFN!$A$3:$K$3, 0)) -> User Defined | N55: =INDEX(DEFN!$A$4:$K$53, MATCH($A55, DEFN!$A$4:$A$53, 0), MATCH(N$9, DEFN!$A$3:$K$3, 0)) -> 5 | O55: =IFERROR(IF($H55="None", 1, IF($H55="All Capacity", SUMIFS(SID!X$3:X$12290, SID!$G$3:$G$12290, "<>Power demand", SID!$K$3:$K$12290, $L55, SID!$I$3:$I$12290, $J55), IF($H55="All Generation", SUMIFS(SID!X$3:X$12290, SID!$K$3:$K$12290, $L55, SID!$I$3:$I$12290, $J55), SUMIFS(SID!X$3:X$12290, SID!$F$3:$F$12290, $H55, SID!$K$3:$K$12290, $L55)))), 1) -> 1 | P55: =IF(ISNUMBER(FIND("Growth", F55)), U55, IF(V55<>0,V55, SUMIFS(SID!X$3:X$12290, SID!$C$3:$C$12290, $C55, SID!$K$3:$K$12290, $L55, SID!$Y$3:$Y$12290, 0))) -> 5 | Q55: 1.89 | R55: 5 | S55: 37.8 | T55: 1.89 | U55: =IF(I55="Clean energy investments", IF(OR(W55=0, X55=0), 0, X55/W55-1), IF(OR(I55="None", SUMIFS(SID!X$3:X$12290, SID!$F$3:$F$12290, I55, SID!$K$3:$K$12290, L55, SID!$Y$3:$Y$12290, 0)=0), 0, IFERROR(SUMIFS(SID!X$3:X$12290, SID!$F$3:$F$12290, I55, SID!$K$3:$K$12290, L55, SID!$Y$3:$Y$12290, 0)/SUMIFS(SID!W$3:W$12290, SID!$F$3:$F$12290, I55, SID!$K$3:$K$12290, L55, SID!$Y$3:$Y$12290, 0) - 1, 0))) -> 0 | V55: =IF(J55<>"USDm", 0, IF(F55="Clean energy investments", IF(ISNUMBER(FIND("-", $L55)), SUMIFS(INV!$J$3:$J$11498, INV!$E$3:$E$11498, $L55, INV!$A$3:$A$11498, "<=" & int_Year, INV!$A$3:$A$11498, ">=" & $G$6), SUMIFS(INV!$J$3:$J$11498, INV!$F$3:$F$11498, $L55, INV!$A$3:$A$11498, "<=" & int_Year, INV!$A$3:$A$11498, ">=" & $G$6)), IF(ISNUMBER(FIND("-", $L55)), SUMIFS(INV!$J$3:$J$11498, INV!$E$3:$E$11498, $L55, INV!$I$3:$I$11498, $F55, INV!$A$3:$A$11498, "<=" & int_Year, INV!$A$3:$A$11498, ">=" & $G$6), SUMIFS(INV!$J$3:$J$11498, INV!$F$3:$F$11498, $L55, INV!$I$3:$I$11498, $F55, INV!$A$3:$A$11498, "<=" & int_Year, INV!$A$3:$A$11498, ">=" & $G$6)))) -> 0 | W55: =IF(I55<>"Clean energy investments", 0, IF(ISNUMBER(FIND("-", $L55)), SUMIFS(INV!$J$3:$J$11498, INV!$E$3:$E$11498, $L55, INV!$A$3:$A$11498, ">="& int_InvStartYear, INV!$A$3:$A$11498, "<="& int_Year-1), SUMIFS(INV!$J$3:$J$11498, INV!$F$3:$F$11498, $L55, INV!$A$3:$A$11498, ">="& int_InvStartYear, INV!$A$3:$A$11498, "<="& int_Year-1))) -> 0 | X55: =IF(I55<>"Clean energy investments", 0, IF(ISNUMBER(FIND("-", $L55)), SUMIFS(INV!$J$3:$J$11498, INV!$E$3:$E$11498, $L55, INV!$A$3:$A$11498, ">="& int_InvStartYear, INV!$A$3:$A$11498, "<="& int_Year), SUMIFS(INV!$J$3:$J$11498, INV!$F$3:$F$11498, $L55, INV!$A$3:$A$11498, ">="& int_InvStartYear, INV!$A$3:$A$11498, "<="& int_Year))) -> 0 | Y55: 1.01 > Ecuador
A56: 1 | B56: 47 | C56: =INDEX(DEFN!$A$4:$K$53, MATCH($A56, DEFN!$A$4:$A$53, 0), MATCH(C$9, DEFN!$A$3:$K$3, 0)) -> 1.01 | D56: =INDEX(DEFN!$A$4:$K$53, MATCH($A56, DEFN!$A$4:$A$53, 0), MATCH(D$9, DEFN!$A$3:$K$3, 0)) -> Enabling Framework | E56: =INDEX(DEFN!$A$4:$K$53, MATCH($A56, DEFN!$A$4:$A$53, 0), MATCH(E$9, DEFN!$A$3:$K$3, 0)) -> Policy & Regulation | F56: =INDEX(DEFN!$A$4:$K$53, MATCH($A56, DEFN!$A$4:$A$53, 0), MATCH(F$9, DEFN!$A$3:$K$3, 0)) -> Clean energy policies | G56: =INDEX(DEFN!$A$4:$K$53, MATCH($A56, DEFN!$A$4:$A$53, 0), MATCH(G$9, DEFN!$A$3:$K$3, 0)) -> Both | H56: =INDEX(DEFN!$A$4:$K$53, MATCH($A56, DEFN!$A$4:$A$53, 0), MATCH(H$9, DEFN!$A$3:$K$3, 0)) -> None | I56: =INDEX(DEFN!$A$4:$K$53, MATCH($A56, DEFN!$A$4:$A$53, 0), MATCH(I$9, DEFN!$A$3:$K$3, 0)) -> None | J56: =INDEX(DEFN!$A$4:$K$53, MATCH($A56, DEFN!$A$4:$A$53, 0), MATCH(J$9, DEFN!$A$3:$K$3, 0)) -> Policy Types | K56: =INDEX(DEFN!B$250:B$313, MATCH($B56, DEFN!$A$250:$A$313, 0), 1) -> LAC | L56: =INDEX(DEFN!C$250:C$313, MATCH($B56, DEFN!$A$250:$A$313, 0), 1) -> El Salvador | M56: =INDEX(DEFN!$A$4:$K$53, MATCH($A56, DEFN!$A$4:$A$53, 0), MATCH(M$9, DEFN!$A$3:$K$3, 0)) -> User Defined | N56: =INDEX(DEFN!$A$4:$K$53, MATCH($A56, DEFN!$A$4:$A$53, 0), MATCH(N$9, DEFN!$A$3:$K$3, 0)) -> 5 | O56: =IFERROR(IF($H56="None", 1, IF($H56="All Capacity", SUMIFS(SID!X$3:X$12290, SID!$G$3:$G$12290, "<>Power demand", SID!$K$3:$K$12290, $L56, SID!$I$3:$I$12290, $J56), IF($H56="All Generation", SUMIFS(SID!X$3:X$12290, SID!$K$3:$K$12290, $L56, SID!$I$3:$I$12290, $J56), SUMIFS(SID!X$3:X$12290, SID!$F$3:$F$12290, $H56, SID!$K$3:$K$12290, $L56)))), 1) -> 1 | P56: =IF(ISNUMBER(FIND("Growth", F56)), U56, IF(V56<>0,V56, SUMIFS(SID!X$3:X$12290, SID!$C$3:$C$12290, $C56, SID!$K$3:$K$12290, $L56, SID!$Y$3:$Y$12290, 0))) -> 3 | Q56: 1.31 | R56: 5 | S56: 26.2 | T56: 1.31 | U56: =IF(I56="Clean energy investments", IF(OR(W56=0, X56=0), 0, X56/W56-1), IF(OR(I56="None", SUMIFS(SID!X$3:X$12290, SID!$F$3:$F$12290, I56, SID!$K$3:$K$12290, L56, SID!$Y$3:$Y$12290, 0)=0), 0, IFERROR(SUMIFS(SID!X$3:X$12290, SID!$F$3:$F$12290, I56, SID!$K$3:$K$12290, L56, SID!$Y$3:$Y$12290, 0)/SUMIFS(SID!W$3:W$12290, SID!$F$3:$F$12290, I56, SID!$K$3:$K$12290, L56, SID!$Y$3:$Y$12290, 0) - 1, 0))) -> 0 | V56: =IF(J56<>"USDm", 0, IF(F56="Clean energy investments", IF(ISNUMBER(FIND("-", $L56)), SUMIFS(INV!$J$3:$J$11498, INV!$E$3:$E$11498, $L56, INV!$A$3:$A$11498, "<=" & int_Year, INV!$A$3:$A$11498, ">=" & $G$6), SUMIFS(INV!$J$3:$J$11498, INV!$F$3:$F$11498, $L56, INV!$A$3:$A$11498, "<=" & int_Year, INV!$A$3:$A$11498, ">=" & $G$6)), IF(ISNUMBER(FIND("-", $L56)), SUMIFS(INV!$J$3:$J$11498, INV!$E$3:$E$11498, $L56, INV!$I$3:$I$11498, $F56, INV!$A$3:$A$11498, "<=" & int_Year, INV!$A$3:$A$11498, ">=" & $G$6), SUMIFS(INV!$J$3:$J$11498, INV!$F$3:$F$11498, $L56, INV!$I$3:$I$11498, $F56, INV!$A$3:$A$11498, "<=" & int_Year, INV!$A$3:$A$11498, ">=" & $G$6)))) -> 0 | W56: =IF(I56<>"Clean energy investments", 0, IF(ISNUMBER(FIND("-", $L56)), SUMIFS(INV!$J$3:$J$11498, INV!$E$3:$E$11498, $L56, INV!$A$3:$A$11498, ">="& int_InvStartYear, INV!$A$3:$A$11498, "<="& int_Year-1), SUMIFS(INV!$J$3:$J$11498, INV!$F$3:$F$11498, $L56, INV!$A$3:$A$11498, ">="& int_InvStartYear, INV!$A$3:$A$11498, "<="& int_Year-1))) -> 0 | X56: =IF(I56<>"Clean energy investments", 0, IF(ISNUMBER(FIND("-", $L56)), SUMIFS(INV!$J$3:$J$11498, INV!$E$3:$E$11498, $L56, INV!$A$3:$A$11498, ">="& int_InvStartYear, INV!$A$3:$A$11498, "<="& int_Year), SUMIFS(INV!$J$3:$J$11498, INV!$F$3:$F$11498, $L56, INV!$A$3:$A$11498, ">="& int_InvStartYear, INV!$A$3:$A$11498, "<="& int_Year))) -> 0 | Y56: 1.01 > El Salvador
A57: 1 | B57: 48 | C57: =INDEX(DEFN!$A$4:$K$53, MATCH($A57, DEFN!$A$4:$A$53, 0), MATCH(C$9, DEFN!$A$3:$K$3, 0)) -> 1.01 | D57: =INDEX(DEFN!$A$4:$K$53, MATCH($A57, DEFN!$A$4:$A$53, 0), MATCH(D$9, DEFN!$A$3:$K$3, 0)) -> Enabling Framework | E57: =INDEX(DEFN!$A$4:$K$53, MATCH($A57, DEFN!$A$4:$A$53, 0), MATCH(E$9, DEFN!$A$3:$K$3, 0)) -> Policy & Regulation | F57: =INDEX(DEFN!$A$4:$K$53, MATCH($A57, DEFN!$A$4:$A$53, 0), MATCH(F$9, DEFN!$A$3:$K$3, 0)) -> Clean energy policies | G57: =INDEX(DEFN!$A$4:$K$53, MATCH($A57, DEFN!$A$4:$A$53, 0), MATCH(G$9, DEFN!$A$3:$K$3, 0)) -> Both | H57: =INDEX(DEFN!$A$4:$K$53, MATCH($A57, DEFN!$A$4:$A$53, 0), MATCH(H$9, DEFN!$A$3:$K$3, 0)) -> None | I57: =INDEX(DEFN!$A$4:$K$53, MATCH($A57, DEFN!$A$4:$A$53, 0), MATCH(I$9, DEFN!$A$3:$K$3, 0)) -> None | J57: =INDEX(DEFN!$A$4:$K$53, MATCH($A57, DEFN!$A$4:$A$53, 0), MATCH(J$9, DEFN!$A$3:$K$3, 0)) -> Policy Types | K57: =INDEX(DEFN!B$250:B$313, MATCH($B57, DEFN!$A$250:$A$313, 0), 1) -> LAC | L57: =INDEX(DEFN!C$250:C$313, MATCH($B57, DEFN!$A$250:$A$313, 0), 1) -> Guatemala | M57: =INDEX(DEFN!$A$4:$K$53, MATCH($A57, DEFN!$A$4:$A$53, 0), MATCH(M$9, DEFN!$A$3:$K$3, 0)) -> User Defined | N57: =INDEX(DEFN!$A$4:$K$53, MATCH($A57, DEFN!$A$4:$A$53, 0), MATCH(N$9, DEFN!$A$3:$K$3, 0)) -> 5 | O57: =IFERROR(IF($H57="None", 1, IF($H57="All Capacity", SUMIFS(SID!X$3:X$12290, SID!$G$3:$G$12290, "<>Power demand", SID!$K$3:$K$12290, $L57, SID!$I$3:$I$12290, $J57), IF($H57="All Generation", SUMIFS(SID!X$3:X$12290, SID!$K$3:$K$12290, $L57, SID!$I$3:$I$12290, $J57), SUMIFS(SID!X$3:X$12290, SID!$F$3:$F$12290, $H57, SID!$K$3:$K$12290, $L57)))), 1) -> 1 | P57: =IF(ISNUMBER(FIND("Growth", F57)), U57, IF(V57<>0,V57, SUMIFS(SID!X$3:X$12290, SID!$C$3:$C$12290, $C57, SID!$K$3:$K$12290, $L57, SID!$Y$3:$Y$12290, 0))) -> 4 | Q57: 1.53 | R57: 5 | S57: 30.6 | T57: 1.53 | U57: =IF(I57="Clean energy investments", IF(OR(W57=0, X57=0), 0, X57/W57-1), IF(OR(I57="None", SUMIFS(SID!X$3:X$12290, SID!$F$3:$F$12290, I57, SID!$K$3:$K$12290, L57, SID!$Y$3:$Y$12290, 0)=0), 0, IFERROR(SUMIFS(SID!X$3:X$12290, SID!$F$3:$F$12290, I57, SID!$K$3:$K$12290, L57, SID!$Y$3:$Y$12290, 0)/SUMIFS(SID!W$3:W$12290, SID!$F$3:$F$12290, I57, SID!$K$3:$K$12290, L57, SID!$Y$3:$Y$12290, 0) - 1, 0))) -> 0 | V57: =IF(J57<>"USDm", 0, IF(F57="Clean energy investments", IF(ISNUMBER(FIND("-", $L57)), SUMIFS(INV!$J$3:$J$11498, INV!$E$3:$E$11498, $L57, INV!$A$3:$A$11498, "<=" & int_Year, INV!$A$3:$A$11498, ">=" & $G$6), SUMIFS(INV!$J$3:$J$11498, INV!$F$3:$F$11498, $L57, INV!$A$3:$A$11498, "<=" & int_Year, INV!$A$3:$A$11498, ">=" & $G$6)), IF(ISNUMBER(FIND("-", $L57)), SUMIFS(INV!$J$3:$J$11498, INV!$E$3:$E$11498, $L57, INV!$I$3:$I$11498, $F57, INV!$A$3:$A$11498, "<=" & int_Year, INV!$A$3:$A$11498, ">=" & $G$6), SUMIFS(INV!$J$3:$J$11498, INV!$F$3:$F$11498, $L57, INV!$I$3:$I$11498, $F57, INV!$A$3:$A$11498, "<=" & int_Year, INV!$A$3:$A$11498, ">=" & $G$6)))) -> 0 | W57: =IF(I57<>"Clean energy investments", 0, IF(ISNUMBER(FIND("-", $L57)), SUMIFS(INV!$J$3:$J$11498, INV!$E$3:$E$11498, $L57, INV!$A$3:$A$11498, ">="& int_InvStartYear, INV!$A$3:$A$11498, "<="& int_Year-1), SUMIFS(INV!$J$3:$J$11498, INV!$F$3:$F$11498, $L57, INV!$A$3:$A$11498, ">="& int_InvStartYear, INV!$A$3:$A$11498, "<="& int_Year-1))) -> 0 | X57: =IF(I57<>"Clean energy investments", 0, IF(ISNUMBER(FIND("-", $L57)), SUMIFS(INV!$J$3:$J$11498, INV!$E$3:$E$11498, $L57, INV!$A$3:$A$11498, ">="& int_InvStartYear, INV!$A$3:$A$11498, "<="& int_Year), SUMIFS(INV!$J$3:$J$11498, INV!$F$3:$F$11498, $L57, INV!$A$3:$A$11498, ">="& int_InvStartYear, INV!$A$3:$A$11498, "<="& int_Year))) -> 0 | Y57: 1.01 > Guatemala
A58: 1 | B58: 49 | C58: =INDEX(DEFN!$A$4:$K$53, MATCH($A58, DEFN!$A$4:$A$53, 0), MATCH(C$9, DEFN!$A$3:$K$3, 0)) -> 1.01 | D58: =INDEX(DEFN!$A$4:$K$53, MATCH($A58, DEFN!$A$4:$A$53, 0), MATCH(D$9, DEFN!$A$3:$K$3, 0)) -> Enabling Framework | E58: =INDEX(DEFN!$A$4:$K$53, MATCH($A58, DEFN!$A$4:$A$53, 0), MATCH(E$9, DEFN!$A$3:$K$3, 0)) -> Policy & Regulation | F58: =INDEX(DEFN!$A$4:$K$53, MATCH($A58, DEFN!$A$4:$A$53, 0), MATCH(F$9, DEFN!$A$3:$K$3, 0)) -> Clean energy policies | G58: =INDEX(DEFN!$A$4:$K$53, MATCH($A58, DEFN!$A$4:$A$53, 0), MATCH(G$9, DEFN!$A$3:$K$3, 0)) -> Both | H58: =INDEX(DEFN!$A$4:$K$53, MATCH($A58, DEFN!$A$4:$A$53, 0), MATCH(H$9, DEFN!$A$3:$K$3, 0)) -> None | I58: =INDEX(DEFN!$A$4:$K$53, MATCH($A58, DEFN!$A$4:$A$53, 0), MATCH(I$9, DEFN!$A$3:$K$3, 0)) -> None | J58: =INDEX(DEFN!$A$4:$K$53, MATCH($A58, DEFN!$A$4:$A$53, 0), MATCH(J$9, DEFN!$A$3:$K$3, 0)) -> Policy Types | K58: =INDEX(DEFN!B$250:B$313, MATCH($B58, DEFN!$A$250:$A$313, 0), 1) -> LAC | L58: =INDEX(DEFN!C$250:C$313, MATCH($B58, DEFN!$A$250:$A$313, 0), 1) -> Guyana | M58: =INDEX(DEFN!$A$4:$K$53, MATCH($A58, DEFN!$A$4:$A$53, 0), MATCH(M$9, DEFN!$A$3:$K$3, 0)) -> User Defined | N58: =INDEX(DEFN!$A$4:$K$53, MATCH($A58, DEFN!$A$4:$A$53, 0), MATCH(N$9, DEFN!$A$3:$K$3, 0)) -> 5 | O58: =IFERROR(IF($H58="None", 1, IF($H58="All Capacity", SUMIFS(SID!X$3:X$12290, SID!$G$3:$G$12290, "<>Power demand", SID!$K$3:$K$12290, $L58, SID!$I$3:$I$12290, $J58), IF($H58="All Generation", SUMIFS(SID!X$3:X$12290, SID!$K$3:$K$12290, $L58, SID!$I$3:$I$12290, $J58), SUMIFS(SID!X$3:X$12290, SID!$F$3:$F$12290, $H58, SID!$K$3:$K$12290, $L58)))), 1) -> 1 | P58: =IF(ISNUMBER(FIND("Growth", F58)), U58, IF(V58<>0,V58, SUMIFS(SID!X$3:X$12290, SID!$C$3:$C$12290, $C58, SID!$K$3:$K$12290, $L58, SID!$Y$3:$Y$12290, 0))) -> 1 | Q58: 0.39 | R58: 5 | S58: 7.8 | T58: 0.39 | U58: =IF(I58="Clean energy investments", IF(OR(W58=0, X58=0), 0, X58/W58-1), IF(OR(I58="None", SUMIFS(SID!X$3:X$12290, SID!$F$3:$F$12290, I58, SID!$K$3:$K$12290, L58, SID!$Y$3:$Y$12290, 0)=0), 0, IFERROR(SUMIFS(SID!X$3:X$12290, SID!$F$3:$F$12290, I58, SID!$K$3:$K$12290, L58, SID!$Y$3:$Y$12290, 0)/SUMIFS(SID!W$3:W$12290, SID!$F$3:$F$12290, I58, SID!$K$3:$K$12290, L58, SID!$Y$3:$Y$12290, 0) - 1, 0))) -> 0 | V58: =IF(J58<>"USDm", 0, IF(F58="Clean energy investments", IF(ISNUMBER(FIND("-", $L58)), SUMIFS(INV!$J$3:$J$11498, INV!$E$3:$E$11498, $L58, INV!$A$3:$A$11498, "<=" & int_Year, INV!$A$3:$A$11498, ">=" & $G$6), SUMIFS(INV!$J$3:$J$11498, INV!$F$3:$F$11498, $L58, INV!$A$3:$A$11498, "<=" & int_Year, INV!$A$3:$A$11498, ">=" & $G$6)), IF(ISNUMBER(FIND("-", $L58)), SUMIFS(INV!$J$3:$J$11498, INV!$E$3:$E$11498, $L58, INV!$I$3:$I$11498, $F58, INV!$A$3:$A$11498, "<=" & int_Year, INV!$A$3:$A$11498, ">=" & $G$6), SUMIFS(INV!$J$3:$J$11498, INV!$F$3:$F$11498, $L58, INV!$I$3:$I$11498, $F58, INV!$A$3:$A$11498, "<=" & int_Year, INV!$A$3:$A$11498, ">=" & $G$6)))) -> 0 | W58: =IF(I58<>"Clean energy investments", 0, IF(ISNUMBER(FIND("-", $L58)), SUMIFS(INV!$J$3:$J$11498, INV!$E$3:$E$11498, $L58, INV!$A$3:$A$11498, ">="& int_InvStartYear, INV!$A$3:$A$11498, "<="& int_Year-1), SUMIFS(INV!$J$3:$J$11498, INV!$F$3:$F$11498, $L58, INV!$A$3:$A$11498, ">="& int_InvStartYear, INV!$A$3:$A$11498, "<="& int_Year-1))) -> 0 | X58: =IF(I58<>"Clean energy investments", 0, IF(ISNUMBER(FIND("-", $L58)), SUMIFS(INV!$J$3:$J$11498, INV!$E$3:$E$11498, $L58, INV!$A$3:$A$11498, ">="& int_InvStartYear, INV!$A$3:$A$11498, "<="& int_Year), SUMIFS(INV!$J$3:$J$11498, INV!$F$3:$F$11498, $L58, INV!$A$3:$A$11498, ">="& int_InvStartYear, INV!$A$3:$A$11498, "<="& int_Year))) -> 0 | Y58: 1.01 > Guyana
A59: 1 | B59: 50 | C59: =INDEX(DEFN!$A$4:$K$53, MATCH($A59, DEFN!$A$4:$A$53, 0), MATCH(C$9, DEFN!$A$3:$K$3, 0)) -> 1.01 | D59: =INDEX(DEFN!$A$4:$K$53, MATCH($A59, DEFN!$A$4:$A$53, 0), MATCH(D$9, DEFN!$A$3:$K$3, 0)) -> Enabling Framework | E59: =INDEX(DEFN!$A$4:$K$53, MATCH($A59, DEFN!$A$4:$A$53, 0), MATCH(E$9, DEFN!$A$3:$K$3, 0)) -> Policy & Regulation | F59: =INDEX(DEFN!$A$4:$K$53, MATCH($A59, DEFN!$A$4:$A$53, 0), MATCH(F$9, DEFN!$A$3:$K$3, 0)) -> Clean energy policies | G59: =INDEX(DEFN!$A$4:$K$53, MATCH($A59, DEFN!$A$4:$A$53, 0), MATCH(G$9, DEFN!$A$3:$K$3, 0)) -> Both | H59: =INDEX(DEFN!$A$4:$K$53, MATCH($A59, DEFN!$A$4:$A$53, 0), MATCH(H$9, DEFN!$A$3:$K$3, 0)) -> None | I59: =INDEX(DEFN!$A$4:$K$53, MATCH($A59, DEFN!$A$4:$A$53, 0), MATCH(I$9, DEFN!$A$3:$K$3, 0)) -> None | J59: =INDEX(DEFN!$A$4:$K$53, MATCH($A59, DEFN!$A$4:$A$53, 0), MATCH(J$9, DEFN!$A$3:$K$3, 0)) -> Policy Types | K59: =INDEX(DEFN!B$250:B$313, MATCH($B59, DEFN!$A$250:$A$313, 0), 1) -> LAC | L59: =INDEX(DEFN!C$250:C$313, MATCH($B59, DEFN!$A$250:$A$313, 0), 1) -> Haiti | M59: =INDEX(DEFN!$A$4:$K$53, MATCH($A59, DEFN!$A$4:$A$53, 0), MATCH(M$9, DEFN!$A$3:$K$3, 0)) -> User Defined | N59: =INDEX(DEFN!$A$4:$K$53, MATCH($A59, DEFN!$A$4:$A$53, 0), MATCH(N$9, DEFN!$A$3:$K$3, 0)) -> 5 | O59: =IFERROR(IF($H59="None", 1, IF($H59="All Capacity", SUMIFS(SID!X$3:X$12290, SID!$G$3:$G$12290, "<>Power demand", SID!$K$3:$K$12290, $L59, SID!$I$3:$I$12290, $J59), IF($H59="All Generation", SUMIFS(SID!X$3:X$12290, SID!$K$3:$K$12290, $L59, SID!$I$3:$I$12290, $J59), SUMIFS(SID!X$3:X$12290, SID!$F$3:$F$12290, $H59, SID!$K$3:$K$12290, $L59)))), 1) -> 1 | P59: =IF(ISNUMBER(FIND("Growth", F59)), U59, IF(V59<>0,V59, SUMIFS(SID!X$3:X$12290, SID!$C$3:$C$12290, $C59, SID!$K$3:$K$12290, $L59, SID!$Y$3:$Y$12290, 0))) -> 1 | Q59: 0.26 | R59: 5 | S59: 5.2 | T59: 0.26 | U59: =IF(I59="Clean energy investments", IF(OR(W59=0, X59=0), 0, X59/W59-1), IF(OR(I59="None", SUMIFS(SID!X$3:X$12290, SID!$F$3:$F$12290, I59, SID!$K$3:$K$12290, L59, SID!$Y$3:$Y$12290, 0)=0), 0, IFERROR(SUMIFS(SID!X$3:X$12290, SID!$F$3:$F$12290, I59, SID!$K$3:$K$12290, L59, SID!$Y$3:$Y$12290, 0)/SUMIFS(SID!W$3:W$12290, SID!$F$3:$F$12290, I59, SID!$K$3:$K$12290, L59, SID!$Y$3:$Y$12290, 0) - 1, 0))) -> 0 | V59: =IF(J59<>"USDm", 0, IF(F59="Clean energy investments", IF(ISNUMBER(FIND("-", $L59)), SUMIFS(INV!$J$3:$J$11498, INV!$E$3:$E$11498, $L59, INV!$A$3:$A$11498, "<=" & int_Year, INV!$A$3:$A$11498, ">=" & $G$6), SUMIFS(INV!$J$3:$J$11498, INV!$F$3:$F$11498, $L59, INV!$A$3:$A$11498, "<=" & int_Year, INV!$A$3:$A$11498, ">=" & $G$6)), IF(ISNUMBER(FIND("-", $L59)), SUMIFS(INV!$J$3:$J$11498, INV!$E$3:$E$11498, $L59, INV!$I$3:$I$11498, $F59, INV!$A$3:$A$11498, "<=" & int_Year, INV!$A$3:$A$11498, ">=" & $G$6), SUMIFS(INV!$J$3:$J$11498, INV!$F$3:$F$11498, $L59, INV!$I$3:$I$11498, $F59, INV!$A$3:$A$11498, "<=" & int_Year, INV!$A$3:$A$11498, ">=" & $G$6)))) -> 0 | W59: =IF(I59<>"Clean energy investments", 0, IF(ISNUMBER(FIND("-", $L59)), SUMIFS(INV!$J$3:$J$11498, INV!$E$3:$E$11498, $L59, INV!$A$3:$A$11498, ">="& int_InvStartYear, INV!$A$3:$A$11498, "<="& int_Year-1), SUMIFS(INV!$J$3:$J$11498, INV!$F$3:$F$11498, $L59, INV!$A$3:$A$11498, ">="& int_InvStartYear, INV!$A$3:$A$11498, "<="& int_Year-1))) -> 0 | X59: =IF(I59<>"Clean energy investments", 0, IF(ISNUMBER(FIND("-", $L59)), SUMIFS(INV!$J$3:$J$11498, INV!$E$3:$E$11498, $L59, INV!$A$3:$A$11498, ">="& int_InvStartYear, INV!$A$3:$A$11498, "<="& int_Year), SUMIFS(INV!$J$3:$J$11498, INV!$F$3:$F$11498, $L59, INV!$A$3:$A$11498, ">="& int_InvStartYear, INV!$A$3:$A$11498, "<="& int_Year))) -> 0 | Y59: 1.01 > Haiti
A60: 1 | B60: 51 | C60: =INDEX(DEFN!$A$4:$K$53, MATCH($A60, DEFN!$A$4:$A$53, 0), MATCH(C$9, DEFN!$A$3:$K$3, 0)) -> 1.01 | D60: =INDEX(DEFN!$A$4:$K$53, MATCH($A60, DEFN!$A$4:$A$53, 0), MATCH(D$9, DEFN!$A$3:$K$3, 0)) -> Enabling Framework | E60: =INDEX(DEFN!$A$4:$K$53, MATCH($A60, DEFN!$A$4:$A$53, 0), MATCH(E$9, DEFN!$A$3:$K$3, 0)) -> Policy & Regulation | F60: =INDEX(DEFN!$A$4:$K$53, MATCH($A60, DEFN!$A$4:$A$53, 0), MATCH(F$9, DEFN!$A$3:$K$3, 0)) -> Clean energy policies | G60: =INDEX(DEFN!$A$4:$K$53, MATCH($A60, DEFN!$A$4:$A$53, 0), MATCH(G$9, DEFN!$A$3:$K$3, 0)) -> Both | H60: =INDEX(DEFN!$A$4:$K$53, MATCH($A60, DEFN!$A$4:$A$53, 0), MATCH(H$9, DEFN!$A$3:$K$3, 0)) -> None | I60: =INDEX(DEFN!$A$4:$K$53, MATCH($A60, DEFN!$A$4:$A$53, 0), MATCH(I$9, DEFN!$A$3:$K$3, 0)) -> None | J60: =INDEX(DEFN!$A$4:$K$53, MATCH($A60, DEFN!$A$4:$A$53, 0), MATCH(J$9, DEFN!$A$3:$K$3, 0)) -> Policy Types | K60: =INDEX(DEFN!B$250:B$313, MATCH($B60, DEFN!$A$250:$A$313, 0), 1) -> LAC | L60: =INDEX(DEFN!C$250:C$313, MATCH($B60, DEFN!$A$250:$A$313, 0), 1) -> Honduras | M60: =INDEX(DEFN!$A$4:$K$53, MATCH($A60, DEFN!$A$4:$A$53, 0), MATCH(M$9, DEFN!$A$3:$K$3, 0)) -> User Defined | N60: =INDEX(DEFN!$A$4:$K$53, MATCH($A60, DEFN!$A$4:$A$53, 0), MATCH(N$9, DEFN!$A$3:$K$3, 0)) -> 5 | O60: =IFERROR(IF($H60="None", 1, IF($H60="All Capacity", SUMIFS(SID!X$3:X$12290, SID!$G$3:$G$12290, "<>Power demand", SID!$K$3:$K$12290, $L60, SID!$I$3:$I$12290, $J60), IF($H60="All Generation", SUMIFS(SID!X$3:X$12290, SID!$K$3:$K$12290, $L60, SID!$I$3:$I$12290, $J60), SUMIFS(SID!X$3:X$12290, SID!$F$3:$F$12290, $H60, SID!$K$3:$K$12290, $L60)))), 1) -> 1 | P60: =IF(ISNUMBER(FIND("Growth", F60)), U60, IF(V60<>0,V60, SUMIFS(SID!X$3:X$12290, SID!$C$3:$C$12290, $C60, SID!$K$3:$K$12290, $L60, SID!$Y$3:$Y$12290, 0))) -> 3 | Q60: 1.2 | R60: 5 | S60: 24 | T60: 1.2 | U60: =IF(I60="Clean energy investments", IF(OR(W60=0, X60=0), 0, X60/W60-1), IF(OR(I60="None", SUMIFS(SID!X$3:X$12290, SID!$F$3:$F$12290, I60, SID!$K$3:$K$12290, L60, SID!$Y$3:$Y$12290, 0)=0), 0, IFERROR(SUMIFS(SID!X$3:X$12290, SID!$F$3:$F$12290, I60, SID!$K$3:$K$12290, L60, SID!$Y$3:$Y$12290, 0)/SUMIFS(SID!W$3:W$12290, SID!$F$3:$F$12290, I60, SID!$K$3:$K$12290, L60, SID!$Y$3:$Y$12290, 0) - 1, 0))) -> 0 | V60: =IF(J60<>"USDm", 0, IF(F60="Clean energy investments", IF(ISNUMBER(FIND("-", $L60)), SUMIFS(INV!$J$3:$J$11498, INV!$E$3:$E$11498, $L60, INV!$A$3:$A$11498, "<=" & int_Year, INV!$A$3:$A$11498, ">=" & $G$6), SUMIFS(INV!$J$3:$J$11498, INV!$F$3:$F$11498, $L60, INV!$A$3:$A$11498, "<=" & int_Year, INV!$A$3:$A$11498, ">=" & $G$6)), IF(ISNUMBER(FIND("-", $L60)), SUMIFS(INV!$J$3:$J$11498, INV!$E$3:$E$11498, $L60, INV!$I$3:$I$11498, $F60, INV!$A$3:$A$11498, "<=" & int_Year, INV!$A$3:$A$11498, ">=" & $G$6), SUMIFS(INV!$J$3:$J$11498, INV!$F$3:$F$11498, $L60, INV!$I$3:$I$11498, $F60, INV!$A$3:$A$11498, "<=" & int_Year, INV!$A$3:$A$11498, ">=" & $G$6)))) -> 0 | W60: =IF(I60<>"Clean energy investments", 0, IF(ISNUMBER(FIND("-", $L60)), SUMIFS(INV!$J$3:$J$11498, INV!$E$3:$E$11498, $L60, INV!$A$3:$A$11498, ">="& int_InvStartYear, INV!$A$3:$A$11498, "<="& int_Year-1), SUMIFS(INV!$J$3:$J$11498, INV!$F$3:$F$11498, $L60, INV!$A$3:$A$11498, ">="& int_InvStartYear, INV!$A$3:$A$11498, "<="& int_Year-1))) -> 0 | X60: =IF(I60<>"Clean energy investments", 0, IF(ISNUMBER(FIND("-", $L60)), SUMIFS(INV!$J$3:$J$11498, INV!$E$3:$E$11498, $L60, INV!$A$3:$A$11498, ">="& int_InvStartYear, INV!$A$3:$A$11498, "<="& int_Year), SUMIFS(INV!$J$3:$J$11498, INV!$F$3:$F$11498, $L60, INV!$A$3:$A$11498, ">="& int_InvStartYear, INV!$A$3:$A$11498, "<="& int_Year))) -> 0 | Y60: 1.01 > Honduras
A61: 1 | B61: 52 | C61: =INDEX(DEFN!$A$4:$K$53, MATCH($A61, DEFN!$A$4:$A$53, 0), MATCH(C$9, DEFN!$A$3:$K$3, 0)) -> 1.01 | D61: =INDEX(DEFN!$A$4:$K$53, MATCH($A61, DEFN!$A$4:$A$53, 0), MATCH(D$9, DEFN!$A$3:$K$3, 0)) -> Enabling Framework | E61: =INDEX(DEFN!$A$4:$K$53, MATCH($A61, DEFN!$A$4:$A$53, 0), MATCH(E$9, DEFN!$A$3:$K$3, 0)) -> Policy & Regulation | F61: =INDEX(DEFN!$A$4:$K$53, MATCH($A61, DEFN!$A$4:$A$53, 0), MATCH(F$9, DEFN!$A$3:$K$3, 0)) -> Clean energy policies | G61: =INDEX(DEFN!$A$4:$K$53, MATCH($A61, DEFN!$A$4:$A$53, 0), MATCH(G$9, DEFN!$A$3:$K$3, 0)) -> Both | H61: =INDEX(DEFN!$A$4:$K$53, MATCH($A61, DEFN!$A$4:$A$53, 0), MATCH(H$9, DEFN!$A$3:$K$3, 0)) -> None | I61: =INDEX(DEFN!$A$4:$K$53, MATCH($A61, DEFN!$A$4:$A$53, 0), MATCH(I$9, DEFN!$A$3:$K$3, 0)) -> None | J61: =INDEX(DEFN!$A$4:$K$53, MATCH($A61, DEFN!$A$4:$A$53, 0), MATCH(J$9, DEFN!$A$3:$K$3, 0)) -> Policy Types | K61: =INDEX(DEFN!B$250:B$313, MATCH($B61, DEFN!$A$250:$A$313, 0), 1) -> LAC | L61: =INDEX(DEFN!C$250:C$313, MATCH($B61, DEFN!$A$250:$A$313, 0), 1) -> Jamaica | M61: =INDEX(DEFN!$A$4:$K$53, MATCH($A61, DEFN!$A$4:$A$53, 0), MATCH(M$9, DEFN!$A$3:$K$3, 0)) -> User Defined | N61: =INDEX(DEFN!$A$4:$K$53, MATCH($A61, DEFN!$A$4:$A$53, 0), MATCH(N$9, DEFN!$A$3:$K$3, 0)) -> 5 | O61: =IFERROR(IF($H61="None", 1, IF($H61="All Capacity", SUMIFS(SID!X$3:X$12290, SID!$G$3:$G$12290, "<>Power demand", SID!$K$3:$K$12290, $L61, SID!$I$3:$I$12290, $J61), IF($H61="All Generation", SUMIFS(SID!X$3:X$12290, SID!$K$3:$K$12290, $L61, SID!$I$3:$I$12290, $J61), SUMIFS(SID!X$3:X$12290, SID!$F$3:$F$12290, $H61, SID!$K$3:$K$12290, $L61)))), 1) -> 1 | P61: =IF(ISNUMBER(FIND("Growth", F61)), U61, IF(V61<>0,V61, SUMIFS(SID!X$3:X$12290, SID!$C$3:$C$12290, $C61, SID!$K$3:$K$12290, $L61, SID!$Y$3:$Y$12290, 0))) -> 3 | Q61: 1.19 | R61: 5 | S61: 23.8 | T61: 1.19 | U61: =IF(I61="Clean energy investments", IF(OR(W61=0, X61=0), 0, X61/W61-1), IF(OR(I61="None", SUMIFS(SID!X$3:X$12290, SID!$F$3:$F$12290, I61, SID!$K$3:$K$12290, L61, SID!$Y$3:$Y$12290, 0)=0), 0, IFERROR(SUMIFS(SID!X$3:X$12290, SID!$F$3:$F$12290, I61, SID!$K$3:$K$12290, L61, SID!$Y$3:$Y$12290, 0)/SUMIFS(SID!W$3:W$12290, SID!$F$3:$F$12290, I61, SID!$K$3:$K$12290, L61, SID!$Y$3:$Y$12290, 0) - 1, 0))) -> 0 | V61: =IF(J61<>"USDm", 0, IF(F61="Clean energy investments", IF(ISNUMBER(FIND("-", $L61)), SUMIFS(INV!$J$3:$J$11498, INV!$E$3:$E$11498, $L61, INV!$A$3:$A$11498, "<=" & int_Year, INV!$A$3:$A$11498, ">=" & $G$6), SUMIFS(INV!$J$3:$J$11498, INV!$F$3:$F$11498, $L61, INV!$A$3:$A$11498, "<=" & int_Year, INV!$A$3:$A$11498, ">=" & $G$6)), IF(ISNUMBER(FIND("-", $L61)), SUMIFS(INV!$J$3:$J$11498, INV!$E$3:$E$11498, $L61, INV!$I$3:$I$11498, $F61, INV!$A$3:$A$11498, "<=" & int_Year, INV!$A$3:$A$11498, ">=" & $G$6), SUMIFS(INV!$J$3:$J$11498, INV!$F$3:$F$11498, $L61, INV!$I$3:$I$11498, $F61, INV!$A$3:$A$11498, "<=" & int_Year, INV!$A$3:$A$11498, ">=" & $G$6)))) -> 0 | W61: =IF(I61<>"Clean energy investments", 0, IF(ISNUMBER(FIND("-", $L61)), SUMIFS(INV!$J$3:$J$11498, INV!$E$3:$E$11498, $L61, INV!$A$3:$A$11498, ">="& int_InvStartYear, INV!$A$3:$A$11498, "<="& int_Year-1), SUMIFS(INV!$J$3:$J$11498, INV!$F$3:$F$11498, $L61, INV!$A$3:$A$11498, ">="& int_InvStartYear, INV!$A$3:$A$11498, "<="& int_Year-1))) -> 0 | X61: =IF(I61<>"Clean energy investments", 0, IF(ISNUMBER(FIND("-", $L61)), SUMIFS(INV!$J$3:$J$11498, INV!$E$3:$E$11498, $L61, INV!$A$3:$A$11498, ">="& int_InvStartYear, INV!$A$3:$A$11498, "<="& int_Year), SUMIFS(INV!$J$3:$J$11498, INV!$F$3:$F$11498, $L61, INV!$A$3:$A$11498, ">="& int_InvStartYear, INV!$A$3:$A$11498, "<="& int_Year))) -> 0 | Y61: 1.01 > Jamaica
A62: 1 | B62: 53 | C62: =INDEX(DEFN!$A$4:$K$53, MATCH($A62, DEFN!$A$4:$A$53, 0), MATCH(C$9, DEFN!$A$3:$K$3, 0)) -> 1.01 | D62: =INDEX(DEFN!$A$4:$K$53, MATCH($A62, DEFN!$A$4:$A$53, 0), MATCH(D$9, DEFN!$A$3:$K$3, 0)) -> Enabling Framework | E62: =INDEX(DEFN!$A$4:$K$53, MATCH($A62, DEFN!$A$4:$A$53, 0), MATCH(E$9, DEFN!$A$3:$K$3, 0)) -> Policy & Regulation | F62: =INDEX(DEFN!$A$4:$K$53, MATCH($A62, DEFN!$A$4:$A$53, 0), MATCH(F$9, DEFN!$A$3:$K$3, 0)) -> Clean energy policies | G62: =INDEX(DEFN!$A$4:$K$53, MATCH($A62, DEFN!$A$4:$A$53, 0), MATCH(G$9, DEFN!$A$3:$K$3, 0)) -> Both | H62: =INDEX(DEFN!$A$4:$K$53, MATCH($A62, DEFN!$A$4:$A$53, 0), MATCH(H$9, DEFN!$A$3:$K$3, 0)) -> None | I62: =INDEX(DEFN!$A$4:$K$53, MATCH($A62, DEFN!$A$4:$A$53, 0), MATCH(I$9, DEFN!$A$3:$K$3, 0)) -> None | J62: =INDEX(DEFN!$A$4:$K$53, MATCH($A62, DEFN!$A$4:$A$53, 0), MATCH(J$9, DEFN!$A$3:$K$3, 0)) -> Policy Types | K62: =INDEX(DEFN!B$250:B$313, MATCH($B62, DEFN!$A$250:$A$313, 0), 1) -> LAC | L62: =INDEX(DEFN!C$250:C$313, MATCH($B62, DEFN!$A$250:$A$313, 0), 1) -> Mexico | M62: =INDEX(DEFN!$A$4:$K$53, MATCH($A62, DEFN!$A$4:$A$53, 0), MATCH(M$9, DEFN!$A$3:$K$3, 0)) -> User Defined | N62: =INDEX(DEFN!$A$4:$K$53, MATCH($A62, DEFN!$A$4:$A$53, 0), MATCH(N$9, DEFN!$A$3:$K$3, 0)) -> 5 | O62: =IFERROR(IF($H62="None", 1, IF($H62="All Capacity", SUMIFS(SID!X$3:X$12290, SID!$G$3:$G$12290, "<>Power demand", SID!$K$3:$K$12290, $L62, SID!$I$3:$I$12290, $J62), IF($H62="All Generation", SUMIFS(SID!X$3:X$12290, SID!$K$3:$K$12290, $L62, SID!$I$3:$I$12290, $J62), SUMIFS(SID!X$3:X$12290, SID!$F$3:$F$12290, $H62, SID!$K$3:$K$12290, $L62)))), 1) -> 1 | P62: =IF(ISNUMBER(FIND("Growth", F62)), U62, IF(V62<>0,V62, SUMIFS(SID!X$3:X$12290, SID!$C$3:$C$12290, $C62, SID!$K$3:$K$12290, $L62, SID!$Y$3:$Y$12290, 0))) -> 4 | Q62: 1.55 | R62: 5 | S62: 31 | T62: 1.55 | U62: =IF(I62="Clean energy investments", IF(OR(W62=0, X62=0), 0, X62/W62-1), IF(OR(I62="None", SUMIFS(SID!X$3:X$12290, SID!$F$3:$F$12290, I62, SID!$K$3:$K$12290, L62, SID!$Y$3:$Y$12290, 0)=0), 0, IFERROR(SUMIFS(SID!X$3:X$12290, SID!$F$3:$F$12290, I62, SID!$K$3:$K$12290, L62, SID!$Y$3:$Y$12290, 0)/SUMIFS(SID!W$3:W$12290, SID!$F$3:$F$12290, I62, SID!$K$3:$K$12290, L62, SID!$Y$3:$Y$12290, 0) - 1, 0))) -> 0 | V62: =IF(J62<>"USDm", 0, IF(F62="Clean energy investments", IF(ISNUMBER(FIND("-", $L62)), SUMIFS(INV!$J$3:$J$11498, INV!$E$3:$E$11498, $L62, INV!$A$3:$A$11498, "<=" & int_Year, INV!$A$3:$A$11498, ">=" & $G$6), SUMIFS(INV!$J$3:$J$11498, INV!$F$3:$F$11498, $L62, INV!$A$3:$A$11498, "<=" & int_Year, INV!$A$3:$A$11498, ">=" & $G$6)), IF(ISNUMBER(FIND("-", $L62)), SUMIFS(INV!$J$3:$J$11498, INV!$E$3:$E$11498, $L62, INV!$I$3:$I$11498, $F62, INV!$A$3:$A$11498, "<=" & int_Year, INV!$A$3:$A$11498, ">=" & $G$6), SUMIFS(INV!$J$3:$J$11498, INV!$F$3:$F$11498, $L62, INV!$I$3:$I$11498, $F62, INV!$A$3:$A$11498, "<=" & int_Year, INV!$A$3:$A$11498, ">=" & $G$6)))) -> 0 | W62: =IF(I62<>"Clean energy investments", 0, IF(ISNUMBER(FIND("-", $L62)), SUMIFS(INV!$J$3:$J$11498, INV!$E$3:$E$11498, $L62, INV!$A$3:$A$11498, ">="& int_InvStartYear, INV!$A$3:$A$11498, "<="& int_Year-1), SUMIFS(INV!$J$3:$J$11498, INV!$F$3:$F$11498, $L62, INV!$A$3:$A$11498, ">="& int_InvStartYear, INV!$A$3:$A$11498, "<="& int_Year-1))) -> 0 | X62: =IF(I62<>"Clean energy investments", 0, IF(ISNUMBER(FIND("-", $L62)), SUMIFS(INV!$J$3:$J$11498, INV!$E$3:$E$11498, $L62, INV!$A$3:$A$11498, ">="& int_InvStartYear, INV!$A$3:$A$11498, "<="& int_Year), SUMIFS(INV!$J$3:$J$11498, INV!$F$3:$F$11498, $L62, INV!$A$3:$A$11498, ">="& int_InvStartYear, INV!$A$3:$A$11498, "<="& int_Year))) -> 0 | Y62: 1.01 > Mexico
A63: 1 | B63: 54 | C63: =INDEX(DEFN!$A$4:$K$53, MATCH($A63, DEFN!$A$4:$A$53, 0), MATCH(C$9, DEFN!$A$3:$K$3, 0)) -> 1.01 | D63: =INDEX(DEFN!$A$4:$K$53, MATCH($A63, DEFN!$A$4:$A$53, 0), MATCH(D$9, DEFN!$A$3:$K$3, 0)) -> Enabling Framework | E63: =INDEX(DEFN!$A$4:$K$53, MATCH($A63, DEFN!$A$4:$A$53, 0), MATCH(E$9, DEFN!$A$3:$K$3, 0)) -> Policy & Regulation | F63: =INDEX(DEFN!$A$4:$K$53, MATCH($A63, DEFN!$A$4:$A$53, 0), MATCH(F$9, DEFN!$A$3:$K$3, 0)) -> Clean energy policies | G63: =INDEX(DEFN!$A$4:$K$53, MATCH($A63, DEFN!$A$4:$A$53, 0), MATCH(G$9, DEFN!$A$3:$K$3, 0)) -> Both | H63: =INDEX(DEFN!$A$4:$K$53, MATCH($A63, DEFN!$A$4:$A$53, 0), MATCH(H$9, DEFN!$A$3:$K$3, 0)) -> None | I63: =INDEX(DEFN!$A$4:$K$53, MATCH($A63, DEFN!$A$4:$A$53, 0), MATCH(I$9, DEFN!$A$3:$K$3, 0)) -> None | J63: =INDEX(DEFN!$A$4:$K$53, MATCH($A63, DEFN!$A$4:$A$53, 0), MATCH(J$9, DEFN!$A$3:$K$3, 0)) -> Policy Types | K63: =INDEX(DEFN!B$250:B$313, MATCH($B63, DEFN!$A$250:$A$313, 0), 1) -> LAC | L63: =INDEX(DEFN!C$250:C$313, MATCH($B63, DEFN!$A$250:$A$313, 0), 1) -> Nicaragua | M63: =INDEX(DEFN!$A$4:$K$53, MATCH($A63, DEFN!$A$4:$A$53, 0), MATCH(M$9, DEFN!$A$3:$K$3, 0)) -> User Defined | N63: =INDEX(DEFN!$A$4:$K$53, MATCH($A63, DEFN!$A$4:$A$53, 0), MATCH(N$9, DEFN!$A$3:$K$3, 0)) -> 5 | O63: =IFERROR(IF($H63="None", 1, IF($H63="All Capacity", SUMIFS(SID!X$3:X$12290, SID!$G$3:$G$12290, "<>Power demand", SID!$K$3:$K$12290, $L63, SID!$I$3:$I$12290, $J63), IF($H63="All Generation", SUMIFS(SID!X$3:X$12290, SID!$K$3:$K$12290, $L63, SID!$I$3:$I$12290, $J63), SUMIFS(SID!X$3:X$12290, SID!$F$3:$F$12290, $H63, SID!$K$3:$K$12290, $L63)))), 1) -> 1 | P63: =IF(ISNUMBER(FIND("Growth", F63)), U63, IF(V63<>0,V63, SUMIFS(SID!X$3:X$12290, SID!$C$3:$C$12290, $C63, SID!$K$3:$K$12290, $L63, SID!$Y$3:$Y$12290, 0))) -> 2 | Q63: 0.64 | R63: 5 | S63: 12.8 | T63: 0.64 | U63: =IF(I63="Clean energy investments", IF(OR(W63=0, X63=0), 0, X63/W63-1), IF(OR(I63="None", SUMIFS(SID!X$3:X$12290, SID!$F$3:$F$12290, I63, SID!$K$3:$K$12290, L63, SID!$Y$3:$Y$12290, 0)=0), 0, IFERROR(SUMIFS(SID!X$3:X$12290, SID!$F$3:$F$12290, I63, SID!$K$3:$K$12290, L63, SID!$Y$3:$Y$12290, 0)/SUMIFS(SID!W$3:W$12290, SID!$F$3:$F$12290, I63, SID!$K$3:$K$12290, L63, SID!$Y$3:$Y$12290, 0) - 1, 0))) -> 0 | V63: =IF(J63<>"USDm", 0, IF(F63="Clean energy investments", IF(ISNUMBER(FIND("-", $L63)), SUMIFS(INV!$J$3:$J$11498, INV!$E$3:$E$11498, $L63, INV!$A$3:$A$11498, "<=" & int_Year, INV!$A$3:$A$11498, ">=" & $G$6), SUMIFS(INV!$J$3:$J$11498, INV!$F$3:$F$11498, $L63, INV!$A$3:$A$11498, "<=" & int_Year, INV!$A$3:$A$11498, ">=" & $G$6)), IF(ISNUMBER(FIND("-", $L63)), SUMIFS(INV!$J$3:$J$11498, INV!$E$3:$E$11498, $L63, INV!$I$3:$I$11498, $F63, INV!$A$3:$A$11498, "<=" & int_Year, INV!$A$3:$A$11498, ">=" & $G$6), SUMIFS(INV!$J$3:$J$11498, INV!$F$3:$F$11498, $L63, INV!$I$3:$I$11498, $F63, INV!$A$3:$A$11498, "<=" & int_Year, INV!$A$3:$A$11498, ">=" & $G$6)))) -> 0 | W63: =IF(I63<>"Clean energy investments", 0, IF(ISNUMBER(FIND("-", $L63)), SUMIFS(INV!$J$3:$J$11498, INV!$E$3:$E$11498, $L63, INV!$A$3:$A$11498, ">="& int_InvStartYear, INV!$A$3:$A$11498, "<="& int_Year-1), SUMIFS(INV!$J$3:$J$11498, INV!$F$3:$F$11498, $L63, INV!$A$3:$A$11498, ">="& int_InvStartYear, INV!$A$3:$A$11498, "<="& int_Year-1))) -> 0 | X63: =IF(I63<>"Clean energy investments", 0, IF(ISNUMBER(FIND("-", $L63)), SUMIFS(INV!$J$3:$J$11498, INV!$E$3:$E$11498, $L63, INV!$A$3:$A$11498, ">="& int_InvStartYear, INV!$A$3:$A$11498, "<="& int_Year), SUMIFS(INV!$J$3:$J$11498, INV!$F$3:$F$11498, $L63, INV!$A$3:$A$11498, ">="& int_InvStartYear, INV!$A$3:$A$11498, "<="& int_Year))) -> 0 | Y63: 1.01 > Nicaragua
A64: 1 | B64: 55 | C64: =INDEX(DEFN!$A$4:$K$53, MATCH($A64, DEFN!$A$4:$A$53, 0), MATCH(C$9, DEFN!$A$3:$K$3, 0)) -> 1.01 | D64: =INDEX(DEFN!$A$4:$K$53, MATCH($A64, DEFN!$A$4:$A$53, 0), MATCH(D$9, DEFN!$A$3:$K$3, 0)) -> Enabling Framework | E64: =INDEX(DEFN!$A$4:$K$53, MATCH($A64, DEFN!$A$4:$A$53, 0), MATCH(E$9, DEFN!$A$3:$K$3, 0)) -> Policy & Regulation | F64: =INDEX(DEFN!$A$4:$K$53, MATCH($A64, DEFN!$A$4:$A$53, 0), MATCH(F$9, DEFN!$A$3:$K$3, 0)) -> Clean energy policies | G64: =INDEX(DEFN!$A$4:$K$53, MATCH($A64, DEFN!$A$4:$A$53, 0), MATCH(G$9, DEFN!$A$3:$K$3, 0)) -> Both | H64: =INDEX(DEFN!$A$4:$K$53, MATCH($A64, DEFN!$A$4:$A$53, 0), MATCH(H$9, DEFN!$A$3:$K$3, 0)) -> None | I64: =INDEX(DEFN!$A$4:$K$53, MATCH($A64, DEFN!$A$4:$A$53, 0), MATCH(I$9, DEFN!$A$3:$K$3, 0)) -> None | J64: =INDEX(DEFN!$A$4:$K$53, MATCH($A64, DEFN!$A$4:$A$53, 0), MATCH(J$9, DEFN!$A$3:$K$3, 0)) -> Policy Types | K64: =INDEX(DEFN!B$250:B$313, MATCH($B64, DEFN!$A$250:$A$313, 0), 1) -> LAC | L64: =INDEX(DEFN!C$250:C$313, MATCH($B64, DEFN!$A$250:$A$313, 0), 1) -> Panama | M64: =INDEX(DEFN!$A$4:$K$53, MATCH($A64, DEFN!$A$4:$A$53, 0), MATCH(M$9, DEFN!$A$3:$K$3, 0)) -> User Defined | N64: =INDEX(DEFN!$A$4:$K$53, MATCH($A64, DEFN!$A$4:$A$53, 0), MATCH(N$9, DEFN!$A$3:$K$3, 0)) -> 5 | O64: =IFERROR(IF($H64="None", 1, IF($H64="All Capacity", SUMIFS(SID!X$3:X$12290, SID!$G$3:$G$12290, "<>Power demand", SID!$K$3:$K$12290, $L64, SID!$I$3:$I$12290, $J64), IF($H64="All Generation", SUMIFS(SID!X$3:X$12290, SID!$K$3:$K$12290, $L64, SID!$I$3:$I$12290, $J64), SUMIFS(SID!X$3:X$12290, SID!$F$3:$F$12290, $H64, SID!$K$3:$K$12290, $L64)))), 1) -> 1 | P64: =IF(ISNUMBER(FIND("Growth", F64)), U64, IF(V64<>0,V64, SUMIFS(SID!X$3:X$12290, SID!$C$3:$C$12290, $C64, SID!$K$3:$K$12290, $L64, SID!$Y$3:$Y$12290, 0))) -> 5 | Q64: 2.15 | R64: 5 | S64: 43 | T64: 2.15 | U64: =IF(I64="Clean energy investments", IF(OR(W64=0, X64=0), 0, X64/W64-1), IF(OR(I64="None", SUMIFS(SID!X$3:X$12290, SID!$F$3:$F$12290, I64, SID!$K$3:$K$12290, L64, SID!$Y$3:$Y$12290, 0)=0), 0, IFERROR(SUMIFS(SID!X$3:X$12290, SID!$F$3:$F$12290, I64, SID!$K$3:$K$12290, L64, SID!$Y$3:$Y$12290, 0)/SUMIFS(SID!W$3:W$12290, SID!$F$3:$F$12290, I64, SID!$K$3:$K$12290, L64, SID!$Y$3:$Y$12290, 0) - 1, 0))) -> 0 | V64: =IF(J64<>"USDm", 0, IF(F64="Clean energy investments", IF(ISNUMBER(FIND("-", $L64)), SUMIFS(INV!$J$3:$J$11498, INV!$E$3:$E$11498, $L64, INV!$A$3:$A$11498, "<=" & int_Year, INV!$A$3:$A$11498, ">=" & $G$6), SUMIFS(INV!$J$3:$J$11498, INV!$F$3:$F$11498, $L64, INV!$A$3:$A$11498, "<=" & int_Year, INV!$A$3:$A$11498, ">=" & $G$6)), IF(ISNUMBER(FIND("-", $L64)), SUMIFS(INV!$J$3:$J$11498, INV!$E$3:$E$11498, $L64, INV!$I$3:$I$11498, $F64, INV!$A$3:$A$11498, "<=" & int_Year, INV!$A$3:$A$11498, ">=" & $G$6), SUMIFS(INV!$J$3:$J$11498, INV!$F$3:$F$11498, $L64, INV!$I$3:$I$11498, $F64, INV!$A$3:$A$11498, "<=" & int_Year, INV!$A$3:$A$11498, ">=" & $G$6)))) -> 0 | W64: =IF(I64<>"Clean energy investments", 0, IF(ISNUMBER(FIND("-", $L64)), SUMIFS(INV!$J$3:$J$11498, INV!$E$3:$E$11498, $L64, INV!$A$3:$A$11498, ">="& int_InvStartYear, INV!$A$3:$A$11498, "<="& int_Year-1), SUMIFS(INV!$J$3:$J$11498, INV!$F$3:$F$11498, $L64, INV!$A$3:$A$11498, ">="& int_InvStartYear, INV!$A$3:$A$11498, "<="& int_Year-1))) -> 0 | X64: =IF(I64<>"Clean energy investments", 0, IF(ISNUMBER(FIND("-", $L64)), SUMIFS(INV!$J$3:$J$11498, INV!$E$3:$E$11498, $L64, INV!$A$3:$A$11498, ">="& int_InvStartYear, INV!$A$3:$A$11498, "<="& int_Year), SUMIFS(INV!$J$3:$J$11498, INV!$F$3:$F$11498, $L64, INV!$A$3:$A$11498, ">="& int_InvStartYear, INV!$A$3:$A$11498, "<="& int_Year))) -> 0 | Y64: 1.01 > Panama
A65: 1 | B65: 56 | C65: =INDEX(DEFN!$A$4:$K$53, MATCH($A65, DEFN!$A$4:$A$53, 0), MATCH(C$9, DEFN!$A$3:$K$3, 0)) -> 1.01 | D65: =INDEX(DEFN!$A$4:$K$53, MATCH($A65, DEFN!$A$4:$A$53, 0), MATCH(D$9, DEFN!$A$3:$K$3, 0)) -> Enabling Framework | E65: =INDEX(DEFN!$A$4:$K$53, MATCH($A65, DEFN!$A$4:$A$53, 0), MATCH(E$9, DEFN!$A$3:$K$3, 0)) -> Policy & Regulation | F65: =INDEX(DEFN!$A$4:$K$53, MATCH($A65, DEFN!$A$4:$A$53, 0), MATCH(F$9, DEFN!$A$3:$K$3, 0)) -> Clean energy policies | G65: =INDEX(DEFN!$A$4:$K$53, MATCH($A65, DEFN!$A$4:$A$53, 0), MATCH(G$9, DEFN!$A$3:$K$3, 0)) -> Both | H65: =INDEX(DEFN!$A$4:$K$53, MATCH($A65, DEFN!$A$4:$A$53, 0), MATCH(H$9, DEFN!$A$3:$K$3, 0)) -> None | I65: =INDEX(DEFN!$A$4:$K$53, MATCH($A65, DEFN!$A$4:$A$53, 0), MATCH(I$9, DEFN!$A$3:$K$3, 0)) -> None | J65: =INDEX(DEFN!$A$4:$K$53, MATCH($A65, DEFN!$A$4:$A$53, 0), MATCH(J$9, DEFN!$A$3:$K$3, 0)) -> Policy Types | K65: =INDEX(DEFN!B$250:B$313, MATCH($B65, DEFN!$A$250:$A$313, 0), 1) -> LAC | L65: =INDEX(DEFN!C$250:C$313, MATCH($B65, DEFN!$A$250:$A$313, 0), 1) -> Paraguay | M65: =INDEX(DEFN!$A$4:$K$53, MATCH($A65, DEFN!$A$4:$A$53, 0), MATCH(M$9, DEFN!$A$3:$K$3, 0)) -> User Defined | N65: =INDEX(DEFN!$A$4:$K$53, MATCH($A65, DEFN!$A$4:$A$53, 0), MATCH(N$9, DEFN!$A$3:$K$3, 0)) -> 5 | O65: =IFERROR(IF($H65="None", 1, IF($H65="All Capacity", SUMIFS(SID!X$3:X$12290, SID!$G$3:$G$12290, "<>Power demand", SID!$K$3:$K$12290, $L65, SID!$I$3:$I$12290, $J65), IF($H65="All Generation", SUMIFS(SID!X$3:X$12290, SID!$K$3:$K$12290, $L65, SID!$I$3:$I$12290, $J65), SUMIFS(SID!X$3:X$12290, SID!$F$3:$F$12290, $H65, SID!$K$3:$K$12290, $L65)))), 1) -> 1 | P65: =IF(ISNUMBER(FIND("Growth", F65)), U65, IF(V65<>0,V65, SUMIFS(SID!X$3:X$12290, SID!$C$3:$C$12290, $C65, SID!$K$3:$K$12290, $L65, SID!$Y$3:$Y$12290, 0))) -> 2 | Q65: 0.55 | R65: 5 | S65: 11 | T65: 0.55 | U65: =IF(I65="Clean energy investments", IF(OR(W65=0, X65=0), 0, X65/W65-1), IF(OR(I65="None", SUMIFS(SID!X$3:X$12290, SID!$F$3:$F$12290, I65, SID!$K$3:$K$12290, L65, SID!$Y$3:$Y$12290, 0)=0), 0, IFERROR(SUMIFS(SID!X$3:X$12290, SID!$F$3:$F$12290, I65, SID!$K$3:$K$12290, L65, SID!$Y$3:$Y$12290, 0)/SUMIFS(SID!W$3:W$12290, SID!$F$3:$F$12290, I65, SID!$K$3:$K$12290, L65, SID!$Y$3:$Y$12290, 0) - 1, 0))) -> 0 | V65: =IF(J65<>"USDm", 0, IF(F65="Clean energy investments", IF(ISNUMBER(FIND("-", $L65)), SUMIFS(INV!$J$3:$J$11498, INV!$E$3:$E$11498, $L65, INV!$A$3:$A$11498, "<=" & int_Year, INV!$A$3:$A$11498, ">=" & $G$6), SUMIFS(INV!$J$3:$J$11498, INV!$F$3:$F$11498, $L65, INV!$A$3:$A$11498, "<=" & int_Year, INV!$A$3:$A$11498, ">=" & $G$6)), IF(ISNUMBER(FIND("-", $L65)), SUMIFS(INV!$J$3:$J$11498, INV!$E$3:$E$11498, $L65, INV!$I$3:$I$11498, $F65, INV!$A$3:$A$11498, "<=" & int_Year, INV!$A$3:$A$11498, ">=" & $G$6), SUMIFS(INV!$J$3:$J$11498, INV!$F$3:$F$11498, $L65, INV!$I$3:$I$11498, $F65, INV!$A$3:$A$11498, "<=" & int_Year, INV!$A$3:$A$11498, ">=" & $G$6)))) -> 0 | W65: =IF(I65<>"Clean energy investments", 0, IF(ISNUMBER(FIND("-", $L65)), SUMIFS(INV!$J$3:$J$11498, INV!$E$3:$E$11498, $L65, INV!$A$3:$A$11498, ">="& int_InvStartYear, INV!$A$3:$A$11498, "<="& int_Year-1), SUMIFS(INV!$J$3:$J$11498, INV!$F$3:$F$11498, $L65, INV!$A$3:$A$11498, ">="& int_InvStartYear, INV!$A$3:$A$11498, "<="& int_Year-1))) -> 0 | X65: =IF(I65<>"Clean energy investments", 0, IF(ISNUMBER(FIND("-", $L65)), SUMIFS(INV!$J$3:$J$11498, INV!$E$3:$E$11498, $L65, INV!$A$3:$A$11498, ">="& int_InvStartYear, INV!$A$3:$A$11498, "<="& int_Year), SUMIFS(INV!$J$3:$J$11498, INV!$F$3:$F$11498, $L65, INV!$A$3:$A$11498, ">="& int_InvStartYear, INV!$A$3:$A$11498, "<="& int_Year))) -> 0 | Y65: 1.01 > Paraguay
A66: 1 | B66: 57 | C66: =INDEX(DEFN!$A$4:$K$53, MATCH($A66, DEFN!$A$4:$A$53, 0), MATCH(C$9, DEFN!$A$3:$K$3, 0)) -> 1.01 | D66: =INDEX(DEFN!$A$4:$K$53, MATCH($A66, DEFN!$A$4:$A$53, 0), MATCH(D$9, DEFN!$A$3:$K$3, 0)) -> Enabling Framework | E66: =INDEX(DEFN!$A$4:$K$53, MATCH($A66, DEFN!$A$4:$A$53, 0), MATCH(E$9, DEFN!$A$3:$K$3, 0)) -> Policy & Regulation | F66: =INDEX(DEFN!$A$4:$K$53, MATCH($A66, DEFN!$A$4:$A$53, 0), MATCH(F$9, DEFN!$A$3:$K$3, 0)) -> Clean energy policies | G66: =INDEX(DEFN!$A$4:$K$53, MATCH($A66, DEFN!$A$4:$A$53, 0), MATCH(G$9, DEFN!$A$3:$K$3, 0)) -> Both | H66: =INDEX(DEFN!$A$4:$K$53, MATCH($A66, DEFN!$A$4:$A$53, 0), MATCH(H$9, DEFN!$A$3:$K$3, 0)) -> None | I66: =INDEX(DEFN!$A$4:$K$53, MATCH($A66, DEFN!$A$4:$A$53, 0), MATCH(I$9, DEFN!$A$3:$K$3, 0)) -> None | J66: =INDEX(DEFN!$A$4:$K$53, MATCH($A66, DEFN!$A$4:$A$53, 0), MATCH(J$9, DEFN!$A$3:$K$3, 0)) -> Policy Types | K66: =INDEX(DEFN!B$250:B$313, MATCH($B66, DEFN!$A$250:$A$313, 0), 1) -> LAC | L66: =INDEX(DEFN!C$250:C$313, MATCH($B66, DEFN!$A$250:$A$313, 0), 1) -> Peru | M66: =INDEX(DEFN!$A$4:$K$53, MATCH($A66, DEFN!$A$4:$A$53, 0), MATCH(M$9, DEFN!$A$3:$K$3, 0)) -> User Defined | N66: =INDEX(DEFN!$A$4:$K$53, MATCH($A66, DEFN!$A$4:$A$53, 0), MATCH(N$9, DEFN!$A$3:$K$3, 0)) -> 5 | O66: =IFERROR(IF($H66="None", 1, IF($H66="All Capacity", SUMIFS(SID!X$3:X$12290, SID!$G$3:$G$12290, "<>Power demand", SID!$K$3:$K$12290, $L66, SID!$I$3:$I$12290, $J66), IF($H66="All Generation", SUMIFS(SID!X$3:X$12290, SID!$K$3:$K$12290, $L66, SID!$I$3:$I$12290, $J66), SUMIFS(SID!X$3:X$12290, SID!$F$3:$F$12290, $H66, SID!$K$3:$K$12290, $L66)))), 1) -> 1 | P66: =IF(ISNUMBER(FIND("Growth", F66)), U66, IF(V66<>0,V66, SUMIFS(SID!X$3:X$12290, SID!$C$3:$C$12290, $C66, SID!$K$3:$K$12290, $L66, SID!$Y$3:$Y$12290, 0))) -> 4 | Q66: 1.6 | R66: 5 | S66: 32 | T66: 1.6 | U66: =IF(I66="Clean energy investments", IF(OR(W66=0, X66=0), 0, X66/W66-1), IF(OR(I66="None", SUMIFS(SID!X$3:X$12290, SID!$F$3:$F$12290, I66, SID!$K$3:$K$12290, L66, SID!$Y$3:$Y$12290, 0)=0), 0, IFERROR(SUMIFS(SID!X$3:X$12290, SID!$F$3:$F$12290, I66, SID!$K$3:$K$12290, L66, SID!$Y$3:$Y$12290, 0)/SUMIFS(SID!W$3:W$12290, SID!$F$3:$F$12290, I66, SID!$K$3:$K$12290, L66, SID!$Y$3:$Y$12290, 0) - 1, 0))) -> 0 | V66: =IF(J66<>"USDm", 0, IF(F66="Clean energy investments", IF(ISNUMBER(FIND("-", $L66)), SUMIFS(INV!$J$3:$J$11498, INV!$E$3:$E$11498, $L66, INV!$A$3:$A$11498, "<=" & int_Year, INV!$A$3:$A$11498, ">=" & $G$6), SUMIFS(INV!$J$3:$J$11498, INV!$F$3:$F$11498, $L66, INV!$A$3:$A$11498, "<=" & int_Year, INV!$A$3:$A$11498, ">=" & $G$6)), IF(ISNUMBER(FIND("-", $L66)), SUMIFS(INV!$J$3:$J$11498, INV!$E$3:$E$11498, $L66, INV!$I$3:$I$11498, $F66, INV!$A$3:$A$11498, "<=" & int_Year, INV!$A$3:$A$11498, ">=" & $G$6), SUMIFS(INV!$J$3:$J$11498, INV!$F$3:$F$11498, $L66, INV!$I$3:$I$11498, $F66, INV!$A$3:$A$11498, "<=" & int_Year, INV!$A$3:$A$11498, ">=" & $G$6)))) -> 0 | W66: =IF(I66<>"Clean energy investments", 0, IF(ISNUMBER(FIND("-", $L66)), SUMIFS(INV!$J$3:$J$11498, INV!$E$3:$E$11498, $L66, INV!$A$3:$A$11498, ">="& int_InvStartYear, INV!$A$3:$A$11498, "<="& int_Year-1), SUMIFS(INV!$J$3:$J$11498, INV!$F$3:$F$11498, $L66, INV!$A$3:$A$11498, ">="& int_InvStartYear, INV!$A$3:$A$11498, "<="& int_Year-1))) -> 0 | X66: =IF(I66<>"Clean energy investments", 0, IF(ISNUMBER(FIND("-", $L66)), SUMIFS(INV!$J$3:$J$11498, INV!$E$3:$E$11498, $L66, INV!$A$3:$A$11498, ">="& int_InvStartYear, INV!$A$3:$A$11498, "<="& int_Year), SUMIFS(INV!$J$3:$J$11498, INV!$F$3:$F$11498, $L66, INV!$A$3:$A$11498, ">="& int_InvStartYear, INV!$A$3:$A$11498, "<="& int_Year))) -> 0 | Y66: 1.01 > Peru
A67: 1 | B67: 58 | C67: =INDEX(DEFN!$A$4:$K$53, MATCH($A67, DEFN!$A$4:$A$53, 0), MATCH(C$9, DEFN!$A$3:$K$3, 0)) -> 1.01 | D67: =INDEX(DEFN!$A$4:$K$53, MATCH($A67, DEFN!$A$4:$A$53, 0), MATCH(D$9, DEFN!$A$3:$K$3, 0)) -> Enabling Framework | E67: =INDEX(DEFN!$A$4:$K$53, MATCH($A67, DEFN!$A$4:$A$53, 0), MATCH(E$9, DEFN!$A$3:$K$3, 0)) -> Policy & Regulation | F67: =INDEX(DEFN!$A$4:$K$53, MATCH($A67, DEFN!$A$4:$A$53, 0), MATCH(F$9, DEFN!$A$3:$K$3, 0)) -> Clean energy policies | G67: =INDEX(DEFN!$A$4:$K$53, MATCH($A67, DEFN!$A$4:$A$53, 0), MATCH(G$9, DEFN!$A$3:$K$3, 0)) -> Both | H67: =INDEX(DEFN!$A$4:$K$53, MATCH($A67, DEFN!$A$4:$A$53, 0), MATCH(H$9, DEFN!$A$3:$K$3, 0)) -> None | I67: =INDEX(DEFN!$A$4:$K$53, MATCH($A67, DEFN!$A$4:$A$53, 0), MATCH(I$9, DEFN!$A$3:$K$3, 0)) -> None | J67: =INDEX(DEFN!$A$4:$K$53, MATCH($A67, DEFN!$A$4:$A$53, 0), MATCH(J$9, DEFN!$A$3:$K$3, 0)) -> Policy Types | K67: =INDEX(DEFN!B$250:B$313, MATCH($B67, DEFN!$A$250:$A$313, 0), 1) -> LAC | L67: =INDEX(DEFN!C$250:C$313, MATCH($B67, DEFN!$A$250:$A$313, 0), 1) -> Suriname | M67: =INDEX(DEFN!$A$4:$K$53, MATCH($A67, DEFN!$A$4:$A$53, 0), MATCH(M$9, DEFN!$A$3:$K$3, 0)) -> User Defined | N67: =INDEX(DEFN!$A$4:$K$53, MATCH($A67, DEFN!$A$4:$A$53, 0), MATCH(N$9, DEFN!$A$3:$K$3, 0)) -> 5 | O67: =IFERROR(IF($H67="None", 1, IF($H67="All Capacity", SUMIFS(SID!X$3:X$12290, SID!$G$3:$G$12290, "<>Power demand", SID!$K$3:$K$12290, $L67, SID!$I$3:$I$12290, $J67), IF($H67="All Generation", SUMIFS(SID!X$3:X$12290, SID!$K$3:$K$12290, $L67, SID!$I$3:$I$12290, $J67), SUMIFS(SID!X$3:X$12290, SID!$F$3:$F$12290, $H67, SID!$K$3:$K$12290, $L67)))), 1) -> 1 | P67: =IF(ISNUMBER(FIND("Growth", F67)), U67, IF(V67<>0,V67, SUMIFS(SID!X$3:X$12290, SID!$C$3:$C$12290, $C67, SID!$K$3:$K$12290, $L67, SID!$Y$3:$Y$12290, 0))) -> 0 | Q67: 0 | R67: 5 | S67: 0 | T67: 0 | U67: =IF(I67="Clean energy investments", IF(OR(W67=0, X67=0), 0, X67/W67-1), IF(OR(I67="None", SUMIFS(SID!X$3:X$12290, SID!$F$3:$F$12290, I67, SID!$K$3:$K$12290, L67, SID!$Y$3:$Y$12290, 0)=0), 0, IFERROR(SUMIFS(SID!X$3:X$12290, SID!$F$3:$F$12290, I67, SID!$K$3:$K$12290, L67, SID!$Y$3:$Y$12290, 0)/SUMIFS(SID!W$3:W$12290, SID!$F$3:$F$12290, I67, SID!$K$3:$K$12290, L67, SID!$Y$3:$Y$12290, 0) - 1, 0))) -> 0 | V67: =IF(J67<>"USDm", 0, IF(F67="Clean energy investments", IF(ISNUMBER(FIND("-", $L67)), SUMIFS(INV!$J$3:$J$11498, INV!$E$3:$E$11498, $L67, INV!$A$3:$A$11498, "<=" & int_Year, INV!$A$3:$A$11498, ">=" & $G$6), SUMIFS(INV!$J$3:$J$11498, INV!$F$3:$F$11498, $L67, INV!$A$3:$A$11498, "<=" & int_Year, INV!$A$3:$A$11498, ">=" & $G$6)), IF(ISNUMBER(FIND("-", $L67)), SUMIFS(INV!$J$3:$J$11498, INV!$E$3:$E$11498, $L67, INV!$I$3:$I$11498, $F67, INV!$A$3:$A$11498, "<=" & int_Year, INV!$A$3:$A$11498, ">=" & $G$6), SUMIFS(INV!$J$3:$J$11498, INV!$F$3:$F$11498, $L67, INV!$I$3:$I$11498, $F67, INV!$A$3:$A$11498, "<=" & int_Year, INV!$A$3:$A$11498, ">=" & $G$6)))) -> 0 | W67: =IF(I67<>"Clean energy investments", 0, IF(ISNUMBER(FIND("-", $L67)), SUMIFS(INV!$J$3:$J$11498, INV!$E$3:$E$11498, $L67, INV!$A$3:$A$11498, ">="& int_InvStartYear, INV!$A$3:$A$11498, "<="& int_Year-1), SUMIFS(INV!$J$3:$J$11498, INV!$F$3:$F$11498, $L67, INV!$A$3:$A$11498, ">="& int_InvStartYear, INV!$A$3:$A$11498, "<="& int_Year-1))) -> 0 | X67: =IF(I67<>"Clean energy investments", 0, IF(ISNUMBER(FIND("-", $L67)), SUMIFS(INV!$J$3:$J$11498, INV!$E$3:$E$11498, $L67, INV!$A$3:$A$11498, ">="& int_InvStartYear, INV!$A$3:$A$11498, "<="& int_Year), SUMIFS(INV!$J$3:$J$11498, INV!$F$3:$F$11498, $L67, INV!$A$3:$A$11498, ">="& int_InvStartYear, INV!$A$3:$A$11498, "<="& int_Year))) -> 0 | Y67: 1.01 > Suriname
A68: 1 | B68: 59 | C68: =INDEX(DEFN!$A$4:$K$53, MATCH($A68, DEFN!$A$4:$A$53, 0), MATCH(C$9, DEFN!$A$3:$K$3, 0)) -> 1.01 | D68: =INDEX(DEFN!$A$4:$K$53, MATCH($A68, DEFN!$A$4:$A$53, 0), MATCH(D$9, DEFN!$A$3:$K$3, 0)) -> Enabling Framework | E68: =INDEX(DEFN!$A$4:$K$53, MATCH($A68, DEFN!$A$4:$A$53, 0), MATCH(E$9, DEFN!$A$3:$K$3, 0)) -> Policy & Regulation | F68: =INDEX(DEFN!$A$4:$K$53, MATCH($A68, DEFN!$A$4:$A$53, 0), MATCH(F$9, DEFN!$A$3:$K$3, 0)) -> Clean energy policies | G68: =INDEX(DEFN!$A$4:$K$53, MATCH($A68, DEFN!$A$4:$A$53, 0), MATCH(G$9, DEFN!$A$3:$K$3, 0)) -> Both | H68: =INDEX(DEFN!$A$4:$K$53, MATCH($A68, DEFN!$A$4:$A$53, 0), MATCH(H$9, DEFN!$A$3:$K$3, 0)) -> None | I68: =INDEX(DEFN!$A$4:$K$53, MATCH($A68, DEFN!$A$4:$A$53, 0), MATCH(I$9, DEFN!$A$3:$K$3, 0)) -> None | J68: =INDEX(DEFN!$A$4:$K$53, MATCH($A68, DEFN!$A$4:$A$53, 0), MATCH(J$9, DEFN!$A$3:$K$3, 0)) -> Policy Types | K68: =INDEX(DEFN!B$250:B$313, MATCH($B68, DEFN!$A$250:$A$313, 0), 1) -> LAC | L68: =INDEX(DEFN!C$250:C$313, MATCH($B68, DEFN!$A$250:$A$313, 0), 1) -> Trinidad & Tobago | M68: =INDEX(DEFN!$A$4:$K$53, MATCH($A68, DEFN!$A$4:$A$53, 0), MATCH(M$9, DEFN!$A$3:$K$3, 0)) -> User Defined | N68: =INDEX(DEFN!$A$4:$K$53, MATCH($A68, DEFN!$A$4:$A$53, 0), MATCH(N$9, DEFN!$A$3:$K$3, 0)) -> 5 | O68: =IFERROR(IF($H68="None", 1, IF($H68="All Capacity", SUMIFS(SID!X$3:X$12290, SID!$G$3:$G$12290, "<>Power demand", SID!$K$3:$K$12290, $L68, SID!$I$3:$I$12290, $J68), IF($H68="All Generation", SUMIFS(SID!X$3:X$12290, SID!$K$3:$K$12290, $L68, SID!$I$3:$I$12290, $J68), SUMIFS(SID!X$3:X$12290, SID!$F$3:$F$12290, $H68, SID!$K$3:$K$12290, $L68)))), 1) -> 1 | P68: =IF(ISNUMBER(FIND("Growth", F68)), U68, IF(V68<>0,V68, SUMIFS(SID!X$3:X$12290, SID!$C$3:$C$12290, $C68, SID!$K$3:$K$12290, $L68, SID!$Y$3:$Y$12290, 0))) -> 0 | Q68: 0 | R68: 5 | S68: 0 | T68: 0 | U68: =IF(I68="Clean energy investments", IF(OR(W68=0, X68=0), 0, X68/W68-1), IF(OR(I68="None", SUMIFS(SID!X$3:X$12290, SID!$F$3:$F$12290, I68, SID!$K$3:$K$12290, L68, SID!$Y$3:$Y$12290, 0)=0), 0, IFERROR(SUMIFS(SID!X$3:X$12290, SID!$F$3:$F$12290, I68, SID!$K$3:$K$12290, L68, SID!$Y$3:$Y$12290, 0)/SUMIFS(SID!W$3:W$12290, SID!$F$3:$F$12290, I68, SID!$K$3:$K$12290, L68, SID!$Y$3:$Y$12290, 0) - 1, 0))) -> 0 | V68: =IF(J68<>"USDm", 0, IF(F68="Clean energy investments", IF(ISNUMBER(FIND("-", $L68)), SUMIFS(INV!$J$3:$J$11498, INV!$E$3:$E$11498, $L68, INV!$A$3:$A$11498, "<=" & int_Year, INV!$A$3:$A$11498, ">=" & $G$6), SUMIFS(INV!$J$3:$J$11498, INV!$F$3:$F$11498, $L68, INV!$A$3:$A$11498, "<=" & int_Year, INV!$A$3:$A$11498, ">=" & $G$6)), IF(ISNUMBER(FIND("-", $L68)), SUMIFS(INV!$J$3:$J$11498, INV!$E$3:$E$11498, $L68, INV!$I$3:$I$11498, $F68, INV!$A$3:$A$11498, "<=" & int_Year, INV!$A$3:$A$11498, ">=" & $G$6), SUMIFS(INV!$J$3:$J$11498, INV!$F$3:$F$11498, $L68, INV!$I$3:$I$11498, $F68, INV!$A$3:$A$11498, "<=" & int_Year, INV!$A$3:$A$11498, ">=" & $G$6)))) -> 0 | W68: =IF(I68<>"Clean energy investments", 0, IF(ISNUMBER(FIND("-", $L68)), SUMIFS(INV!$J$3:$J$11498, INV!$E$3:$E$11498, $L68, INV!$A$3:$A$11498, ">="& int_InvStartYear, INV!$A$3:$A$11498, "<="& int_Year-1), SUMIFS(INV!$J$3:$J$11498, INV!$F$3:$F$11498, $L68, INV!$A$3:$A$11498, ">="& int_InvStartYear, INV!$A$3:$A$11498, "<="& int_Year-1))) -> 0 | X68: =IF(I68<>"Clean energy investments", 0, IF(ISNUMBER(FIND("-", $L68)), SUMIFS(INV!$J$3:$J$11498, INV!$E$3:$E$11498, $L68, INV!$A$3:$A$11498, ">="& int_InvStartYear, INV!$A$3:$A$11498, "<="& int_Year), SUMIFS(INV!$J$3:$J$11498, INV!$F$3:$F$11498, $L68, INV!$A$3:$A$11498, ">="& int_InvStartYear, INV!$A$3:$A$11498, "<="& int_Year))) -> 0 | Y68: 1.01 > Trinidad & Tobago
A69: 1 | B69: 60 | C69: =INDEX(DEFN!$A$4:$K$53, MATCH($A69, DEFN!$A$4:$A$53, 0), MATCH(C$9, DEFN!$A$3:$K$3, 0)) -> 1.01 | D69: =INDEX(DEFN!$A$4:$K$53, MATCH($A69, DEFN!$A$4:$A$53, 0), MATCH(D$9, DEFN!$A$3:$K$3, 0)) -> Enabling Framework | E69: =INDEX(DEFN!$A$4:$K$53, MATCH($A69, DEFN!$A$4:$A$53, 0), MATCH(E$9, DEFN!$A$3:$K$3, 0)) -> Policy & Regulation | F69: =INDEX(DEFN!$A$4:$K$53, MATCH($A69, DEFN!$A$4:$A$53, 0), MATCH(F$9, DEFN!$A$3:$K$3, 0)) -> Clean energy policies | G69: =INDEX(DEFN!$A$4:$K$53, MATCH($A69, DEFN!$A$4:$A$53, 0), MATCH(G$9, DEFN!$A$3:$K$3, 0)) -> Both | H69: =INDEX(DEFN!$A$4:$K$53, MATCH($A69, DEFN!$A$4:$A$53, 0), MATCH(H$9, DEFN!$A$3:$K$3, 0)) -> None | I69: =INDEX(DEFN!$A$4:$K$53, MATCH($A69, DEFN!$A$4:$A$53, 0), MATCH(I$9, DEFN!$A$3:$K$3, 0)) -> None | J69: =INDEX(DEFN!$A$4:$K$53, MATCH($A69, DEFN!$A$4:$A$53, 0), MATCH(J$9, DEFN!$A$3:$K$3, 0)) -> Policy Types | K69: =INDEX(DEFN!B$250:B$313, MATCH($B69, DEFN!$A$250:$A$313, 0), 1) -> LAC | L69: =INDEX(DEFN!C$250:C$313, MATCH($B69, DEFN!$A$250:$A$313, 0), 1) -> Uruguay | M69: =INDEX(DEFN!$A$4:$K$53, MATCH($A69, DEFN!$A$4:$A$53, 0), MATCH(M$9, DEFN!$A$3:$K$3, 0)) -> User Defined | N69: =INDEX(DEFN!$A$4:$K$53, MATCH($A69, DEFN!$A$4:$A$53, 0), MATCH(N$9, DEFN!$A$3:$K$3, 0)) -> 5 | O69: =IFERROR(IF($H69="None", 1, IF($H69="All Capacity", SUMIFS(SID!X$3:X$12290, SID!$G$3:$G$12290, "<>Power demand", SID!$K$3:$K$12290, $L69, SID!$I$3:$I$12290, $J69), IF($H69="All Generation", SUMIFS(SID!X$3:X$12290, SID!$K$3:$K$12290, $L69, SID!$I$3:$I$12290, $J69), SUMIFS(SID!X$3:X$12290, SID!$F$3:$F$12290, $H69, SID!$K$3:$K$12290, $L69)))), 1) -> 1 | P69: =IF(ISNUMBER(FIND("Growth", F69)), U69, IF(V69<>0,V69, SUMIFS(SID!X$3:X$12290, SID!$C$3:$C$12290, $C69, SID!$K$3:$K$12290, $L69, SID!$Y$3:$Y$12290, 0))) -> 6 | Q69: 2.92 | R69: 5 | S69: 58.4 | T69: 2.92 | U69: =IF(I69="Clean energy investments", IF(OR(W69=0, X69=0), 0, X69/W69-1), IF(OR(I69="None", SUMIFS(SID!X$3:X$12290, SID!$F$3:$F$12290, I69, SID!$K$3:$K$12290, L69, SID!$Y$3:$Y$12290, 0)=0), 0, IFERROR(SUMIFS(SID!X$3:X$12290, SID!$F$3:$F$12290, I69, SID!$K$3:$K$12290, L69, SID!$Y$3:$Y$12290, 0)/SUMIFS(SID!W$3:W$12290, SID!$F$3:$F$12290, I69, SID!$K$3:$K$12290, L69, SID!$Y$3:$Y$12290, 0) - 1, 0))) -> 0 | V69: =IF(J69<>"USDm", 0, IF(F69="Clean energy investments", IF(ISNUMBER(FIND("-", $L69)), SUMIFS(INV!$J$3:$J$11498, INV!$E$3:$E$11498, $L69, INV!$A$3:$A$11498, "<=" & int_Year, INV!$A$3:$A$11498, ">=" & $G$6), SUMIFS(INV!$J$3:$J$11498, INV!$F$3:$F$11498, $L69, INV!$A$3:$A$11498, "<=" & int_Year, INV!$A$3:$A$11498, ">=" & $G$6)), IF(ISNUMBER(FIND("-", $L69)), SUMIFS(INV!$J$3:$J$11498, INV!$E$3:$E$11498, $L69, INV!$I$3:$I$11498, $F69, INV!$A$3:$A$11498, "<=" & int_Year, INV!$A$3:$A$11498, ">=" & $G$6), SUMIFS(INV!$J$3:$J$11498, INV!$F$3:$F$11498, $L69, INV!$I$3:$I$11498, $F69, INV!$A$3:$A$11498, "<=" & int_Year, INV!$A$3:$A$11498, ">=" & $G$6)))) -> 0 | W69: =IF(I69<>"Clean energy investments", 0, IF(ISNUMBER(FIND("-", $L69)), SUMIFS(INV!$J$3:$J$11498, INV!$E$3:$E$11498, $L69, INV!$A$3:$A$11498, ">="& int_InvStartYear, INV!$A$3:$A$11498, "<="& int_Year-1), SUMIFS(INV!$J$3:$J$11498, INV!$F$3:$F$11498, $L69, INV!$A$3:$A$11498, ">="& int_InvStartYear, INV!$A$3:$A$11498, "<="& int_Year-1))) -> 0 | X69: =IF(I69<>"Clean energy investments", 0, IF(ISNUMBER(FIND("-", $L69)), SUMIFS(INV!$J$3:$J$11498, INV!$E$3:$E$11498, $L69, INV!$A$3:$A$11498, ">="& int_InvStartYear, INV!$A$3:$A$11498, "<="& int_Year), SUMIFS(INV!$J$3:$J$11498, INV!$F$3:$F$11498, $L69, INV!$A$3:$A$11498, ">="& int_InvStartYear, INV!$A$3:$A$11498, "<="& int_Year))) -> 0 | Y69: 1.01 > Uruguay
A70: 1 | B70: 61 | C70: =INDEX(DEFN!$A$4:$K$53, MATCH($A70, DEFN!$A$4:$A$53, 0), MATCH(C$9, DEFN!$A$3:$K$3, 0)) -> 1.01 | D70: =INDEX(DEFN!$A$4:$K$53, MATCH($A70, DEFN!$A$4:$A$53, 0), MATCH(D$9, DEFN!$A$3:$K$3, 0)) -> Enabling Framework | E70: =INDEX(DEFN!$A$4:$K$53, MATCH($A70, DEFN!$A$4:$A$53, 0), MATCH(E$9, DEFN!$A$3:$K$3, 0)) -> Policy & Regulation | F70: =INDEX(DEFN!$A$4:$K$53, MATCH($A70, DEFN!$A$4:$A$53, 0), MATCH(F$9, DEFN!$A$3:$K$3, 0)) -> Clean energy policies | G70: =INDEX(DEFN!$A$4:$K$53, MATCH($A70, DEFN!$A$4:$A$53, 0), MATCH(G$9, DEFN!$A$3:$K$3, 0)) -> Both | H70: =INDEX(DEFN!$A$4:$K$53, MATCH($A70, DEFN!$A$4:$A$53, 0), MATCH(H$9, DEFN!$A$3:$K$3, 0)) -> None | I70: =INDEX(DEFN!$A$4:$K$53, MATCH($A70, DEFN!$A$4:$A$53, 0), MATCH(I$9, DEFN!$A$3:$K$3, 0)) -> None | J70: =INDEX(DEFN!$A$4:$K$53, MATCH($A70, DEFN!$A$4:$A$53, 0), MATCH(J$9, DEFN!$A$3:$K$3, 0)) -> Policy Types | K70: =INDEX(DEFN!B$250:B$313, MATCH($B70, DEFN!$A$250:$A$313, 0), 1) -> LAC | L70: =INDEX(DEFN!C$250:C$313, MATCH($B70, DEFN!$A$250:$A$313, 0), 1) -> Venezuela | M70: =INDEX(DEFN!$A$4:$K$53, MATCH($A70, DEFN!$A$4:$A$53, 0), MATCH(M$9, DEFN!$A$3:$K$3, 0)) -> User Defined | N70: =INDEX(DEFN!$A$4:$K$53, MATCH($A70, DEFN!$A$4:$A$53, 0), MATCH(N$9, DEFN!$A$3:$K$3, 0)) -> 5 | O70: =IFERROR(IF($H70="None", 1, IF($H70="All Capacity", SUMIFS(SID!X$3:X$12290, SID!$G$3:$G$12290, "<>Power demand", SID!$K$3:$K$12290, $L70, SID!$I$3:$I$12290, $J70), IF($H70="All Generation", SUMIFS(SID!X$3:X$12290, SID!$K$3:$K$12290, $L70, SID!$I$3:$I$12290, $J70), SUMIFS(SID!X$3:X$12290, SID!$F$3:$F$12290, $H70, SID!$K$3:$K$12290, $L70)))), 1) -> 1 | P70: =IF(ISNUMBER(FIND("Growth", F70)), U70, IF(V70<>0,V70, SUMIFS(SID!X$3:X$12290, SID!$C$3:$C$12290, $C70, SID!$K$3:$K$12290, $L70, SID!$Y$3:$Y$12290, 0))) -> 0 | Q70: 0 | R70: 5 | S70: 0 | T70: 0 | U70: =IF(I70="Clean energy investments", IF(OR(W70=0, X70=0), 0, X70/W70-1), IF(OR(I70="None", SUMIFS(SID!X$3:X$12290, SID!$F$3:$F$12290, I70, SID!$K$3:$K$12290, L70, SID!$Y$3:$Y$12290, 0)=0), 0, IFERROR(SUMIFS(SID!X$3:X$12290, SID!$F$3:$F$12290, I70, SID!$K$3:$K$12290, L70, SID!$Y$3:$Y$12290, 0)/SUMIFS(SID!W$3:W$12290, SID!$F$3:$F$12290, I70, SID!$K$3:$K$12290, L70, SID!$Y$3:$Y$12290, 0) - 1, 0))) -> 0 | V70: =IF(J70<>"USDm", 0, IF(F70="Clean energy investments", IF(ISNUMBER(FIND("-", $L70)), SUMIFS(INV!$J$3:$J$11498, INV!$E$3:$E$11498, $L70, INV!$A$3:$A$11498, "<=" & int_Year, INV!$A$3:$A$11498, ">=" & $G$6), SUMIFS(INV!$J$3:$J$11498, INV!$F$3:$F$11498, $L70, INV!$A$3:$A$11498, "<=" & int_Year, INV!$A$3:$A$11498, ">=" & $G$6)), IF(ISNUMBER(FIND("-", $L70)), SUMIFS(INV!$J$3:$J$11498, INV!$E$3:$E$11498, $L70, INV!$I$3:$I$11498, $F70, INV!$A$3:$A$11498, "<=" & int_Year, INV!$A$3:$A$11498, ">=" & $G$6), SUMIFS(INV!$J$3:$J$11498, INV!$F$3:$F$11498, $L70, INV!$I$3:$I$11498, $F70, INV!$A$3:$A$11498, "<=" & int_Year, INV!$A$3:$A$11498, ">=" & $G$6)))) -> 0 | W70: =IF(I70<>"Clean energy investments", 0, IF(ISNUMBER(FIND("-", $L70)), SUMIFS(INV!$J$3:$J$11498, INV!$E$3:$E$11498, $L70, INV!$A$3:$A$11498, ">="& int_InvStartYear, INV!$A$3:$A$11498, "<="& int_Year-1), SUMIFS(INV!$J$3:$J$11498, INV!$F$3:$F$11498, $L70, INV!$A$3:$A$11498, ">="& int_InvStartYear, INV!$A$3:$A$11498, "<="& int_Year-1))) -> 0 | X70: =IF(I70<>"Clean energy investments", 0, IF(ISNUMBER(FIND("-", $L70)), SUMIFS(INV!$J$3:$J$11498, INV!$E$3:$E$11498, $L70, INV!$A$3:$A$11498, ">="& int_InvStartYear, INV!$A$3:$A$11498, "<="& int_Year), SUMIFS(INV!$J$3:$J$11498, INV!$F$3:$F$11498, $L70, INV!$A$3:$A$11498, ">="& int_InvStartYear, INV!$A$3:$A$11498, "<="& int_Year))) -> 0 | Y70: 1.01 > Venezuela
A71: 1 | B71: 62 | C71: =INDEX(DEFN!$A$4:$K$53, MATCH($A71, DEFN!$A$4:$A$53, 0), MATCH(C$9, DEFN!$A$3:$K$3, 0)) -> 1.01 | D71: =INDEX(DEFN!$A$4:$K$53, MATCH($A71, DEFN!$A$4:$A$53, 0), MATCH(D$9, DEFN!$A$3:$K$3, 0)) -> Enabling Framework | E71: =INDEX(DEFN!$A$4:$K$53, MATCH($A71, DEFN!$A$4:$A$53, 0), MATCH(E$9, DEFN!$A$3:$K$3, 0)) -> Policy & Regulation | F71: =INDEX(DEFN!$A$4:$K$53, MATCH($A71, DEFN!$A$4:$A$53, 0), MATCH(F$9, DEFN!$A$3:$K$3, 0)) -> Clean energy policies | G71: =INDEX(DEFN!$A$4:$K$53, MATCH($A71, DEFN!$A$4:$A$53, 0), MATCH(G$9, DEFN!$A$3:$K$3, 0)) -> Both | H71: =INDEX(DEFN!$A$4:$K$53, MATCH($A71, DEFN!$A$4:$A$53, 0), MATCH(H$9, DEFN!$A$3:$K$3, 0)) -> None | I71: =INDEX(DEFN!$A$4:$K$53, MATCH($A71, DEFN!$A$4:$A$53, 0), MATCH(I$9, DEFN!$A$3:$K$3, 0)) -> None | J71: =INDEX(DEFN!$A$4:$K$53, MATCH($A71, DEFN!$A$4:$A$53, 0), MATCH(J$9, DEFN!$A$3:$K$3, 0)) -> Policy Types | K71: =INDEX(DEFN!B$250:B$313, MATCH($B71, DEFN!$A$250:$A$313, 0), 1) -> Middle East | L71: =INDEX(DEFN!C$250:C$313, MATCH($B71, DEFN!$A$250:$A$313, 0), 1) -> Egypt | M71: =INDEX(DEFN!$A$4:$K$53, MATCH($A71, DEFN!$A$4:$A$53, 0), MATCH(M$9, DEFN!$A$3:$K$3, 0)) -> User Defined | N71: =INDEX(DEFN!$A$4:$K$53, MATCH($A71, DEFN!$A$4:$A$53, 0), MATCH(N$9, DEFN!$A$3:$K$3, 0)) -> 5 | O71: =IFERROR(IF($H71="None", 1, IF($H71="All Capacity", SUMIFS(SID!X$3:X$12290, SID!$G$3:$G$12290, "<>Power demand", SID!$K$3:$K$12290, $L71, SID!$I$3:$I$12290, $J71), IF($H71="All Generation", SUMIFS(SID!X$3:X$12290, SID!$K$3:$K$12290, $L71, SID!$I$3:$I$12290, $J71), SUMIFS(SID!X$3:X$12290, SID!$F$3:$F$12290, $H71, SID!$K$3:$K$12290, $L71)))), 1) -> 1 | P71: =IF(ISNUMBER(FIND("Growth", F71)), U71, IF(V71<>0,V71, SUMIFS(SID!X$3:X$12290, SID!$C$3:$C$12290, $C71, SID!$K$3:$K$12290, $L71, SID!$Y$3:$Y$12290, 0))) -> 5 | Q71: 1.7 | R71: 5 | S71: 34 | T71: 1.7 | U71: =IF(I71="Clean energy investments", IF(OR(W71=0, X71=0), 0, X71/W71-1), IF(OR(I71="None", SUMIFS(SID!X$3:X$12290, SID!$F$3:$F$12290, I71, SID!$K$3:$K$12290, L71, SID!$Y$3:$Y$12290, 0)=0), 0, IFERROR(SUMIFS(SID!X$3:X$12290, SID!$F$3:$F$12290, I71, SID!$K$3:$K$12290, L71, SID!$Y$3:$Y$12290, 0)/SUMIFS(SID!W$3:W$12290, SID!$F$3:$F$12290, I71, SID!$K$3:$K$12290, L71, SID!$Y$3:$Y$12290, 0) - 1, 0))) -> 0 | V71: =IF(J71<>"USDm", 0, IF(F71="Clean energy investments", IF(ISNUMBER(FIND("-", $L71)), SUMIFS(INV!$J$3:$J$11498, INV!$E$3:$E$11498, $L71, INV!$A$3:$A$11498, "<=" & int_Year, INV!$A$3:$A$11498, ">=" & $G$6), SUMIFS(INV!$J$3:$J$11498, INV!$F$3:$F$11498, $L71, INV!$A$3:$A$11498, "<=" & int_Year, INV!$A$3:$A$11498, ">=" & $G$6)), IF(ISNUMBER(FIND("-", $L71)), SUMIFS(INV!$J$3:$J$11498, INV!$E$3:$E$11498, $L71, INV!$I$3:$I$11498, $F71, INV!$A$3:$A$11498, "<=" & int_Year, INV!$A$3:$A$11498, ">=" & $G$6), SUMIFS(INV!$J$3:$J$11498, INV!$F$3:$F$11498, $L71, INV!$I$3:$I$11498, $F71, INV!$A$3:$A$11498, "<=" & int_Year, INV!$A$3:$A$11498, ">=" & $G$6)))) -> 0 | W71: =IF(I71<>"Clean energy investments", 0, IF(ISNUMBER(FIND("-", $L71)), SUMIFS(INV!$J$3:$J$11498, INV!$E$3:$E$11498, $L71, INV!$A$3:$A$11498, ">="& int_InvStartYear, INV!$A$3:$A$11498, "<="& int_Year-1), SUMIFS(INV!$J$3:$J$11498, INV!$F$3:$F$11498, $L71, INV!$A$3:$A$11498, ">="& int_InvStartYear, INV!$A$3:$A$11498, "<="& int_Year-1))) -> 0 | X71: =IF(I71<>"Clean energy investments", 0, IF(ISNUMBER(FIND("-", $L71)), SUMIFS(INV!$J$3:$J$11498, INV!$E$3:$E$11498, $L71, INV!$A$3:$A$11498, ">="& int_InvStartYear, INV!$A$3:$A$11498, "<="& int_Year), SUMIFS(INV!$J$3:$J$11498, INV!$F$3:$F$11498, $L71, INV!$A$3:$A$11498, ">="& int_InvStartYear, INV!$A$3:$A$11498, "<="& int_Year))) -> 0 | Y71: 1.01 > Egypt
